Workbook

Sheet Notes
A1: Title: Lithium mobilisation during metapelite melting: insights and open questions
A2: Authors: Costa, E.O.* (0000-0001-8478-6255), Alt, I. (0009-0005-5885-3342), Argles T.W. (0000-0002-0484-4230), Hoogendoorn, S.B. (0009-0007-2735-9151), Kriegsman L.M.(0000-0001-5510-127X), Kunz B.E. (0000-0002-9492-1497), Riel N. (0000-0002-5037-5519), and Warren C.J. (0000-0003-2444-9737)
A3: *Corresponding author: elisa.oliveira-da-costa@open.ac.uk
A5: Supplementary Tables:
A6: 1 | B6: New mineral in situ trace elemet concentrations
A7: 2 | B7: Compilation of Li concentration in the main mineral phases of pelitic migmatites
A8: 3 | B8: Median Li concentrations in the main mineral phases in pelitic migmatites
A9: 4 | B9: Starting composition from experiments and average metapelites
A11: 5 | B11: Modelled Li concentrations with experimental Kds in a closed system
A12: 6 | B12: Modelled Li concentrations with natural Kds in a closed system
A13: 7 | B13: Notes about models with extraction (melt and system compositions)
A14: 8 | B14: Modelled Li concentrations with experimental Kds at 8 kbar with melt extractions
A15: 9 | B15: Modelled Li concentrations with natural Kds at 8 kbar with melt extractions
A16: 10 | B16: Modelled Li concentrations with experimental Kds at 4 kbar with melt extractions
A17: 11 | B17: Modelled Li concentrations with natural Kds at 4 kbar with melt extractions

Sheet 1
A1: Novel in situ major and trace element data.
A3: Sample | B3: Mineral | C3: Laser_Point | E3: Oxides (wt. %) | S3: Atoms per formula unit | AG3: Xalm | AH3: Xpy | AI3: XSp | AJ3: Xgros | AK3: XAn | AL3: XAb | AM3: XOr | AN3: Xfe | AP3: P-T estimates | AY3: Elements (ppm)
E4: SiO2 | F4: TiO2 | G4: Al2O3 | H4: Cr2O3 | I4: FeO | J4: MnO | K4: MgO | L4: CaO | M4: Na2O | N4: K2O | O4: F | P4: Cl | Q4: Total | S4: Si | T4: Ti | U4: Al | V4: Cr | W4: Fe | X4: Mn | Y4: Mg | Z4: Ca | AA4: Na | AB4: K | AD4: XMG | AP4: Literature T (°C) | AQ4: Literature P (kbar) | AR4: Preferred T | AS4: Preferred P | AT4: Na-in-Crd T (°C) | AU4: Na-in-Crd Average T (°C) | AV4: Ti-in-Bt T (°C) | AW4: Ti-in-Bt Average T (°C) | AY4: Li_ppm_m7 | AZ4: Li_ppm_m7_Int2SE | BA4: Be_ppm_m9 | BB4: Be_ppm_m9_Int2SE | BC4: Na_ppm_m23 | BD4: Na_ppm_m23_Int2SE | BE4: Mg_ppm_m24 | BF4: Mg_ppm_m24_Int2SE | BG4: Al_ppm_m27 | BH4: Al_ppm_m27_Int2SE | BI4: P_ppm_m31 | BJ4: P_ppm_m31_Int2SE | BK4: K_ppm_m39 | BL4: K_ppm_m39_Int2SE | BM4: Ca_ppm_m43 | BN4: Ca_ppm_m43_Int2SE | BO4: Sc_ppm_m45 | BP4: Sc_ppm_m45_Int2SE | BQ4: Ti_ppm_m49 | BR4: Ti_ppm_m49_Int2SE | BS4: V_ppm_m51 | BT4: V_ppm_m51_Int2SE | BU4: Cr_ppm_m53 | BV4: Cr_ppm_m53_Int2SE | BW4: Mn_ppm_m55 | BX4: Mn_ppm_m55_Int2SE | BY4: Fe_ppm_m56 | BZ4: Fe_ppm_m56_Int2SE | CA4: Co_ppm_m59 | CB4: Co_ppm_m59_Int2SE | CC4: Ni_ppm_m60 | CD4: Ni_ppm_m60_Int2SE | CE4: Cu_ppm_m65 | CF4: Cu_ppm_m65_Int2SE | CG4: Zn_ppm_m66 | CH4: Zn_ppm_m66_Int2SE | CI4: Ga_ppm_m71 | CJ4: Ga_ppm_m71_Int2SE | CK4: Ge_ppm_m74 | CL4: Ge_ppm_m74_Int2SE | CM4: Rb_ppm_m85 | CN4: Rb_ppm_m85_Int2SE | CO4: Sr_ppm_m88 | CP4: Sr_ppm_m88_Int2SE | CQ4: Y_ppm_m89 | CR4: Y_ppm_m89_Int2SE | CS4: Zr_ppm_m90 | CT4: Zr_ppm_m90_Int2SE | CU4: Nb_ppm_m93 | CV4: Nb_ppm_m93_Int2SE | CW4: Mo_ppm_m95 | CX4: Mo_ppm_m95_Int2SE | CY4: Cd_ppm_m111 | CZ4: Cd_ppm_m111_Int2SE | DA4: In_Corrected | DB4: In_ppm_m115_Int2SE | DC4: Sn_ppm_m118 | DD4: Sn_ppm_m118_Int2SE | DE4: Sb_ppm_m121 | DF4: Sb_ppm_m121_Int2SE | DG4: Cs_ppm_m133 | DH4: Cs_ppm_m133_Int2SE | DI4: Ba_ppm_m137 | DJ4: Ba_ppm_m137_Int2SE | DK4: La_ppm_m139 | DL4: La_ppm_m139_Int2SE | DM4: Ce_ppm_m140 | DN4: Ce_ppm_m140_Int2SE | DO4: Pr_ppm_m141 | DP4: Pr_ppm_m141_Int2SE | DQ4: Nd_ppm_m146 | DR4: Nd_ppm_m146_Int2SE | DS4: Sm_ppm_m147 | DT4: Sm_ppm_m147_Int2SE | DU4: Eu_ppm_m153 | DV4: Eu_ppm_m153_Int2SE | DW4: Gd_ppm_m157 | DX4: Gd_ppm_m157_Int2SE | DY4: Tb_ppm_m159 | DZ4: Tb_ppm_m159_Int2SE | EA4: Dy_ppm_m163 | EB4: Dy_ppm_m163_Int2SE | EC4: Ho_ppm_m165 | ED4: Ho_ppm_m165_Int2SE | EE4: Er_ppm_m166 | EF4: Er_ppm_m166_Int2SE | EG4: Tm_ppm_m169 | EH4: Tm_ppm_m169_Int2SE | EI4: Yb_ppm_m172 | EJ4: Yb_ppm_m172_Int2SE | EK4: Lu_ppm_m175 | EL4: Lu_ppm_m175_Int2SE | EM4: Hf_ppm_m177 | EN4: Hf_ppm_m177_Int2SE | EO4: Ta_ppm_m181 | EP4: Ta_ppm_m181_Int2SE | EQ4: W_ppm_m182 | ER4: W_ppm_m182_Int2SE | ES4: Tl_ppm_m205 | ET4: Tl_ppm_m205_Int2SE | EU4: Pb_ppm_m208 | EV4: Pb_ppm_m208_Int2SE | EW4: Bi_ppm_m209 | EX4: Bi_ppm_m209_Int2SE | EY4: Th_ppm_m232 | EZ4: Th_ppm_m232_Int2SE | FA4: U_ppm_m238 | FB4: U_ppm_m238_Int2SE
A5: PT03C | B5: Bt | C5: PT03C_Bt18 | E5: 35.74 | F5: 3.01 | G5: 20.08 | H5: 0.05 | I5: 18.11 | J5: 0.15 | K5: 8.64 | L5: -0.00 | M5: 0.21 | N5: 9.04 | O5: 0.22 | P5: 0.01 | Q5: 95.27 | S5: 11.35 | T5: 0.00 | U5: 4.71 | V5: 0.00 | W5: 0.00 | X5: 0.00 | Y5: 0.00 | Z5: 0.54 | AA5: 3.32 | AB5: 0.06 | AD5: =Y5/(Y5+W5) -> 0.00 | AN5: =W5/(W5+Y5) -> 1.00 | AP5: 720-840 | AQ5: 4.5 | AR5: 700.0 | AS5: 3.8 | AU5: 700.0 | AV5: 650.3 | AW5: 652.0 | AY5: 190.7 | AZ5: 9.3 | BA5: 0 | BB5: 0 | BC5: 1953 | BD5: 89 | BE5: 8.42E+04 | BF5: 4.10E+03 | BG5: 2.00E+05 | BH5: 7.80E+03 | BI5: 61.1 | BJ5: 7 | BK5: 7.89E+04 | BL5: 4.00E+03 | BM5: 0 | BN5: 0 | BO5: 62.5 | BP5: 3 | BQ5: 19270 | BR5: 840 | BS5: 394 | BT5: 23 | BU5: 358 | BV5: 18 | BW5: 1239 | BX5: 49 | BY5: 1.70E+05 | BZ5: 7.80E+03 | CA5: 43.2 | CB5: 1.8 | CC5: 123.3 | CD5: 6.3 | CE5: 0 | CF5: 0 | CG5: 500 | CH5: 32 | CI5: 60.1 | CJ5: 4.2 | CK5: 2.1 | CL5: 0.57 | CM5: 586 | CN5: 31 | CO5: 0.87 | CP5: 0.11 | CQ5: 0 | CR5: 0 | CS5: 0.52 | CT5: 0.12 | CU5: 79.8 | CV5: 3.4 | CW5: 0 | CX5: 0 | CY5: 0 | CZ5: 0 | DA5: 0.393 | DB5: 0.054 | DC5: 10.52 | DD5: 0.71 | DE5: 0 | DF5: 0 | DG5: 19.79 | DH5: 0.9 | DI5: 499 | DJ5: 20 | DK5: 0 | DL5: 0 | DM5: 0 | DN5: 0 | DO5: 0 | DP5: 0 | DQ5: 0 | DR5: 0 | DS5: 0 | DT5: 0 | DU5: 0 | DV5: 0 | DW5: 0 | DX5: 0 | DY5: 0 | DZ5: 0 | EA5: 0 | EB5: 0 | EC5: 0 | ED5: 0 | EE5: 0 | EF5: 0 | EG5: 0 | EH5: 0 | EI5: 0 | EJ5: 0 | EK5: 0 | EL5: 0 | EM5: 0 | EN5: 0 | EO5: 6.38 | EP5: 0.35 | EQ5: 7.68 | ER5: 0.53 | ES5: 3.3 | ET5: 0.19 | EU5: 3.01 | EV5: 0.23 | EW5: 0 | EX5: 0 | EY5: 0 | EZ5: 0 | FA5: 0 | FB5: 0
A6: PT03C | B6: Bt | C6: PT03C_Bt19 | E6: 36.00 | F6: 3.17 | G6: 20.09 | H6: 0.05 | I6: 18.20 | J6: 0.17 | K6: 8.65 | L6: -0.00 | M6: 0.20 | N6: 9.04 | O6: 0.13 | P6: 0.01 | Q6: 95.71 | S6: 2.69 | T6: 0.18 | U6: 1.77 | V6: 0.00 | W6: 1.14 | X6: 0.01 | Y6: 0.97 | Z6: -0.00 | AA6: 0.03 | AB6: 0.86 | AD6: =Y6/(Y6+W6) -> 0.46 | AN6: 0.54 | AP6: 720-840 | AQ6: 4.5 | AR6: 700.0 | AS6: 3.8 | AU6: 700.0 | AV6: 659.4 | AW6: 652.0 | AY6: 210 | AZ6: 12 | BA6: 0 | BB6: 0 | BC6: 1923 | BD6: 96 | BE6: 8.67E+04 | BF6: 4.40E+03 | BG6: 2.02E+05 | BH6: 8.80E+03 | BI6: 79.7 | BJ6: 7.1 | BK6: 7.99E+04 | BL6: 3.60E+03 | BM6: 0 | BN6: 0 | BO6: 63.9 | BP6: 3.1 | BQ6: 1.99E+04 | BR6: 1.00E+03 | BS6: 404 | BT6: 17 | BU6: 344 | BV6: 17 | BW6: 1283 | BX6: 50 | BY6: 1.79E+05 | BZ6: 6.40E+03 | CA6: 45 | CB6: 2.4 | CC6: 131.4 | CD6: 7.7 | CE6: 0 | CF6: 0 | CG6: 515 | CH6: 26 | CI6: 61.2 | CJ6: 3.7 | CK6: 1.93 | CL6: 0.58 | CM6: 560 | CN6: 30 | CO6: 1.1 | CP6: 0.11 | CQ6: 0 | CR6: 0 | CS6: 0.44 | CT6: 0.11 | CU6: 83.7 | CV6: 3.5 | CW6: 0 | CX6: 0 | CY6: 0 | CZ6: 0 | DA6: 0.478 | DB6: 0.072 | DC6: 10.09 | DD6: 0.58 | DE6: 0 | DF6: 0 | DG6: 27 | DH6: 1.3 | DI6: 499 | DJ6: 22 | DK6: 0 | DL6: 0 | DM6: 0 | DN6: 0 | DO6: 0 | DP6: 0 | DQ6: 0 | DR6: 0 | DS6: 0 | DT6: 0 | DU6: 0 | DV6: 0 | DW6: 0 | DX6: 0 | DY6: 0 | DZ6: 0 | EA6: 0 | EB6: 0 | EC6: 0 | ED6: 0 | EE6: 0 | EF6: 0 | EG6: 0 | EH6: 0 | EI6: 0 | EJ6: 0 | EK6: 0 | EL6: 0 | EM6: 0 | EN6: 0 | EO6: 6.5 | EP6: 0.43 | EQ6: 7.47 | ER6: 0.53 | ES6: 3.57 | ET6: 0.27 | EU6: 3.34 | EV6: 0.29 | EW6: 0 | EX6: 0 | EY6: 0 | EZ6: 0 | FA6: 0 | FB6: 0
A7: PT03C | B7: Bt | C7: PT03C_Bt20 | E7: 35.57 | F7: 2.95 | G7: 20.29 | H7: 0.04 | I7: 18.72 | J7: 0.17 | K7: 8.78 | L7: -0.02 | M7: 0.20 | N7: 9.16 | O7: 0.14 | P7: 0.00 | Q7: 96.01 | S7: 2.66 | T7: 0.17 | U7: 1.79 | V7: 0.00 | W7: 1.17 | X7: 0.01 | Y7: 0.98 | Z7: 0.00 | AA7: 0.03 | AB7: 0.88 | AD7: 0.46 | AN7: 0.54 | AP7: 720-840 | AQ7: 4.5 | AR7: 700.0 | AS7: 3.8 | AU7: 700.0 | AV7: 642.2 | AW7: 652.0 | AY7: 219 | AZ7: 11 | BA7: 0 | BB7: 0 | BC7: 1850 | BD7: 100 | BE7: 8.56E+04 | BF7: 4.50E+03 | BG7: 2.00E+05 | BH7: 9.10E+03 | BI7: 73.7 | BJ7: 7.1 | BK7: 7.96E+04 | BL7: 4.40E+03 | BM7: 0 | BN7: 0 | BO7: 58.9 | BP7: 3.7 | BQ7: 1.86E+04 | BR7: 1.00E+03 | BS7: 376 | BT7: 21 | BU7: 314 | BV7: 18 | BW7: 1286 | BX7: 73 | BY7: 1.72E+05 | BZ7: 9.60E+03 | CA7: 43.8 | CB7: 2.6 | CC7: 122.5 | CD7: 6.6 | CE7: 0 | CF7: 0 | CG7: 502 | CH7: 29 | CI7: 58.3 | CJ7: 3.9 | CK7: 0 | CL7: 0 | CM7: 589 | CN7: 38 | CO7: 0.82 | CP7: 0.11 | CQ7: 0 | CR7: 0 | CS7: 0.53 | CT7: 0.11 | CU7: 79.1 | CV7: 3.7 | CW7: 0 | CX7: 0 | CY7: 0 | CZ7: 0 | DA7: 0.434 | DB7: 0.056 | DC7: 9.8 | DD7: 0.79 | DE7: 0 | DF7: 0 | DG7: 25 | DH7: 1.7 | DI7: 482 | DJ7: 31 | DK7: 0 | DL7: 0 | DM7: 0 | DN7: 0 | DO7: 0 | DP7: 0 | DQ7: 0 | DR7: 0 | DS7: 0 | DT7: 0 | DU7: 0 | DV7: 0 | DW7: 0 | DX7: 0 | DY7: 0 | DZ7: 0 | EA7: 0 | EB7: 0 | EC7: 0 | ED7: 0 | EE7: 0 | EF7: 0 | EG7: 0 | EH7: 0 | EI7: 0 | EJ7: 0 | EK7: 0 | EL7: 0 | EM7: 0 | EN7: 0 | EO7: 6.26 | EP7: 0.33 | EQ7: 8.82 | ER7: 0.46 | ES7: 3.36 | ET7: 0.21 | EU7: 2.65 | EV7: 0.24 | EW7: 0 | EX7: 0 | EY7: 0 | EZ7: 0 | FA7: 0 | FB7: 0
A8: PT03C | B8: Bt | C8: PT03C_Bt21 | E8: 35.87 | F8: 2.90 | G8: 20.35 | H8: 0.03 | I8: 18.17 | J8: 0.16 | K8: 8.77 | L8: -0.01 | M8: 0.19 | N8: 9.12 | O8: 0.14 | P8: -0.00 | Q8: 95.71 | S8: 2.68 | T8: 0.16 | U8: 1.80 | V8: 0.00 | W8: 1.14 | X8: 0.01 | Y8: 0.98 | Z8: 0.00 | AA8: 0.03 | AB8: 0.87 | AD8: 0.46 | AN8: 0.54 | AP8: 720-840 | AQ8: 4.5 | AR8: 700.0 | AS8: 3.8 | AU8: 700.0 | AV8: 644.2 | AW8: 652.0 | AY8: 222 | AZ8: 14 | BA8: 0 | BB8: 0 | BC8: 1830 | BD8: 110 | BE8: 8.87E+04 | BF8: 5.20E+03 | BG8: 2.00E+05 | BH8: 1.10E+04 | BI8: 71 | BJ8: 5.3 | BK8: 8.04E+04 | BL8: 4.60E+03 | BM8: 0 | BN8: 0 | BO8: 56.7 | BP8: 3.6 | BQ8: 1.81E+04 | BR8: 1.10E+03 | BS8: 369 | BT8: 23 | BU8: 337 | BV8: 23 | BW8: 1221 | BX8: 71 | BY8: 1.70E+05 | BZ8: 1.00E+04 | CA8: 44.2 | CB8: 2.6 | CC8: 116.1 | CD8: 6.3 | CE8: 2.18 | CF8: 0.68 | CG8: 482 | CH8: 31 | CI8: 53.3 | CJ8: 3.9 | CK8: 2.45 | CL8: 0.66 | CM8: 613 | CN8: 44 | CO8: 1.11 | CP8: 0.12 | CQ8: 0 | CR8: 0 | CS8: 0.62 | CT8: 0.1 | CU8: 79.2 | CV8: 4.4 | CW8: 0 | CX8: 0 | CY8: 0 | CZ8: 0 | DA8: 0.356 | DB8: 0.047 | DC8: 10.63 | DD8: 0.78 | DE8: 0 | DF8: 0 | DG8: 29.1 | DH8: 1.6 | DI8: 549 | DJ8: 31 | DK8: 0 | DL8: 0 | DM8: 0 | DN8: 0 | DO8: 0 | DP8: 0 | DQ8: 0 | DR8: 0 | DS8: 0 | DT8: 0 | DU8: 0 | DV8: 0 | DW8: 0 | DX8: 0 | DY8: 0 | DZ8: 0 | EA8: 0 | EB8: 0 | EC8: 0 | ED8: 0 | EE8: 0 | EF8: 0 | EG8: 0 | EH8: 0 | EI8: 0 | EJ8: 0 | EK8: 0 | EL8: 0 | EM8: 0 | EN8: 0 | EO8: 6.13 | EP8: 0.33 | EQ8: 8.48 | ER8: 0.46 | ES8: 3.43 | ET8: 0.27 | EU8: 3.02 | EV8: 0.29 | EW8: 0 | EX8: 0 | EY8: 0 | EZ8: 0 | FA8: 0 | FB8: 0
A9: PT03C | B9: Bt | C9: PT03C_Bt22 | E9: 35.87 | F9: 2.98 | G9: 20.44 | H9: 0.05 | I9: 18.37 | J9: 0.17 | K9: 8.78 | L9: 0.00 | M9: 0.18 | N9: 9.17 | O9: 0.10 | P9: 0.01 | Q9: 96.12 | S9: 2.68 | T9: 0.17 | U9: 1.80 | V9: 0.00 | W9: 1.15 | X9: 0.01 | Y9: 0.98 | Z9: 0.00 | AA9: 0.03 | AB9: 0.87 | AD9: 0.46 | AN9: 0.54 | AP9: 720-840 | AQ9: 4.5 | AR9: 700.0 | AS9: 3.8 | AU9: 700.0 | AV9: 647.5 | AW9: 652.0 | AY9: 227 | AZ9: 12 | BA9: 0 | BB9: 0 | BC9: 1850 | BD9: 110 | BE9: 8.74E+04 | BF9: 3.70E+03 | BG9: 2.00E+05 | BH9: 9.20E+03 | BI9: 80.1 | BJ9: 7.6 | BK9: 8.18E+04 | BL9: 4.10E+03 | BM9: 0 | BN9: 0 | BO9: 59.5 | BP9: 3.2 | BQ9: 18670 | BR9: 890 | BS9: 380 | BT9: 16 | BU9: 311 | BV9: 19 | BW9: 1245 | BX9: 56 | BY9: 1.72E+05 | BZ9: 7.60E+03 | CA9: 44.9 | CB9: 2.7 | CC9: 123.7 | CD9: 7.2 | CE9: 0 | CF9: 0 | CG9: 528 | CH9: 35 | CI9: 57.1 | CJ9: 3.6 | CK9: 2.06 | CL9: 0.54 | CM9: 596 | CN9: 40 | CO9: 0.99 | CP9: 0.11 | CQ9: 0 | CR9: 0 | CS9: 0.57 | CT9: 0.18 | CU9: 75.4 | CV9: 3.3 | CW9: 0 | CX9: 0 | CY9: 0 | CZ9: 0 | DA9: 0.427 | DB9: 0.061 | DC9: 10.8 | DD9: 1 | DE9: 0 | DF9: 0 | DG9: 27.1 | DH9: 1.2 | DI9: 511 | DJ9: 25 | DK9: 0 | DL9: 0 | DM9: 0 | DN9: 0 | DO9: 0 | DP9: 0 | DQ9: 0 | DR9: 0 | DS9: 0 | DT9: 0 | DU9: 0 | DV9: 0 | DW9: 0 | DX9: 0 | DY9: 0 | DZ9: 0 | EA9: 0 | EB9: 0 | EC9: 0 | ED9: 0 | EE9: 0 | EF9: 0 | EG9: 0 | EH9: 0 | EI9: 0 | EJ9: 0 | EK9: 0 | EL9: 0 | EM9: 0 | EN9: 0 | EO9: 5.46 | EP9: 0.29 | EQ9: 7.83 | ER9: 0.44 | ES9: 3.46 | ET9: 0.21 | EU9: 3.09 | EV9: 0.21 | EW9: 0 | EX9: 0 | EY9: 0 | EZ9: 0 | FA9: 0 | FB9: 0
A10: PT03C | B10: Bt | C10: PT03C_Bt24 | E10: 35.53 | F10: 3.49 | G10: 20.04 | H10: 0.07 | I10: 18.63 | J10: 0.14 | K10: 7.80 | L10: -0.02 | M10: 0.16 | N10: 9.25 | O10: 0.14 | P10: 0.00 | Q10: 95.25 | S10: 2.68 | T10: 0.20 | U10: 1.78 | V10: 0.00 | W10: 1.18 | X10: 0.01 | Y10: 0.88 | Z10: 0.00 | AA10: 0.02 | AB10: 0.89 | AD10: 0.43 | AN10: 0.57 | AP10: 720-840 | AQ10: 4.5 | AR10: 700.0 | AS10: 3.8 | AU10: 700.0 | AV10: 617.5 | AW10: 652.0 | AY10: 204 | AZ10: 12 | BA10: 0 | BB10: 0 | BC10: 1505 | BD10: 91 | BE10: 8.04E+04 | BF10: 4.20E+03 | BG10: 2.06E+05 | BH10: 1.00E+04 | BI10: 80 | BJ10: 8.3 | BK10: 8.13E+04 | BL10: 4.60E+03 | BM10: 0 | BN10: 0 | BO10: 74.1 | BP10: 4.1 | BQ10: 2.16E+04 | BR10: 1.20E+03 | BS10: 441 | BT10: 25 | BU10: 493 | BV10: 28 | BW10: 1148 | BX10: 66 | BY10: 1.79E+05 | BZ10: 9.10E+03 | CA10: 55.5 | CB10: 3.2 | CC10: 157.7 | CD10: 9.7 | CE10: 0 | CF10: 0 | CG10: 551 | CH10: 37 | CI10: 58.1 | CJ10: 3.2 | CK10: 2.39 | CL10: 0.71 | CM10: 657 | CN10: 42 | CO10: 0.85 | CP10: 0.14 | CQ10: 0 | CR10: 0 | CS10: 1.03 | CT10: 0.13 | CU10: 103.3 | CV10: 5.3 | CW10: 0 | CX10: 0 | CY10: 0 | CZ10: 0 | DA10: 0.401 | DB10: 0.055 | DC10: 13.8 | DD10: 1.2 | DE10: 0 | DF10: 0 | DG10: 26.2 | DH10: 1.5 | DI10: 499 | DJ10: 27 | DK10: 0 | DL10: 0 | DM10: 0 | DN10: 0 | DO10: 0 | DP10: 0 | DQ10: 0 | DR10: 0 | DS10: 0 | DT10: 0 | DU10: 0 | DV10: 0 | DW10: 0 | DX10: 0 | DY10: 0 | DZ10: 0 | EA10: 0 | EB10: 0 | EC10: 0 | ED10: 0 | EE10: 0 | EF10: 0 | EG10: 0 | EH10: 0 | EI10: 0 | EJ10: 0 | EK10: 0 | EL10: 0 | EM10: 0 | EN10: 0 | EO10: 8.46 | EP10: 0.52 | EQ10: 11.45 | ER10: 0.87 | ES10: 3.86 | ET10: 0.25 | EU10: 2.58 | EV10: 0.19 | EW10: 0 | EX10: 0 | EY10: 0 | EZ10: 0 | FA10: 0 | FB10: 0
A11: PT03C | B11: Bt | C11: PT03C_Bt25 | E11: 35.45 | F11: 3.87 | G11: 19.81 | H11: 0.04 | I11: 19.35 | J11: 0.16 | K11: 7.98 | L11: 0.00 | M11: 0.14 | N11: 9.28 | O11: 0.03 | P11: 0.01 | Q11: 96.12 | S11: 2.67 | T11: 0.22 | U11: 1.76 | V11: 0.00 | W11: 1.22 | X11: 0.01 | Y11: 0.90 | Z11: 0.00 | AA11: 0.02 | AB11: 0.89 | AD11: 0.42 | AN11: 0.58 | AP11: 720-840 | AQ11: 4.5 | AR11: 700.0 | AS11: 3.8 | AU11: 700.0 | AV11: 693.9 | AW11: 652.0 | AY11: 203 | AZ11: 15 | BA11: 0 | BB11: 0 | BC11: 1640 | BD11: 130 | BE11: 8.10E+04 | BF11: 6.70E+03 | BG11: 2.08E+05 | BH11: 1.30E+04 | BI11: 100 | BJ11: 16 | BK11: 8.31E+04 | BL11: 5.80E+03 | BM11: 0 | BN11: 0 | BO11: 71.7 | BP11: 6.1 | BQ11: 2.49E+04 | BR11: 2.20E+03 | BS11: 465 | BT11: 31 | BU11: 352 | BV11: 23 | BW11: 1223 | BX11: 80 | BY11: 1.92E+05 | BZ11: 1.20E+04 | CA11: 54.9 | CB11: 4.3 | CC11: 147 | CD11: 12 | CE11: 3.2 | CF11: 1 | CG11: 517 | CH11: 35 | CI11: 65.1 | CJ11: 5 | CK11: 0 | CL11: 0 | CM11: 616 | CN11: 46 | CO11: 1.01 | CP11: 0.18 | CQ11: 0 | CR11: 0 | CS11: 1.94 | CT11: 0.32 | CU11: 98.4 | CV11: 6.3 | CW11: 0 | CX11: 0 | CY11: 0 | CZ11: 0 | DA11: 0.48 | DB11: 0.11 | DC11: 10.6 | DD11: 1 | DE11: 0 | DF11: 0 | DG11: 25.9 | DH11: 1.7 | DI11: 592 | DJ11: 36 | DK11: 0 | DL11: 0 | DM11: 0 | DN11: 0 | DO11: 0 | DP11: 0 | DQ11: 0 | DR11: 0 | DS11: 0 | DT11: 0 | DU11: 0 | DV11: 0 | DW11: 0 | DX11: 0 | DY11: 0 | DZ11: 0 | EA11: 0 | EB11: 0 | EC11: 0 | ED11: 0 | EE11: 0 | EF11: 0 | EG11: 0 | EH11: 0 | EI11: 0 | EJ11: 0 | EK11: 0 | EL11: 0 | EM11: 0 | EN11: 0 | EO11: 7.5 | EP11: 0.74 | EQ11: 9.78 | ER11: 0.77 | ES11: 3.42 | ET11: 0.3 | EU11: 3.15 | EV11: 0.34 | EW11: 0 | EX11: 0 | EY11: 0 | EZ11: 0 | FA11: 0 | FB11: 0
A12: PT03C | B12: Bt | C12: PT03C_Bt26 | E12: 35.72 | F12: 3.35 | G12: 19.88 | H12: 0.04 | I12: 19.07 | J12: 0.17 | K12: 8.04 | L12: 0.00 | M12: 0.19 | N12: 9.16 | O12: 0.14 | P12: 0.01 | Q12: 95.78 | S12: 2.69 | T12: 0.19 | U12: 1.76 | V12: 0.00 | W12: 1.20 | X12: 0.01 | Y12: 0.90 | Z12: 0.00 | AA12: 0.03 | AB12: 0.88 | AD12: 0.43 | AN12: 0.57 | AP12: 720-840 | AQ12: 4.5 | AR12: 700.0 | AS12: 3.8 | AU12: 700.0 | AV12: 701.5 | AW12: 652.0 | AY12: 204.4 | AZ12: 8.8 | BA12: 0 | BB12: 0 | BC12: 1633 | BD12: 97 | BE12: 8.17E+04 | BF12: 4.20E+03 | BG12: 2.05E+05 | BH12: 1.00E+04 | BI12: 83.6 | BJ12: 7.8 | BK12: 8.13E+04 | BL12: 3.70E+03 | BM12: 0 | BN12: 0 | BO12: 70 | BP12: 3.2 | BQ12: 2.21E+04 | BR12: 1.00E+03 | BS12: 485 | BT12: 24 | BU12: 351 | BV12: 21 | BW12: 1327 | BX12: 65 | BY12: 1.87E+05 | BZ12: 1.10E+04 | CA12: 48.4 | CB12: 3.1 | CC12: 136.3 | CD12: 9.1 | CE12: 0 | CF12: 0 | CG12: 536 | CH12: 24 | CI12: 59.6 | CJ12: 3.7 | CK12: 2.6 | CL12: 0.73 | CM12: 647 | CN12: 36 | CO12: 0.968 | CP12: 0.097 | CQ12: 0 | CR12: 0 | CS12: 0.8 | CT12: 0.15 | CU12: 84.6 | CV12: 3.6 | CW12: 0 | CX12: 0 | CY12: 0 | CZ12: 0 | DA12: 0.392 | DB12: 0.069 | DC12: 12.11 | DD12: 0.85 | DE12: 0 | DF12: 0 | DG12: 29 | DH12: 1.2 | DI12: 505 | DJ12: 24 | DK12: 0 | DL12: 0 | DM12: 0 | DN12: 0 | DO12: 0 | DP12: 0 | DQ12: 0 | DR12: 0 | DS12: 0 | DT12: 0 | DU12: 0 | DV12: 0 | DW12: 0 | DX12: 0 | DY12: 0 | DZ12: 0 | EA12: 0 | EB12: 0 | EC12: 0 | ED12: 0 | EE12: 0 | EF12: 0 | EG12: 0 | EH12: 0 | EI12: 0 | EJ12: 0 | EK12: 0 | EL12: 0 | EM12: 0 | EN12: 0 | EO12: 6.13 | EP12: 0.35 | EQ12: 10.01 | ER12: 0.57 | ES12: 3.67 | ET12: 0.24 | EU12: 2.68 | EV12: 0.19 | EW12: 0 | EX12: 0 | EY12: 0 | EZ12: 0 | FA12: 0 | FB12: 0
A13: PT03C | B13: Bt | C13: PT03C_Bt27 | E13: 35.86 | F13: 2.00 | G13: 21.04 | H13: 0.06 | I13: 18.14 | J13: 0.17 | K13: 9.47 | L13: -0.01 | M13: 0.15 | N13: 8.96 | O13: 0.13 | P13: 0.00 | Q13: 95.99 | S13: 2.67 | T13: 0.11 | U13: 1.85 | V13: 0.00 | W13: 1.13 | X13: 0.01 | Y13: 1.05 | Z13: 0.00 | AA13: 0.02 | AB13: 0.85 | AD13: 0.48 | AN13: 0.52 | AP13: 720-840 | AQ13: 4.5 | AR13: 700.0 | AS13: 3.8 | AU13: 700.0 | AV13: 677.5 | AW13: 652.0 | AY13: 220 | AZ13: 14 | BA13: 0 | BB13: 0 | BC13: 1485 | BD13: 91 | BE13: 8.91E+04 | BF13: 5.00E+03 | BG13: 1.99E+05 | BH13: 1.10E+04 | BI13: 70.3 | BJ13: 6.5 | BK13: 7.79E+04 | BL13: 5.30E+03 | BM13: 0 | BN13: 0 | BO13: 37.3 | BP13: 2.7 | BQ13: 12180 | BR13: 800 | BS13: 293 | BT13: 19 | BU13: 415 | BV13: 29 | BW13: 1201 | BX13: 72 | BY13: 1.68E+05 | BZ13: 9.70E+03 | CA13: 39.1 | CB13: 2.5 | CC13: 97.3 | CD13: 6.8 | CE13: 0 | CF13: 0 | CG13: 502 | CH13: 26 | CI13: 49.9 | CJ13: 3.4 | CK13: 1.47 | CL13: 0.54 | CM13: 564 | CN13: 41 | CO13: 0.541 | CP13: 0.087 | CQ13: 0 | CR13: 0 | CS13: 0.73 | CT13: 0.11 | CU13: 59.1 | CV13: 3.2 | CW13: 0 | CX13: 0 | CY13: 0 | CZ13: 0 | DA13: 0.412 | DB13: 0.053 | DC13: 12.33 | DD13: 0.9 | DE13: 0 | DF13: 0 | DG13: 22 | DH13: 1.4 | DI13: 483 | DJ13: 27 | DK13: 0 | DL13: 0 | DM13: 0 | DN13: 0 | DO13: 0 | DP13: 0 | DQ13: 0 | DR13: 0 | DS13: 0 | DT13: 0 | DU13: 0 | DV13: 0 | DW13: 0 | DX13: 0 | DY13: 0 | DZ13: 0 | EA13: 0 | EB13: 0 | EC13: 0 | ED13: 0 | EE13: 0 | EF13: 0 | EG13: 0 | EH13: 0 | EI13: 0 | EJ13: 0 | EK13: 0 | EL13: 0 | EM13: 0 | EN13: 0 | EO13: 5.01 | EP13: 0.41 | EQ13: 8.35 | ER13: 0.54 | ES13: 3.42 | ET13: 0.24 | EU13: 1.59 | EV13: 0.14 | EW13: 0 | EX13: 0 | EY13: 0 | EZ13: 0 | FA13: 0 | FB13: 0
A14: PT03C | B14: Bt | C14: PT03C_Bt28 | E14: 35.81 | F14: 2.39 | G14: 20.65 | H14: 0.05 | I14: 18.25 | J14: 0.18 | K14: 9.07 | L14: -0.02 | M14: 0.15 | N14: 9.24 | O14: 0.16 | P14: 0.01 | Q14: 95.95 | S14: 2.67 | T14: 0.13 | U14: 1.82 | V14: 0.00 | W14: 1.14 | X14: 0.01 | Y14: 1.01 | Z14: 0.00 | AA14: 0.02 | AB14: 0.88 | AD14: 0.47 | AN14: 0.53 | AP14: 720-840 | AQ14: 4.5 | AR14: 700.0 | AS14: 3.8 | AU14: 700.0 | AV14: 579.2 | AW14: 652.0 | AY14: 214 | AZ14: 11 | BA14: 0 | BB14: 0 | BC14: 1651 | BD14: 96 | BE14: 8.87E+04 | BF14: 3.90E+03 | BG14: 1.99E+05 | BH14: 1.00E+04 | BI14: 93.8 | BJ14: 7.7 | BK14: 7.93E+04 | BL14: 4.20E+03 | BM14: 0 | BN14: 0 | BO14: 48.1 | BP14: 2.4 | BQ14: 14130 | BR14: 720 | BS14: 282 | BT14: 15 | BU14: 277 | BV14: 15 | BW14: 1215 | BX14: 57 | BY14: 1.69E+05 | BZ14: 7.90E+03 | CA14: 42.2 | CB14: 2.4 | CC14: 118.9 | CD14: 6.6 | CE14: 0 | CF14: 0 | CG14: 498 | CH14: 25 | CI14: 55.3 | CJ14: 3.3 | CK14: 1.97 | CL14: 0.72 | CM14: 592 | CN14: 38 | CO14: 0.67 | CP14: 0.11 | CQ14: 0 | CR14: 0 | CS14: 0.48 | CT14: 0.1 | CU14: 57.7 | CV14: 2.9 | CW14: 0 | CX14: 0 | CY14: 0 | CZ14: 0 | DA14: 0.41 | DB14: 0.061 | DC14: 11.33 | DD14: 0.69 | DE14: 0 | DF14: 0 | DG14: 25.5 | DH14: 1.4 | DI14: 452 | DJ14: 24 | DK14: 0 | DL14: 0 | DM14: 0 | DN14: 0 | DO14: 0 | DP14: 0 | DQ14: 0 | DR14: 0 | DS14: 0 | DT14: 0 | DU14: 0 | DV14: 0 | DW14: 0 | DX14: 0 | DY14: 0 | DZ14: 0 | EA14: 0 | EB14: 0 | EC14: 0 | ED14: 0 | EE14: 0 | EF14: 0 | EG14: 0 | EH14: 0 | EI14: 0 | EJ14: 0 | EK14: 0 | EL14: 0 | EM14: 0 | EN14: 0 | EO14: 4.06 | EP14: 0.26 | EQ14: 8.62 | ER14: 0.67 | ES14: 3.51 | ET14: 0.23 | EU14: 1.91 | EV14: 0.16 | EW14: 0 | EX14: 0 | EY14: 0 | EZ14: 0 | FA14: 0 | FB14: 0
A15: PT03C | B15: Bt | C15: PT03C_Bt30 | E15: 35.88 | F15: 2.66 | G15: 20.19 | H15: 0.05 | I15: 18.24 | J15: 0.18 | K15: 8.92 | L15: 0.01 | M15: 0.20 | N15: 9.17 | O15: 0.14 | P15: -0.00 | Q15: 95.65 | S15: 2.69 | T15: 0.15 | U15: 1.78 | V15: 0.00 | W15: 1.14 | X15: 0.01 | Y15: 1.00 | Z15: 0.00 | AA15: 0.03 | AB15: 0.88 | AD15: 0.47 | AN15: 0.53 | AP15: 720-840 | AQ15: 4.5 | AR15: 700.0 | AS15: 3.8 | AU15: 700.0 | AV15: 609.0 | AW15: 652.0 | AY15: 209 | AZ15: 14 | BA15: 0 | BB15: 0 | BC15: 1799 | BD15: 98 | BE15: 8.92E+04 | BF15: 4.30E+03 | BG15: 2.01E+05 | BH15: 9.80E+03 | BI15: 89.9 | BJ15: 7.9 | BK15: 7.85E+04 | BL15: 3.50E+03 | BM15: 0 | BN15: 0 | BO15: 51.7 | BP15: 3.4 | BQ15: 1.67E+04 | BR15: 1.20E+03 | BS15: 347 | BT15: 20 | BU15: 331 | BV15: 20 | BW15: 1241 | BX15: 79 | BY15: 1.72E+05 | BZ15: 1.00E+04 | CA15: 42.4 | CB15: 2.5 | CC15: 119.9 | CD15: 6.7 | CE15: 0 | CF15: 0 | CG15: 493 | CH15: 28 | CI15: 56.2 | CJ15: 3.8 | CK15: 1.89 | CL15: 0.47 | CM15: 664 | CN15: 46 | CO15: 0.89 | CP15: 0.11 | CQ15: 0 | CR15: 0 | CS15: 0.54 | CT15: 0.11 | CU15: 66.9 | CV15: 4.3 | CW15: 0 | CX15: 0 | CY15: 0 | CZ15: 0 | DA15: 0.368 | DB15: 0.052 | DC15: 10.89 | DD15: 0.73 | DE15: 0 | DF15: 0 | DG15: 25.7 | DH15: 1.5 | DI15: 458 | DJ15: 28 | DK15: 0 | DL15: 0 | DM15: 0 | DN15: 0 | DO15: 0 | DP15: 0 | DQ15: 0 | DR15: 0 | DS15: 0 | DT15: 0 | DU15: 0 | DV15: 0 | DW15: 0 | DX15: 0 | DY15: 0 | DZ15: 0 | EA15: 0 | EB15: 0 | EC15: 0 | ED15: 0 | EE15: 0 | EF15: 0 | EG15: 0 | EH15: 0 | EI15: 0 | EJ15: 0 | EK15: 0 | EL15: 0 | EM15: 0 | EN15: 0 | EO15: 4.98 | EP15: 0.34 | EQ15: 8.95 | ER15: 0.68 | ES15: 3.69 | ET15: 0.19 | EU15: 2.19 | EV15: 0.18 | EW15: 0 | EX15: 0 | EY15: 0 | EZ15: 0 | FA15: 0 | FB15: 0
A16: PT03C | B16: Bt | C16: PT03C_Bt31 | E16: 35.72 | F16: 2.63 | G16: 20.18 | H16: 0.03 | I16: 18.47 | J16: 0.18 | K16: 9.03 | L16: 0.01 | M16: 0.19 | N16: 9.22 | O16: 0.14 | P16: 0.01 | Q16: 95.83 | S16: 2.68 | T16: 0.15 | U16: 1.78 | V16: 0.00 | W16: 1.16 | X16: 0.01 | Y16: 1.01 | Z16: 0.00 | AA16: 0.03 | AB16: 0.88 | AD16: 0.47 | AN16: 0.53 | AP16: 720-840 | AQ16: 4.5 | AR16: 700.0 | AS16: 3.8 | AU16: 700.0 | AV16: 625.9 | AW16: 652.0 | AY16: 209 | AZ16: 11 | BA16: 0 | BB16: 0 | BC16: 1713 | BD16: 87 | BE16: 8.75E+04 | BF16: 3.80E+03 | BG16: 1.93E+05 | BH16: 9.10E+03 | BI16: 69.4 | BJ16: 6.4 | BK16: 8.01E+04 | BL16: 3.80E+03 | BM16: 0 | BN16: 0 | BO16: 51.1 | BP16: 2.6 | BQ16: 16090 | BR16: 650 | BS16: 333 | BT16: 16 | BU16: 326 | BV16: 16 | BW16: 1277 | BX16: 69 | BY16: 1.72E+05 | BZ16: 8.70E+03 | CA16: 43.9 | CB16: 2.4 | CC16: 112.3 | CD16: 5.6 | CE16: 0 | CF16: 0 | CG16: 493 | CH16: 25 | CI16: 52.7 | CJ16: 3 | CK16: 2.42 | CL16: 0.76 | CM16: 583 | CN16: 30 | CO16: 0.745 | CP16: 0.098 | CQ16: 0 | CR16: 0 | CS16: 0.48 | CT16: 0.11 | CU16: 67.2 | CV16: 2.8 | CW16: 0 | CX16: 0 | CY16: 0 | CZ16: 0 | DA16: 0.427 | DB16: 0.058 | DC16: 10.75 | DD16: 0.71 | DE16: 0 | DF16: 0 | DG16: 24.7 | DH16: 1.2 | DI16: 494 | DJ16: 22 | DK16: 0 | DL16: 0 | DM16: 0 | DN16: 0 | DO16: 0 | DP16: 0 | DQ16: 0 | DR16: 0 | DS16: 0 | DT16: 0 | DU16: 0 | DV16: 0 | DW16: 0 | DX16: 0 | DY16: 0 | DZ16: 0 | EA16: 0 | EB16: 0 | EC16: 0 | ED16: 0 | EE16: 0 | EF16: 0 | EG16: 0 | EH16: 0 | EI16: 0 | EJ16: 0 | EK16: 0 | EL16: 0 | EM16: 0 | EN16: 0 | EO16: 5.24 | EP16: 0.3 | EQ16: 7.22 | ER16: 0.44 | ES16: 3.59 | ET16: 0.25 | EU16: 2.09 | EV16: 0.21 | EW16: 0 | EX16: 0 | EY16: 0 | EZ16: 0 | FA16: 0 | FB16: 0
A17: PT03C | B17: Bt | C17: PT03C_Bt32 | E17: 35.78 | F17: 2.68 | G17: 20.29 | H17: 0.03 | I17: 17.77 | J17: 0.17 | K17: 8.82 | L17: -0.02 | M17: 0.19 | N17: 9.03 | O17: 0.14 | P17: 0.00 | Q17: 94.90 | S17: 2.69 | T17: 0.15 | U17: 1.80 | V17: 0.00 | W17: 1.12 | X17: 0.01 | Y17: 0.99 | Z17: 0.00 | AA17: 0.03 | AB17: 0.87 | AD17: 0.47 | AN17: 0.53 | AP17: 720-840 | AQ17: 4.5 | AR17: 700.0 | AS17: 3.8 | AU17: 700.0 | AV17: 620.5 | AW17: 652.0 | AY17: 203 | AZ17: 14 | BA17: 0 | BB17: 0 | BC17: 1910 | BD17: 140 | BE17: 9.16E+04 | BF17: 5.60E+03 | BG17: 2.00E+05 | BH17: 1.20E+04 | BI17: 75.9 | BJ17: 7.8 | BK17: 7.84E+04 | BL17: 4.30E+03 | BM17: 0 | BN17: 0 | BO17: 57.7 | BP17: 3.5 | BQ17: 17220 | BR17: 920 | BS17: 347 | BT17: 21 | BU17: 354 | BV17: 25 | BW17: 1314 | BX17: 96 | BY17: 1.75E+05 | BZ17: 1.10E+04 | CA17: 45.3 | CB17: 2.9 | CC17: 122.5 | CD17: 7.5 | CE17: 0 | CF17: 0 | CG17: 509 | CH17: 36 | CI17: 60.6 | CJ17: 4.1 | CK17: 2.33 | CL17: 0.74 | CM17: 660 | CN17: 45 | CO17: 1 | CP17: 0.12 | CQ17: 0 | CR17: 0 | CS17: 0.79 | CT17: 0.18 | CU17: 73.7 | CV17: 4.9 | CW17: 0 | CX17: 0 | CY17: 0 | CZ17: 0 | DA17: 0.455 | DB17: 0.071 | DC17: 11.47 | DD17: 0.91 | DE17: 0 | DF17: 0 | DG17: 30.8 | DH17: 1.7 | DI17: 547 | DJ17: 32 | DK17: 0 | DL17: 0 | DM17: 0 | DN17: 0 | DO17: 0 | DP17: 0 | DQ17: 0 | DR17: 0 | DS17: 0 | DT17: 0 | DU17: 0 | DV17: 0 | DW17: 0 | DX17: 0 | DY17: 0 | DZ17: 0 | EA17: 0 | EB17: 0 | EC17: 0 | ED17: 0 | EE17: 0 | EF17: 0 | EG17: 0 | EH17: 0 | EI17: 0 | EJ17: 0 | EK17: 0 | EL17: 0 | EM17: 0 | EN17: 0 | EO17: 5.83 | EP17: 0.44 | EQ17: 8.9 | ER17: 0.69 | ES17: 3.45 | ET17: 0.24 | EU17: 2.23 | EV17: 0.18 | EW17: 0 | EX17: 0 | EY17: 0 | EZ17: 0 | FA17: 0 | FB17: 0
A18: PT03C | B18: Bt | C18: PT03C_Bt33 | E18: 35.94 | F18: 2.74 | G18: 20.37 | H18: 0.04 | I18: 18.36 | J18: 0.18 | K18: 9.02 | L18: -0.02 | M18: 0.21 | N18: 9.14 | O18: 0.15 | P18: 0.00 | Q18: 96.15 | S18: 2.68 | T18: 0.15 | U18: 1.79 | V18: 0.00 | W18: 1.14 | X18: 0.01 | Y18: 1.00 | Z18: 0.00 | AA18: 0.03 | AB18: 0.87 | AD18: 0.47 | AN18: 0.53 | AP18: 720-840 | AQ18: 4.5 | AR18: 700.0 | AS18: 3.8 | AU18: 700.0 | AV18: 633.0 | AW18: 652.0 | AY18: 204 | AZ18: 10 | BA18: 0 | BB18: 0 | BC18: 1790 | BD18: 100 | BE18: 8.83E+04 | BF18: 4.00E+03 | BG18: 2.01E+05 | BH18: 9.40E+03 | BI18: 73.5 | BJ18: 5.4 | BK18: 8.10E+04 | BL18: 4.20E+03 | BM18: 0 | BN18: 0 | BO18: 55.7 | BP18: 2.9 | BQ18: 17850 | BR18: 710 | BS18: 357 | BT18: 18 | BU18: 325 | BV18: 18 | BW18: 1230 | BX18: 67 | BY18: 1.77E+05 | BZ18: 1.00E+04 | CA18: 44.9 | CB18: 2.5 | CC18: 120.5 | CD18: 7.2 | CE18: 0 | CF18: 0 | CG18: 511 | CH18: 25 | CI18: 59.1 | CJ18: 2.9 | CK18: 1.92 | CL18: 0.43 | CM18: 618 | CN18: 35 | CO18: 0.92 | CP18: 0.099 | CQ18: 0 | CR18: 0 | CS18: 0.57 | CT18: 0.13 | CU18: 69.7 | CV18: 3.3 | CW18: 0 | CX18: 0 | CY18: 0 | CZ18: 0 | DA18: 0.473 | DB18: 0.077 | DC18: 10.63 | DD18: 0.91 | DE18: 0 | DF18: 0 | DG18: 27.7 | DH18: 1.1 | DI18: 453 | DJ18: 19 | DK18: 0 | DL18: 0 | DM18: 0 | DN18: 0 | DO18: 0 | DP18: 0 | DQ18: 0 | DR18: 0 | DS18: 0 | DT18: 0 | DU18: 0 | DV18: 0 | DW18: 0 | DX18: 0 | DY18: 0 | DZ18: 0 | EA18: 0 | EB18: 0 | EC18: 0 | ED18: 0 | EE18: 0 | EF18: 0 | EG18: 0 | EH18: 0 | EI18: 0 | EJ18: 0 | EK18: 0 | EL18: 0 | EM18: 0 | EN18: 0 | EO18: 5.19 | EP18: 0.29 | EQ18: 9.09 | ER18: 0.59 | ES18: 3.67 | ET18: 0.26 | EU18: 2.08 | EV18: 0.18 | EW18: 0 | EX18: 0 | EY18: 0 | EZ18: 0 | FA18: 0 | FB18: 0
A19: PT03C | B19: Bt | C19: PT03C_Bt34 | E19: 36.20 | F19: 2.88 | G19: 20.17 | H19: 0.03 | I19: 18.94 | J19: 0.14 | K19: 8.74 | L19: 0.02 | M19: 0.17 | N19: 9.15 | O19: 0.14 | P19: 0.00 | Q19: 96.59 | S19: 2.69 | T19: 0.16 | U19: 1.77 | V19: 0.00 | W19: 1.18 | X19: 0.01 | Y19: 0.97 | Z19: 0.00 | AA19: 0.02 | AB19: 0.87 | AD19: 0.45 | AN19: 0.55 | AP19: 720-840 | AQ19: 4.5 | AR19: 700.0 | AS19: 3.8 | AU19: 700.0 | AV19: 628.4 | AW19: 652.0 | AY19: 213 | AZ19: 11 | BA19: 0 | BB19: 0 | BC19: 1643 | BD19: 85 | BE19: 8.50E+04 | BF19: 4.70E+03 | BG19: 1.97E+05 | BH19: 8.70E+03 | BI19: 76.8 | BJ19: 7.7 | BK19: 8.11E+04 | BL19: 4.40E+03 | BM19: 0 | BN19: 0 | BO19: 52.6 | BP19: 3.3 | BQ19: 1.84E+04 | BR19: 1.00E+03 | BS19: 305 | BT19: 16 | BU19: 247 | BV19: 16 | BW19: 1100 | BX19: 60 | BY19: 1.78E+05 | BZ19: 9.90E+03 | CA19: 47.7 | CB19: 2.6 | CC19: 136.1 | CD19: 7.4 | CE19: 0 | CF19: 0 | CG19: 538 | CH19: 27 | CI19: 55.5 | CJ19: 3 | CK19: 2.13 | CL19: 0.57 | CM19: 633 | CN19: 38 | CO19: 0.67 | CP19: 0.1 | CQ19: 0 | CR19: 0 | CS19: 0.77 | CT19: 0.11 | CU19: 71 | CV19: 3.7 | CW19: 0 | CX19: 0 | CY19: 0 | CZ19: 0 | DA19: 0.367 | DB19: 0.055 | DC19: 11.45 | DD19: 0.87 | DE19: 0 | DF19: 0 | DG19: 24.1 | DH19: 1.4 | DI19: 449 | DJ19: 25 | DK19: 0 | DL19: 0 | DM19: 0 | DN19: 0 | DO19: 0 | DP19: 0 | DQ19: 0 | DR19: 0 | DS19: 0 | DT19: 0 | DU19: 0 | DV19: 0 | DW19: 0 | DX19: 0 | DY19: 0 | DZ19: 0 | EA19: 0 | EB19: 0 | EC19: 0 | ED19: 0 | EE19: 0 | EF19: 0 | EG19: 0 | EH19: 0 | EI19: 0 | EJ19: 0 | EK19: 0 | EL19: 0 | EM19: 0 | EN19: 0 | EO19: 5.76 | EP19: 0.36 | EQ19: 6.57 | ER19: 0.51 | ES19: 3.89 | ET19: 0.28 | EU19: 1.8 | EV19: 0.14 | EW19: 0 | EX19: 0 | EY19: 0 | EZ19: 0 | FA19: 0 | FB19: 0
A20: PT03C | B20: Bt | C20: PT03C_Bt35 | E20: 35.79 | F20: 3.77 | G20: 19.80 | H20: 0.04 | I20: 19.15 | J20: 0.16 | K20: 7.92 | L20: -0.00 | M20: 0.16 | N20: 9.27 | O20: 0.12 | P20: 0.01 | Q20: 96.21 | S20: 2.68 | T20: 0.21 | U20: 1.75 | V20: 0.00 | W20: 1.20 | X20: 0.01 | Y20: 0.89 | Z20: -0.00 | AA20: 0.02 | AB20: 0.89 | AD20: 0.42 | AN20: 0.58 | AP20: 720-840 | AQ20: 4.5 | AR20: 700.0 | AS20: 3.8 | AU20: 700.0 | AV20: 639.3 | AW20: 652.0 | AY20: 219 | AZ20: 11 | BA20: 0 | BB20: 0 | BC20: 1610 | BD20: 100 | BE20: 8.06E+04 | BF20: 3.90E+03 | BG20: 2.07E+05 | BH20: 8.00E+03 | BI20: 87.7 | BJ20: 5.8 | BK20: 8.50E+04 | BL20: 4.20E+03 | BM20: 0 | BN20: 0 | BO20: 76.2 | BP20: 4.2 | BQ20: 2.39E+04 | BR20: 1.20E+03 | BS20: 397 | BT20: 17 | BU20: 294 | BV20: 13 | BW20: 1138 | BX20: 48 | BY20: 1.87E+05 | BZ20: 9.30E+03 | CA20: 50.6 | CB20: 2.4 | CC20: 143.8 | CD20: 7.9 | CE20: 0 | CF20: 0 | CG20: 516 | CH20: 28 | CI20: 62.5 | CJ20: 3.4 | CK20: 3.05 | CL20: 0.88 | CM20: 677 | CN20: 36 | CO20: 0.73 | CP20: 0.11 | CQ20: 0 | CR20: 0 | CS20: 1.3 | CT20: 0.22 | CU20: 99.5 | CV20: 4.4 | CW20: 0 | CX20: 0 | CY20: 0 | CZ20: 0 | DA20: 0.351 | DB20: 0.056 | DC20: 13.4 | DD20: 1 | DE20: 0 | DF20: 0 | DG20: 28.47 | DH20: 0.95 | DI20: 456 | DJ20: 16 | DK20: 0 | DL20: 0 | DM20: 0 | DN20: 0 | DO20: 0 | DP20: 0 | DQ20: 0 | DR20: 0 | DS20: 0 | DT20: 0 | DU20: 0 | DV20: 0 | DW20: 0 | DX20: 0 | DY20: 0 | DZ20: 0 | EA20: 0 | EB20: 0 | EC20: 0 | ED20: 0 | EE20: 0 | EF20: 0 | EG20: 0 | EH20: 0 | EI20: 0 | EJ20: 0 | EK20: 0 | EL20: 0 | EM20: 0 | EN20: 0 | EO20: 8.14 | EP20: 0.4 | EQ20: 8.44 | ER20: 0.56 | ES20: 3.96 | ET20: 0.29 | EU20: 1.87 | EV20: 0.17 | EW20: 0 | EX20: 0 | EY20: 0 | EZ20: 0 | FA20: 0 | FB20: 0
A21: PT03C | B21: Bt | C21: PT03C_Bt36 | E21: 35.81 | F21: 3.79 | G21: 20.14 | H21: 0.04 | I21: 19.42 | J21: 0.11 | K21: 7.71 | L21: -0.00 | M21: 0.15 | N21: 9.30 | O21: 0.14 | P21: 0.01 | Q21: 96.63 | S21: 2.67 | T21: 0.21 | U21: 1.77 | V21: 0.00 | W21: 1.21 | X21: 0.01 | Y21: 0.86 | Z21: -0.00 | AA21: 0.02 | AB21: 0.89 | AD21: 0.41 | AN21: 0.59 | AP21: 720-840 | AQ21: 4.5 | AR21: 700.0 | AS21: 3.8 | AU21: 700.0 | AV21: 699.9 | AW21: 652.0 | AY21: 197.2 | AZ21: 9.5 | BA21: 0 | BB21: 0 | BC21: 1600 | BD21: 110 | BE21: 7.65E+04 | BF21: 3.70E+03 | BG21: 1.99E+05 | BH21: 9.50E+03 | BI21: 74.8 | BJ21: 5.6 | BK21: 8.17E+04 | BL21: 4.20E+03 | BM21: 0 | BN21: 0 | BO21: 79.9 | BP21: 4 | BQ21: 2.38E+04 | BR21: 1.20E+03 | BS21: 390 | BT21: 22 | BU21: 330 | BV21: 17 | BW21: 990 | BX21: 49 | BY21: 1.85E+05 | BZ21: 8.50E+03 | CA21: 54.2 | CB21: 2.9 | CC21: 153.4 | CD21: 8.4 | CE21: 0 | CF21: 0 | CG21: 555 | CH21: 28 | CI21: 62.4 | CJ21: 3.7 | CK21: 2.97 | CL21: 0.77 | CM21: 685 | CN21: 38 | CO21: 1.33 | CP21: 0.24 | CQ21: 0 | CR21: 0 | CS21: 1 | CT21: 0.17 | CU21: 102.8 | CV21: 5.3 | CW21: 0 | CX21: 0 | CY21: 0 | CZ21: 0 | DA21: 0.55 | DB21: 0.07 | DC21: 16 | DD21: 1 | DE21: 0 | DF21: 0 | DG21: 31.3 | DH21: 1.3 | DI21: 530 | DJ21: 28 | DK21: 0 | DL21: 0 | DM21: 0 | DN21: 0 | DO21: 0 | DP21: 0 | DQ21: 0 | DR21: 0 | DS21: 0 | DT21: 0 | DU21: 0 | DV21: 0 | DW21: 0 | DX21: 0 | DY21: 0 | DZ21: 0 | EA21: 0 | EB21: 0 | EC21: 0 | ED21: 0 | EE21: 0 | EF21: 0 | EG21: 0 | EH21: 0 | EI21: 0 | EJ21: 0 | EK21: 0 | EL21: 0 | EM21: 0 | EN21: 0 | EO21: 8.35 | EP21: 0.44 | EQ21: 10.01 | ER21: 0.69 | ES21: 4.06 | ET21: 0.26 | EU21: 1.99 | EV21: 0.17 | EW21: 0 | EX21: 0 | EY21: 0 | EZ21: 0 | FA21: 0 | FB21: 0
A22: PT03C | B22: Bt | C22: PT03C_Bt37 | E22: 35.82 | F22: 3.54 | G22: 20.23 | H22: 0.04 | I22: 18.91 | J22: 0.13 | K22: 7.76 | L22: 0.00 | M22: 0.18 | N22: 9.11 | O22: 0.10 | P22: 0.00 | Q22: 95.83 | S22: 2.69 | T22: 0.20 | U22: 1.79 | V22: 0.00 | W22: 1.19 | X22: 0.01 | Y22: 0.87 | Z22: 0.00 | AA22: 0.03 | AB22: 0.87 | AD22: 0.42 | AN22: 0.58 | AP22: 720-840 | AQ22: 4.5 | AR22: 700.0 | AS22: 3.8 | AU22: 700.0 | AV22: 707.6 | AW22: 652.0 | AY22: 229 | AZ22: 12 | BA22: 0 | BB22: 0 | BC22: 1600 | BD22: 74 | BE22: 7.63E+04 | BF22: 3.40E+03 | BG22: 2.02E+05 | BH22: 8.20E+03 | BI22: 71.2 | BJ22: 6.7 | BK22: 8.23E+04 | BL22: 4.40E+03 | BM22: 0 | BN22: 0 | BO22: 79.4 | BP22: 4.3 | BQ22: 2.26E+04 | BR22: 1.40E+03 | BS22: 355 | BT22: 22 | BU22: 308 | BV22: 17 | BW22: 952 | BX22: 49 | BY22: 1.84E+05 | BZ22: 9.40E+03 | CA22: 53.8 | CB22: 2.3 | CC22: 159.4 | CD22: 9.9 | CE22: 3.47 | CF22: 0.62 | CG22: 584 | CH22: 25 | CI22: 71.2 | CJ22: 4.3 | CK22: 2.72 | CL22: 0.68 | CM22: 681 | CN22: 32 | CO22: 1.11 | CP22: 0.16 | CQ22: 0 | CR22: 0 | CS22: 0.5 | CT22: 0.1 | CU22: 99.8 | CV22: 4.6 | CW22: 0 | CX22: 0 | CY22: 0 | CZ22: 0 | DA22: 0.481 | DB22: 0.058 | DC22: 18 | DD22: 1.1 | DE22: 0 | DF22: 0 | DG22: 25.6 | DH22: 1.3 | DI22: 431 | DJ22: 22 | DK22: 0 | DL22: 0 | DM22: 0 | DN22: 0 | DO22: 0 | DP22: 0 | DQ22: 0 | DR22: 0 | DS22: 0.007 | DT22: 0.015 | DU22: 0 | DV22: 0 | DW22: 0 | DX22: 0 | DY22: 0 | DZ22: 0 | EA22: 0 | EB22: 0 | EC22: 0 | ED22: 0 | EE22: 0 | EF22: 0 | EG22: 0 | EH22: 0 | EI22: 0 | EJ22: 0 | EK22: 0 | EL22: 0 | EM22: 0 | EN22: 0 | EO22: 7 | EP22: 0.34 | EQ22: 9.74 | ER22: 0.4 | ES22: 3.97 | ET22: 0.25 | EU22: 1.72 | EV22: 0.12 | EW22: 0 | EX22: 0 | EY22: 0 | EZ22: 0 | FA22: 0 | FB22: 0
A23: PT03C | B23: Bt | C23: PT03C_Bt38 | E23: 35.56 | F23: 3.33 | G23: 20.36 | H23: 0.04 | I23: 19.15 | J23: 0.19 | K23: 8.19 | L23: -0.00 | M23: 0.16 | N23: 9.30 | O23: 0.11 | P23: 0.01 | Q23: 96.41 | S23: 2.66 | T23: 0.19 | U23: 1.80 | V23: 0.00 | W23: 1.20 | X23: 0.01 | Y23: 0.91 | Z23: -0.00 | AA23: 0.02 | AB23: 0.89 | AD23: 0.43 | AN23: 0.57 | AP23: 720-840 | AQ23: 4.5 | AR23: 700.0 | AS23: 3.8 | AU23: 700.0 | AV23: 698.7 | AW23: 652.0 | AY23: 213 | AZ23: 9 | BA23: 0 | BB23: 0 | BC23: 1580 | BD23: 120 | BE23: 8.12E+04 | BF23: 4.20E+03 | BG23: 1.98E+05 | BH23: 7.80E+03 | BI23: 89 | BJ23: 8.6 | BK23: 8.32E+04 | BL23: 4.20E+03 | BM23: 0 | BN23: 0 | BO23: 68.8 | BP23: 3.4 | BQ23: 2.03E+04 | BR23: 1.00E+03 | BS23: 384 | BT23: 21 | BU23: 318 | BV23: 17 | BW23: 1302 | BX23: 68 | BY23: 1.77E+05 | BZ23: 9.00E+03 | CA23: 46.4 | CB23: 3 | CC23: 126 | CD23: 7.4 | CE23: 1.53 | CF23: 0.56 | CG23: 519 | CH23: 28 | CI23: 61.3 | CJ23: 3.8 | CK23: 3 | CL23: 0.67 | CM23: 638 | CN23: 35 | CO23: 0.71 | CP23: 0.11 | CQ23: 0 | CR23: 0 | CS23: 0.89 | CT23: 0.17 | CU23: 96.9 | CV23: 4.7 | CW23: 0 | CX23: 0 | CY23: 0 | CZ23: 0 | DA23: 0.468 | DB23: 0.065 | DC23: 15.4 | DD23: 1.2 | DE23: 0 | DF23: 0 | DG23: 27.2 | DH23: 1.2 | DI23: 449 | DJ23: 20 | DK23: 0 | DL23: 0 | DM23: 0 | DN23: 0 | DO23: 0 | DP23: 0 | DQ23: 0 | DR23: 0 | DS23: 0 | DT23: 0 | DU23: 0 | DV23: 0 | DW23: 0 | DX23: 0 | DY23: 0 | DZ23: 0 | EA23: 0 | EB23: 0 | EC23: 0 | ED23: 0 | EE23: 0 | EF23: 0 | EG23: 0 | EH23: 0 | EI23: 0 | EJ23: 0 | EK23: 0 | EL23: 0 | EM23: 0 | EN23: 0 | EO23: 7.1 | EP23: 0.36 | EQ23: 9.72 | ER23: 0.6 | ES23: 3.7 | ET23: 0.26 | EU23: 1.96 | EV23: 0.16 | EW23: 0 | EX23: 0 | EY23: 0 | EZ23: 0 | FA23: 0 | FB23: 0
A24: PT03C | B24: Crd | C24: PT03C_Crd6 | E24: 47.16 | F24: -0.00 | G24: 37.37 | H24: 0.00 | I24: 6.50 | J24: 0.34 | K24: 6.89 | L24: 0.01 | M24: 0.28 | N24: 0.00 | O24: -0.02 | P24: 0.00 | Q24: 98.55 | S24: 4.80 | T24: -0.00 | U24: 4.49 | V24: 0.00 | W24: 0.55 | X24: 0.03 | Y24: 1.05 | Z24: 0.00 | AA24: 0.06 | AB24: 0.00 | AD24: 0.65 | AN24: 0.35 | AP24: 720-840 | AQ24: 4.5 | AR24: 700.0 | AS24: 3.8 | AT24: 718.4 | AU24: 700.0 | AW24: 652.0 | AY24: 476 | AZ24: 42 | BA24: 12.6 | BB24: 2.2 | BC24: 3310 | BD24: 310 | BE24: 6.70E+04 | BF24: 5.50E+03 | BG24: 3.07E+05 | BH24: 2.10E+04 | BI24: 19.1 | BJ24: 6.2 | BK24: 0 | BL24: 0 | BM24: 820 | BN24: 350 | BO24: 0 | BP24: 0 | BQ24: 1.9 | BR24: 1.1 | BS24: 11.26 | BT24: 0.92 | BU24: 20 | BV24: 3.4 | BW24: 2460 | BX24: 200 | BY24: 6.37E+04 | BZ24: 5.70E+03 | CA24: 6.84 | CB24: 0.67 | CC24: 0 | CD24: 0 | CE24: 0 | CF24: 0 | CG24: 148 | CH24: 15 | CI24: 62.2 | CJ24: 4.6 | CK24: 0 | CL24: 0 | CM24: 1.03 | CN24: 0.18 | CO24: 0 | CP24: 0 | CQ24: 0 | CR24: 0 | CS24: 0 | CT24: 0 | CU24: 0 | CV24: 0 | CW24: 0 | CX24: 0 | CY24: 0 | CZ24: 0 | DA24: 0 | DB24: 0 | DC24: 0 | DD24: 0 | DE24: 0 | DF24: 0 | DG24: 3.24 | DH24: 0.25 | DI24: 0 | DJ24: 0 | DK24: 0 | DL24: 0 | DM24: 0 | DN24: 0 | DO24: 0 | DP24: 0 | DQ24: 0 | DR24: 0 | DS24: 0 | DT24: 0 | DU24: 0 | DV24: 0 | DW24: 0 | DX24: 0 | DY24: 0 | DZ24: 0 | EA24: 0 | EB24: 0 | EC24: 0 | ED24: 0 | EE24: 0 | EF24: 0 | EG24: 0 | EH24: 0 | EI24: 0 | EJ24: 0 | EK24: 0 | EL24: 0 | EM24: 0 | EN24: 0 | EO24: 0 | EP24: 0 | EQ24: 0 | ER24: 0 | ES24: 0 | ET24: 0 | EU24: 0 | EV24: 0 | EW24: 0 | EX24: 0 | EY24: 0 | EZ24: 0 | FA24: 0 | FB24: 0
A25: PT03C | B25: Crd | C25: PT03C_Crd8 | E25: 43.62 | F25: 0.02 | G25: 46.94 | H25: -0.00 | I25: 4.37 | J25: 0.23 | K25: 4.30 | L25: -0.00 | M25: 0.19 | N25: 0.00 | O25: 0.00 | P25: -0.01 | Q25: 99.67 | S25: 4.35 | T25: 0.00 | U25: 5.51 | V25: -0.00 | W25: 0.36 | X25: 0.02 | Y25: 0.64 | Z25: -0.00 | AA25: 0.04 | AB25: 0.00 | AD25: 0.64 | AN25: 0.36 | AP25: 720-840 | AQ25: 4.5 | AR25: 700.0 | AS25: 3.8 | AT25: 756.4 | AU25: 700.0 | AW25: 652.0 | AY25: 422 | AZ25: 31 | BA25: 17.7 | BB25: 2.4 | BC25: 2660 | BD25: 180 | BE25: 4.98E+04 | BF25: 2.80E+03 | BG25: 3.56E+05 | BH25: 2.20E+04 | BI25: 23.3 | BJ25: 6.2 | BK25: 0 | BL25: 0 | BM25: 0 | BN25: 0 | BO25: 0.78 | BP25: 0.29 | BQ25: 0 | BR25: 0 | BS25: 42.3 | BT25: 3.6 | BU25: 58.5 | BV25: 4.5 | BW25: 1880 | BX25: 130 | BY25: 4.64E+04 | BZ25: 2.30E+03 | CA25: 4.93 | CB25: 0.56 | CC25: 0 | CD25: 0 | CE25: 0 | CF25: 0 | CG25: 104.7 | CH25: 7.9 | CI25: 78.8 | CJ25: 4.9 | CK25: 0 | CL25: 0 | CM25: 0.71 | CN25: 0.14 | CO25: 0 | CP25: 0 | CQ25: 0 | CR25: 0 | CS25: 0 | CT25: 0 | CU25: 0 | CV25: 0 | CW25: 0 | CX25: 0 | CY25: 0 | CZ25: 0 | DA25: 0 | DB25: 0 | DC25: 0 | DD25: 0 | DE25: 0 | DF25: 0 | DG25: 2.64 | DH25: 0.22 | DI25: 0 | DJ25: 0 | DK25: 0 | DL25: 0 | DM25: 0 | DN25: 0 | DO25: 0 | DP25: 0 | DQ25: 0 | DR25: 0 | DS25: 0 | DT25: 0 | DU25: 0 | DV25: 0 | DW25: 0 | DX25: 0 | DY25: 0 | DZ25: 0 | EA25: 0 | EB25: 0 | EC25: 0 | ED25: 0 | EE25: 0 | EF25: 0 | EG25: 0 | EH25: 0 | EI25: 0 | EJ25: 0 | EK25: 0 | EL25: 0 | EM25: 0 | EN25: 0 | EO25: 0 | EP25: 0 | EQ25: 0 | ER25: 0 | ES25: 0 | ET25: 0 | EU25: 0.202 | EV25: 0.064 | EW25: 0 | EX25: 0 | EY25: 0 | EZ25: 0 | FA25: 0 | FB25: 0
A26: PT03C | B26: Crd | C26: PT03C_Crd9 | E26: 48.33 | F26: 0.01 | G26: 33.42 | H26: 0.00 | I26: 7.74 | J26: 0.41 | K26: 7.77 | L26: 0.01 | M26: 0.39 | N26: 0.00 | O26: 0.06 | P26: 0.00 | Q26: 98.14 | S26: 4.98 | T26: 0.00 | U26: 4.06 | V26: 0.00 | W26: 0.67 | X26: 0.04 | Y26: 1.19 | Z26: 0.00 | AA26: 0.08 | AB26: 0.00 | AD26: 0.64 | AN26: 0.36 | AP26: 720-840 | AQ26: 4.5 | AR26: 700.0 | AS26: 3.8 | AT26: 673.9 | AU26: 700.0 | AW26: 652.0 | AY26: 125 | AZ26: 16 | BA26: 4 | BB26: 1.3 | BC26: 770 | BD26: 120 | BE26: 9.20E+03 | BF26: 1.10E+03 | BG26: 4.08E+05 | BH26: 2.50E+04 | BO26: 1.47 | BP26: 0.62 | BQ26: 0 | BR26: 0 | BS26: 61 | BT26: 5.8 | BU26: 77.2 | BV26: 9 | BW26: 400 | BX26: 63 | CA26: 0 | CB26: 0 | CC26: 0 | CD26: 0 | CE26: 0 | CF26: 0 | CG26: 24.3 | CH26: 4.1 | CI26: 91.7 | CJ26: 8.3 | CK26: 0 | CL26: 0 | CM26: 0 | CN26: 0 | CO26: 1.72 | CP26: 0.26 | CQ26: 0 | CR26: 0 | CU26: 0 | CV26: 0 | DC26: 0 | DD26: 0 | DE26: 0 | DF26: 0 | DG26: 0.576 | DH26: 0.097 | DI26: 0.78 | DJ26: 0.33 | EO26: 0 | EP26: 0 | EQ26: 0 | ER26: 0 | EU26: 0.31 | EV26: 0.11 | FA26: 0 | FB26: 0
A27: PT03C | B27: Crd | C27: PT03C_Crd10 | E27: 48.18 | F27: -0.01 | G27: 33.58 | H27: 0.00 | I27: 8.16 | J27: 0.41 | K27: 7.90 | L27: 0.01 | M27: 0.41 | N27: 0.01 | O27: -0.05 | P27: 0.01 | Q27: 98.69 | S27: 4.95 | T27: 0.00 | U27: 4.07 | V27: 0.00 | W27: 0.70 | X27: 0.04 | Y27: 1.21 | Z27: 0.00 | AA27: 0.08 | AB27: 0.00 | AD27: 0.63 | AN27: 0.37 | AP27: 720-840 | AQ27: 4.5 | AR27: 700.0 | AS27: 3.8 | AT27: 663.1 | AU27: 700.0 | AW27: 652.0 | AY27: 648 | AZ27: 41 | BA27: 13.9 | BB27: 2.5 | BC27: 4290 | BD27: 270 | BE27: 7.16E+04 | BF27: 3.80E+03 | BG27: 2.99E+05 | BH27: 1.10E+04 | BI27: 22.6 | BJ27: 5.1 | BK27: 0 | BL27: 0 | BM27: 0 | BN27: 0 | BO27: 0 | BP27: 0 | BQ27: 4.1 | BR27: 1.3 | BS27: 0 | BT27: 0 | BU27: 0 | BV27: 0 | BW27: 2600 | BX27: 190 | BY27: 7.08E+04 | BZ27: 5.80E+03 | CA27: 7.73 | CB27: 0.84 | CC27: 4.01 | CD27: 0.87 | CE27: 0 | CF27: 0 | CG27: 165 | CH27: 11 | CI27: 58.6 | CJ27: 4.5 | CK27: 0 | CL27: 0 | CM27: 1.35 | CN27: 0.16 | CO27: 0 | CP27: 0 | CQ27: 0 | CR27: 0 | CS27: 0 | CT27: 0 | CU27: 0 | CV27: 0 | CW27: 0 | CX27: 0 | CY27: 0 | CZ27: 0 | DA27: 0 | DB27: 0 | DC27: 0 | DD27: 0 | DE27: 0 | DF27: 0 | DG27: 4.11 | DH27: 0.31 | DI27: 0 | DJ27: 0 | DK27: 0 | DL27: 0 | DM27: 0 | DN27: 0 | DO27: 0 | DP27: 0 | DQ27: 0 | DR27: 0 | DS27: 0 | DT27: 0 | DU27: 0 | DV27: 0 | DW27: 0 | DX27: 0 | DY27: 0 | DZ27: 0 | EA27: 0 | EB27: 0 | EC27: 0 | ED27: 0 | EE27: 0 | EF27: 0 | EG27: 0 | EH27: 0 | EI27: 0 | EJ27: 0 | EK27: 0 | EL27: 0 | EM27: 0 | EN27: 0 | EO27: 0 | EP27: 0 | EQ27: 0 | ER27: 0 | ES27: 0 | ET27: 0 | EU27: 0 | EV27: 0 | EW27: 0 | EX27: 0 | EY27: 0 | EZ27: 0 | FA27: 0 | FB27: 0
A28: PT03C | B28: Crd | C28: PT03C_Crd11 | E28: 42.75 | F28: -0.01 | G28: 49.33 | H28: 0.02 | I28: 4.11 | J28: 0.24 | K28: 4.09 | L28: 0.01 | M28: 0.24 | N28: 0.00 | O28: -0.00 | P28: -0.01 | Q28: 100.80 | S28: 4.21 | T28: 0.00 | U28: 5.73 | V28: 0.00 | W28: 0.34 | X28: 0.02 | Y28: 0.60 | Z28: 0.00 | AA28: 0.05 | AB28: 0.00 | AD28: 0.64 | AN28: 0.36 | AP28: 720-840 | AQ28: 4.5 | AR28: 700.0 | AS28: 3.8 | AT28: 736.9 | AU28: 700.0 | AW28: 652.0 | AY28: 502 | AZ28: 29 | BA28: 15.2 | BB28: 2 | BC28: 3310 | BD28: 200 | BE28: 6.09E+04 | BF28: 3.50E+03 | BG28: 3.24E+05 | BH28: 1.10E+04 | BO28: 0.67 | BP28: 0.35 | BQ28: 0 | BR28: 0 | BS28: 16.8 | BT28: 2 | BU28: 26.5 | BV28: 3.5 | BW28: 2260 | BX28: 120 | CA28: 5.54 | CB28: 0.56 | CC28: 0 | CD28: 0 | CE28: 0 | CF28: 0 | CG28: 125.8 | CH28: 9.8 | CI28: 64.1 | CJ28: 3.9 | CK28: 0 | CL28: 0 | CM28: 0.63 | CN28: 0.14 | CO28: 0 | CP28: 0 | CQ28: 0 | CR28: 0 | CU28: 0 | CV28: 0 | DC28: 0 | DD28: 0 | DE28: 0 | DF28: 0 | DG28: 2.77 | DH28: 0.19 | DI28: 0 | DJ28: 0 | EO28: 0 | EP28: 0 | EQ28: 0 | ER28: 0 | EU28: 0 | EV28: 0 | FA28: 0 | FB28: 0
A29: PT03C | B29: Crd | C29: PT03C_Crd1 | E29: 42.75 | F29: -0.01 | G29: 49.33 | H29: 0.02 | I29: 4.11 | J29: 0.24 | K29: 4.09 | L29: 0.01 | M29: 0.24 | N29: 0.00 | O29: -0.00 | P29: -0.01 | Q29: 100.80 | S29: 5.00 | T29: 0.00 | U29: 4.00 | V29: 0.00 | W29: 0.67 | X29: 0.03 | Y29: 1.24 | Z29: 0.00 | AA29: 0.08 | AB29: -0.00 | AD29: 0.65 | AN29: 0.35 | AP29: 720-840 | AQ29: 4.5 | AR29: 700.0 | AS29: 3.8 | AT29: 674.5 | AU29: 700.0 | AW29: 652.0 | AY29: 282 | AZ29: 16 | BA29: 18.5 | BB29: 2.3 | BC29: 1179 | BD29: 77 | BE29: 2.68E+04 | BF29: 1.20E+03 | BG29: 3.01E+05 | BH29: 1.20E+04 | BI29: 78.3 | BJ29: 6.3 | BK29: 8.20E+04 | BL29: 3.90E+03 | BM29: 870 | BN29: 250 | BO29: 0.61 | BP29: 0.2 | BQ29: 5.6 | BR29: 1.3 | BS29: 0 | BT29: 0 | BU29: 0 | BV29: 0 | BW29: 244 | BX29: 14 | BY29: 4.22E+04 | BZ29: 2.30E+03 | CA29: 8.42 | CB29: 0.56 | CC29: 14.1 | CD29: 1.6 | CE29: 27.5 | CF29: 2.1 | CG29: 127 | CH29: 15 | CI29: 59.7 | CJ29: 3.6 | CK29: 0 | CL29: 0 | CM29: 745 | CN29: 40 | CO29: 20.1 | CP29: 1.1 | CQ29: 0 | CR29: 0 | CS29: 0 | CT29: 0 | CU29: 0 | CV29: 0 | CW29: 0 | CX29: 0 | CY29: 0 | CZ29: 0 | DA29: 0 | DB29: 0 | DC29: 0 | DD29: 0 | DE29: 0 | DF29: 0 | DG29: 45.3 | DH29: 2 | DI29: 1183 | DJ29: 63 | DK29: 0 | DL29: 0 | DM29: 0 | DN29: 0 | DO29: 0 | DP29: 0 | DQ29: 0 | DR29: 0 | DS29: 0 | DT29: 0 | DU29: 0.255 | DV29: 0.058 | DW29: 0 | DX29: 0 | DY29: 0 | DZ29: 0 | EA29: 0 | EB29: 0 | EC29: 0 | ED29: 0 | EE29: 0 | EF29: 0 | EG29: 0 | EH29: 0 | EI29: 0 | EJ29: 0 | EK29: 0 | EL29: 0 | EM29: 0 | EN29: 0 | EO29: 0 | EP29: 0 | EQ29: 0 | ER29: 0 | ES29: 5.07 | ET29: 0.31 | EU29: 5.88 | EV29: 0.52 | EW29: 0 | EX29: 0 | EY29: 0 | EZ29: 0 | FA29: 0 | FB29: 0
A30: PT03C | B30: Kfs | C30: PT03C_Kfs8 | E30: 64.32 | F30: 0.01 | G30: 19.34 | H30: -0.02 | I30: 0.02 | J30: 0.00 | K30: 0.00 | L30: 0.04 | M30: 2.12 | N30: 13.55 | O30: 0.02 | P30: 0.01 | Q30: 99.44 | S30: 11.85 | T30: 0.00 | U30: 4.20 | V30: 0.00 | W30: 0.00 | X30: 0.00 | Y30: 0.00 | Z30: 0.01 | AA30: 0.76 | AB30: 3.18 | AD30: 0.32 | AK30: 0.00 | AL30: 0.19 | AM30: 0.81 | AP30: 720-840 | AQ30: 4.5 | AR30: 700.0 | AS30: 3.8 | AU30: 700.0 | AW30: 652.0 | AY30: 1.74 | AZ30: 0.36 | BA30: 0 | BB30: 0 | BC30: 1.92E+04 | BD30: 1.50E+03 | BE30: 32.8 | BF30: 3.3 | BG30: 1.63E+05 | BH30: 1.30E+04 | BI30: 751 | BJ30: 86 | BK30: 1.13E+05 | BL30: 1.10E+04 | BM30: 920 | BN30: 290 | BO30: 0 | BP30: 0 | BQ30: 18.3 | BR30: 3.2 | BS30: 0 | BT30: 0 | BU30: 0 | BV30: 0 | BW30: 4.77 | BX30: 0.56 | BY30: 80 | BZ30: 11 | CA30: 0 | CB30: 0 | CC30: 0 | CD30: 0 | CE30: 0 | CF30: 0 | CG30: 0 | CH30: 0 | CI30: 10.1 | CJ30: 1.2 | CK30: 0 | CL30: 0 | CM30: 193 | CN30: 19 | CO30: 301 | CP30: 24 | CQ30: 0 | CR30: 0 | CS30: 0 | CT30: 0 | CU30: 0 | CV30: 0 | CW30: 0 | CX30: 0 | CY30: 0 | CZ30: 0 | DA30: 0 | DB30: 0 | DC30: 2.31 | DD30: 0.51 | DE30: 0 | DF30: 0 | DG30: 1.35 | DH30: 0.14 | DI30: 2410 | DJ30: 190 | DK30: 0.47 | DL30: 0.092 | DM30: 0.471 | DN30: 0.081 | DO30: 0 | DP30: 0 | DQ30: 0 | DR30: 0 | DS30: 0 | DT30: 0 | DU30: 2.4 | DV30: 0.29 | DW30: 0 | DX30: 0 | DY30: 0 | DZ30: 0 | EA30: 0 | EB30: 0 | EC30: 0 | ED30: 0 | EE30: 0 | EF30: 0 | EG30: 0 | EH30: 0 | EI30: 0 | EJ30: 0 | EK30: 0 | EL30: 0 | EM30: 0 | EN30: 0 | EO30: 0 | EP30: 0 | EQ30: 0 | ER30: 0 | ES30: 0.94 | ET30: 0.12 | EU30: 94.4 | EV30: 7.8 | EW30: 0 | EX30: 0 | EY30: 0 | EZ30: 0 | FA30: 0 | FB30: 0
A31: PT03C | B31: Kfs | C31: PT03C_Kfs9 | E31: 65.30 | F31: 0.01 | G31: 19.25 | H31: -0.02 | I31: 0.01 | J31: 0.02 | K31: 0.00 | L31: 0.06 | M31: 2.59 | N31: 12.68 | O31: -0.03 | P31: 0.00 | Q31: 99.91 | S31: 11.92 | T31: 0.00 | U31: 4.14 | V31: 0.00 | W31: 0.00 | X31: 0.00 | Y31: 0.00 | Z31: 0.01 | AA31: 0.92 | AB31: 2.95 | AD31: 0.22 | AK31: 0.00 | AL31: 0.24 | AM31: 0.76 | AP31: 720-840 | AQ31: 4.5 | AR31: 700.0 | AS31: 3.8 | AU31: 700.0 | AW31: 652.0 | AY31: 1.88 | AZ31: 0.29 | BA31: 0 | BB31: 0 | BC31: 2.38E+04 | BD31: 2.70E+03 | BE31: 39.4 | BF31: 4.3 | BG31: 1.83E+05 | BH31: 1.20E+04 | BI31: 884 | BJ31: 75 | BK31: 1.27E+05 | BL31: 1.20E+04 | BM31: 1300 | BN31: 430 | BO31: 0 | BP31: 0 | BQ31: 29.7 | BR31: 4.4 | BS31: 0 | BT31: 0 | BU31: 0 | BV31: 0 | BW31: 5.65 | BX31: 0.74 | BY31: 92.6 | BZ31: 8.3 | CA31: 0 | CB31: 0 | CC31: 0 | CD31: 0 | CE31: 0 | CF31: 0 | CG31: 0 | CH31: 0 | CI31: 11.8 | CJ31: 1.7 | CK31: 0 | CL31: 0 | CM31: 247 | CN31: 23 | CO31: 342 | CP31: 27 | CQ31: 0 | CR31: 0 | CS31: 0 | CT31: 0 | CU31: 0 | CV31: 0 | CW31: 0 | CX31: 0 | CY31: 0 | CZ31: 0 | DA31: 0 | DB31: 0 | DC31: 2.67 | DD31: 0.42 | DE31: 0 | DF31: 0 | DG31: 1.43 | DH31: 0.2 | DI31: 2920 | DJ31: 240 | DK31: 0.639 | DL31: 0.087 | DM31: 0.438 | DN31: 0.064 | DO31: 0 | DP31: 0 | DQ31: 0 | DR31: 0 | DS31: 0 | DT31: 0 | DU31: 2.94 | DV31: 0.31 | DW31: 0 | DX31: 0 | DY31: 0 | DZ31: 0 | EA31: 0 | EB31: 0 | EC31: 0 | ED31: 0 | EE31: 0 | EF31: 0 | EG31: 0 | EH31: 0 | EI31: 0 | EJ31: 0 | EK31: 0 | EL31: 0 | EM31: 0 | EN31: 0 | EO31: 0 | EP31: 0 | EQ31: 0 | ER31: 0 | ES31: 1.16 | ET31: 0.15 | EU31: 117 | EV31: 13 | EW31: 0 | EX31: 0 | EY31: 0 | EZ31: 0 | FA31: 0 | FB31: 0
A32: PT03C | B32: Kfs | C32: PT03C_Kfs10 | E32: 64.21 | F32: -0.01 | G32: 19.28 | H32: -0.01 | I32: 0.02 | J32: 0.00 | K32: 0.01 | L32: 0.03 | M32: 1.53 | N32: 14.34 | O32: -0.02 | P32: 0.00 | Q32: 99.43 | S32: 11.86 | T32: 0.00 | U32: 4.20 | V32: 0.00 | W32: 0.00 | X32: 0.00 | Y32: 0.00 | Z32: 0.01 | AA32: 0.55 | AB32: 3.38 | AD32: 0.52 | AK32: 0.00 | AL32: 0.14 | AM32: 0.86 | AP32: 720-840 | AQ32: 4.5 | AR32: 700.0 | AS32: 3.8 | AU32: 700.0 | AW32: 652.0 | AY32: 1.87 | AZ32: 0.38 | BA32: 0 | BB32: 0 | BC32: 1.65E+04 | BD32: 2.20E+03 | BE32: 38.2 | BF32: 4.7 | BG32: 1.71E+05 | BH32: 1.70E+04 | BI32: 776 | BJ32: 77 | BK32: 1.09E+05 | BL32: 1.00E+04 | BM32: 1020 | BN32: 270 | BO32: 0 | BP32: 0 | BQ32: 29.2 | BR32: 5.8 | BS32: 0 | BT32: 0 | BU32: 0 | BV32: 0 | BW32: 7.5 | BX32: 1.2 | BY32: 74.8 | BZ32: 9.3 | CA32: 0 | CB32: 0 | CC32: 0 | CD32: 0 | CE32: 0 | CF32: 0 | CG32: 1.03 | CH32: 0.56 | CI32: 10 | CJ32: 1.3 | CK32: 0 | CL32: 0 | CM32: 216 | CN32: 24 | CO32: 287 | CP32: 29 | CQ32: 0 | CR32: 0 | CS32: 0 | CT32: 0 | CU32: 0 | CV32: 0 | CW32: 0 | CX32: 0 | CY32: 0 | CZ32: 0 | DA32: 0 | DB32: 0 | DC32: 2.14 | DD32: 0.37 | DE32: 0 | DF32: 0 | DG32: 1.27 | DH32: 0.17 | DI32: 2430 | DJ32: 230 | DK32: 0.547 | DL32: 0.078 | DM32: 0.399 | DN32: 0.062 | DO32: 0 | DP32: 0 | DQ32: 0 | DR32: 0 | DS32: 0 | DT32: 0 | DU32: 2.29 | DV32: 0.32 | DW32: 0 | DX32: 0 | DY32: 0 | DZ32: 0 | EA32: 0 | EB32: 0 | EC32: 0 | ED32: 0 | EE32: 0 | EF32: 0 | EG32: 0 | EH32: 0 | EI32: 0 | EJ32: 0 | EK32: 0 | EL32: 0 | EM32: 0 | EN32: 0 | EO32: 0 | EP32: 0 | EQ32: 0 | ER32: 0 | ES32: 1.05 | ET32: 0.15 | EU32: 103 | EV32: 11 | EW32: 0 | EX32: 0 | EY32: 0 | EZ32: 0 | FA32: 0 | FB32: 0
A33: PT03C | B33: Kfs | C33: PT03C_Kfs11 | E33: 64.88 | F33: 0.02 | G33: 19.02 | H33: -0.02 | I33: -0.01 | J33: -0.02 | K33: 0.00 | L33: 0.01 | M33: 1.61 | N33: 14.13 | O33: -0.09 | P33: 0.01 | Q33: 99.69 | S33: 11.93 | T33: 0.00 | U33: 4.12 | V33: 0.00 | W33: 0.00 | X33: 0.00 | Y33: 0.00 | Z33: 0.00 | AA33: 0.57 | AB33: 3.31 | AD33: 1.00 | AK33: 0.00 | AL33: 0.15 | AM33: 0.85 | AP33: 720-840 | AQ33: 4.5 | AR33: 700.0 | AS33: 3.8 | AU33: 700.0 | AW33: 652.0 | AY33: 4.44 | AZ33: 0.57 | BA33: 0 | BB33: 0 | BC33: 1.76E+04 | BD33: 2.20E+03 | BE33: 38.1 | BF33: 4.7 | BG33: 1.86E+05 | BH33: 1.70E+04 | BI33: 855 | BJ33: 87 | BK33: 1.19E+05 | BL33: 1.60E+04 | BM33: 1160 | BN33: 280 | BO33: 0 | BP33: 0 | BQ33: 26.4 | BR33: 4.6 | BS33: 0 | BT33: 0 | BU33: 0 | BV33: 0 | BW33: 6.51 | BX33: 0.85 | BY33: 83 | BZ33: 9.9 | CA33: 0 | CB33: 0 | CC33: 0 | CD33: 0 | CE33: 0 | CF33: 0 | CG33: 0 | CH33: 0 | CI33: 10.3 | CJ33: 1.2 | CK33: 0 | CL33: 0 | CM33: 215 | CN33: 18 | CO33: 315 | CP33: 28 | CQ33: 0 | CR33: 0 | CS33: 0 | CT33: 0 | CU33: 0 | CV33: 0 | CW33: 0 | CX33: 0 | CY33: 0 | CZ33: 0 | DA33: 0 | DB33: 0 | DC33: 2.59 | DD33: 0.38 | DE33: 0 | DF33: 0 | DG33: 1.32 | DH33: 0.14 | DI33: 2650 | DJ33: 200 | DK33: 0.67 | DL33: 0.12 | DM33: 0.563 | DN33: 0.087 | DO33: 0 | DP33: 0 | DQ33: 0 | DR33: 0 | DS33: 0 | DT33: 0 | DU33: 2.81 | DV33: 0.35 | DW33: 0 | DX33: 0 | DY33: 0 | DZ33: 0 | EA33: 0 | EB33: 0 | EC33: 0 | ED33: 0 | EE33: 0 | EF33: 0 | EG33: 0 | EH33: 0 | EI33: 0 | EJ33: 0 | EK33: 0 | EL33: 0 | EM33: 0 | EN33: 0 | EO33: 0 | EP33: 0 | EQ33: 0 | ER33: 0 | ES33: 1.15 | ET33: 0.16 | EU33: 107.7 | EV33: 9.9 | EW33: 0 | EX33: 0 | EY33: 0 | EZ33: 0 | FA33: 0 | FB33: 0
A34: PT03C | B34: Kfs | C34: PT03C_Kfs12 | E34: 65.10 | F34: 0.01 | G34: 19.28 | H34: -0.02 | I34: 0.02 | J34: -0.01 | K34: 0.00 | L34: 0.05 | M34: 2.97 | N34: 12.23 | O34: -0.03 | P34: 0.01 | Q34: 99.68 | S34: 11.90 | T34: 0.00 | U34: 4.15 | V34: 0.00 | W34: 0.00 | X34: 0.00 | Y34: 0.00 | Z34: 0.01 | AA34: 1.05 | AB34: 2.85 | AD34: 0.31 | AK34: 0.00 | AL34: 0.27 | AM34: 0.73 | AP34: 720-840 | AQ34: 4.5 | AR34: 700.0 | AS34: 3.8 | AU34: 700.0 | AW34: 652.0 | AY34: 1.51 | AZ34: 0.29 | BA34: 0 | BB34: 0 | BC34: 2.14E+04 | BD34: 2.80E+03 | BE34: 37.6 | BF34: 5.8 | BG34: 1.64E+05 | BH34: 1.80E+04 | BI34: 1220 | BJ34: 180 | BK34: 1.10E+05 | BL34: 1.40E+04 | BM34: 1090 | BN34: 360 | BO34: 0 | BP34: 0 | BQ34: 25.3 | BR34: 5.7 | BS34: 0 | BT34: 0 | BU34: 0 | BV34: 0 | BW34: 5.13 | BX34: 0.89 | BY34: 86 | BZ34: 14 | CA34: 0 | CB34: 0 | CC34: 0 | CD34: 0 | CE34: 0 | CF34: 0 | CG34: 0 | CH34: 0 | CI34: 11.7 | CJ34: 1.6 | CK34: 0 | CL34: 0 | CM34: 215 | CN34: 35 | CO34: 283 | CP34: 34 | CQ34: 0 | CR34: 0 | CS34: 0 | CT34: 0 | CU34: 0 | CV34: 0 | CW34: 0 | CX34: 0 | CY34: 0 | CZ34: 0 | DA34: 0 | DB34: 0 | DC34: 2.77 | DD34: 0.54 | DE34: 0 | DF34: 0 | DG34: 1.91 | DH34: 0.25 | DI34: 2490 | DJ34: 310 | DK34: 0.427 | DL34: 0.09 | DM34: 0.411 | DN34: 0.08 | DO34: 0 | DP34: 0 | DQ34: 0 | DR34: 0 | DS34: 0 | DT34: 0 | DU34: 2.56 | DV34: 0.4 | DW34: 0 | DX34: 0 | DY34: 0 | DZ34: 0 | EA34: 0 | EB34: 0 | EC34: 0 | ED34: 0 | EE34: 0 | EF34: 0 | EG34: 0 | EH34: 0 | EI34: 0 | EJ34: 0 | EK34: 0 | EL34: 0 | EM34: 0 | EN34: 0 | EO34: 0 | EP34: 0 | EQ34: 0 | ER34: 0 | ES34: 1.16 | ET34: 0.2 | EU34: 92 | EV34: 11 | EW34: 0 | EX34: 0 | EY34: 0 | EZ34: 0 | FA34: 0 | FB34: 0
A35: PT03C | B35: Kfs | C35: PT03C_Kfs13 | E35: 64.53 | F35: -0.01 | G35: 19.36 | H35: -0.03 | I35: 0.01 | J35: -0.02 | K35: 0.01 | L35: 0.05 | M35: 2.35 | N35: 13.26 | O35: 0.02 | P35: 0.02 | Q35: 99.60 | S35: 11.86 | T35: 0.00 | U35: 4.19 | V35: 0.00 | W35: 0.00 | X35: 0.00 | Y35: 0.00 | Z35: 0.01 | AA35: 0.84 | AB35: 3.11 | AD35: 0.55 | AK35: 0.00 | AL35: 0.21 | AM35: 0.79 | AP35: 720-840 | AQ35: 4.5 | AR35: 700.0 | AS35: 3.8 | AU35: 700.0 | AW35: 652.0 | AY35: 2.2 | AZ35: 0.38 | BA35: 0 | BB35: 0 | BC35: 2.14E+04 | BD35: 2.90E+03 | BE35: 29.7 | BF35: 4.1 | BG35: 1.59E+05 | BH35: 1.60E+04 | BI35: 1040 | BJ35: 130 | BK35: 1.05E+05 | BL35: 1.20E+04 | BM35: 1120 | BN35: 330 | BO35: 0 | BP35: 0 | BQ35: 25 | BR35: 4.1 | BS35: 0 | BT35: 0 | BU35: 0 | BV35: 0 | BW35: 3.87 | BX35: 0.56 | BY35: 66.5 | BZ35: 9.2 | CA35: 0 | CB35: 0 | CC35: 0 | CD35: 0 | CE35: 0 | CF35: 0 | CG35: 0 | CH35: 0 | CI35: 10.7 | CJ35: 1.2 | CK35: 0 | CL35: 0 | CM35: 191 | CN35: 27 | CO35: 305 | CP35: 35 | CQ35: 0 | CR35: 0 | CS35: 0 | CT35: 0 | CU35: 0 | CV35: 0 | CW35: 0 | CX35: 0 | CY35: 0 | CZ35: 0 | DA35: 0 | DB35: 0 | DC35: 2.46 | DD35: 0.46 | DE35: 0 | DF35: 0 | DG35: 1.2 | DH35: 0.18 | DI35: 2560 | DJ35: 270 | DK35: 0.71 | DL35: 0.11 | DM35: 0.634 | DN35: 0.099 | DO35: 0 | DP35: 0 | DQ35: 0 | DR35: 0 | DS35: 0 | DT35: 0 | DU35: 2.68 | DV35: 0.36 | DW35: 0 | DX35: 0 | DY35: 0 | DZ35: 0 | EA35: 0 | EB35: 0 | EC35: 0 | ED35: 0 | EE35: 0 | EF35: 0 | EG35: 0 | EH35: 0 | EI35: 0 | EJ35: 0 | EK35: 0 | EL35: 0 | EM35: 0 | EN35: 0 | EO35: 0 | EP35: 0 | EQ35: 0 | ER35: 0 | ES35: 1.07 | ET35: 0.16 | EU35: 106 | EV35: 13 | EW35: 0 | EX35: 0 | EY35: 0 | EZ35: 0 | FA35: 0 | FB35: 0
A36: PT03C | B36: Kfs | C36: PT03C_Kfs14 | E36: 64.78 | F36: 0.01 | G36: 19.02 | H36: -0.01 | I36: 0.00 | J36: -0.01 | K36: 0.01 | L36: 0.05 | M36: 2.15 | N36: 13.22 | O36: -0.02 | P36: 0.00 | Q36: 99.24 | S36: 11.93 | T36: 0.00 | U36: 4.13 | V36: 0.00 | W36: 0.00 | X36: 0.00 | Y36: 0.00 | Z36: 0.01 | AA36: 0.77 | AB36: 3.10 | AD36: 0.87 | AK36: 0.00 | AL36: 0.20 | AM36: 0.80 | AP36: 720-840 | AQ36: 4.5 | AR36: 700.0 | AS36: 3.8 | AU36: 700.0 | AW36: 652.0 | AY36: 1.47 | AZ36: 0.32 | BA36: 0 | BB36: 0 | BC36: 2.35E+04 | BD36: 2.80E+03 | BE36: 39.6 | BF36: 4.3 | BG36: 1.72E+05 | BH36: 1.50E+04 | BI36: 880 | BJ36: 100 | BK36: 1.20E+05 | BL36: 1.30E+04 | BM36: 960 | BN36: 320 | BO36: 0 | BP36: 0 | BQ36: 17 | BR36: 4.2 | BS36: 0 | BT36: 0 | BU36: 0 | BV36: 0 | BW36: 5.79 | BX36: 0.75 | BY36: 84 | BZ36: 11 | CA36: 0 | CB36: 0 | CC36: 0 | CD36: 0 | CE36: 0 | CF36: 0 | CG36: 0 | CH36: 0 | CI36: 10.4 | CJ36: 1.5 | CK36: 0 | CL36: 0 | CM36: 217 | CN36: 27 | CO36: 316 | CP36: 30 | CQ36: 0 | CR36: 0 | CS36: 0 | CT36: 0 | CU36: 0 | CV36: 0 | CW36: 0 | CX36: 0 | CY36: 0 | CZ36: 0 | DA36: 0 | DB36: 0 | DC36: 2.69 | DD36: 0.39 | DE36: 0 | DF36: 0 | DG36: 1.53 | DH36: 0.19 | DI36: 2620 | DJ36: 220 | DK36: 0.501 | DL36: 0.076 | DM36: 0.489 | DN36: 0.089 | DO36: 0 | DP36: 0 | DQ36: 0 | DR36: 0 | DS36: 0 | DT36: 0 | DU36: 2.42 | DV36: 0.36 | DW36: 0 | DX36: 0 | DY36: 0 | DZ36: 0 | EA36: 0 | EB36: 0 | EC36: 0 | ED36: 0 | EE36: 0 | EF36: 0 | EG36: 0 | EH36: 0 | EI36: 0 | EJ36: 0 | EK36: 0 | EL36: 0 | EM36: 0 | EN36: 0 | EO36: 0 | EP36: 0 | EQ36: 0 | ER36: 0 | ES36: 1.09 | ET36: 0.14 | EU36: 104 | EV36: 10 | EW36: 0 | EX36: 0 | EY36: 0 | EZ36: 0 | FA36: 0 | FB36: 0
A37: PT03C | B37: Kfs | C37: PT03C_Kfs15 | E37: 65.09 | F37: -0.02 | G37: 19.01 | H37: -0.01 | I37: 0.05 | J37: 0.00 | K37: 0.01 | L37: 0.03 | M37: 1.86 | N37: 13.70 | O37: -0.02 | P37: -0.00 | Q37: 99.75 | S37: 11.94 | T37: 0.00 | U37: 4.11 | V37: 0.00 | W37: 0.01 | X37: 0.00 | Y37: 0.00 | Z37: 0.01 | AA37: 0.66 | AB37: 3.21 | AD37: =Y37/(Y37+W37) -> 0.24 | AK37: 0.00 | AL37: 0.17 | AM37: 0.83 | AP37: 720-840 | AQ37: 4.5 | AR37: 700.0 | AS37: 3.8 | AU37: 700.0 | AW37: 652.0 | AY37: 1.92 | AZ37: 0.33 | BA37: 0 | BB37: 0 | BC37: 2.73E+04 | BD37: 3.30E+03 | BE37: 110 | BF37: 20 | BG37: 1.77E+05 | BH37: 1.80E+04 | BI37: 1210 | BJ37: 110 | BK37: 1.20E+05 | BL37: 1.50E+04 | BM37: 990 | BN37: 210 | BO37: 0 | BP37: 0 | BQ37: 38.6 | BR37: 6.4 | BS37: 0 | BT37: 0 | BU37: 0 | BV37: 0 | BW37: 5.22 | BX37: 0.68 | BY37: 210 | BZ37: 35 | CA37: 0 | CB37: 0 | CC37: 0 | CD37: 0 | CE37: 0 | CF37: 0 | CG37: 0 | CH37: 0 | CI37: 15.9 | CJ37: 2.2 | CK37: 0 | CL37: 0 | CM37: 196 | CN37: 26 | CO37: 459 | CP37: 46 | CQ37: 0 | CR37: 0 | CS37: 0 | CT37: 0 | CU37: 0 | CV37: 0 | CW37: 0 | CX37: 0 | CY37: 0 | CZ37: 0 | DA37: 0 | DB37: 0 | DC37: 1.12 | DD37: 0.26 | DE37: 0 | DF37: 0 | DG37: 1.25 | DH37: 0.14 | DI37: 3390 | DJ37: 330 | DK37: 0.91 | DL37: 0.14 | DM37: 0.82 | DN37: 0.11 | DO37: 0 | DP37: 0 | DQ37: 0 | DR37: 0 | DS37: 0 | DT37: 0 | DU37: 3.01 | DV37: 0.38 | DW37: 0 | DX37: 0 | DY37: 0 | DZ37: 0 | EA37: 0 | EB37: 0 | EC37: 0 | ED37: 0 | EE37: 0 | EF37: 0 | EG37: 0 | EH37: 0 | EI37: 0 | EJ37: 0 | EK37: 0 | EL37: 0 | EM37: 0 | EN37: 0 | EO37: 0 | EP37: 0 | EQ37: 0 | ER37: 0 | ES37: 0.9 | ET37: 0.11 | EU37: 158 | EV37: 17 | EW37: 0 | EX37: 0 | EY37: 0 | EZ37: 0 | FA37: 0 | FB37: 0
A38: PT03C | B38: Kfs | C38: PT03C_Kfs16 | E38: 62.79 | F38: -0.02 | G38: 20.66 | H38: -0.02 | I38: 0.22 | J38: -0.01 | K38: 0.14 | L38: 0.02 | M38: 0.70 | N38: 14.72 | O38: 0.01 | P38: 0.01 | Q38: 99.27 | S38: 11.64 | T38: 0.00 | U38: 4.51 | V38: 0.00 | W38: 0.03 | X38: 0.00 | Y38: 0.04 | Z38: 0.00 | AA38: 0.25 | AB38: 3.48 | AD38: 0.53 | AK38: 0.00 | AL38: 0.07 | AM38: 0.93 | AP38: 720-840 | AQ38: 4.5 | AR38: 700.0 | AS38: 3.8 | AU38: 700.0 | AW38: 652.0 | AY38: 1.58 | AZ38: 0.38 | BA38: 0 | BB38: 0 | BC38: 2.36E+04 | BD38: 3.10E+03 | BE38: 36.3 | BF38: 4.5 | BG38: 1.75E+05 | BH38: 1.60E+04 | BI38: 960 | BJ38: 160 | BK38: 1.25E+05 | BL38: 1.50E+04 | BM38: 1570 | BN38: 380 | BO38: 0 | BP38: 0 | BQ38: 21.6 | BR38: 4.2 | BS38: 0 | BT38: 0 | BU38: 0 | BV38: 0 | BW38: 6.21 | BX38: 0.76 | BY38: 90 | BZ38: 12 | CA38: 0 | CB38: 0 | CC38: 0 | CD38: 0 | CE38: 0 | CF38: 0 | CG38: 0 | CH38: 0 | CI38: 12.2 | CJ38: 1.6 | CK38: 0 | CL38: 0 | CM38: 190 | CN38: 22 | CO38: 386 | CP38: 33 | CQ38: 0 | CR38: 0 | CS38: 0 | CT38: 0 | CU38: 0 | CV38: 0 | CW38: 0 | CX38: 0 | CY38: 0 | CZ38: 0 | DA38: 0 | DB38: 0 | DC38: 2.29 | DD38: 0.37 | DE38: 0 | DF38: 0 | DG38: 1.72 | DH38: 0.17 | DI38: 2620 | DJ38: 240 | DK38: 0.434 | DL38: 0.072 | DM38: 0.392 | DN38: 0.086 | DO38: 0 | DP38: 0 | DQ38: 0 | DR38: 0 | DS38: 0 | DT38: 0 | DU38: 2.94 | DV38: 0.32 | DW38: 0 | DX38: 0 | DY38: 0 | DZ38: 0 | EA38: 0 | EB38: 0 | EC38: 0 | ED38: 0 | EE38: 0 | EF38: 0 | EG38: 0 | EH38: 0 | EI38: 0 | EJ38: 0 | EK38: 0 | EL38: 0 | EM38: 0 | EN38: 0 | EO38: 0 | EP38: 0 | EQ38: 0 | ER38: 0 | ES38: 1.05 | ET38: 0.15 | EU38: 130 | EV38: 13 | EW38: 0 | EX38: 0 | EY38: 0 | EZ38: 0 | FA38: 0 | FB38: 0
A39: PT03C | B39: Kfs | C39: PT03C_Kfs17 | E39: 64.53 | F39: 0.01 | G39: 19.25 | H39: -0.01 | I39: 0.01 | J39: -0.00 | K39: 0.01 | L39: 0.02 | M39: 1.81 | N39: 13.88 | O39: 0.01 | P39: 0.00 | Q39: 99.54 | S39: 11.88 | T39: 0.00 | U39: 4.18 | V39: 0.00 | W39: 0.00 | X39: -0.00 | Y39: 0.00 | Z39: 0.00 | AA39: 0.65 | AB39: 3.26 | AD39: 0.54 | AK39: 0.00 | AL39: 0.17 | AM39: 0.83 | AP39: 720-840 | AQ39: 4.5 | AR39: 700.0 | AS39: 3.8 | AU39: 700.0 | AW39: 652.0 | AY39: 1.99 | AZ39: 0.39 | BA39: 0 | BB39: 0 | BC39: 1.91E+04 | BD39: 2.60E+03 | BE39: 45.3 | BF39: 7.7 | BG39: 1.87E+05 | BH39: 2.70E+04 | BI39: 1440 | BJ39: 310 | BK39: 1.19E+05 | BL39: 1.30E+04 | BM39: 1270 | BN39: 470 | BO39: 0 | BP39: 0 | BQ39: 43.2 | BR39: 6.4 | BS39: 0 | BT39: 0 | BU39: 0 | BV39: 0 | BW39: 7.1 | BX39: 1.5 | BY39: 91 | BZ39: 12 | CA39: 0 | CB39: 0 | CC39: 0 | CD39: 0 | CE39: 0 | CF39: 0 | CG39: 0 | CH39: 0 | CI39: 15.2 | CJ39: 1.9 | CK39: 0 | CL39: 0 | CM39: 194 | CN39: 22 | CO39: 467 | CP39: 54 | CQ39: 0 | CR39: 0 | CS39: 0 | CT39: 0 | CU39: 0 | CV39: 0 | CW39: 0 | CX39: 0 | CY39: 0 | CZ39: 0 | DA39: 0 | DB39: 0 | DC39: 1.67 | DD39: 0.42 | DE39: 0 | DF39: 0 | DG39: 1.53 | DH39: 0.19 | DI39: 2530 | DJ39: 290 | DK39: 0.83 | DL39: 0.14 | DM39: 0.84 | DN39: 0.13 | DO39: 0 | DP39: 0 | DQ39: 0 | DR39: 0 | DS39: 0 | DT39: 0 | DU39: 3.62 | DV39: 0.52 | DW39: 0 | DX39: 0 | DY39: 0 | DZ39: 0 | EA39: 0 | EB39: 0 | EC39: 0 | ED39: 0 | EE39: 0 | EF39: 0 | EG39: 0 | EH39: 0 | EI39: 0 | EJ39: 0 | EK39: 0 | EL39: 0 | EM39: 0 | EN39: 0 | EO39: 0 | EP39: 0 | EQ39: 0 | ER39: 0 | ES39: 1.01 | ET39: 0.14 | EU39: 152 | EV39: 20 | EW39: 0 | EX39: 0 | EY39: 0 | EZ39: 0 | FA39: 0 | FB39: 0
A40: PT03C | B40: Kfs | C40: PT03C_Kfs18 | E40: 64.52 | F40: -0.01 | G40: 19.39 | H40: -0.03 | I40: 0.02 | J40: 0.01 | K40: 0.02 | L40: 0.04 | M40: 2.31 | N40: 13.30 | O40: -0.01 | P40: -0.01 | Q40: 99.60 | S40: 11.86 | T40: 0.00 | U40: 4.20 | V40: 0.00 | W40: 0.00 | X40: 0.00 | Y40: 0.01 | Z40: 0.01 | AA40: 0.82 | AB40: 3.12 | AD40: 0.68 | AK40: 0.00 | AL40: 0.21 | AM40: 0.79 | AP40: 720-840 | AQ40: 4.5 | AR40: 700.0 | AS40: 3.8 | AU40: 700.0 | AW40: 652.0 | AY40: 1.21 | AZ40: 0.35 | BA40: 0 | BB40: 0 | BC40: 2.06E+04 | BD40: 2.40E+03 | BE40: 27 | BF40: 3.3 | BG40: 1.75E+05 | BH40: 1.60E+04 | BI40: 1060 | BJ40: 120 | BK40: 1.05E+05 | BL40: 1.10E+04 | BM40: 1010 | BN40: 230 | BO40: 0 | BP40: 0 | BQ40: 33.4 | BR40: 4.2 | BS40: 0 | BT40: 0 | BU40: 0 | BV40: 0 | BW40: 4.19 | BX40: 0.74 | BY40: 59.1 | BZ40: 8.9 | CA40: 0 | CB40: 0 | CC40: 0 | CD40: 0 | CE40: 0 | CF40: 0 | CG40: 0 | CH40: 0 | CI40: 15.1 | CJ40: 1.8 | CK40: 0 | CL40: 0 | CM40: 194 | CN40: 24 | CO40: 376 | CP40: 41 | CQ40: 0 | CR40: 0 | CS40: 0 | CT40: 0 | CU40: 0 | CV40: 0 | CW40: 0 | CX40: 0 | CY40: 0 | CZ40: 0 | DA40: 0 | DB40: 0 | DC40: 1.34 | DD40: 0.3 | DE40: 0 | DF40: 0 | DG40: 1.16 | DH40: 0.13 | DI40: 3500 | DJ40: 320 | DK40: 0.664 | DL40: 0.092 | DM40: 0.523 | DN40: 0.067 | DO40: 0 | DP40: 0 | DQ40: 0 | DR40: 0 | DS40: 0 | DT40: 0 | DU40: 2.97 | DV40: 0.43 | DW40: 0 | DX40: 0 | DY40: 0 | DZ40: 0 | EA40: 0 | EB40: 0 | EC40: 0 | ED40: 0 | EE40: 0 | EF40: 0 | EG40: 0 | EH40: 0 | EI40: 0 | EJ40: 0 | EK40: 0 | EL40: 0 | EM40: 0 | EN40: 0 | EO40: 0 | EP40: 0 | EQ40: 0 | ER40: 0 | ES40: 0.98 | ET40: 0.13 | EU40: 122 | EV40: 13 | EW40: 0 | EX40: 0 | EY40: 0 | EZ40: 0 | FA40: 0 | FB40: 0
A41: PT03C | B41: Kfs | C41: PT03C_Kfs19 | E41: 64.66 | F41: 0.01 | G41: 18.89 | H41: -0.02 | I41: 0.01 | J41: 0.00 | K41: 0.01 | L41: 0.03 | M41: 1.48 | N41: 14.22 | O41: 0.01 | P41: 0.00 | Q41: 99.33 | S41: 11.94 | T41: 0.00 | U41: 4.11 | V41: 0.00 | W41: 0.00 | X41: 0.00 | Y41: 0.00 | Z41: 0.01 | AA41: 0.53 | AB41: 3.35 | AD41: 0.55 | AK41: 0.00 | AL41: 0.14 | AM41: 0.86 | AP41: 720-840 | AQ41: 4.5 | AR41: 700.0 | AS41: 3.8 | AU41: 700.0 | AW41: 652.0 | AY41: 1.77 | AZ41: 0.3 | BA41: 0 | BB41: 0 | BC41: 1.98E+04 | BD41: 2.90E+03 | BE41: 32.2 | BF41: 4 | BG41: 1.59E+05 | BH41: 1.60E+04 | BI41: 1060 | BJ41: 110 | BK41: 1.03E+05 | BL41: 1.40E+04 | BM41: 1030 | BN41: 190 | BO41: 0 | BP41: 0 | BQ41: 41.7 | BR41: 5.5 | BS41: 0 | BT41: 0 | BU41: 0 | BV41: 0 | BW41: 4.27 | BX41: 0.59 | BY41: 79.7 | BZ41: 9.4 | CA41: 0 | CB41: 0 | CC41: 0 | CD41: 0 | CE41: 0 | CF41: 0 | CG41: 0 | CH41: 0 | CI41: 16 | CJ41: 2.4 | CK41: 0 | CL41: 0 | CM41: 169 | CN41: 21 | CO41: 424 | CP41: 43 | CQ41: 0 | CR41: 0 | CS41: 0 | CT41: 0 | CU41: 0 | CV41: 0 | CW41: 0 | CX41: 0 | CY41: 0 | CZ41: 0 | DA41: 0 | DB41: 0 | DC41: 1.23 | DD41: 0.26 | DE41: 0 | DF41: 0 | DG41: 1.01 | DH41: 0.12 | DI41: 2760 | DJ41: 270 | DK41: 0.584 | DL41: 0.091 | DM41: 0.482 | DN41: 0.078 | DO41: 0 | DP41: 0 | DQ41: 0 | DR41: 0 | DS41: 0 | DT41: 0 | DU41: 3.38 | DV41: 0.42 | DW41: 0 | DX41: 0 | DY41: 0 | DZ41: 0 | EA41: 0 | EB41: 0 | EC41: 0 | ED41: 0 | EE41: 0 | EF41: 0 | EG41: 0 | EH41: 0 | EI41: 0 | EJ41: 0 | EK41: 0 | EL41: 0 | EM41: 0 | EN41: 0 | EO41: 0 | EP41: 0 | EQ41: 0 | ER41: 0 | ES41: 0.77 | ET41: 0.11 | EU41: 136 | EV41: 13 | EW41: 0 | EX41: 0 | EY41: 0 | EZ41: 0 | FA41: 0 | FB41: 0
A42: PT03C | B42: Kfs | C42: PT03C_Kfs20 | E42: 64.62 | F42: 0.03 | G42: 19.18 | H42: -0.03 | I42: 0.05 | J42: -0.00 | K42: -0.01 | L42: 0.02 | M42: 1.81 | N42: 14.05 | O42: 0.03 | P42: 0.01 | Q42: 99.79 | S42: 11.88 | T42: 0.00 | U42: 4.16 | V42: 0.00 | W42: 0.01 | X42: -0.00 | Y42: 0.00 | Z42: 0.00 | AA42: 0.64 | AB42: 3.29 | AD42: 0.00 | AK42: 0.00 | AL42: 0.16 | AM42: 0.84 | AP42: 720-840 | AQ42: 4.5 | AR42: 700.0 | AS42: 3.8 | AU42: 700.0 | AW42: 652.0 | AY42: 1.33 | AZ42: 0.26 | BA42: 0 | BB42: 0 | BC42: 2.27E+04 | BD42: 2.40E+03 | BE42: 22.7 | BF42: 3 | BG42: 1.73E+05 | BH42: 1.80E+04 | BI42: 1030 | BJ42: 210 | BK42: 1.14E+05 | BL42: 1.80E+04 | BM42: 1030 | BN42: 370 | BO42: 0 | BP42: 0 | BQ42: 19.8 | BR42: 3.8 | BS42: 0 | BT42: 0 | BU42: 0 | BV42: 0 | BW42: 4.07 | BX42: 0.67 | BY42: 49.4 | BZ42: 5.4 | CA42: 0 | CB42: 0 | CC42: 0 | CD42: 0 | CE42: 0 | CF42: 0 | CG42: 0 | CH42: 0 | CI42: 10.9 | CJ42: 1.5 | CK42: 0 | CL42: 0 | CM42: 197 | CN42: 23 | CO42: 417 | CP42: 42 | CQ42: 0 | CR42: 0 | CS42: 0 | CT42: 0 | CU42: 0 | CV42: 0 | CW42: 0 | CX42: 0 | CY42: 0 | CZ42: 0 | DA42: 0 | DB42: 0 | DC42: 1.11 | DD42: 0.27 | DE42: 0 | DF42: 0 | DG42: 1 | DH42: 0.14 | DI42: 3910 | DJ42: 390 | DK42: 0.58 | DL42: 0.1 | DM42: 0.426 | DN42: 0.078 | DO42: 0 | DP42: 0 | DQ42: 0 | DR42: 0 | DS42: 0 | DT42: 0 | DU42: 3.17 | DV42: 0.46 | DW42: 0 | DX42: 0 | DY42: 0 | DZ42: 0 | EA42: 0 | EB42: 0 | EC42: 0 | ED42: 0 | EE42: 0 | EF42: 0 | EG42: 0 | EH42: 0 | EI42: 0 | EJ42: 0 | EK42: 0 | EL42: 0 | EM42: 0 | EN42: 0 | EO42: 0 | EP42: 0 | EQ42: 0 | ER42: 0 | ES42: 1.04 | ET42: 0.15 | EU42: 143 | EV42: 17 | EW42: 0 | EX42: 0 | EY42: 0 | EZ42: 0 | FA42: 0 | FB42: 0
A43: PT03C | B43: Kfs | C43: PT03C_Kfs21 | E43: 64.51 | F43: 0.01 | G43: 19.25 | H43: -0.02 | I43: 0.01 | J43: -0.00 | K43: -0.01 | L43: 0.03 | M43: 1.44 | N43: 14.13 | O43: -0.00 | P43: 0.00 | Q43: 99.39 | S43: 11.90 | T43: 0.00 | U43: 4.18 | V43: 0.00 | W43: 0.00 | X43: -0.00 | Y43: 0.00 | Z43: 0.01 | AA43: 0.52 | AB43: 3.33 | AD43: 0.00 | AK43: 0.00 | AL43: 0.13 | AM43: 0.86 | AP43: 720-840 | AQ43: 4.5 | AR43: 700.0 | AS43: 3.8 | AU43: 700.0 | AW43: 652.0 | AY43: 1.98 | AZ43: 0.38 | BA43: 0 | BB43: 0 | BC43: 2.42E+04 | BD43: 3.50E+03 | BE43: 30.8 | BF43: 3.9 | BG43: 1.70E+05 | BH43: 1.40E+04 | BI43: 840 | BJ43: 110 | BK43: 1.06E+05 | BL43: 1.30E+04 | BM43: 1350 | BN43: 420 | BO43: 0 | BP43: 0 | BQ43: 20.1 | BR43: 3.9 | BS43: 0 | BT43: 0 | BU43: 0 | BV43: 0 | BW43: 4.81 | BX43: 0.8 | BY43: 81.1 | BZ43: 9.7 | CA43: 0 | CB43: 0 | CC43: 0 | CD43: 0 | CE43: 0 | CF43: 0 | CG43: 0 | CH43: 0 | CI43: 10.2 | CJ43: 1.1 | CK43: 0 | CL43: 0 | CM43: 210 | CN43: 24 | CO43: 285 | CP43: 32 | CQ43: 0 | CR43: 0 | CS43: 0 | CT43: 0 | CU43: 0 | CV43: 0 | CW43: 0 | CX43: 0 | CY43: 0 | CZ43: 0 | DA43: 0 | DB43: 0 | DC43: 2.32 | DD43: 0.38 | DE43: 0 | DF43: 0 | DG43: 1.37 | DH43: 0.19 | DI43: 2480 | DJ43: 230 | DK43: 0.395 | DL43: 0.086 | DM43: 0.406 | DN43: 0.083 | DO43: 0 | DP43: 0 | DQ43: 0 | DR43: 0 | DS43: 0 | DT43: 0 | DU43: 2.44 | DV43: 0.38 | DW43: 0 | DX43: 0 | DY43: 0 | DZ43: 0 | EA43: 0 | EB43: 0 | EC43: 0 | ED43: 0 | EE43: 0 | EF43: 0 | EG43: 0 | EH43: 0 | EI43: 0 | EJ43: 0 | EK43: 0 | EL43: 0 | EM43: 0 | EN43: 0 | EO43: 0 | EP43: 0 | EQ43: 0 | ER43: 0 | ES43: 1.12 | ET43: 0.19 | EU43: 107 | EV43: 13 | EW43: 0 | EX43: 0 | EY43: 0 | EZ43: 0 | FA43: 0 | FB43: 0
A44: PT03C | B44: Kfs | C44: PT03C_Kfs22 | E44: 64.99 | F44: -0.00 | G44: 19.34 | H44: -0.02 | I44: 0.03 | J44: -0.00 | K44: -0.01 | L44: 0.11 | M44: 2.75 | N44: 12.79 | O44: 0.01 | P44: 0.01 | Q44: 100.03 | S44: 11.87 | T44: -0.00 | U44: 4.16 | V44: 0.00 | W44: 0.00 | X44: -0.00 | Y44: 0.00 | Z44: 0.02 | AA44: 0.97 | AB44: 2.98 | AD44: 0.00 | AK44: 0.01 | AL44: 0.24 | AM44: 0.75 | AP44: 720-840 | AQ44: 4.5 | AR44: 700.0 | AS44: 3.8 | AU44: 700.0 | AW44: 652.0 | AY44: 1.94 | AZ44: 0.43 | BA44: 0 | BB44: 0 | BC44: 1.64E+04 | BD44: 2.60E+03 | BE44: 53.6 | BF44: 8.1 | BG44: 1.65E+05 | BH44: 1.60E+04 | BI44: 1270 | BJ44: 150 | BK44: 1.32E+05 | BL44: 1.50E+04 | BM44: 2010 | BN44: 470 | BO44: 0 | BP44: 0 | BQ44: 31.8 | BR44: 5.4 | BS44: 0 | BT44: 0 | BU44: 0 | BV44: 0 | BW44: 6.56 | BX44: 0.71 | BY44: 108 | BZ44: 15 | CA44: 0 | CB44: 0 | CC44: 0 | CD44: 0 | CE44: 0 | CF44: 0 | CG44: 0 | CH44: 0 | CI44: 11.4 | CJ44: 1.3 | CK44: 0 | CL44: 0 | CM44: 238 | CN44: 31 | CO44: 291 | CP44: 33 | CQ44: 0 | CR44: 0 | CS44: 0 | CT44: 0 | CU44: 0 | CV44: 0 | CW44: 0 | CX44: 0 | CY44: 0 | CZ44: 0 | DA44: 0 | DB44: 0 | DC44: 3.76 | DD44: 0.59 | DE44: 0 | DF44: 0 | DG44: 1.41 | DH44: 0.15 | DI44: 2870 | DJ44: 300 | DK44: 0.502 | DL44: 0.093 | DM44: 0.407 | DN44: 0.068 | DO44: 0 | DP44: 0 | DQ44: 0 | DR44: 0 | DS44: 0 | DT44: 0 | DU44: 2.85 | DV44: 0.48 | DW44: 0 | DX44: 0 | DY44: 0 | DZ44: 0 | EA44: 0 | EB44: 0 | EC44: 0 | ED44: 0 | EE44: 0 | EF44: 0 | EG44: 0 | EH44: 0 | EI44: 0 | EJ44: 0 | EK44: 0 | EL44: 0 | EM44: 0 | EN44: 0 | EO44: 0 | EP44: 0 | EQ44: 0 | ER44: 0 | ES44: 1.15 | ET44: 0.21 | EU44: 93 | EV44: 10 | EW44: 0 | EX44: 0 | EY44: 0 | EZ44: 0 | FA44: 0 | FB44: 0
A45: PT03C | B45: Pl | C45: PT03C_Pl1 | E45: 62.43 | F45: 0.03 | G45: 24.47 | H45: 0.00 | I45: 0.02 | J45: 0.01 | K45: -0.03 | L45: 4.61 | M45: 8.84 | N45: 0.25 | O45: 0.03 | P45: -0.00 | Q45: 100.70 | S45: 10.98 | T45: 0.00 | U45: 5.07 | V45: 0.00 | W45: 0.00 | X45: 0.00 | Y45: 0.00 | Z45: 0.87 | AA45: 3.01 | AB45: 0.06 | AD45: 0.00 | AK45: 0.22 | AL45: 0.77 | AM45: 0.01 | AP45: 720-840 | AQ45: 4.5 | AR45: 700.0 | AS45: 3.8 | AU45: 700.0 | AW45: 652.0 | AY45: 52.6 | AZ45: 6.1 | BA45: 10.2 | BB45: 1.9 | BC45: 7.05E+04 | BD45: 3.90E+03 | BE45: 1.21E+04 | BF45: 1.70E+03 | BG45: 2.65E+05 | BH45: 8.10E+03 | BI45: 1550 | BJ45: 110 | BK45: 9410 | BL45: 590 | BM45: 3.76E+04 | BN45: 2.20E+03 | BO45: 1.36 | BP45: 0.39 | BQ45: 33.2 | BR45: 3.5 | BS45: 12.9 | BT45: 2 | BU45: 11 | BV45: 2.2 | BW45: 70.9 | BX45: 3.5 | BY45: 3.27E+04 | BZ45: 3.10E+03 | CA45: 1.79 | CB45: 0.38 | CC45: 11.4 | CD45: 2.4 | CE45: 28.8 | CF45: 3 | CG45: 36 | CH45: 5.9 | CI45: 33.4 | CJ45: 2.3 | CK45: 0 | CL45: 0 | CM45: 10.3 | CN45: 1.4 | CO45: 336 | CP45: 19 | CQ45: 6.64 | CR45: 0.7 | CS45: 7.9 | CT45: 1.2 | CU45: 0 | CV45: 0 | CW45: 1.35 | CX45: 0.38 | CY45: 0 | CZ45: 0 | DA45: 0 | DB45: 0 | DC45: 0.87 | DD45: 0.22 | DE45: 0 | DF45: 0 | DG45: 0.58 | DH45: 0.11 | DI45: 79.8 | DJ45: 5.5 | DK45: 5.81 | DL45: 0.39 | DM45: 9.22 | DN45: 0.76 | DO45: 1.35 | DP45: 0.16 | DQ45: 4.6 | DR45: 0.71 | DS45: 1.56 | DT45: 0.44 | DU45: 2.21 | DV45: 0.34 | DW45: 1.38 | DX45: 0.31 | DY45: 0 | DZ45: 0 | EA45: 1.67 | EB45: 0.31 | EC45: 0.257 | ED45: 0.051 | EE45: 0.63 | EF45: 0.18 | EG45: 0 | EH45: 0 | EI45: 0.47 | EJ45: 0.2 | EK45: 0 | EL45: 0 | EM45: 0 | EN45: 0 | EO45: 0 | EP45: 0 | EQ45: 0 | ER45: 0 | ES45: 0 | ET45: 0 | EU45: 43 | EV45: 3.2 | EW45: 0 | EX45: 0 | EY45: 0 | EZ45: 0 | FA45: 0.66 | FB45: 0.13
A46: PT03C | B46: Pl | C46: PT03C_Pl2 | E46: 63.81 | F46: 0.02 | G46: 23.37 | H46: 0.00 | I46: -0.01 | J46: -0.00 | K46: -0.01 | L46: 3.77 | M46: 9.03 | N46: 0.37 | O46: 0.00 | P46: -0.00 | Q46: 100.38 | S46: 11.22 | T46: 0.00 | U46: 4.84 | V46: 0.00 | W46: 0.00 | X46: -0.00 | Y46: 0.00 | Z46: 0.71 | AA46: 3.08 | AB46: 0.08 | AK46: 0.18 | AL46: 0.80 | AM46: 0.02 | AP46: 720-840 | AQ46: 4.5 | AR46: 700.0 | AS46: 3.8 | AU46: 700.0 | AW46: 652.0 | AY46: 0 | AZ46: 0 | BA46: 2.14 | BB46: 0.76 | BC46: 9.84E+04 | BD46: 9.80E+03 | BE46: 2.4 | BF46: 0.98 | BG46: 2.17E+05 | BH46: 1.20E+04 | BI46: 632 | BJ46: 35 | BK46: 2960 | BL46: 200 | BM46: 3.72E+04 | BN46: 2.70E+03 | BO46: 0 | BP46: 0 | BQ46: 13.2 | BR46: 2.6 | BS46: 0 | BT46: 0 | BU46: 0 | BV46: 0 | BW46: 33.3 | BX46: 2.2 | BY46: 41.3 | BZ46: 5.1 | CA46: 0 | CB46: 0 | CC46: 0 | CD46: 0 | CE46: 0 | CF46: 0 | CG46: 0 | CH46: 0 | CI46: 20.7 | CJ46: 1.6 | CK46: 0 | CL46: 0 | CM46: 0.5 | CN46: 0.16 | CO46: 336 | CP46: 20 | CQ46: 0.379 | CR46: 0.072 | CS46: 0 | CT46: 0 | CU46: 0 | CV46: 0 | CW46: 0 | CX46: 0 | CY46: 0 | CZ46: 0 | DA46: 0 | DB46: 0 | DC46: 1.01 | DD46: 0.2 | DE46: 0 | DF46: 0 | DG46: 0 | DH46: 0 | DI46: 72.8 | DJ46: 5.7 | DK46: 2.2 | DL46: 0.19 | DM46: 3.53 | DN46: 0.3 | DO46: 0.344 | DP46: 0.059 | DQ46: 1.11 | DR46: 0.26 | DS46: 0 | DT46: 0 | DU46: 1.88 | DV46: 0.2 | DW46: 0 | DX46: 0 | DY46: 0 | DZ46: 0 | EA46: 0 | EB46: 0 | EC46: 0 | ED46: 0 | EE46: 0 | EF46: 0 | EG46: 0 | EH46: 0 | EI46: 0 | EJ46: 0 | EK46: 0 | EL46: 0 | EM46: 0 | EN46: 0 | EO46: 0 | EP46: 0 | EQ46: 0 | ER46: 0 | ES46: 0 | ET46: 0 | EU46: 32.9 | EV46: 2.3 | EW46: 0 | EX46: 0 | EY46: 0 | EZ46: 0 | FA46: 0 | FB46: 0
A47: PT03C | B47: Pl | C47: PT03C_Pl3 | E47: 63.61 | F47: 0.02 | G47: 23.46 | H47: 0.01 | I47: -0.00 | J47: -0.01 | K47: -0.06 | L47: 3.93 | M47: 8.99 | N47: 0.42 | O47: -0.02 | P47: 0.01 | Q47: 100.44 | S47: 11.19 | T47: 0.00 | U47: 4.86 | V47: 0.00 | W47: -0.00 | X47: 0.00 | Y47: 0.00 | Z47: 0.74 | AA47: 3.06 | AB47: 0.09 | AD47: 0.00 | AK47: 0.19 | AL47: 0.79 | AM47: 0.02 | AP47: 720-840 | AQ47: 4.5 | AR47: 700.0 | AS47: 3.8 | AU47: 700.0 | AW47: 652.0 | AY47: 0 | AZ47: 0 | BA47: 3.6 | BB47: 0.98 | BC47: 8.97E+04 | BD47: 7.30E+03 | BE47: 2.97 | BF47: 0.97 | BG47: 2.12E+05 | BH47: 1.20E+04 | BI47: 570 | BJ47: 40 | BK47: 3240 | BL47: 280 | BM47: 3.71E+04 | BN47: 2.70E+03 | BO47: 0 | BP47: 0 | BQ47: 11.4 | BR47: 2.6 | BS47: 0 | BT47: 0 | BU47: 0 | BV47: 0 | BW47: 25.5 | BX47: 2.2 | BY47: 49.5 | BZ47: 5.2 | CA47: 0 | CB47: 0 | CC47: 0 | CD47: 0 | CE47: 0 | CF47: 0 | CG47: 0 | CH47: 0 | CI47: 16.7 | CJ47: 1.4 | CK47: 0 | CL47: 0 | CM47: 0.4 | CN47: 0.11 | CO47: 338 | CP47: 24 | CQ47: 0.303 | CR47: 0.08 | CS47: 0 | CT47: 0 | CU47: 0 | CV47: 0 | CW47: 0 | CX47: 0 | CY47: 0 | CZ47: 0 | DA47: 0 | DB47: 0 | DC47: 1.37 | DD47: 0.28 | DE47: 0 | DF47: 0 | DG47: 0 | DH47: 0 | DI47: 59.9 | DJ47: 3.5 | DK47: 2.2 | DL47: 0.17 | DM47: 3.33 | DN47: 0.27 | DO47: 0.289 | DP47: 0.046 | DQ47: 0.7 | DR47: 0.23 | DS47: 0 | DT47: 0 | DU47: 2.04 | DV47: 0.24 | DW47: 0 | DX47: 0 | DY47: 0 | DZ47: 0 | EA47: 0 | EB47: 0 | EC47: 0 | ED47: 0 | EE47: 0 | EF47: 0 | EG47: 0 | EH47: 0 | EI47: 0 | EJ47: 0 | EK47: 0 | EL47: 0 | EM47: 0 | EN47: 0 | EO47: 0 | EP47: 0 | EQ47: 0 | ER47: 0 | ES47: 0 | ET47: 0 | EU47: 32 | EV47: 2.2 | EW47: 0 | EX47: 0 | EY47: 0 | EZ47: 0 | FA47: 0 | FB47: 0
A48: PT03C | B48: Pl | C48: PT03C_Pl4 | E48: 63.47 | F48: 0.00 | G48: 23.54 | H48: -0.01 | I48: -0.00 | J48: 0.00 | K48: -0.03 | L48: 3.87 | M48: 9.04 | N48: 0.33 | O48: -0.01 | P48: -0.00 | Q48: 100.25 | S48: 11.18 | T48: 0.00 | U48: 4.89 | V48: 0.00 | W48: -0.00 | X48: 0.00 | Y48: 0.00 | Z48: 0.73 | AA48: 3.09 | AB48: 0.07 | AD48: 0.00 | AK48: 0.19 | AL48: 0.79 | AM48: 0.02 | AP48: 720-840 | AQ48: 4.5 | AR48: 700.0 | AS48: 3.8 | AU48: 700.0 | AW48: 652.0 | AY48: 0 | AZ48: 0 | BA48: 0 | BB48: 0 | BC48: 9.83E+04 | BD48: 7.00E+03 | BE48: 29.6 | BF48: 8.2 | BG48: 2.29E+05 | BH48: 1.40E+04 | BI48: 592 | BJ48: 31 | BK48: 2890 | BL48: 200 | BM48: 3.77E+04 | BN48: 2.60E+03 | BO48: 0 | BP48: 0 | BQ48: 16.1 | BR48: 2.9 | BS48: 0 | BT48: 0 | BU48: 0 | BV48: 0 | BW48: 32.4 | BX48: 2.7 | BY48: 87 | BZ48: 14 | CA48: 0 | CB48: 0 | CC48: 0 | CD48: 0 | CE48: 0 | CF48: 0 | CG48: 0 | CH48: 0 | CI48: 18.1 | CJ48: 1.7 | CK48: 0 | CL48: 0 | CM48: 0.63 | CN48: 0.18 | CO48: 348 | CP48: 22 | CQ48: 0.49 | CR48: 0.11 | CS48: 0 | CT48: 0 | CU48: 0 | CV48: 0 | CW48: 0 | CX48: 0 | CY48: 0 | CZ48: 0 | DA48: 0 | DB48: 0 | DC48: 0.62 | DD48: 0.17 | DE48: 0 | DF48: 0 | DG48: 0 | DH48: 0 | DI48: 64.7 | DJ48: 6 | DK48: 2.45 | DL48: 0.28 | DM48: 3.85 | DN48: 0.32 | DO48: 0.414 | DP48: 0.075 | DQ48: 0.86 | DR48: 0.22 | DS48: 0 | DT48: 0 | DU48: 2.04 | DV48: 0.26 | DW48: 0 | DX48: 0 | DY48: 0 | DZ48: 0 | EA48: 0 | EB48: 0 | EC48: 0 | ED48: 0 | EE48: 0 | EF48: 0 | EG48: 0 | EH48: 0 | EI48: 0 | EJ48: 0 | EK48: 0 | EL48: 0 | EM48: 0 | EN48: 0 | EO48: 0 | EP48: 0 | EQ48: 0 | ER48: 0 | ES48: 0 | ET48: 0 | EU48: 34.8 | EV48: 2.4 | EW48: 0 | EX48: 0 | EY48: 0 | EZ48: 0 | FA48: 0 | FB48: 0
A49: PT03C | B49: Pl | C49: PT03C_Pl5 | E49: 63.92 | F49: -0.01 | G49: 23.52 | H49: -0.01 | I49: 0.01 | J49: 0.00 | K49: -0.03 | L49: 3.69 | M49: 9.28 | N49: 0.32 | O49: 0.03 | P49: 0.01 | Q49: 100.77 | S49: 11.20 | T49: 0.00 | U49: 4.85 | V49: 0.00 | W49: 0.00 | X49: 0.00 | Y49: 0.00 | Z49: 0.69 | AA49: 3.15 | AB49: 0.07 | AD49: 0.00 | AK49: 0.18 | AL49: 0.80 | AM49: 0.02 | AP49: 720-840 | AQ49: 4.5 | AR49: 700.0 | AS49: 3.8 | AU49: 700.0 | AW49: 652.0 | AY49: 0 | AZ49: 0 | BA49: 1.03 | BB49: 0.44 | BC49: 9.35E+04 | BD49: 7.20E+03 | BE49: 5.5 | BF49: 1.7 | BG49: 2.18E+05 | BH49: 1.50E+04 | BI49: 578 | BJ49: 34 | BK49: 2560 | BL49: 200 | BM49: 3.43E+04 | BN49: 2.60E+03 | BO49: 0 | BP49: 0 | BQ49: 11.4 | BR49: 2.3 | BS49: 0 | BT49: 0 | BU49: 0 | BV49: 0 | BW49: 26.3 | BX49: 2 | BY49: 42.6 | BZ49: 4.8 | CA49: 0 | CB49: 0 | CC49: 0 | CD49: 0 | CE49: 0 | CF49: 0 | CG49: 0 | CH49: 0 | CI49: 16.8 | CJ49: 1.4 | CK49: 0 | CL49: 0 | CM49: 0.334 | CN49: 0.093 | CO49: 328 | CP49: 21 | CQ49: 0.43 | CR49: 0.1 | CS49: 0 | CT49: 0 | CU49: 0 | CV49: 0 | CW49: 0 | CX49: 0 | CY49: 0 | CZ49: 0 | DA49: 0 | DB49: 0 | DC49: 0.7 | DD49: 0.16 | DE49: 0 | DF49: 0 | DG49: 0 | DH49: 0 | DI49: 35 | DJ49: 2.9 | DK49: 2 | DL49: 0.15 | DM49: 3.22 | DN49: 0.25 | DO49: 0.302 | DP49: 0.061 | DQ49: 0.79 | DR49: 0.23 | DS49: 0 | DT49: 0 | DU49: 1.68 | DV49: 0.19 | DW49: 0 | DX49: 0 | DY49: 0 | DZ49: 0 | EA49: 0 | EB49: 0 | EC49: 0 | ED49: 0 | EE49: 0 | EF49: 0 | EG49: 0 | EH49: 0 | EI49: 0 | EJ49: 0 | EK49: 0 | EL49: 0 | EM49: 0 | EN49: 0 | EO49: 0 | EP49: 0 | EQ49: 0 | ER49: 0 | ES49: 0 | ET49: 0 | EU49: 30.9 | EV49: 1.9 | EW49: 0 | EX49: 0 | EY49: 0 | EZ49: 0 | FA49: 0 | FB49: 0
A50: PT03C | B50: Pl | C50: PT03C_Pl6 | E50: 62.70 | F50: -0.01 | G50: 23.89 | H50: -0.01 | I50: 0.01 | J50: 0.01 | K50: -0.02 | L50: 4.01 | M50: 9.12 | N50: 0.31 | O50: 0.01 | P50: -0.00 | Q50: 100.07 | S50: 11.08 | T50: 0.00 | U50: 4.98 | V50: 0.00 | W50: 0.00 | X50: 0.00 | Y50: 0.00 | Z50: 0.76 | AA50: 3.13 | AB50: 0.07 | AD50: 0.00 | AK50: 0.19 | AL50: 0.79 | AM50: 0.02 | AP50: 720-840 | AQ50: 4.5 | AR50: 700.0 | AS50: 3.8 | AU50: 700.0 | AW50: 652.0 | AY50: 0 | AZ50: 0 | BA50: 0 | BB50: 0 | BC50: 9.31E+04 | BD50: 6.10E+03 | BE50: 0 | BF50: 0 | BG50: 2.33E+05 | BH50: 1.20E+04 | BI50: 669 | BJ50: 47 | BK50: 2370 | BL50: 160 | BM50: 3.77E+04 | BN50: 2.60E+03 | BO50: 0 | BP50: 0 | BQ50: 18 | BR50: 3.3 | BS50: 0 | BT50: 0 | BU50: 0 | BV50: 0 | BW50: 26.7 | BX50: 2.5 | BY50: 45.4 | BZ50: 6.6 | CA50: 0 | CB50: 0 | CC50: 0 | CD50: 0 | CE50: 0 | CF50: 0 | CG50: 0 | CH50: 0 | CI50: 18.5 | CJ50: 1.2 | CK50: 2.3 | CL50: 0.98 | CM50: 0.47 | CN50: 0.16 | CO50: 355 | CP50: 21 | CQ50: 0.404 | CR50: 0.08 | CS50: 0 | CT50: 0 | CU50: 0 | CV50: 0 | CW50: 0 | CX50: 0 | CY50: 0 | CZ50: 0 | DA50: 0 | DB50: 0 | DC50: 0.68 | DD50: 0.16 | DE50: 0 | DF50: 0 | DG50: 0 | DH50: 0 | DI50: 52.1 | DJ50: 4.6 | DK50: 2.98 | DL50: 0.28 | DM50: 4.65 | DN50: 0.47 | DO50: 0.366 | DP50: 0.064 | DQ50: 1.34 | DR50: 0.37 | DS50: 0 | DT50: 0 | DU50: 1.95 | DV50: 0.28 | DW50: 0 | DX50: 0 | DY50: 0 | DZ50: 0 | EA50: 0 | EB50: 0 | EC50: 0 | ED50: 0 | EE50: 0 | EF50: 0 | EG50: 0 | EH50: 0 | EI50: 0 | EJ50: 0 | EK50: 0 | EL50: 0 | EM50: 0 | EN50: 0 | EO50: 0 | EP50: 0 | EQ50: 0 | ER50: 0 | ES50: 0 | ET50: 0 | EU50: 34 | EV50: 2.4 | EW50: 0 | EX50: 0 | EY50: 0 | EZ50: 0 | FA50: 0 | FB50: 0
A51: PT03C | B51: Pl | C51: PT03C_Pl7 | E51: 63.61 | F51: 0.01 | G51: 23.67 | H51: -0.00 | I51: 0.02 | J51: 0.01 | K51: -0.03 | L51: 3.93 | M51: 9.20 | N51: 0.32 | O51: 0.00 | P51: 0.00 | Q51: 100.77 | S51: 11.16 | T51: 0.00 | U51: 4.89 | V51: -0.00 | W51: 0.00 | X51: 0.00 | Y51: 0.00 | Z51: 0.74 | AA51: 3.13 | AB51: 0.07 | AD51: 0.00 | AK51: 0.19 | AL51: 0.79 | AM51: 0.02 | AP51: 720-840 | AQ51: 4.5 | AR51: 700.0 | AS51: 3.8 | AU51: 700.0 | AW51: 652.0 | AY51: 0 | AZ51: 0 | BA51: 2.4 | BB51: 1 | BC51: 9.47E+04 | BD51: 7.50E+03 | BE51: 0 | BF51: 0 | BG51: 2.27E+05 | BH51: 1.30E+04 | BI51: 617 | BJ51: 41 | BK51: 2720 | BL51: 160 | BM51: 3.97E+04 | BN51: 2.70E+03 | BO51: 0 | BP51: 0 | BQ51: 14.1 | BR51: 2.8 | BS51: 0 | BT51: 0 | BU51: 0 | BV51: 0 | BW51: 32.8 | BX51: 2.3 | BY51: 44.9 | BZ51: 5.1 | CA51: 0 | CB51: 0 | CC51: 0 | CD51: 0 | CE51: 0 | CF51: 0 | CG51: 0 | CH51: 0 | CI51: 19.3 | CJ51: 1.8 | CK51: 0 | CL51: 0 | CM51: 0.33 | CN51: 0.13 | CO51: 351 | CP51: 15 | CQ51: 0.409 | CR51: 0.081 | CS51: 0 | CT51: 0 | CU51: 0 | CV51: 0 | CW51: 0 | CX51: 0 | CY51: 0 | CZ51: 0 | DA51: 0 | DB51: 0 | DC51: 1.48 | DD51: 0.26 | DE51: 0 | DF51: 0 | DG51: 0 | DH51: 0 | DI51: 70 | DJ51: 5.1 | DK51: 2.46 | DL51: 0.24 | DM51: 3.73 | DN51: 0.37 | DO51: 0.277 | DP51: 0.052 | DQ51: 0.76 | DR51: 0.21 | DS51: 0 | DT51: 0 | DU51: 1.9 | DV51: 0.25 | DW51: 0 | DX51: 0 | DY51: 0 | DZ51: 0 | EA51: 0 | EB51: 0 | EC51: 0 | ED51: 0 | EE51: 0 | EF51: 0 | EG51: 0 | EH51: 0 | EI51: 0 | EJ51: 0 | EK51: 0 | EL51: 0 | EM51: 0 | EN51: 0 | EO51: 0 | EP51: 0 | EQ51: 0 | ER51: 0 | ES51: 0 | ET51: 0 | EU51: 33.6 | EV51: 2.5 | EW51: 0 | EX51: 0 | EY51: 0 | EZ51: 0 | FA51: 0 | FB51: 0
A52: PT03C | B52: Pl | C52: PT03C_Pl23 | E52: 63.83 | F52: 0.00 | G52: 23.36 | H52: 0.00 | I52: 0.01 | J52: 0.00 | K52: -0.02 | L52: 4.05 | M52: 8.98 | N52: 0.35 | O52: 0.02 | P52: 0.00 | Q52: 100.62 | S52: 11.20 | T52: 0.00 | U52: 4.83 | V52: 0.00 | W52: 0.00 | X52: 0.00 | Y52: 0.00 | Z52: 0.76 | AA52: 3.06 | AB52: 0.08 | AD52: 0.00 | AK52: 0.20 | AL52: 0.78 | AM52: 0.02 | AP52: 720-840 | AQ52: 4.5 | AR52: 700.0 | AS52: 3.8 | AU52: 700.0 | AW52: 652.0 | AY52: 0 | AZ52: 0 | BA52: 0 | BB52: 0 | BC52: 9.17E+04 | BD52: 9.30E+03 | BE52: 0 | BF52: 0 | BG52: 2.27E+05 | BH52: 1.60E+04 | BI52: 581 | BJ52: 42 | BK52: 2910 | BL52: 240 | BM52: 3.77E+04 | BN52: 3.10E+03 | BO52: 0 | BP52: 0 | BQ52: 16.8 | BR52: 4.2 | BS52: 0 | BT52: 0 | BU52: 0 | BV52: 0 | BW52: 27.6 | BX52: 2.4 | BY52: 43.5 | BZ52: 5.6 | CA52: 0 | CB52: 0 | CC52: 0 | CD52: 0 | CE52: 0 | CF52: 0 | CG52: 0 | CH52: 0 | CI52: 19.2 | CJ52: 1.9 | CK52: 0 | CL52: 0 | CM52: 0.35 | CN52: 0.11 | CO52: 329 | CP52: 24 | CQ52: 0.46 | CR52: 0.1 | CS52: 0 | CT52: 0 | CU52: 0 | CV52: 0 | CW52: 0 | CX52: 0 | CY52: 0 | CZ52: 0 | DA52: 0 | DB52: 0 | DC52: 1.23 | DD52: 0.26 | DE52: 0 | DF52: 0 | DG52: 0 | DH52: 0 | DI52: 71.7 | DJ52: 6.4 | DK52: 2.77 | DL52: 0.3 | DM52: 4.45 | DN52: 0.34 | DO52: 0.397 | DP52: 0.052 | DQ52: 1.34 | DR52: 0.32 | DS52: 0 | DT52: 0 | DU52: 2.15 | DV52: 0.25 | DW52: 0 | DX52: 0 | DY52: 0 | DZ52: 0 | EA52: 0 | EB52: 0 | EC52: 0 | ED52: 0 | EE52: 0 | EF52: 0 | EG52: 0 | EH52: 0 | EI52: 0 | EJ52: 0 | EK52: 0 | EL52: 0 | EM52: 0 | EN52: 0 | EO52: 0 | EP52: 0 | EQ52: 0 | ER52: 0 | ES52: 0 | ET52: 0 | EU52: 33.6 | EV52: 2.9 | EW52: 0 | EX52: 0 | EY52: 0 | EZ52: 0 | FA52: 0 | FB52: 0
A53: PT03C | B53: Pl | C53: PT03C_Pl24 | E53: 63.65 | F53: -0.00 | G53: 23.63 | H53: 0.00 | I53: 0.00 | J53: 0.00 | K53: -0.03 | L53: 4.01 | M53: 9.09 | N53: 0.46 | O53: 0.04 | P53: 0.00 | Q53: 100.89 | S53: 11.15 | T53: -0.00 | U53: 4.88 | V53: 0.00 | W53: 0.00 | X53: 0.00 | Y53: 0.00 | Z53: 0.75 | AA53: 3.09 | AB53: 0.10 | AD53: 0.00 | AK53: 0.19 | AL53: 0.78 | AM53: 0.03 | AP53: 720-840 | AQ53: 4.5 | AR53: 700.0 | AS53: 3.8 | AU53: 700.0 | AW53: 652.0 | AY53: 0 | AZ53: 0 | BA53: 3.32 | BB53: 0.97 | BC53: 9.34E+04 | BD53: 7.70E+03 | BE53: 2.61 | BF53: 0.73 | BG53: 2.30E+05 | BH53: 2.00E+04 | BI53: 560 | BJ53: 44 | BK53: 3090 | BL53: 260 | BM53: 4.07E+04 | BN53: 4.00E+03 | BO53: 0 | BP53: 0 | BQ53: 15.7 | BR53: 3.2 | BS53: 0 | BT53: 0 | BU53: 0 | BV53: 0 | BW53: 34.4 | BX53: 3.5 | BY53: 47.2 | BZ53: 5.6 | CA53: 0 | CB53: 0 | CC53: 0 | CD53: 0 | CE53: 0 | CF53: 0 | CG53: 0 | CH53: 0 | CI53: 20 | CJ53: 2.5 | CK53: 0 | CL53: 0 | CM53: 0.56 | CN53: 0.12 | CO53: 344 | CP53: 29 | CQ53: 0.324 | CR53: 0.075 | CS53: 0 | CT53: 0 | CU53: 0 | CV53: 0 | CW53: 0 | CX53: 0 | CY53: 0 | CZ53: 0 | DA53: 0 | DB53: 0 | DC53: 0.98 | DD53: 0.2 | DE53: 0 | DF53: 0 | DG53: 0 | DH53: 0 | DI53: 80.6 | DJ53: 7.1 | DK53: 2.58 | DL53: 0.24 | DM53: 3.84 | DN53: 0.38 | DO53: 0.33 | DP53: 0.052 | DQ53: 1.28 | DR53: 0.32 | DS53: 0 | DT53: 0 | DU53: 2.21 | DV53: 0.26 | DW53: 0 | DX53: 0 | DY53: 0 | DZ53: 0 | EA53: 0 | EB53: 0 | EC53: 0 | ED53: 0 | EE53: 0 | EF53: 0 | EG53: 0 | EH53: 0 | EI53: 0 | EJ53: 0 | EK53: 0 | EL53: 0 | EM53: 0 | EN53: 0 | EO53: 0 | EP53: 0 | EQ53: 0 | ER53: 0 | ES53: 0 | ET53: 0 | EU53: 35.3 | EV53: 3.4 | EW53: 0 | EX53: 0 | EY53: 0 | EZ53: 0 | FA53: 0 | FB53: 0
A54: PT03C | B54: Pl | C54: PT03C_Pl25 | E54: 63.35 | F54: -0.01 | G54: 23.68 | H54: -0.00 | I54: -0.00 | J54: 0.00 | K54: -0.04 | L54: 3.83 | M54: 9.18 | N54: 0.41 | O54: -0.03 | P54: 0.00 | Q54: 100.44 | S54: 11.15 | T54: 0.00 | U54: 4.91 | V54: -0.00 | W54: -0.00 | X54: 0.00 | Y54: 0.00 | Z54: 0.72 | AA54: 3.13 | AB54: 0.09 | AD54: 0.00 | AK54: 0.18 | AL54: 0.79 | AM54: 0.02 | AP54: 720-840 | AQ54: 4.5 | AR54: 700.0 | AS54: 3.8 | AU54: 700.0 | AW54: 652.0 | AY54: 0 | AZ54: 0 | BA54: 2.46 | BB54: 0.73 | BC54: 9.14E+04 | BD54: 6.90E+03 | BE54: 0 | BF54: 0 | BG54: 2.22E+05 | BH54: 1.60E+04 | BI54: 697 | BJ54: 64 | BK54: 3090 | BL54: 220 | BM54: 3.74E+04 | BN54: 3.00E+03 | BO54: 0 | BP54: 0 | BQ54: 15.9 | BR54: 3.2 | BS54: 0 | BT54: 0 | BU54: 0 | BV54: 0 | BW54: 31.4 | BX54: 1.9 | BY54: 42.8 | BZ54: 4.5 | CA54: 0 | CB54: 0 | CC54: 0 | CD54: 0 | CE54: 0 | CF54: 0 | CG54: 0 | CH54: 0 | CI54: 20.2 | CJ54: 2.1 | CK54: 0 | CL54: 0 | CM54: 0.59 | CN54: 0.11 | CO54: 339 | CP54: 30 | CQ54: 0.46 | CR54: 0.1 | CS54: 0 | CT54: 0 | CU54: 0 | CV54: 0 | CW54: 0 | CX54: 0 | CY54: 0 | CZ54: 0 | DA54: 0 | DB54: 0 | DC54: 1.06 | DD54: 0.24 | DE54: 0 | DF54: 0 | DG54: 0 | DH54: 0 | DI54: 79.7 | DJ54: 5.5 | DK54: 3.13 | DL54: 0.26 | DM54: 4.49 | DN54: 0.35 | DO54: 0.426 | DP54: 0.069 | DQ54: 1.17 | DR54: 0.19 | DS54: 0 | DT54: 0 | DU54: 2.37 | DV54: 0.29 | DW54: 0 | DX54: 0 | DY54: 0 | DZ54: 0 | EA54: 0 | EB54: 0 | EC54: 0 | ED54: 0 | EE54: 0 | EF54: 0 | EG54: 0 | EH54: 0 | EI54: 0 | EJ54: 0 | EK54: 0 | EL54: 0 | EM54: 0 | EN54: 0 | EO54: 0 | EP54: 0 | EQ54: 0 | ER54: 0 | ES54: 0 | ET54: 0 | EU54: 33.7 | EV54: 3 | EW54: 0 | EX54: 0 | EY54: 0 | EZ54: 0 | FA54: 0 | FB54: 0
A55: PT03C | B55: Pl | C55: PT03C_Pl26 | E55: 63.50 | F55: 0.00 | G55: 23.51 | H55: -0.00 | I55: 0.01 | J55: -0.00 | K55: -0.02 | L55: 3.96 | M55: 9.11 | N55: 0.41 | O55: 0.01 | P55: 0.01 | Q55: 100.52 | S55: 11.17 | T55: 0.00 | U55: 4.87 | V55: -0.00 | W55: 0.00 | X55: -0.00 | Y55: 0.00 | Z55: 0.75 | AA55: 3.11 | AB55: 0.09 | AD55: 0.00 | AK55: 0.19 | AL55: 0.79 | AM55: 0.02 | AP55: 720-840 | AQ55: 4.5 | AR55: 700.0 | AS55: 3.8 | AU55: 700.0 | AW55: 652.0 | AY55: 0 | AZ55: 0 | BA55: 0 | BB55: 0 | BC55: 1.04E+05 | BD55: 2.30E+04 | BE55: 0 | BF55: 0 | BG55: 2.35E+05 | BH55: 2.70E+04 | BI55: 555 | BJ55: 74 | BK55: 3010 | BL55: 480 | BM55: 4.35E+04 | BN55: 6.00E+03 | BO55: 0 | BP55: 0 | BQ55: 16.8 | BR55: 5.2 | BS55: 0 | BT55: 0 | BU55: 0 | BV55: 0 | BW55: 39.9 | BX55: 7.6 | BY55: 59 | BZ55: 14 | CA55: 0 | CB55: 0 | CC55: 0 | CD55: 0 | CE55: 0 | CF55: 0 | CG55: 0 | CH55: 0 | CI55: 19.4 | CJ55: 2.9 | CK55: 0 | CL55: 0 | CM55: 0 | CN55: 0 | CO55: 356 | CP55: 50 | CQ55: 0 | CR55: 0 | CS55: 0 | CT55: 0 | CU55: 0 | CV55: 0 | CW55: 0 | CX55: 0 | CY55: 0 | CZ55: 0 | DA55: 0 | DB55: 0 | DC55: 0.63 | DD55: 0.23 | DE55: 0 | DF55: 0 | DG55: 0 | DH55: 0 | DI55: 80 | DJ55: 12 | DK55: 2.6 | DL55: 0.44 | DM55: 3.45 | DN55: 0.48 | DO55: 0.354 | DP55: 0.097 | DQ55: 0 | DR55: 0 | DS55: 0 | DT55: 0 | DU55: 2.04 | DV55: 0.47 | DW55: 0 | DX55: 0 | DY55: 0 | DZ55: 0 | EA55: 0 | EB55: 0 | EC55: 0 | ED55: 0 | EE55: 0 | EF55: 0 | EG55: 0 | EH55: 0 | EI55: 0 | EJ55: 0 | EK55: 0 | EL55: 0 | EM55: 0 | EN55: 0 | EO55: 0 | EP55: 0 | EQ55: 0 | ER55: 0 | ES55: 0 | ET55: 0 | EU55: 37.5 | EV55: 4.6 | EW55: 0 | EX55: 0 | EY55: 0 | EZ55: 0 | FA55: 0 | FB55: 0
A56: PT03C | B56: Pl | C56: PT03C_Pl27 | E56: 63.99 | F56: -0.01 | G56: 23.16 | H56: -0.01 | I56: 0.02 | J56: -0.01 | K56: -0.02 | L56: 3.31 | M56: 9.65 | N56: 0.21 | O56: 0.04 | P56: 0.00 | Q56: 100.38 | S56: 11.25 | T56: 0.00 | U56: 4.80 | V56: 0.00 | W56: 0.00 | X56: 0.00 | Y56: 0.00 | Z56: 0.62 | AA56: 3.29 | AB56: 0.05 | AD56: 0.00 | AK56: 0.16 | AL56: 0.83 | AM56: 0.01 | AP56: 720-840 | AQ56: 4.5 | AR56: 700.0 | AS56: 3.8 | AU56: 700.0 | AW56: 652.0 | AY56: 0 | AZ56: 0 | BA56: 0 | BB56: 0 | BC56: 7.53E+04 | BD56: 7.60E+03 | BE56: 37.6 | BF56: 6.8 | BG56: 1.86E+05 | BH56: 1.80E+04 | BI56: 1028 | BJ56: 83 | BK56: 828 | BL56: 78 | BM56: 2.82E+04 | BN56: 2.60E+03 | BO56: 0 | BP56: 0 | BQ56: 18.9 | BR56: 3.1 | BS56: 0 | BT56: 0 | BU56: 0 | BV56: 0 | BW56: 25.5 | BX56: 1.8 | BY56: 420 | BZ56: 79 | CA56: 0 | CB56: 0 | CC56: 0 | CD56: 0 | CE56: 0 | CF56: 0 | CG56: 1.97 | CH56: 0.75 | CI56: 15.4 | CJ56: 1.7 | CK56: 0 | CL56: 0 | CM56: 0 | CN56: 0 | CO56: 489 | CP56: 34 | CQ56: 0 | CR56: 0 | CS56: 0 | CT56: 0 | CU56: 0 | CV56: 0 | CW56: 0 | CX56: 0 | CY56: 0 | CZ56: 0 | DA56: 0 | DB56: 0 | DC56: 0 | DD56: 0 | DE56: 0 | DF56: 0 | DG56: 0 | DH56: 0 | DI56: 92 | DJ56: 8.3 | DK56: 38 | DL56: 62 | DM56: 2.13 | DN56: 0.22 | DO56: 0.231 | DP56: 0.048 | DQ56: 0 | DR56: 0 | DS56: 0 | DT56: 0 | DU56: 2.44 | DV56: 0.27 | DW56: 0 | DX56: 0 | DY56: 0 | DZ56: 0 | EA56: 0 | EB56: 0 | EC56: 0 | ED56: 0 | EE56: 0 | EF56: 0 | EG56: 0 | EH56: 0 | EI56: 0 | EJ56: 0 | EK56: 0 | EL56: 0 | EM56: 0 | EN56: 0 | EO56: 0 | EP56: 0 | EQ56: 0 | ER56: 0 | ES56: 0 | ET56: 0 | EU56: 46.8 | EV56: 3.3 | EW56: 0 | EX56: 0 | EY56: 0 | EZ56: 0 | FA56: 0 | FB56: 0
A57: PT03C | B57: Pl | C57: PT03C_Pl28 | E57: 62.20 | F57: -0.00 | G57: 23.81 | H57: -0.00 | I57: 0.22 | J57: 0.01 | K57: 0.03 | L57: 3.88 | M57: 8.71 | N57: 0.35 | O57: 0.03 | P57: 0.00 | Q57: 99.25 | S57: 11.08 | T57: -0.00 | U57: 5.00 | V57: -0.00 | W57: 0.03 | X57: 0.00 | Y57: 0.01 | Z57: 0.74 | AA57: 3.01 | AB57: 0.08 | AD57: 0.21 | AK57: 0.19 | AL57: 0.79 | AM57: 0.02 | AP57: 720-840 | AQ57: 4.5 | AR57: 700.0 | AS57: 3.8 | AU57: 700.0 | AW57: 652.0 | AY57: 0 | AZ57: 0 | BA57: 0 | BB57: 0 | BC57: 8.68E+04 | BD57: 6.70E+03 | BE57: 3.35 | BF57: 0.87 | BG57: 2.32E+05 | BH57: 1.30E+04 | BI57: 632 | BJ57: 46 | BK57: 2490 | BL57: 170 | BM57: 3.89E+04 | BN57: 2.90E+03 | BO57: 0 | BP57: 0 | BQ57: 17.3 | BR57: 2.9 | BS57: 0 | BT57: 0 | BU57: 0 | BV57: 0 | BW57: 38 | BX57: 2.9 | BY57: 42.7 | BZ57: 4.6 | CA57: 0 | CB57: 0 | CC57: 0 | CD57: 0 | CE57: 0 | CF57: 0 | CG57: 0 | CH57: 0 | CI57: 21.3 | CJ57: 1.2 | CK57: 0 | CL57: 0 | CM57: 0 | CN57: 0 | CO57: 370 | CP57: 24 | CQ57: 0.412 | CR57: 0.094 | CS57: 0 | CT57: 0 | CU57: 0 | CV57: 0 | CW57: 0 | CX57: 0 | CY57: 0 | CZ57: 0 | DA57: 0 | DB57: 0 | DC57: 0.51 | DD57: 0.15 | DE57: 0 | DF57: 0 | DG57: 0 | DH57: 0 | DI57: 63.1 | DJ57: 4.5 | DK57: 3.09 | DL57: 0.25 | DM57: 4.76 | DN57: 0.37 | DO57: 0.41 | DP57: 0.064 | DQ57: 1.46 | DR57: 0.33 | DS57: 0 | DT57: 0 | DU57: 2.15 | DV57: 0.26 | DW57: 0 | DX57: 0 | DY57: 0 | DZ57: 0 | EA57: 0 | EB57: 0 | EC57: 0 | ED57: 0 | EE57: 0 | EF57: 0 | EG57: 0 | EH57: 0 | EI57: 0 | EJ57: 0 | EK57: 0 | EL57: 0 | EM57: 0 | EN57: 0 | EO57: 0 | EP57: 0 | EQ57: 0 | ER57: 0 | ES57: 0 | ET57: 0 | EU57: 38.7 | EV57: 2.7 | EW57: 0 | EX57: 0 | EY57: 0 | EZ57: 0 | FA57: 0 | FB57: 0
A58: PT03C | B58: Pl | C58: PT03C_Pl29 | E58: 63.65 | F58: -0.01 | G58: 23.39 | H58: -0.01 | I58: -0.01 | J58: 0.01 | K58: -0.01 | L58: 3.87 | M58: 9.27 | N58: 0.35 | O58: -0.10 | P58: 0.00 | Q58: 100.55 | S58: 11.19 | T58: 0.00 | U58: 4.85 | V58: 0.00 | W58: 0.00 | X58: 0.00 | Y58: 0.00 | Z58: 0.73 | AA58: 3.16 | AB58: 0.08 | AK58: 0.18 | AL58: 0.80 | AM58: 0.02 | AP58: 720-840 | AQ58: 4.5 | AR58: 700.0 | AS58: 3.8 | AU58: 700.0 | AW58: 652.0 | AY58: 0.8 | AZ58: 0.3 | BA58: 0 | BB58: 0 | BC58: 9.50E+04 | BD58: 1.50E+04 | BE58: 80 | BF58: 11 | BG58: 2.00E+05 | BH58: 2.20E+04 | BI58: 560 | BJ58: 77 | BK58: 2700 | BL58: 330 | BM58: 3.67E+04 | BN58: 4.40E+03 | BO58: 0 | BP58: 0 | BQ58: 15.6 | BR58: 3.6 | BS58: 0 | BT58: 0 | BU58: 0 | BV58: 0 | BW58: 34.2 | BX58: 6 | BY58: 262 | BZ58: 44 | CA58: 0 | CB58: 0 | CC58: 0 | CD58: 0 | CE58: 3.9 | CF58: 1.2 | CG58: 0 | CH58: 0 | CI58: 19.1 | CJ58: 2.8 | CK58: 0 | CL58: 0 | CM58: 0.38 | CN58: 0.13 | CO58: 328 | CP58: 41 | CQ58: 0.44 | CR58: 0.14 | CS58: 0 | CT58: 0 | CU58: 0 | CV58: 0 | CW58: 0 | CX58: 0 | CY58: 0 | CZ58: 0 | DA58: 0 | DB58: 0 | DC58: 0.7 | DD58: 0.27 | DE58: 0 | DF58: 0 | DG58: 0 | DH58: 0 | DI58: 72 | DJ58: 10 | DK58: 2.42 | DL58: 0.36 | DM58: 4.14 | DN58: 0.54 | DO58: 0.368 | DP58: 0.093 | DQ58: 0.82 | DR58: 0.3 | DS58: 0 | DT58: 0 | DU58: 1.71 | DV58: 0.31 | DW58: 0 | DX58: 0 | DY58: 0 | DZ58: 0 | EA58: 0 | EB58: 0 | EC58: 0 | ED58: 0 | EE58: 0 | EF58: 0 | EG58: 0 | EH58: 0 | EI58: 0 | EJ58: 0 | EK58: 0 | EL58: 0 | EM58: 0 | EN58: 0 | EO58: 0 | EP58: 0 | EQ58: 0 | ER58: 0 | ES58: 0 | ET58: 0 | EU58: 33.3 | EV58: 4.4 | EW58: 0 | EX58: 0 | EY58: 0 | EZ58: 0 | FA58: 0 | FB58: 0
A59: PT03C | B59: Pl | C59: PT03C_Pl30 | E59: 63.36 | F59: 0.01 | G59: 23.62 | H59: 0.01 | I59: 0.01 | J59: 0.01 | K59: -0.02 | L59: 3.94 | M59: 9.23 | N59: 0.26 | O59: 0.04 | P59: -0.00 | Q59: 100.49 | S59: 11.14 | T59: 0.00 | U59: 4.90 | V59: 0.00 | W59: 0.00 | X59: 0.00 | Y59: 0.00 | Z59: 0.74 | AA59: 3.15 | AB59: 0.06 | AD59: 0.00 | AK59: 0.19 | AL59: 0.80 | AM59: 0.01 | AP59: 720-840 | AQ59: 4.5 | AR59: 700.0 | AS59: 3.8 | AU59: 700.0 | AW59: 652.0 | AY59: 0 | AZ59: 0 | BA59: 0 | BB59: 0 | BC59: 9.80E+04 | BD59: 1.10E+04 | BE59: 0 | BF59: 0 | BG59: 2.46E+05 | BH59: 2.30E+04 | BI59: 810 | BJ59: 120 | BK59: 2300 | BL59: 380 | BM59: 5.20E+04 | BN59: 1.00E+04 | BO59: 0 | BP59: 0 | BQ59: 24.9 | BR59: 7.6 | BS59: 0 | BT59: 0 | BU59: 0 | BV59: 0 | BW59: 35.9 | BX59: 5.1 | BY59: 0 | BZ59: 0 | CA59: 0 | CB59: 0 | CC59: 0 | CD59: 0 | CE59: 0 | CF59: 0 | CG59: 0 | CH59: 0 | CI59: 22.7 | CJ59: 4.2 | CK59: 0 | CL59: 0 | CM59: 0 | CN59: 0 | CO59: 395 | CP59: 72 | CQ59: 0.34 | CR59: 0.18 | CS59: 0 | CT59: 0 | CU59: 0 | CV59: 0 | CW59: 0 | CX59: 0 | CY59: 0 | CZ59: 0 | DA59: 0 | DB59: 0 | DC59: 0 | DD59: 0 | DE59: 0 | DF59: 0 | DG59: 0 | DH59: 0 | DI59: 57 | DJ59: 10 | DK59: 3.46 | DL59: 0.45 | DM59: 5.7 | DN59: 1 | DO59: 0.52 | DP59: 0.15 | DQ59: 2.02 | DR59: 0.7 | DS59: 0 | DT59: 0 | DU59: 2.16 | DV59: 0.54 | DW59: 0 | DX59: 0 | DY59: 0 | DZ59: 0 | EA59: 0 | EB59: 0 | EC59: 0 | ED59: 0 | EE59: 0 | EF59: 0 | EG59: 0 | EH59: 0 | EI59: 0 | EJ59: 0 | EK59: 0 | EL59: 0 | EM59: 0 | EN59: 0 | EO59: 0 | EP59: 0 | EQ59: 0 | ER59: 0 | ES59: 0 | ET59: 0 | EU59: 38.5 | EV59: 6 | EW59: 0 | EX59: 0 | EY59: 0 | EZ59: 0 | FA59: 0 | FB59: 0
A60: CZ03 | B60: Bt | C60: CZ3_4 | E60: 32.59 | F60: 4.43 | G60: 19.18 | H60: 0.07 | I60: 20.08 | J60: 0.12 | K60: 7.89 | M60: 0.18 | N60: 9.54 | O60: 0.16 | P60: 0.03 | Q60: 94.28 | S60: 2.54 | T60: 0.26 | U60: 1.76 | V60: 0.00 | W60: 1.31 | X60: 0.01 | Y60: 0.92 | Z60: 0.00 | AA60: 0.03 | AB60: 0.95 | AD60: 0.41 | AN60: =W60/(W60+Y60) -> 0.59 | AP60: 730 | AQ60: 6 | AR60: 752 | AS60: 4.1 | AU60: 752 | AV60: 726 | AW60: 692 | AY60: 92.2 | AZ60: 4.3 | BA60: 0.0 | BB60: 0.0 | BC60: 1638.0 | BD60: 87.0 | BE60: 72000.0 | BF60: 2300.0 | BG60: 166500.0 | BH60: 7100.0 | BI60: 109.8 | BJ60: 8.6 | BK60: 80300.0 | BL60: 4500.0 | BM60: 0.0 | BN60: 0.0 | BO60: 71.6 | BP60: 4.0 | BQ60: 23800.0 | BR60: 1300.0 | BS60: 518.0 | BT60: 32.0 | BU60: 454.0 | BV60: 25.0 | BW60: 794.0 | BX60: 30.0 | BY60: 185600.0 | BZ60: 8500.0 | CA60: 27.4 | CB60: 1.3 | CC60: 30.8 | CD60: 1.6 | CE60: 0.0 | CF60: 0.0 | CG60: 576.0 | CH60: 32.0 | CI60: 49.3 | CJ60: 3.0 | CK60: 2.3 | CL60: 0.4 | CM60: 672.0 | CN60: 45.0 | CO60: 1.5 | CP60: 0.1 | CQ60: 0.0 | CR60: 0.0 | CS60: 0.4 | CT60: 0.1 | CU60: 73.7 | CV60: 3.4 | CW60: 0.0 | CX60: 0.0 | CY60: 0.0 | CZ60: 0.0 | DA60: 0.4 | DB60: 0.1 | DC60: 11.8 | DD60: 0.9 | DE60: 0.0 | DF60: 0.0 | DG60: 20.0 | DH60: 1.1 | DI60: 692.0 | DJ60: 26.0 | DK60: 0.0 | DL60: 0.0 | DM60: 0.0 | DN60: 0.0 | DO60: 0.0 | DP60: 0.0 | DQ60: 0.0 | DR60: 0.0 | DS60: 0.0 | DT60: 0.0 | DU60: 0.0 | DV60: 0.0 | DW60: 0.0 | DX60: 0.0 | DY60: 0.0 | DZ60: 0.0 | EA60: 0.0 | EB60: 0.0 | EC60: 0.0 | ED60: 0.0 | EE60: 0.0 | EF60: 0.0 | EG60: 0.0 | EH60: 0.0 | EI60: 0.0 | EJ60: 0.0 | EK60: 0.0 | EL60: 0.0 | EM60: 0.0 | EN60: 0.0 | EO60: 3.3 | EP60: 0.2 | EQ60: 5.2 | ER60: 0.3 | ES60: 4.5 | ET60: 0.3 | EU60: 3.1 | EV60: 0.2 | EW60: 0.0 | EX60: 0.0 | EY60: 0.0 | EZ60: 0.0 | FA60: 0.0 | FB60: 0.0
A61: CZ03 | B61: Bt | C61: CZ3_6 | E61: 32.10 | F61: 3.95 | G61: 20.03 | H61: 0.06 | I61: 19.88 | J61: 0.09 | K61: 8.57 | L61: 0.01 | M61: 0.25 | N61: 9.46 | O61: 0.23 | P61: 0.05 | Q61: 94.69 | S61: 2.48 | T61: 0.23 | U61: 1.83 | V61: 0.00 | W61: 1.29 | X61: 0.01 | Y61: 0.99 | Z61: 0.00 | AA61: 0.04 | AB61: 0.93 | AD61: 0.43 | AN61: 0.57 | AP61: 730 | AQ61: 6 | AR61: 752 | AS61: 4.1 | AU61: 752 | AV61: 690 | AW61: 692 | AY61: 149.6 | AZ61: 5.9 | BA61: 0.0 | BB61: 0.0 | BC61: 2540.0 | BD61: 140.0 | BE61: 77000.0 | BF61: 3600.0 | BG61: 165700.0 | BH61: 8300.0 | BI61: 95.8 | BJ61: 6.8 | BK61: 71200.0 | BL61: 3600.0 | BM61: 0.0 | BN61: 0.0 | BO61: 55.3 | BP61: 2.9 | BQ61: 18800.0 | BR61: 1100.0 | BS61: 439.0 | BT61: 18.0 | BU61: 382.0 | BV61: 17.0 | BW61: 739.0 | BX61: 37.0 | BY61: 166500.0 | BZ61: 7700.0 | CA61: 25.6 | CB61: 1.5 | CC61: 31.2 | CD61: 2.0 | CE61: 0.7 | CF61: 0.3 | CG61: 503.0 | CH61: 25.0 | CI61: 42.7 | CJ61: 2.2 | CK61: 2.2 | CL61: 0.3 | CM61: 665.0 | CN61: 33.0 | CO61: 1.0 | CP61: 0.2 | CQ61: 0.0 | CR61: 0.0 | CS61: 0.5 | CT61: 0.1 | CU61: 60.6 | CV61: 2.7 | CW61: 0.0 | CX61: 0.0 | CY61: 0.0 | CZ61: 0.0 | DA61: 0.3 | DB61: 0.0 | DC61: 10.5 | DD61: 0.6 | DE61: 0.0 | DF61: 0.0 | DG61: 16.1 | DH61: 0.8 | DI61: 736.0 | DJ61: 36.0 | DK61: 0.0 | DL61: 0.0 | DM61: 0.0 | DN61: 0.0 | DO61: 0.0 | DP61: 0.0 | DQ61: 0.0 | DR61: 0.0 | DS61: 0.0 | DT61: 0.0 | DU61: 0.0 | DV61: 0.0 | DW61: 0.0 | DX61: 0.0 | DY61: 0.0 | DZ61: 0.0 | EA61: 0.0 | EB61: 0.0 | EC61: 0.0 | ED61: 0.0 | EE61: 0.0 | EF61: 0.0 | EG61: 0.0 | EH61: 0.0 | EI61: 0.0 | EJ61: 0.0 | EK61: 0.0 | EL61: 0.0 | EM61: 0.0 | EN61: 0.0 | EO61: 3.3 | EP61: 0.2 | EQ61: 5.6 | ER61: 0.4 | ES61: 4.5 | ET61: 0.3 | EU61: 2.9 | EV61: 0.2 | EW61: 0.0 | EX61: 0.0 | EY61: 0.0 | EZ61: 0.0 | FA61: 0.0 | FB61: 0.0
A62: CZ03 | B62: Bt | C62: CZ3_10 | E62: 34.13 | F62: 3.13 | G62: 19.76 | H62: 0.06 | I62: 19.46 | J62: 0.12 | K62: 8.61 | L62: 0.05 | M62: 0.22 | N62: 9.21 | O62: 0.15 | P62: 0.04 | Q62: 94.95 | S62: 2.61 | T62: 0.18 | U62: 1.78 | V62: 0.00 | W62: 1.24 | X62: 0.01 | Y62: 0.98 | Z62: 0.00 | AA62: 0.03 | AB62: 0.90 | AD62: 0.44 | AN62: 0.56 | AP62: 730 | AQ62: 6 | AR62: 752 | AS62: 4.1 | AU62: 752 | AV62: 659 | AW62: 692 | AY62: 130.1 | AZ62: 6.3 | BA62: 0.0 | BB62: 0.0 | BC62: 2510.0 | BD62: 120.0 | BE62: 78800.0 | BF62: 3300.0 | BG62: 182500.0 | BH62: 6600.0 | BI62: 107.0 | BJ62: 8.4 | BK62: 78800.0 | BL62: 3800.0 | BM62: 0.0 | BN62: 0.0 | BO62: 62.6 | BP62: 3.1 | BQ62: 18900.0 | BR62: 1000.0 | BS62: 529.0 | BT62: 24.0 | BU62: 490.0 | BV62: 27.0 | BW62: 824.0 | BX62: 40.0 | BY62: 172600.0 | BZ62: 8100.0 | CA62: 25.0 | CB62: 1.3 | CC62: 29.2 | CD62: 2.0 | CE62: 0.0 | CF62: 0.0 | CG62: 592.0 | CH62: 27.0 | CI62: 51.5 | CJ62: 2.3 | CK62: 2.2 | CL62: 0.4 | CM62: 689.0 | CN62: 35.0 | CO62: 0.8 | CP62: 0.1 | CQ62: 0.0 | CR62: 0.0 | CS62: 0.6 | CT62: 0.1 | CU62: 69.9 | CV62: 3.1 | CW62: 0.0 | CX62: 0.0 | CY62: 0.0 | CZ62: 0.0 | DA62: 0.4 | DB62: 0.0 | DC62: 12.4 | DD62: 0.7 | DE62: 0.0 | DF62: 0.0 | DG62: 26.2 | DH62: 1.4 | DI62: 716.0 | DJ62: 34.0 | DK62: 0.0 | DL62: 0.0 | DM62: 0.0 | DN62: 0.0 | DO62: 0.0 | DP62: 0.0 | DQ62: 0.0 | DR62: 0.0 | DS62: 0.0 | DT62: 0.0 | DU62: 0.0 | DV62: 0.0 | DW62: 0.0 | DX62: 0.0 | DY62: 0.0 | DZ62: 0.0 | EA62: 0.0 | EB62: 0.0 | EC62: 0.0 | ED62: 0.0 | EE62: 0.0 | EF62: 0.0 | EG62: 0.0 | EH62: 0.0 | EI62: 0.0 | EJ62: 0.0 | EK62: 0.0 | EL62: 0.0 | EM62: 0.0 | EN62: 0.0 | EO62: 3.5 | EP62: 0.2 | EQ62: 6.3 | ER62: 0.4 | ES62: 4.6 | ET62: 0.2 | EU62: 2.8 | EV62: 0.2 | EW62: 0.0 | EX62: 0.0 | EY62: 0.0 | EZ62: 0.0 | FA62: 0.0 | FB62: 0.0
A63: CZ03 | B63: Bt | C63: CZ3_11 | E63: 33.92 | F63: 3.93 | G63: 19.79 | H63: 0.10 | I63: 19.39 | J63: 0.10 | K63: 8.53 | L63: 0.03 | M63: 0.29 | N63: 9.41 | O63: 0.11 | P63: 0.05 | Q63: 95.61 | S63: 2.58 | T63: 0.22 | U63: 1.77 | V63: 0.00 | W63: 1.23 | X63: 0.01 | Y63: 0.97 | Z63: 0.00 | AA63: 0.04 | AB63: 0.91 | AD63: 0.44 | AN63: 0.56 | AP63: 730 | AQ63: 6 | AR63: 752 | AS63: 4.1 | AU63: 752 | AV63: 697 | AW63: 692 | AY63: 123.7 | AZ63: 6.8 | BA63: 0.0 | BB63: 0.0 | BC63: 2433.0 | BD63: 86.0 | BE63: 85000.0 | BF63: 3100.0 | BG63: 179100.0 | BH63: 5400.0 | BI63: 93.6 | BJ63: 6.6 | BK63: 84000.0 | BL63: 3600.0 | BM63: 0.0 | BN63: 0.0 | BO63: 76.9 | BP63: 3.5 | BQ63: 22800.0 | BR63: 1200.0 | BS63: 615.0 | BT63: 34.0 | BU63: 624.0 | BV63: 44.0 | BW63: 815.0 | BX63: 37.0 | BY63: 186600.0 | BZ63: 7300.0 | CA63: 24.8 | CB63: 1.1 | CC63: 29.4 | CD63: 1.7 | CE63: 0.0 | CF63: 0.0 | CG63: 525.0 | CH63: 24.0 | CI63: 49.6 | CJ63: 2.1 | CK63: 2.4 | CL63: 0.4 | CM63: 744.0 | CN63: 34.0 | CO63: 1.0 | CP63: 0.1 | CQ63: 0.0 | CR63: 0.0 | CS63: 0.4 | CT63: 0.1 | CU63: 72.3 | CV63: 4.0 | CW63: 0.0 | CX63: 0.0 | CY63: 0.0 | CZ63: 0.0 | DA63: 0.4 | DB63: 0.1 | DC63: 10.9 | DD63: 0.7 | DE63: 0.0 | DF63: 0.0 | DG63: 53.9 | DH63: 3.5 | DI63: 604.0 | DJ63: 24.0 | DK63: 0.0 | DL63: 0.0 | DM63: 0.0 | DN63: 0.0 | DO63: 0.0 | DP63: 0.0 | DQ63: 0.0 | DR63: 0.0 | DS63: 0.0 | DT63: 0.0 | DU63: 0.0 | DV63: 0.0 | DW63: 0.0 | DX63: 0.0 | DY63: 0.0 | DZ63: 0.0 | EA63: 0.0 | EB63: 0.0 | EC63: 0.0 | ED63: 0.0 | EE63: 0.0 | EF63: 0.0 | EG63: 0.0 | EH63: 0.0 | EI63: 0.0 | EJ63: 0.0 | EK63: 0.0 | EL63: 0.0 | EM63: 0.0 | EN63: 0.0 | EO63: 3.8 | EP63: 0.2 | EQ63: 6.2 | ER63: 0.4 | ES63: 4.8 | ET63: 0.2 | EU63: 3.3 | EV63: 0.2 | EW63: 0.0 | EX63: 0.0 | EY63: 0.0 | EZ63: 0.0 | FA63: 0.0 | FB63: 0.0
A64: CZ03 | B64: Bt | C64: CZ3_14 | E64: 34.06 | F64: 3.24 | G64: 19.56 | H64: 0.06 | I64: 18.88 | J64: 0.10 | K64: 8.91 | L64: 0.01 | M64: 0.26 | N64: 9.35 | O64: 0.14 | P64: 0.04 | Q64: 94.62 | S64: 2.61 | T64: 0.19 | U64: 1.77 | V64: 0.00 | W64: 1.21 | X64: 0.01 | Y64: 1.02 | Z64: 0.00 | AA64: 0.04 | AB64: 0.91 | AD64: 0.46 | AN64: 0.54 | AP64: 730 | AQ64: 6 | AR64: 752 | AS64: 4.1 | AU64: 752 | AV64: 659 | AW64: 692 | AY64: 160.6 | AZ64: 7.4 | BA64: 0.0 | BB64: 0.0 | BC64: 2730.0 | BD64: 110.0 | BE64: 85000.0 | BF64: 3500.0 | BG64: 178700.0 | BH64: 5800.0 | BI64: 83.6 | BJ64: 6.8 | BK64: 79100.0 | BL64: 3200.0 | BM64: 0.0 | BN64: 0.0 | BO64: 54.8 | BP64: 2.6 | BQ64: 17390.0 | BR64: 810.0 | BS64: 430.0 | BT64: 19.0 | BU64: 323.0 | BV64: 17.0 | BW64: 800.0 | BX64: 38.0 | BY64: 176600.0 | BZ64: 7300.0 | CA64: 28.7 | CB64: 1.4 | CC64: 39.4 | CD64: 1.6 | CE64: 0.0 | CF64: 0.0 | CG64: 568.0 | CH64: 25.0 | CI64: 49.4 | CJ64: 2.6 | CK64: 2.5 | CL64: 0.3 | CM64: 757.0 | CN64: 35.0 | CO64: 0.8 | CP64: 0.1 | CQ64: 0.0 | CR64: 0.0 | CS64: 0.4 | CT64: 0.1 | CU64: 62.4 | CV64: 3.1 | CW64: 0.0 | CX64: 0.0 | CY64: 0.0 | CZ64: 0.0 | DA64: 0.3 | DB64: 0.0 | DC64: 12.2 | DD64: 0.8 | DE64: 0.0 | DF64: 0.0 | DG64: 59.8 | DH64: 3.0 | DI64: 578.0 | DJ64: 25.0 | DK64: 0.0 | DL64: 0.0 | DM64: 0.0 | DN64: 0.0 | DO64: 0.0 | DP64: 0.0 | DQ64: 0.0 | DR64: 0.0 | DS64: 0.0 | DT64: 0.0 | DU64: 0.0 | DV64: 0.0 | DW64: 0.0 | DX64: 0.0 | DY64: 0.0 | DZ64: 0.0 | EA64: 0.0 | EB64: 0.0 | EC64: 0.0 | ED64: 0.0 | EE64: 0.0 | EF64: 0.0 | EG64: 0.0 | EH64: 0.0 | EI64: 0.0 | EJ64: 0.0 | EK64: 0.0 | EL64: 0.0 | EM64: 0.0 | EN64: 0.0 | EO64: 3.0 | EP64: 0.1 | EQ64: 6.6 | ER64: 0.3 | ES64: 4.8 | ET64: 0.2 | EU64: 2.9 | EV64: 0.2 | EW64: 0.0 | EX64: 0.0 | EY64: 0.0 | EZ64: 0.0 | FA64: 0.0 | FB64: 0.0
A65: CZ03 | B65: Bt | C65: CZ3_15 | E65: 34.37 | F65: 3.77 | G65: 19.75 | H65: 0.07 | I65: 19.42 | J65: 0.14 | K65: 8.58 | L65: 0.00 | M65: 0.26 | N65: 9.32 | O65: 0.23 | P65: 0.04 | Q65: 95.95 | S65: 2.60 | T65: 0.21 | U65: 1.76 | V65: 0.00 | W65: 1.23 | X65: 0.01 | Y65: 0.97 | Z65: 0.00 | AA65: 0.04 | AB65: 0.90 | AD65: 0.44 | AN65: 0.56 | AP65: 730 | AQ65: 6 | AR65: 752 | AS65: 4.1 | AU65: 752 | AV65: 689 | AW65: 692 | AY65: 222.0 | AZ65: 11.0 | BA65: 0.0 | BB65: 0.0 | BC65: 2390.0 | BD65: 120.0 | BE65: 82400.0 | BF65: 2800.0 | BG65: 183500.0 | BH65: 7300.0 | BI65: 96.6 | BJ65: 6.3 | BK65: 72800.0 | BL65: 3000.0 | BM65: 0.0 | BN65: 0.0 | BO65: 65.2 | BP65: 3.4 | BQ65: 19050.0 | BR65: 720.0 | BS65: 453.0 | BT65: 21.0 | BU65: 405.0 | BV65: 20.0 | BW65: 843.0 | BX65: 38.0 | BY65: 175200.0 | BZ65: 8400.0 | CA65: 27.9 | CB65: 1.4 | CC65: 36.1 | CD65: 2.0 | CE65: 1.6 | CF65: 0.4 | CG65: 526.0 | CH65: 19.0 | CI65: 52.2 | CJ65: 2.3 | CK65: 2.6 | CL65: 0.4 | CM65: 674.0 | CN65: 32.0 | CO65: 1.5 | CP65: 0.1 | CQ65: 0.0 | CR65: 0.0 | CS65: 0.3 | CT65: 0.1 | CU65: 62.6 | CV65: 3.0 | CW65: 0.0 | CX65: 0.0 | CY65: 0.0 | CZ65: 0.0 | DA65: 0.3 | DB65: 0.0 | DC65: 10.3 | DD65: 0.5 | DE65: 0.0 | DF65: 0.0 | DG65: 36.1 | DH65: 1.9 | DI65: 573.0 | DJ65: 23.0 | DK65: 0.0 | DL65: 0.0 | DM65: 0.0 | DN65: 0.0 | DO65: 0.0 | DP65: 0.0 | DQ65: 0.0 | DR65: 0.0 | DS65: 0.0 | DT65: 0.0 | DU65: 0.0 | DV65: 0.0 | DW65: 0.0 | DX65: 0.0 | DY65: 0.0 | DZ65: 0.0 | EA65: 0.0 | EB65: 0.0 | EC65: 0.0 | ED65: 0.0 | EE65: 0.0 | EF65: 0.0 | EG65: 0.0 | EH65: 0.0 | EI65: 0.0 | EJ65: 0.0 | EK65: 0.0 | EL65: 0.0 | EM65: 0.0 | EN65: 0.0 | EO65: 3.2 | EP65: 0.2 | EQ65: 5.5 | ER65: 0.3 | ES65: 4.1 | ET65: 0.2 | EU65: 2.9 | EV65: 0.2 | EW65: 0.0 | EX65: 0.0 | EY65: 0.0 | EZ65: 0.0 | FA65: 0.0 | FB65: 0.0
A66: CZ03 | B66: Bt | C66: CZ3_18 | E66: 34.07 | F66: 4.39 | G66: 19.36 | H66: 0.07 | I66: 19.99 | J66: 0.14 | K66: 8.13 | M66: 0.15 | N66: 9.66 | O66: 0.20 | P66: 0.04 | Q66: 96.19 | S66: 2.58 | T66: 0.25 | U66: 1.73 | V66: 0.00 | W66: 1.27 | X66: 0.01 | Y66: 0.92 | Z66: 0.00 | AA66: 0.02 | AB66: 0.93 | AD66: 0.42 | AN66: 0.58 | AP66: 730 | AQ66: 6 | AR66: 752 | AS66: 4.1 | AU66: 752 | AV66: 721 | AW66: 692 | AY66: 133.5 | AZ66: 6.4 | BA66: 0.0 | BB66: 0.0 | BC66: 1742.0 | BD66: 63.0 | BE66: 75400.0 | BF66: 2700.0 | BG66: 176500.0 | BH66: 6000.0 | BI66: 97.5 | BJ66: 6.9 | BK66: 78300.0 | BL66: 2400.0 | BM66: 0.0 | BN66: 0.0 | BO66: 70.8 | BP66: 3.1 | BQ66: 24000.0 | BR66: 1100.0 | BS66: 533.0 | BT66: 30.0 | BU66: 442.0 | BV66: 22.0 | BW66: 892.0 | BX66: 42.0 | BY66: 172800.0 | BZ66: 6200.0 | CA66: 23.4 | CB66: 0.8 | CC66: 37.1 | CD66: 2.0 | CE66: 0.0 | CF66: 0.0 | CG66: 505.0 | CH66: 19.0 | CI66: 47.6 | CJ66: 2.3 | CK66: 2.3 | CL66: 0.4 | CM66: 725.0 | CN66: 30.0 | CO66: 1.1 | CP66: 0.1 | CQ66: 0.0 | CR66: 0.0 | CS66: 0.5 | CT66: 0.1 | CU66: 70.4 | CV66: 3.7 | CW66: 0.0 | CX66: 0.0 | CY66: 0.0 | CZ66: 0.0 | DA66: 0.4 | DB66: 0.1 | DC66: 11.4 | DD66: 0.6 | DE66: 0.0 | DF66: 0.0 | DG66: 37.6 | DH66: 2.0 | DI66: 592.0 | DJ66: 27.0 | DK66: 0.0 | DL66: 0.0 | DM66: 0.0 | DN66: 0.0 | DO66: 0.0 | DP66: 0.0 | DQ66: 0.0 | DR66: 0.0 | DS66: 0.0 | DT66: 0.0 | DU66: 0.0 | DV66: 0.0 | DW66: 0.0 | DX66: 0.0 | DY66: 0.0 | DZ66: 0.0 | EA66: 0.0 | EB66: 0.0 | EC66: 0.0 | ED66: 0.0 | EE66: 0.0 | EF66: 0.0 | EG66: 0.0 | EH66: 0.0 | EI66: 0.0 | EJ66: 0.0 | EK66: 0.0 | EL66: 0.0 | EM66: 0.0 | EN66: 0.0 | EO66: 3.7 | EP66: 0.2 | EQ66: 6.1 | ER66: 0.3 | ES66: 4.5 | ET66: 0.2 | EU66: 3.0 | EV66: 0.2 | EW66: 0.0 | EX66: 0.0 | EY66: 0.0 | EZ66: 0.0 | FA66: 0.0 | FB66: 0.0
A67: CZ03 | B67: Bt | C67: CZ3_19 | E67: 35.20 | F67: 4.08 | G67: 19.11 | H67: 0.07 | I67: 19.49 | J67: 0.11 | K67: 8.81 | L67: 0.01 | M67: 0.21 | N67: 9.49 | O67: 0.14 | P67: 0.05 | Q67: 96.79 | S67: 2.64 | T67: 0.23 | U67: 1.69 | V67: 0.00 | W67: 1.22 | X67: 0.01 | Y67: 0.98 | Z67: 0.00 | AA67: 0.03 | AB67: 0.91 | AD67: 0.45 | AN67: 0.55 | AP67: 730 | AQ67: 6 | AR67: 752 | AS67: 4.1 | AU67: 752 | AV67: 695 | AW67: 692 | AY67: 155.6 | AZ67: 6.9 | BA67: 0.0 | BB67: 0.0 | BC67: 1900.0 | BD67: 120.0 | BE67: 84800.0 | BF67: 3800.0 | BG67: 185400.0 | BH67: 6200.0 | BI67: 94.1 | BJ67: 6.5 | BK67: 82700.0 | BL67: 4300.0 | BM67: 0.0 | BN67: 0.0 | BO67: 72.1 | BP67: 2.9 | BQ67: 23100.0 | BR67: 1000.0 | BS67: 570.0 | BT67: 27.0 | BU67: 507.0 | BV67: 27.0 | BW67: 917.0 | BX67: 55.0 | BY67: 187000.0 | BZ67: 11000.0 | CA67: 30.5 | CB67: 1.5 | CC67: 46.5 | CD67: 2.8 | CE67: 0.0 | CF67: 0.0 | CG67: 505.0 | CH67: 23.0 | CI67: 48.1 | CJ67: 2.2 | CK67: 2.3 | CL67: 0.4 | CM67: 720.0 | CN67: 32.0 | CO67: 1.2 | CP67: 0.1 | CQ67: 0.0 | CR67: 0.0 | CS67: 0.4 | CT67: 0.1 | CU67: 72.7 | CV67: 3.2 | CW67: 0.0 | CX67: 0.0 | CY67: 0.0 | CZ67: 0.0 | DA67: 0.3 | DB67: 0.0 | DC67: 9.8 | DD67: 0.6 | DE67: 0.0 | DF67: 0.0 | DG67: 28.0 | DH67: 1.1 | DI67: 759.0 | DJ67: 43.0 | DK67: 0.0 | DL67: 0.0 | DM67: 0.0 | DN67: 0.0 | DO67: 0.0 | DP67: 0.0 | DQ67: 0.0 | DR67: 0.0 | DS67: 0.0 | DT67: 0.0 | DU67: 0.0 | DV67: 0.0 | DW67: 0.0 | DX67: 0.0 | DY67: 0.0 | DZ67: 0.0 | EA67: 0.0 | EB67: 0.0 | EC67: 0.0 | ED67: 0.0 | EE67: 0.0 | EF67: 0.0 | EG67: 0.0 | EH67: 0.0 | EI67: 0.0 | EJ67: 0.0 | EK67: 0.0 | EL67: 0.0 | EM67: 0.0 | EN67: 0.0 | EO67: 3.4 | EP67: 0.2 | EQ67: 4.3 | ER67: 0.2 | ES67: 4.7 | ET67: 0.3 | EU67: 4.2 | EV67: 0.2 | EW67: 0.0 | EX67: 0.0 | EY67: 0.0 | EZ67: 0.0 | FA67: 0.0 | FB67: 0.0
A68: CZ03 | B68: Bt | C68: CZ3_20 | E68: 32.36 | F68: 3.97 | G68: 20.04 | H68: 0.07 | I68: 19.94 | J68: 0.14 | K68: 8.29 | L68: 0.00 | M68: 0.20 | N68: 9.63 | O68: 0.21 | P68: 0.06 | Q68: 94.90 | S68: 2.50 | T68: 0.23 | U68: 1.82 | V68: 0.00 | W68: 1.29 | X68: 0.01 | Y68: 0.95 | Z68: 0.00 | AA68: 0.03 | AB68: 0.95 | AD68: 0.43 | AN68: 0.57 | AP68: 730 | AQ68: 6 | AR68: 752 | AS68: 4.1 | AU68: 752 | AV68: 699 | AW68: 692 | AY68: 136.2 | AZ68: 7.6 | BA68: 0.0 | BB68: 0.0 | BC68: 1651.0 | BD68: 75.0 | BE68: 72300.0 | BF68: 3100.0 | BG68: 168000.0 | BH68: 5800.0 | BI68: 108.7 | BJ68: 8.3 | BK68: 77400.0 | BL68: 3000.0 | BM68: 0.0 | BN68: 0.0 | BO68: 56.0 | BP68: 2.2 | BQ68: 22000.0 | BR68: 1100.0 | BS68: 464.0 | BT68: 21.0 | BU68: 415.0 | BV68: 22.0 | BW68: 949.0 | BX68: 51.0 | BY68: 174600.0 | BZ68: 9500.0 | CA68: 29.9 | CB68: 1.5 | CC68: 39.0 | CD68: 2.4 | CE68: 0.0 | CF68: 0.0 | CG68: 546.0 | CH68: 20.0 | CI68: 39.3 | CJ68: 1.7 | CK68: 2.3 | CL68: 0.3 | CM68: 690.0 | CN68: 30.0 | CO68: 1.1 | CP68: 0.1 | CQ68: 0.0 | CR68: 0.0 | CS68: 0.4 | CT68: 0.1 | CU68: 67.7 | CV68: 3.1 | CW68: 0.0 | CX68: 0.0 | CY68: 0.0 | CZ68: 0.0 | DA68: 0.3 | DB68: 0.0 | DC68: 11.7 | DD68: 0.6 | DE68: 0.0 | DF68: 0.0 | DG68: 17.8 | DH68: 0.8 | DI68: 723.0 | DJ68: 40.0 | DK68: 0.0 | DL68: 0.0 | DM68: 0.0 | DN68: 0.0 | DO68: 0.0 | DP68: 0.0 | DQ68: 0.0 | DR68: 0.0 | DS68: 0.0 | DT68: 0.0 | DU68: 0.0 | DV68: 0.0 | DW68: 0.0 | DX68: 0.0 | DY68: 0.0 | DZ68: 0.0 | EA68: 0.0 | EB68: 0.0 | EC68: 0.0 | ED68: 0.0 | EE68: 0.0 | EF68: 0.0 | EG68: 0.0 | EH68: 0.0 | EI68: 0.0 | EJ68: 0.0 | EK68: 0.0 | EL68: 0.0 | EM68: 0.0 | EN68: 0.0 | EO68: 3.5 | EP68: 0.2 | EQ68: 5.8 | ER68: 0.3 | ES68: 4.6 | ET68: 0.2 | EU68: 3.0 | EV68: 0.2 | EW68: 0.0 | EX68: 0.0 | EY68: 0.0 | EZ68: 0.0 | FA68: 0.0 | FB68: 0.0
A69: CZ03 | B69: Bt | C69: CZ3_24 | E69: 35.03 | F69: 3.81 | G69: 18.75 | H69: 0.06 | I69: 19.43 | J69: 0.13 | K69: 8.75 | L69: 0.02 | M69: 0.35 | N69: 8.97 | O69: 0.14 | P69: 0.06 | Q69: 95.49 | S69: 2.66 | T69: 0.22 | U69: 1.68 | V69: 0.00 | W69: 1.23 | X69: 0.01 | Y69: 0.99 | Z69: 0.00 | AA69: 0.05 | AB69: 0.87 | AD69: =Y69/(Y69+W69) -> 0.45 | AN69: 0.55 | AP69: 730 | AQ69: 6 | AR69: 752 | AS69: 4.1 | AU69: 752 | AV69: 684 | AW69: 692 | AY69: 176.0 | AZ69: 12.0 | BA69: 0.0 | BB69: 0.0 | BC69: 2830.0 | BD69: 130.0 | BE69: 80400.0 | BF69: 3000.0 | BG69: 183700.0 | BH69: 7300.0 | BI69: 94.5 | BJ69: 6.2 | BK69: 72600.0 | BL69: 3200.0 | BM69: 0.0 | BN69: 0.0 | BO69: 62.6 | BP69: 5.7 | BQ69: 24200.0 | BR69: 2400.0 | BS69: 494.0 | BT69: 41.0 | BU69: 413.0 | BV69: 39.0 | BW69: 838.0 | BX69: 58.0 | BY69: 168000.0 | BZ69: 10000.0 | CA69: 26.6 | CB69: 1.2 | CC69: 40.0 | CD69: 2.7 | CE69: 1.2 | CF69: 0.3 | CG69: 547.0 | CH69: 24.0 | CI69: 49.5 | CJ69: 2.3 | CK69: 2.2 | CL69: 0.2 | CM69: 668.0 | CN69: 53.0 | CO69: 0.8 | CP69: 0.1 | CQ69: 0.0 | CR69: 0.0 | CS69: 0.3 | CT69: 0.1 | CU69: 71.9 | CV69: 5.7 | CW69: 0.0 | CX69: 0.0 | CY69: 0.0 | CZ69: 0.0 | DA69: 0.3 | DB69: 0.0 | DC69: 10.2 | DD69: 0.8 | DE69: 0.0 | DF69: 0.0 | DG69: 26.8 | DH69: 2.3 | DI69: 647.0 | DJ69: 35.0 | DK69: 0.0 | DL69: 0.0 | DM69: 0.0 | DN69: 0.0 | DO69: 0.0 | DP69: 0.0 | DQ69: 0.0 | DR69: 0.0 | DS69: 0.0 | DT69: 0.0 | DU69: 0.0 | DV69: 0.0 | DW69: 0.0 | DX69: 0.0 | DY69: 0.0 | DZ69: 0.0 | EA69: 0.0 | EB69: 0.0 | EC69: 0.0 | ED69: 0.0 | EE69: 0.0 | EF69: 0.0 | EG69: 0.0 | EH69: 0.0 | EI69: 0.0 | EJ69: 0.0 | EK69: 0.0 | EL69: 0.0 | EM69: 0.0 | EN69: 0.0 | EO69: 4.2 | EP69: 0.2 | EQ69: 6.3 | ER69: 0.3 | ES69: 4.4 | ET69: 0.3 | EU69: 2.2 | EV69: 0.2 | EW69: 0.0 | EX69: 0.0 | EY69: 0.0 | EZ69: 0.0 | FA69: 0.0 | FB69: 0.0
A70: CZ03 | B70: Bt | C70: CZ3_25 | E70: 34.71 | F70: 3.06 | G70: 19.80 | H70: 0.03 | I70: 18.85 | J70: 0.14 | K70: 9.01 | L70: 0.01 | M70: 0.35 | N70: 9.26 | O70: 0.12 | P70: 0.05 | Q70: 95.39 | S70: 2.63 | T70: 0.17 | U70: 1.77 | V70: 0.00 | W70: 1.20 | X70: 0.01 | Y70: 1.02 | Z70: 0.00 | AA70: 0.05 | AB70: 0.90 | AD70: 0.46 | AN70: 0.54 | AP70: 730 | AQ70: 6 | AR70: 752 | AS70: 4.1 | AU70: 752 | AV70: 651 | AW70: 692 | AY70: 157.4 | AZ70: 9.1 | BA70: 0.0 | BB70: 0.0 | BC70: 2910.0 | BD70: 130.0 | BE70: 90200.0 | BF70: 3400.0 | BG70: 194400.0 | BH70: 9300.0 | BI70: 92.9 | BJ70: 7.5 | BK70: 74200.0 | BL70: 5100.0 | BM70: 0.0 | BN70: 0.0 | BO70: 56.2 | BP70: 4.5 | BQ70: 19900.0 | BR70: 1500.0 | BS70: 374.0 | BT70: 24.0 | BU70: 341.0 | BV70: 19.0 | BW70: 886.0 | BX70: 47.0 | BY70: 169200.0 | BZ70: 9000.0 | CA70: 27.2 | CB70: 1.7 | CC70: 38.8 | CD70: 2.4 | CE70: 0.0 | CF70: 0.0 | CG70: 501.0 | CH70: 26.0 | CI70: 46.9 | CJ70: 3.1 | CK70: 2.2 | CL70: 0.4 | CM70: 755.0 | CN70: 64.0 | CO70: 1.0 | CP70: 0.1 | CQ70: 0.0 | CR70: 0.0 | CS70: 0.3 | CT70: 0.1 | CU70: 69.2 | CV70: 3.9 | CW70: 0.0 | CX70: 0.0 | CY70: 0.0 | CZ70: 0.0 | DA70: 0.4 | DB70: 0.1 | DC70: 12.0 | DD70: 1.1 | DE70: 0.0 | DF70: 0.0 | DG70: 20.1 | DH70: 0.9 | DI70: 789.0 | DJ70: 40.0 | DK70: 0.0 | DL70: 0.0 | DM70: 0.0 | DN70: 0.0 | DO70: 0.0 | DP70: 0.0 | DQ70: 0.0 | DR70: 0.0 | DS70: 0.0 | DT70: 0.0 | DU70: 0.0 | DV70: 0.0 | DW70: 0.0 | DX70: 0.0 | DY70: 0.0 | DZ70: 0.0 | EA70: 0.0 | EB70: 0.0 | EC70: 0.0 | ED70: 0.0 | EE70: 0.0 | EF70: 0.0 | EG70: 0.0 | EH70: 0.0 | EI70: 0.0 | EJ70: 0.0 | EK70: 0.0 | EL70: 0.0 | EM70: 0.0 | EN70: 0.0 | EO70: 4.7 | EP70: 0.3 | EQ70: 5.4 | ER70: 0.4 | ES70: 4.8 | ET70: 0.4 | EU70: 2.5 | EV70: 0.2 | EW70: 0.0 | EX70: 0.0 | EY70: 0.0 | EZ70: 0.0 | FA70: 0.0 | FB70: 0.0
A71: CZ03 | B71: Bt | C71: CZ3_30 | E71: 34.27 | F71: 4.50 | G71: 19.09 | H71: 0.06 | I71: 19.52 | J71: 0.12 | K71: 8.29 | L71: 0.04 | M71: 0.16 | N71: 9.47 | O71: 0.18 | P71: 0.06 | Q71: 95.75 | S71: 2.60 | T71: 0.26 | U71: 1.71 | V71: 0.00 | W71: 1.24 | X71: 0.01 | Y71: 0.94 | Z71: 0.00 | AA71: 0.02 | AB71: 0.92 | AD71: 0.43 | AN71: 0.57 | AP71: 730 | AQ71: 6 | AR71: 752 | AS71: 4.1 | AU71: 752 | AV71: 723 | AW71: 692 | AY71: 120.0 | AZ71: 10.0 | BA71: 0.0 | BB71: 0.0 | BC71: 1740.0 | BD71: 120.0 | BE71: 73100.0 | BF71: 3700.0 | BG71: 172200.0 | BH71: 8200.0 | BI71: 96.0 | BJ71: 7.1 | BK71: 78500.0 | BL71: 3600.0 | BM71: 0.0 | BN71: 0.0 | BO71: 65.8 | BP71: 4.8 | BQ71: 25800.0 | BR71: 2000.0 | BS71: 532.0 | BT71: 42.0 | BU71: 467.0 | BV71: 44.0 | BW71: 878.0 | BX71: 77.0 | BY71: 166000.0 | BZ71: 12000.0 | CA71: 27.6 | CB71: 1.4 | CC71: 46.5 | CD71: 2.6 | CE71: 0.8 | CF71: 0.3 | CG71: 544.0 | CH71: 24.0 | CI71: 46.9 | CJ71: 2.2 | CK71: 2.1 | CL71: 0.4 | CM71: 673.0 | CN71: 35.0 | CO71: 1.5 | CP71: 0.2 | CQ71: 0.0 | CR71: 0.0 | CS71: 0.8 | CT71: 0.2 | CU71: 83.4 | CV71: 7.0 | CW71: 0.0 | CX71: 0.0 | CY71: 0.0 | CZ71: 0.0 | DA71: 0.3 | DB71: 0.1 | DC71: 11.1 | DD71: 0.6 | DE71: 0.0 | DF71: 0.0 | DG71: 23.7 | DH71: 2.1 | DI71: 718.0 | DJ71: 50.0 | DK71: 0.0 | DL71: 0.0 | DM71: 0.0 | DN71: 0.0 | DO71: 0.0 | DP71: 0.0 | DQ71: 0.0 | DR71: 0.0 | DS71: 0.0 | DT71: 0.0 | DU71: 0.0 | DV71: 0.0 | DW71: 0.0 | DX71: 0.0 | DY71: 0.0 | DZ71: 0.0 | EA71: 0.0 | EB71: 0.0 | EC71: 0.0 | ED71: 0.0 | EE71: 0.0 | EF71: 0.0 | EG71: 0.0 | EH71: 0.0 | EI71: 0.0 | EJ71: 0.0 | EK71: 0.0 | EL71: 0.0 | EM71: 0.0 | EN71: 0.0 | EO71: 4.7 | EP71: 0.3 | EQ71: 4.5 | ER71: 0.3 | ES71: 4.6 | ET71: 0.3 | EU71: 3.1 | EV71: 0.3 | EW71: 0.0 | EX71: 0.0 | EY71: 0.0 | EZ71: 0.0 | FA71: 0.0 | FB71: 0.0
A72: CZ03 | B72: Bt | C72: CZ3_31 | E72: 33.40 | F72: 3.74 | G72: 20.39 | H72: 0.08 | I72: 19.48 | J72: 0.10 | K72: 8.41 | L72: 0.02 | M72: 0.27 | N72: 9.39 | O72: 0.17 | P72: 0.05 | Q72: 95.51 | S72: 2.54 | T72: 0.21 | U72: 1.83 | V72: 0.00 | W72: 1.24 | X72: 0.01 | Y72: 0.96 | Z72: 0.00 | AA72: 0.04 | AB72: 0.91 | AD72: 0.43 | AN72: 0.57 | AP72: 730 | AQ72: 6 | AR72: 752 | AS72: 4.1 | AU72: 752 | AV72: 693 | AW72: 692 | AY72: 157.2 | AZ72: 8.5 | BA72: 0.0 | BB72: 0.0 | BC72: 2680.0 | BD72: 130.0 | BE72: 75900.0 | BF72: 3200.0 | BG72: 181800.0 | BH72: 5600.0 | BI72: 103.3 | BJ72: 5.6 | BK72: 75200.0 | BL72: 4000.0 | BM72: 0.0 | BN72: 0.0 | BO72: 61.6 | BP72: 4.6 | BQ72: 22400.0 | BR72: 1600.0 | BS72: 521.0 | BT72: 47.0 | BU72: 526.0 | BV72: 39.0 | BW72: 703.0 | BX72: 46.0 | BY72: 159200.0 | BZ72: 7500.0 | CA72: 29.6 | CB72: 1.4 | CC72: 47.9 | CD72: 3.1 | CE72: 0.0 | CF72: 0.0 | CG72: 564.0 | CH72: 24.0 | CI72: 46.7 | CJ72: 2.1 | CK72: 1.8 | CL72: 0.4 | CM72: 647.0 | CN72: 41.0 | CO72: 1.3 | CP72: 0.1 | CQ72: 0.0 | CR72: 0.0 | CS72: 1.0 | CT72: 0.2 | CU72: 79.9 | CV72: 5.0 | CW72: 0.0 | CX72: 0.0 | CY72: 0.0 | CZ72: 0.0 | DA72: 0.4 | DB72: 0.0 | DC72: 11.4 | DD72: 0.7 | DE72: 0.0 | DF72: 0.0 | DG72: 18.0 | DH72: 1.3 | DI72: 775.0 | DJ72: 35.0 | DK72: 0.0 | DL72: 0.0 | DM72: 0.0 | DN72: 0.0 | DO72: 0.0 | DP72: 0.0 | DQ72: 0.0 | DR72: 0.0 | DS72: 0.0 | DT72: 0.0 | DU72: 0.0 | DV72: 0.0 | DW72: 0.0 | DX72: 0.0 | DY72: 0.0 | DZ72: 0.0 | EA72: 0.0 | EB72: 0.0 | EC72: 0.0 | ED72: 0.0 | EE72: 0.0 | EF72: 0.0 | EG72: 0.0 | EH72: 0.0 | EI72: 0.0 | EJ72: 0.0 | EK72: 0.0 | EL72: 0.0 | EM72: 0.0 | EN72: 0.0 | EO72: 4.0 | EP72: 0.2 | EQ72: 5.2 | ER72: 0.3 | ES72: 4.5 | ET72: 0.2 | EU72: 3.1 | EV72: 0.2 | EW72: 0.0 | EX72: 0.0 | EY72: 0.0 | EZ72: 0.0 | FA72: 0.0 | FB72: 0.0
A73: CZ03 | B73: Bt | C73: CZ3_32 | E73: 34.18 | F73: 3.28 | G73: 19.38 | H73: 0.08 | I73: 19.86 | J73: 0.13 | K73: 9.44 | L73: 0.06 | M73: 0.18 | N73: 7.88 | O73: 0.14 | P73: 0.05 | Q73: 94.66 | S73: 2.61 | T73: 0.19 | U73: 1.74 | V73: 0.00 | W73: 1.27 | X73: 0.01 | Y73: 1.07 | Z73: 0.01 | AA73: 0.03 | AB73: 0.77 | AD73: 0.46 | AN73: 0.54 | AP73: 730 | AQ73: 6 | AR73: 752 | AS73: 4.1 | AU73: 752 | AV73: 646 | AW73: 692 | AY73: 167.0 | AZ73: 11.0 | BA73: 0.0 | BB73: 0.0 | BC73: 2620.0 | BD73: 150.0 | BE73: 85400.0 | BF73: 4300.0 | BG73: 186700.0 | BH73: 8300.0 | BI73: 99.6 | BJ73: 7.5 | BK73: 84000.0 | BL73: 7100.0 | BM73: 0.0 | BN73: 0.0 | BO73: 80.7 | BP73: 5.7 | BQ73: 26900.0 | BR73: 1600.0 | BS73: 695.0 | BT73: 46.0 | BU73: 670.0 | BV73: 46.0 | BW73: 850.0 | BX73: 59.0 | BY73: 189000.0 | BZ73: 11000.0 | CA73: 30.8 | CB73: 1.7 | CC73: 54.0 | CD73: 3.7 | CE73: 0.0 | CF73: 0.0 | CG73: 541.0 | CH73: 25.0 | CI73: 53.9 | CJ73: 4.4 | CK73: 2.4 | CL73: 0.3 | CM73: 747.0 | CN73: 52.0 | CO73: 1.4 | CP73: 0.2 | CQ73: 0.0 | CR73: 0.0 | CS73: 0.5 | CT73: 0.1 | CU73: 81.2 | CV73: 5.2 | CW73: 0.0 | CX73: 0.0 | CY73: 0.0 | CZ73: 0.0 | DA73: 0.4 | DB73: 0.1 | DC73: 9.9 | DD73: 0.7 | DE73: 0.0 | DF73: 0.0 | DG73: 28.0 | DH73: 1.6 | DI73: 820.0 | DJ73: 59.0 | DK73: 0.0 | DL73: 0.0 | DM73: 0.0 | DN73: 0.0 | DO73: 0.0 | DP73: 0.0 | DQ73: 0.0 | DR73: 0.0 | DS73: 0.0 | DT73: 0.0 | DU73: 0.0 | DV73: 0.0 | DW73: 0.0 | DX73: 0.0 | DY73: 0.0 | DZ73: 0.0 | EA73: 0.0 | EB73: 0.0 | EC73: 0.0 | ED73: 0.0 | EE73: 0.0 | EF73: 0.0 | EG73: 0.0 | EH73: 0.0 | EI73: 0.0 | EJ73: 0.0 | EK73: 0.0 | EL73: 0.0 | EM73: 0.0 | EN73: 0.0 | EO73: 4.2 | EP73: 0.3 | EQ73: 5.9 | ER73: 0.4 | ES73: 4.7 | ET73: 0.3 | EU73: 3.6 | EV73: 0.2 | EW73: 0.0 | EX73: 0.0 | EY73: 0.0 | EZ73: 0.0 | FA73: 0.0 | FB73: 0.0
A74: CZ03 | B74: Bt | C74: CZ3_33 | E74: 35.10 | F74: 4.45 | G74: 18.82 | H74: 0.08 | I74: 18.78 | J74: 0.11 | K74: 8.31 | L74: 0.02 | M74: 0.24 | N74: 9.46 | O74: 0.21 | P74: 0.05 | Q74: 95.64 | S74: 2.65 | T74: 0.25 | U74: 1.68 | V74: 0.00 | W74: 1.19 | X74: 0.01 | Y74: 0.94 | Z74: 0.00 | AA74: 0.04 | AB74: 0.91 | AD74: 0.44 | AN74: 0.56 | AP74: 730 | AQ74: 6 | AR74: 752 | AS74: 4.1 | AU74: 752 | AV74: 725 | AW74: 692 | AY74: 238.0 | AZ74: 18.0 | BA74: 0.0 | BB74: 0.0 | BC74: 2150.0 | BD74: 87.0 | BE74: 91700.0 | BF74: 2800.0 | BG74: 198000.0 | BH74: 7500.0 | BI74: 93.1 | BJ74: 7.4 | BK74: 67800.0 | BL74: 3100.0 | BM74: 0.0 | BN74: 0.0 | BO74: 75.1 | BP74: 5.3 | BQ74: 24400.0 | BR74: 1800.0 | BS74: 630.0 | BT74: 45.0 | BU74: 539.0 | BV74: 34.0 | BW74: 829.0 | BX74: 47.0 | BY74: 193200.0 | BZ74: 9500.0 | CA74: 37.2 | CB74: 1.6 | CC74: 60.3 | CD74: 3.3 | CE74: 0.9 | CF74: 0.3 | CG74: 602.0 | CH74: 22.0 | CI74: 60.1 | CJ74: 2.4 | CK74: 2.8 | CL74: 0.4 | CM74: 640.0 | CN74: 44.0 | CO74: 1.6 | CP74: 0.2 | CQ74: 0.0 | CR74: 0.0 | CS74: 0.7 | CT74: 0.1 | CU74: 65.5 | CV74: 4.1 | CW74: 0.0 | CX74: 0.0 | CY74: 0.0 | CZ74: 0.0 | DA74: 0.4 | DB74: 0.1 | DC74: 9.7 | DD74: 0.5 | DE74: 0.0 | DF74: 0.0 | DG74: 16.1 | DH74: 1.0 | DI74: 781.0 | DJ74: 27.0 | DK74: 0.0 | DL74: 0.0 | DM74: 0.0 | DN74: 0.0 | DO74: 0.0 | DP74: 0.0 | DQ74: 0.0 | DR74: 0.0 | DS74: 0.0 | DT74: 0.0 | DU74: 0.0 | DV74: 0.0 | DW74: 0.0 | DX74: 0.0 | DY74: 0.0 | DZ74: 0.0 | EA74: 0.0 | EB74: 0.0 | EC74: 0.0 | ED74: 0.0 | EE74: 0.0 | EF74: 0.0 | EG74: 0.0 | EH74: 0.0 | EI74: 0.0 | EJ74: 0.0 | EK74: 0.0 | EL74: 0.0 | EM74: 0.0 | EN74: 0.0 | EO74: 2.9 | EP74: 0.2 | EQ74: 4.9 | ER74: 0.3 | ES74: 4.1 | ET74: 0.2 | EU74: 3.0 | EV74: 0.2 | EW74: 0.0 | EX74: 0.0 | EY74: 0.0 | EZ74: 0.0 | FA74: 0.0 | FB74: 0.0
A75: CZ03 | B75: Bt | C75: CZ3_34 | E75: 34.25 | F75: 3.89 | G75: 19.51 | H75: 0.07 | I75: 19.27 | J75: 0.09 | K75: 8.47 | M75: 0.22 | N75: 8.89 | O75: 0.19 | P75: 0.04 | Q75: 94.88 | S75: 2.61 | T75: 0.22 | U75: 1.75 | V75: 0.00 | W75: 1.23 | X75: 0.01 | Y75: 0.96 | Z75: 0.00 | AA75: 0.03 | AB75: 0.86 | AD75: 0.44 | AN75: 0.56 | AP75: 730 | AQ75: 6 | AR75: 752 | AS75: 4.1 | AU75: 752 | AV75: 698 | AW75: 692 | AY75: 166.0 | AZ75: 11.0 | BA75: 0.0 | BB75: 0.0 | BC75: 2410.0 | BD75: 120.0 | BE75: 82500.0 | BF75: 4300.0 | BG75: 187500.0 | BH75: 9800.0 | BI75: 85.7 | BJ75: 7.5 | BK75: 80100.0 | BL75: 4700.0 | BM75: 0.0 | BN75: 0.0 | BO75: 76.1 | BP75: 5.1 | BQ75: 26700.0 | BR75: 1600.0 | BS75: 593.0 | BT75: 40.0 | BU75: 579.0 | BV75: 42.0 | BW75: 757.0 | BX75: 39.0 | BY75: 180500.0 | BZ75: 9800.0 | CA75: 30.2 | CB75: 1.8 | CC75: 52.7 | CD75: 3.0 | CE75: 0.0 | CF75: 0.0 | CG75: 538.0 | CH75: 30.0 | CI75: 49.8 | CJ75: 3.0 | CK75: 2.2 | CL75: 0.3 | CM75: 773.0 | CN75: 61.0 | CO75: 1.5 | CP75: 0.2 | CQ75: 0.0 | CR75: 0.0 | CS75: 1.1 | CT75: 0.2 | CU75: 74.2 | CV75: 5.2 | CW75: 0.0 | CX75: 0.0 | CY75: 0.0 | CZ75: 0.0 | DA75: 0.4 | DB75: 0.0 | DC75: 10.6 | DD75: 0.8 | DE75: 0.0 | DF75: 0.0 | DG75: 22.5 | DH75: 1.5 | DI75: 780.0 | DJ75: 48.0 | DK75: 0.0 | DL75: 0.0 | DM75: 0.0 | DN75: 0.0 | DO75: 0.0 | DP75: 0.0 | DQ75: 0.0 | DR75: 0.0 | DS75: 0.0 | DT75: 0.0 | DU75: 0.0 | DV75: 0.0 | DW75: 0.0 | DX75: 0.0 | DY75: 0.0 | DZ75: 0.0 | EA75: 0.0 | EB75: 0.0 | EC75: 0.0 | ED75: 0.0 | EE75: 0.0 | EF75: 0.0 | EG75: 0.0 | EH75: 0.0 | EI75: 0.0 | EJ75: 0.0 | EK75: 0.0 | EL75: 0.0 | EM75: 0.0 | EN75: 0.0 | EO75: 3.1 | EP75: 0.2 | EQ75: 5.7 | ER75: 0.4 | ES75: 4.7 | ET75: 0.3 | EU75: 3.3 | EV75: 0.2 | EW75: 0.0 | EX75: 0.0 | EY75: 0.0 | EZ75: 0.0 | FA75: 0.0 | FB75: 0.0
A76: CZ03 | B76: Bt | C76: CZ3_38 | E76: 33.78 | F76: 3.83 | G76: 19.75 | H76: 0.08 | I76: 19.44 | J76: 0.11 | K76: 8.72 | M76: 0.18 | N76: 9.62 | O76: 0.15 | P76: 0.05 | Q76: 95.72 | S76: 2.57 | T76: 0.22 | U76: 1.77 | V76: 0.00 | W76: 1.24 | X76: 0.01 | Y76: 0.99 | Z76: 0.00 | AA76: 0.03 | AB76: 0.93 | AD76: 0.44 | AN76: 0.56 | AP76: 730 | AQ76: 6 | AR76: 752 | AS76: 4.1 | AU76: 752 | AV76: 687 | AW76: 692 | AY76: 124.6 | AZ76: 9.7 | BA76: 0.0 | BB76: 0.0 | BC76: 1890.0 | BD76: 100.0 | BE76: 80200.0 | BF76: 3400.0 | BG76: 179800.0 | BH76: 6500.0 | BI76: 84.8 | BJ76: 7.7 | BK76: 80200.0 | BL76: 3400.0 | BM76: 0.0 | BN76: 0.0 | BO76: 68.9 | BP76: 3.8 | BQ76: 22900.0 | BR76: 1600.0 | BS76: 614.0 | BT76: 51.0 | BU76: 567.0 | BV76: 45.0 | BW76: 853.0 | BX76: 52.0 | BY76: 171500.0 | BZ76: 8900.0 | CA76: 28.2 | CB76: 1.4 | CC76: 46.1 | CD76: 3.0 | CE76: 0.0 | CF76: 0.0 | CG76: 542.0 | CH76: 35.0 | CI76: 48.2 | CJ76: 2.3 | CK76: 2.2 | CL76: 0.3 | CM76: 706.0 | CN76: 46.0 | CO76: 1.1 | CP76: 0.1 | CQ76: 0.0 | CR76: 0.0 | CS76: 0.6 | CT76: 0.1 | CU76: 69.8 | CV76: 4.9 | CW76: 0.0 | CX76: 0.0 | CY76: 0.0 | CZ76: 0.0 | DA76: 0.3 | DB76: 0.0 | DC76: 10.6 | DD76: 0.6 | DE76: 0.0 | DF76: 0.0 | DG76: 57.2 | DH76: 4.5 | DI76: 571.0 | DJ76: 37.0 | DK76: 0.0 | DL76: 0.0 | DM76: 0.0 | DN76: 0.0 | DO76: 0.0 | DP76: 0.0 | DQ76: 0.0 | DR76: 0.0 | DS76: 0.0 | DT76: 0.0 | DU76: 0.0 | DV76: 0.0 | DW76: 0.0 | DX76: 0.0 | DY76: 0.0 | DZ76: 0.0 | EA76: 0.0 | EB76: 0.0 | EC76: 0.0 | ED76: 0.0 | EE76: 0.0 | EF76: 0.0 | EG76: 0.0 | EH76: 0.0 | EI76: 0.0 | EJ76: 0.0 | EK76: 0.0 | EL76: 0.0 | EM76: 0.0 | EN76: 0.0 | EO76: 3.3 | EP76: 0.2 | EQ76: 5.7 | ER76: 0.4 | ES76: 4.4 | ET76: 0.2 | EU76: 3.5 | EV76: 0.3 | EW76: 0.0 | EX76: 0.0 | EY76: 0.0 | EZ76: 0.0 | FA76: 0.0 | FB76: 0.0
A77: CZ03 | B77: Bt | C77: CZ3_39 | E77: 34.35 | F77: 4.49 | G77: 19.36 | H77: 0.07 | I77: 19.86 | J77: 0.12 | K77: 8.44 | L77: 0.01 | M77: 0.22 | N77: 9.43 | O77: 0.20 | P77: 0.04 | Q77: 96.60 | S77: 2.59 | T77: 0.25 | U77: 1.72 | V77: 0.00 | W77: 1.25 | X77: 0.01 | Y77: 0.95 | Z77: 0.00 | AA77: 0.03 | AB77: 0.91 | AD77: 0.43 | AN77: 0.57 | AP77: 730 | AQ77: 6 | AR77: 752 | AS77: 4.1 | AU77: 752 | AV77: 718 | AW77: 692 | AY77: 144.0 | AZ77: 11.0 | BA77: 0.0 | BB77: 0.0 | BC77: 2470.0 | BD77: 140.0 | BE77: 84200.0 | BF77: 4000.0 | BG77: 187400.0 | BH77: 8000.0 | BI77: 92.5 | BJ77: 8.0 | BK77: 81700.0 | BL77: 3800.0 | BM77: 0.0 | BN77: 0.0 | BO77: 72.6 | BP77: 4.2 | BQ77: 26800.0 | BR77: 1900.0 | BS77: 517.0 | BT77: 47.0 | BU77: 488.0 | BV77: 43.0 | BW77: 1005.0 | BX77: 72.0 | BY77: 188000.0 | BZ77: 11000.0 | CA77: 24.6 | CB77: 1.1 | CC77: 44.4 | CD77: 2.8 | CE77: 1.6 | CF77: 0.5 | CG77: 545.0 | CH77: 23.0 | CI77: 54.7 | CJ77: 2.2 | CK77: 2.5 | CL77: 0.3 | CM77: 714.0 | CN77: 39.0 | CO77: 1.6 | CP77: 0.2 | CQ77: 0.0 | CR77: 0.0 | CS77: 0.8 | CT77: 0.1 | CU77: 79.6 | CV77: 6.2 | CW77: 0.0 | CX77: 0.0 | CY77: 0.0 | CZ77: 0.0 | DA77: 0.4 | DB77: 0.0 | DC77: 10.5 | DD77: 0.6 | DE77: 0.0 | DF77: 0.0 | DG77: 35.2 | DH77: 2.8 | DI77: 686.0 | DJ77: 36.0 | DK77: 0.0 | DL77: 0.0 | DM77: 0.0 | DN77: 0.0 | DO77: 0.0 | DP77: 0.0 | DQ77: 0.0 | DR77: 0.0 | DS77: 0.0 | DT77: 0.0 | DU77: 0.0 | DV77: 0.0 | DW77: 0.0 | DX77: 0.0 | DY77: 0.0 | DZ77: 0.0 | EA77: 0.0 | EB77: 0.0 | EC77: 0.0 | ED77: 0.0 | EE77: 0.0 | EF77: 0.0 | EG77: 0.0 | EH77: 0.0 | EI77: 0.0 | EJ77: 0.0 | EK77: 0.0 | EL77: 0.0 | EM77: 0.0 | EN77: 0.0 | EO77: 3.5 | EP77: 0.2 | EQ77: 5.2 | ER77: 0.3 | ES77: 4.7 | ET77: 0.3 | EU77: 3.4 | EV77: 0.3 | EW77: 0.0 | EX77: 0.0 | EY77: 0.0 | EZ77: 0.0 | FA77: 0.0 | FB77: 0.0
A78: CZ03 | B78: Crd | C78: CZ3_12 | E78: 47.02 | F78: 0.00 | G78: 33.65 | H78: 0.00 | I78: 9.54 | J78: 0.27 | K78: 7.64 | L78: 0.02 | M78: 0.24 | O78: 0.02 | P78: 0.00 | Q78: 98.40 | S78: 4.88 | T78: 0.00 | U78: 4.12 | W78: 0.83 | X78: 0.02 | Y78: 1.18 | Z78: 0.00 | AA78: 0.05 | AB78: 0.00 | AD78: 0.59 | AN78: 0.41 | AP78: 730 | AQ78: 6 | AR78: 752 | AS78: 4.1 | AT78: 735 | AU78: 752 | AW78: 692 | AY78: 281.0 | AZ78: 13.0 | BA78: 6.7 | BB78: 1.2 | BC78: 2610.0 | BD78: 150.0 | BE78: 64900.0 | BF78: 2800.0 | BG78: 262900.0 | BH78: 9300.0 | BI78: 50.4 | BJ78: 9.4 | BK78: 0.0 | BL78: 0.0 | BM78: 0.0 | BN78: 0.0 | BO78: 0.6 | BP78: 0.2 | BQ78: 6.0 | BR78: 1.8 | BS78: 0.0 | BT78: 0.0 | BU78: 0.0 | BV78: 0.0 | BW78: 1893.0 | BX78: 78.0 | BY78: 86900.0 | BZ78: 3700.0 | CA78: 7.4 | CB78: 0.7 | CC78: 0.0 | CD78: 0.0 | CE78: 0.0 | CF78: 0.0 | CG78: 211.0 | CH78: 14.0 | CI78: 53.8 | CJ78: 3.6 | CK78: 1.5 | CL78: 0.4 | CM78: 0.0 | CN78: 0.0 | CO78: 0.0 | CP78: 0.0 | CQ78: 0.0 | CR78: 0.0 | CS78: 0.0 | CT78: 0.0 | CU78: 0.0 | CV78: 0.0 | CW78: 0.0 | CX78: 0.0 | CY78: 0.0 | CZ78: 0.0 | DA78: 0.0 | DB78: 0.0 | DC78: 0.0 | DD78: 0.0 | DE78: 0.0 | DF78: 0.0 | DG78: 3.1 | DH78: 0.2 | DI78: 0.0 | DJ78: 0.0 | DK78: 0.0 | DL78: 0.0 | DM78: 0.0 | DN78: 0.0 | DO78: 0.0 | DP78: 0.0 | DQ78: 0.0 | DR78: 0.0 | DS78: 0.0 | DT78: 0.0 | DU78: 0.0 | DV78: 0.0 | DW78: 0.0 | DX78: 0.0 | DY78: 0.0 | DZ78: 0.0 | EA78: 0.0 | EB78: 0.0 | EC78: 0.0 | ED78: 0.0 | EE78: 0.0 | EF78: 0.0 | EG78: 0.0 | EH78: 0.0 | EI78: 0.0 | EJ78: 0.0 | EK78: 0.0 | EL78: 0.0 | EM78: 0.0 | EN78: 0.0 | EO78: 0.0 | EP78: 0.0 | EQ78: 0.0 | ER78: 0.0 | ES78: 0.0 | ET78: 0.0 | EU78: 0.0 | EV78: 0.0 | EW78: 0.0 | EX78: 0.0 | EY78: 0.0 | EZ78: 0.0 | FA78: 0.0 | FB78: 0.0
A79: CZ03 | B79: Crd | C79: CZ3_13 | E79: 46.34 | G79: 33.92 | H79: 0.01 | I79: 9.48 | J79: 0.28 | K79: 7.76 | L79: 0.02 | M79: 0.19 | N79: 0.00 | P79: 0.00 | Q79: 97.99 | S79: 4.83 | T79: 0.00 | U79: 4.17 | W79: 0.83 | X79: 0.02 | Y79: 1.21 | Z79: 0.00 | AA79: 0.04 | AB79: 0.00 | AD79: 0.59 | AN79: 0.41 | AP79: 730 | AQ79: 6 | AR79: 752 | AS79: 4.1 | AT79: 754 | AU79: 752 | AW79: 692 | AY79: 231.0 | AZ79: 13.0 | BA79: 7.7 | BB79: 1.2 | BC79: 2140.0 | BD79: 130.0 | BE79: 66200.0 | BF79: 2500.0 | BG79: 268400.0 | BH79: 7400.0 | BI79: 54.4 | BJ79: 8.9 | BK79: 0.0 | BL79: 0.0 | BM79: 0.0 | BN79: 0.0 | BO79: 0.0 | BP79: 0.0 | BQ79: 5.6 | BR79: 1.6 | BS79: 0.3 | BT79: 0.1 | BU79: 0.0 | BV79: 0.0 | BW79: 1860.0 | BX79: 87.0 | BY79: 83700.0 | BZ79: 3600.0 | CA79: 7.5 | CB79: 0.6 | CC79: 0.0 | CD79: 0.0 | CE79: 0.0 | CF79: 0.0 | CG79: 187.2 | CH79: 7.9 | CI79: 50.8 | CJ79: 1.9 | CK79: 1.1 | CL79: 0.4 | CM79: 0.0 | CN79: 0.0 | CO79: 0.0 | CP79: 0.0 | CQ79: 0.0 | CR79: 0.0 | CS79: 0.0 | CT79: 0.0 | CU79: 0.0 | CV79: 0.0 | CW79: 0.0 | CX79: 0.0 | CY79: 0.0 | CZ79: 0.0 | DA79: 0.0 | DB79: 0.0 | DC79: 0.0 | DD79: 0.0 | DE79: 0.0 | DF79: 0.0 | DG79: 2.9 | DH79: 0.1 | DI79: 0.0 | DJ79: 0.0 | DK79: 0.0 | DL79: 0.0 | DM79: 0.0 | DN79: 0.0 | DO79: 0.0 | DP79: 0.0 | DQ79: 0.0 | DR79: 0.0 | DS79: 0.0 | DT79: 0.0 | DU79: 0.0 | DV79: 0.0 | DW79: 0.0 | DX79: 0.0 | DY79: 0.0 | DZ79: 0.0 | EA79: 0.0 | EB79: 0.0 | EC79: 0.0 | ED79: 0.0 | EE79: 0.0 | EF79: 0.0 | EG79: 0.0 | EH79: 0.0 | EI79: 0.0 | EJ79: 0.0 | EK79: 0.0 | EL79: 0.0 | EM79: 0.0 | EN79: 0.0 | EO79: 0.0 | EP79: 0.0 | EQ79: 0.0 | ER79: 0.0 | ES79: 0.0 | ET79: 0.0 | EU79: 0.0 | EV79: 0.0 | EW79: 0.0 | EX79: 0.0 | EY79: 0.0 | EZ79: 0.0 | FA79: 0.0 | FB79: 0.0
A80: CZ03 | B80: Crd | C80: CZ3_16 | E80: 47.45 | G80: 33.36 | I80: 9.35 | J80: 0.26 | K80: 7.52 | L80: 0.02 | M80: 0.33 | N80: 0.00 | O80: 0.05 | P80: 0.00 | Q80: 98.33 | S80: 4.92 | T80: 0.00 | U80: 4.08 | W80: 0.81 | X80: 0.02 | Y80: 1.16 | Z80: 0.00 | AA80: 0.07 | AB80: 0.00 | AD80: 0.59 | AN80: 0.41 | AP80: 730 | AQ80: 6 | AR80: 752 | AS80: 4.1 | AT80: 697 | AU80: 752 | AW80: 692 | AY80: 233.0 | AZ80: 12.0 | BA80: 4.3 | BB80: 1.0 | BC80: 2240.0 | BD80: 100.0 | BE80: 67700.0 | BF80: 2500.0 | BG80: 281800.0 | BH80: 7400.0 | BI80: 44.8 | BJ80: 5.4 | BK80: 0.0 | BL80: 0.0 | BM80: 0.0 | BN80: 0.0 | BO80: 0.5 | BP80: 0.1 | BQ80: 5.1 | BR80: 1.7 | BS80: 0.4 | BT80: 0.1 | BU80: 0.0 | BV80: 0.0 | BW80: 1792.0 | BX80: 90.0 | BY80: 81800.0 | BZ80: 3500.0 | CA80: 7.9 | CB80: 0.6 | CC80: 0.0 | CD80: 0.0 | CE80: 0.0 | CF80: 0.0 | CG80: 206.4 | CH80: 8.3 | CI80: 47.9 | CJ80: 2.3 | CK80: 1.1 | CL80: 0.3 | CM80: 0.0 | CN80: 0.0 | CO80: 0.0 | CP80: 0.0 | CQ80: 0.0 | CR80: 0.0 | CS80: 0.0 | CT80: 0.0 | CU80: 0.0 | CV80: 0.0 | CW80: 0.0 | CX80: 0.0 | CY80: 0.0 | CZ80: 0.0 | DA80: 0.0 | DB80: 0.0 | DC80: 0.0 | DD80: 0.0 | DE80: 0.0 | DF80: 0.0 | DG80: 3.1 | DH80: 0.2 | DI80: 0.0 | DJ80: 0.0 | DK80: 0.0 | DL80: 0.0 | DM80: 0.0 | DN80: 0.0 | DO80: 0.0 | DP80: 0.0 | DQ80: 0.0 | DR80: 0.0 | DS80: 0.0 | DT80: 0.0 | DU80: 0.0 | DV80: 0.0 | DW80: 0.0 | DX80: 0.0 | DY80: 0.0 | DZ80: 0.0 | EA80: 0.0 | EB80: 0.0 | EC80: 0.0 | ED80: 0.0 | EE80: 0.0 | EF80: 0.0 | EG80: 0.0 | EH80: 0.0 | EI80: 0.0 | EJ80: 0.0 | EK80: 0.0 | EL80: 0.0 | EM80: 0.0 | EN80: 0.0 | EO80: 0.0 | EP80: 0.0 | EQ80: 0.0 | ER80: 0.0 | ES80: 0.0 | ET80: 0.0 | EU80: 0.0 | EV80: 0.0 | EW80: 0.0 | EX80: 0.0 | EY80: 0.0 | EZ80: 0.0 | FA80: 0.0 | FB80: 0.0
A81: CZ03 | B81: Crd | C81: CZ3_22 | E81: 48.21 | F81: 0.01 | G81: 33.17 | H81: 0.00 | I81: 9.48 | J81: 0.25 | K81: 7.48 | L81: 0.01 | M81: 0.22 | N81: 0.00 | P81: 0.01 | Q81: 98.84 | S81: 4.97 | T81: 0.00 | U81: 4.03 | W81: 0.82 | X81: 0.02 | Y81: 1.15 | Z81: 0.00 | AA81: 0.04 | AB81: 0.00 | AD81: 0.58 | AN81: 0.42 | AP81: 730 | AQ81: 6 | AR81: 752 | AS81: 4.1 | AT81: 742 | AU81: 752 | AW81: 692 | AY81: 248.0 | AZ81: 13.0 | BA81: 3.4 | BB81: 1.0 | BC81: 2690.0 | BD81: 220.0 | BE81: 79300.0 | BF81: 5400.0 | BG81: 307000.0 | BH81: 12000.0 | BI81: 45.5 | BJ81: 7.8 | BK81: 0.0 | BL81: 0.0 | BM81: 0.0 | BN81: 0.0 | BO81: 0.6 | BP81: 0.2 | BQ81: 7.1 | BR81: 1.7 | BS81: 0.3 | BT81: 0.1 | BU81: 0.0 | BV81: 0.0 | BW81: 1880.0 | BX81: 110.0 | BY81: 91300.0 | BZ81: 5000.0 | CA81: 8.5 | CB81: 0.6 | CC81: 3.3 | CD81: 0.8 | CE81: 0.0 | CF81: 0.0 | CG81: 212.0 | CH81: 12.0 | CI81: 45.3 | CJ81: 3.5 | CK81: 1.3 | CL81: 0.4 | CM81: 0.0 | CN81: 0.0 | CO81: 0.0 | CP81: 0.0 | CQ81: 0.0 | CR81: 0.0 | CS81: 0.0 | CT81: 0.0 | CU81: 0.0 | CV81: 0.0 | CW81: 0.0 | CX81: 0.0 | CY81: 0.0 | CZ81: 0.0 | DA81: 0.0 | DB81: 0.0 | DC81: 0.0 | DD81: 0.0 | DE81: 0.0 | DF81: 0.0 | DG81: 3.8 | DH81: 0.2 | DI81: 0.0 | DJ81: 0.0 | DK81: 0.0 | DL81: 0.0 | DM81: 0.0 | DN81: 0.0 | DO81: 0.0 | DP81: 0.0 | DQ81: 0.0 | DR81: 0.0 | DS81: 0.0 | DT81: 0.0 | DU81: 0.0 | DV81: 0.0 | DW81: 0.0 | DX81: 0.0 | DY81: 0.0 | DZ81: 0.0 | EA81: 0.0 | EB81: 0.0 | EC81: 0.0 | ED81: 0.0 | EE81: 0.0 | EF81: 0.0 | EG81: 0.0 | EH81: 0.0 | EI81: 0.0 | EJ81: 0.0 | EK81: 0.0 | EL81: 0.0 | EM81: 0.0 | EN81: 0.0 | EO81: 0.0 | EP81: 0.0 | EQ81: 0.0 | ER81: 0.0 | ES81: 0.0 | ET81: 0.0 | EU81: 0.0 | EV81: 0.0 | EW81: 0.0 | EX81: 0.0 | EY81: 0.0 | EZ81: 0.0 | FA81: 0.0 | FB81: 0.0
A82: CZ03 | B82: Crd | C82: CZ3_23 | E82: 47.51 | F82: 0.00 | G82: 33.12 | I82: 8.62 | J82: 0.20 | K82: 7.13 | L82: 0.02 | M82: 0.19 | N82: 0.38 | Q82: 97.96 | S82: 4.97 | T82: 0.00 | U82: 4.08 | W82: 0.75 | X82: 0.02 | Y82: 1.11 | Z82: 0.00 | AA82: 0.04 | AB82: 0.05 | AD82: 0.60 | AN82: 0.40 | AP82: 730 | AQ82: 6 | AR82: 752 | AS82: 4.1 | AT82: 753 | AU82: 752 | AW82: 692 | AY82: 209.0 | AZ82: 17.0 | BA82: 3.8 | BB82: 0.6 | BC82: 1900.0 | BD82: 110.0 | BE82: 65400.0 | BF82: 2700.0 | BG82: 279000.0 | BH82: 12000.0 | BI82: 45.2 | BJ82: 8.0 | BK82: 0.0 | BL82: 0.0 | BM82: 0.0 | BN82: 0.0 | BO82: 0.5 | BP82: 0.1 | BQ82: 7.0 | BR82: 2.0 | BS82: 0.0 | BT82: 0.0 | BU82: 0.0 | BV82: 0.0 | BW82: 1610.0 | BX82: 130.0 | BY82: 73400.0 | BZ82: 4600.0 | CA82: 6.8 | CB82: 0.5 | CC82: 0.0 | CD82: 0.0 | CE82: 0.0 | CF82: 0.0 | CG82: 201.0 | CH82: 12.0 | CI82: 45.2 | CJ82: 2.3 | CK82: 0.0 | CL82: 0.0 | CM82: 0.0 | CN82: 0.0 | CO82: 0.0 | CP82: 0.0 | CQ82: 0.0 | CR82: 0.0 | CS82: 0.0 | CT82: 0.0 | CU82: 0.0 | CV82: 0.0 | CW82: 0.0 | CX82: 0.0 | CY82: 0.0 | CZ82: 0.0 | DA82: 0.0 | DB82: 0.0 | DC82: 0.0 | DD82: 0.0 | DE82: 0.0 | DF82: 0.0 | DG82: 2.7 | DH82: 0.3 | DI82: 0.0 | DJ82: 0.0 | DK82: 0.0 | DL82: 0.0 | DM82: 0.0 | DN82: 0.0 | DO82: 0.0 | DP82: 0.0 | DQ82: 0.0 | DR82: 0.0 | DS82: 0.0 | DT82: 0.0 | DU82: 0.0 | DV82: 0.0 | DW82: 0.0 | DX82: 0.0 | DY82: 0.0 | DZ82: 0.0 | EA82: 0.0 | EB82: 0.0 | EC82: 0.0 | ED82: 0.0 | EE82: 0.0 | EF82: 0.0 | EG82: 0.0 | EH82: 0.0 | EI82: 0.0 | EJ82: 0.0 | EK82: 0.0 | EL82: 0.0 | EM82: 0.0 | EN82: 0.0 | EO82: 0.0 | EP82: 0.0 | EQ82: 0.0 | ER82: 0.0 | ES82: 0.0 | ET82: 0.0 | EU82: 0.0 | EV82: 0.0 | EW82: 0.0 | EX82: 0.0 | EY82: 0.0 | EZ82: 0.0 | FA82: 0.0 | FB82: 0.0
A83: CZ03 | B83: Crd | C83: CZ3_36 | E83: 47.35 | F83: 0.02 | G83: 33.25 | I83: 9.57 | J83: 0.23 | K83: 7.79 | L83: 0.03 | M83: 0.20 | O83: 0.01 | Q83: 98.44 | S83: 4.91 | T83: 0.00 | U83: 4.06 | W83: 0.83 | X83: 0.02 | Y83: 1.20 | Z83: 0.00 | AA83: 0.04 | AB83: 0.00 | AD83: 0.59 | AN83: 0.41 | AP83: 730 | AQ83: 6 | AR83: 752 | AS83: 4.1 | AT83: 750 | AU83: 752 | AW83: 692 | AY83: 210.0 | AZ83: 12.0 | BA83: 2.3 | BB83: 0.6 | BC83: 2390.0 | BD83: 130.0 | BE83: 72100.0 | BF83: 3000.0 | BG83: 281000.0 | BH83: 10000.0 | BI83: 46.7 | BJ83: 8.0 | BK83: 0.0 | BL83: 0.0 | BM83: 0.0 | BN83: 0.0 | BO83: 0.6 | BP83: 0.2 | BQ83: 5.8 | BR83: 1.6 | BS83: 0.0 | BT83: 0.0 | BU83: 0.0 | BV83: 0.0 | BW83: 1770.0 | BX83: 100.0 | BY83: 87700.0 | BZ83: 4000.0 | CA83: 8.4 | CB83: 0.7 | CC83: 4.3 | CD83: 0.9 | CE83: 0.0 | CF83: 0.0 | CG83: 206.0 | CH83: 15.0 | CI83: 45.9 | CJ83: 3.7 | CK83: 1.1 | CL83: 0.3 | CM83: 0.3 | CN83: 0.1 | CO83: 0.0 | CP83: 0.0 | CQ83: 0.0 | CR83: 0.0 | CS83: 0.0 | CT83: 0.0 | CU83: 0.0 | CV83: 0.0 | CW83: 0.0 | CX83: 0.0 | CY83: 0.0 | CZ83: 0.0 | DA83: 0.0 | DB83: 0.0 | DC83: 0.0 | DD83: 0.0 | DE83: 0.0 | DF83: 0.0 | DG83: 4.0 | DH83: 0.3 | DI83: 0.0 | DJ83: 0.0 | DK83: 0.0 | DL83: 0.0 | DM83: 0.0 | DN83: 0.0 | DO83: 0.0 | DP83: 0.0 | DQ83: 0.0 | DR83: 0.0 | DS83: 0.0 | DT83: 0.0 | DU83: 0.0 | DV83: 0.0 | DW83: 0.0 | DX83: 0.0 | DY83: 0.0 | DZ83: 0.0 | EA83: 0.0 | EB83: 0.0 | EC83: 0.0 | ED83: 0.0 | EE83: 0.0 | EF83: 0.0 | EG83: 0.0 | EH83: 0.0 | EI83: 0.0 | EJ83: 0.0 | EK83: 0.0 | EL83: 0.0 | EM83: 0.0 | EN83: 0.0 | EO83: 0.0 | EP83: 0.0 | EQ83: 0.0 | ER83: 0.0 | ES83: 0.0 | ET83: 0.0 | EU83: 0.0 | EV83: 0.0 | EW83: 0.0 | EX83: 0.0 | EY83: 0.0 | EZ83: 0.0 | FA83: 0.0 | FB83: 0.0
A84: CZ03 | B84: Crd | C84: CZ3_37 | E84: 46.83 | G84: 33.64 | I84: 9.58 | J84: 0.26 | K84: 7.85 | L84: 0.01 | M84: 0.18 | P84: 0.01 | Q84: 98.36 | S84: 4.87 | T84: 0.00 | U84: 4.12 | W84: 0.83 | X84: 0.02 | Y84: 1.22 | Z84: 0.00 | AA84: 0.04 | AB84: 0.00 | AD84: 0.59 | AN84: 0.41 | AP84: 730 | AQ84: 6 | AR84: 752 | AS84: 4.1 | AT84: 756 | AU84: 752 | AW84: 692 | AY84: 187.0 | AZ84: 15.0 | BA84: 4.6 | BB84: 1.1 | BC84: 1900.0 | BD84: 100.0 | BE84: 63200.0 | BF84: 2900.0 | BG84: 282000.0 | BH84: 15000.0 | BI84: 43.3 | BJ84: 8.8 | BK84: 0.0 | BL84: 0.0 | BM84: 0.0 | BN84: 0.0 | BO84: 0.5 | BP84: 0.1 | BQ84: 6.4 | BR84: 1.6 | BS84: 0.0 | BT84: 0.0 | BU84: 0.0 | BV84: 0.0 | BW84: 1590.0 | BX84: 120.0 | BY84: 73900.0 | BZ84: 4500.0 | CA84: 7.1 | CB84: 0.6 | CC84: 3.3 | CD84: 0.8 | CE84: 0.0 | CF84: 0.0 | CG84: 193.0 | CH84: 13.0 | CI84: 41.3 | CJ84: 2.7 | CK84: 0.0 | CL84: 0.0 | CM84: 0.0 | CN84: 0.0 | CO84: 0.0 | CP84: 0.0 | CQ84: 0.0 | CR84: 0.0 | CS84: 0.0 | CT84: 0.0 | CU84: 0.0 | CV84: 0.0 | CW84: 0.0 | CX84: 0.0 | CY84: 0.0 | CZ84: 0.0 | DA84: 0.0 | DB84: 0.0 | DC84: 0.0 | DD84: 0.0 | DE84: 0.0 | DF84: 0.0 | DG84: 3.1 | DH84: 0.4 | DI84: 0.0 | DJ84: 0.0 | DK84: 0.0 | DL84: 0.0 | DM84: 0.0 | DN84: 0.0 | DO84: 0.0 | DP84: 0.0 | DQ84: 0.0 | DR84: 0.0 | DS84: 0.0 | DT84: 0.0 | DU84: 0.0 | DV84: 0.0 | DW84: 0.0 | DX84: 0.0 | DY84: 0.0 | DZ84: 0.0 | EA84: 0.0 | EB84: 0.0 | EC84: 0.0 | ED84: 0.0 | EE84: 0.0 | EF84: 0.0 | EG84: 0.0 | EH84: 0.0 | EI84: 0.0 | EJ84: 0.0 | EK84: 0.0 | EL84: 0.0 | EM84: 0.0 | EN84: 0.0 | EO84: 0.0 | EP84: 0.0 | EQ84: 0.0 | ER84: 0.0 | ES84: 0.0 | ET84: 0.0 | EU84: 0.0 | EV84: 0.0 | EW84: 0.0 | EX84: 0.0 | EY84: 0.0 | EZ84: 0.0 | FA84: 0.0 | FB84: 0.0
A85: CZ03 | B85: Kfs | C85: CZ3_1 | E85: 62.09 | G85: 19.48 | I85: 0.02 | J85: 0.00 | L85: 0.12 | M85: 2.75 | N85: 12.61 | O85: 0.03 | P85: 0.01 | Q85: 97.11 | S85: 11.72 | T85: 0.00 | U85: 4.33 | W85: 0.00 | X85: 0.00 | Y85: 0.00 | Z85: 0.02 | AA85: 1.01 | AB85: 3.03 | AD85: 0.00 | AK85: 0.01 | AL85: 0.25 | AM85: 0.75 | AP85: 730 | AQ85: 6 | AR85: 752 | AS85: 4.1 | AU85: 752 | AW85: 692 | AY85: 2.0 | AZ85: 0.3 | BA85: 0.0 | BB85: 0.0 | BC85: 25500.0 | BD85: 2000.0 | BE85: 43.1 | BF85: 3.7 | BG85: 185000.0 | BH85: 14000.0 | BI85: 749.0 | BJ85: 60.0 | BK85: 99760.0 | BL85: 7000.0 | BM85: 1440.0 | BN85: 240.0 | BO85: 0.0 | BP85: 0.0 | BQ85: 23.6 | BR85: 4.1 | BS85: 0.0 | BT85: 0.0 | BU85: 0.0 | BV85: 0.0 | BW85: 3.3 | BX85: 0.5 | BY85: 114.0 | BZ85: 13.0 | CA85: 0.0 | CB85: 0.0 | CC85: 0.0 | CD85: 0.0 | CE85: 0.0 | CF85: 0.0 | CG85: 0.0 | CH85: 0.0 | CI85: 7.3 | CJ85: 0.8 | CK85: 1.3 | CL85: 0.3 | CM85: 240.0 | CN85: 18.0 | CO85: 433.0 | CP85: 33.0 | CQ85: 0.0 | CR85: 0.0 | CS85: 0.0 | CT85: 0.0 | CU85: 0.0 | CV85: 0.0 | CW85: 0.0 | CX85: 0.0 | CY85: 0.0 | CZ85: 0.0 | DA85: 0.0 | DB85: 0.0 | DC85: 4.3 | DD85: 0.5 | DE85: 0.0 | DF85: 0.0 | DG85: 1.4 | DH85: 0.1 | DI85: 5430.0 | DJ85: 420.0 | DK85: 0.5 | DL85: 0.1 | DM85: 0.4 | DN85: 0.1 | DO85: 0.0 | DP85: 0.0 | DQ85: 0.0 | DR85: 0.0 | DS85: 0.0 | DT85: 0.0 | DU85: 2.4 | DV85: 0.3 | DW85: 0.0 | DX85: 0.0 | DY85: 0.0 | DZ85: 0.0 | EA85: 0.0 | EB85: 0.0 | EC85: 0.0 | ED85: 0.0 | EE85: 0.0 | EF85: 0.0 | EG85: 0.0 | EH85: 0.0 | EI85: 0.0 | EJ85: 0.0 | EK85: 0.0 | EL85: 0.0 | EM85: 0.0 | EN85: 0.0 | EO85: 0.0 | EP85: 0.0 | EQ85: 0.0 | ER85: 0.0 | ES85: 1.3 | ET85: 0.1 | EU85: 96.3 | EV85: 8.4 | EW85: 0.0 | EX85: 0.0 | EY85: 0.0 | EZ85: 0.0 | FA85: 0.0 | FB85: 0.0
A86: CZ03 | B86: Kfs | C86: CZ3_2 | E86: 61.98 | G86: 19.49 | I86: 0.02 | K86: 0.04 | L86: 0.11 | M86: 1.75 | N86: 14.09 | P86: 0.02 | Q86: 97.49 | S86: 11.71 | T86: 0.00 | U86: 4.34 | W86: 0.00 | X86: 0.00 | Y86: 0.01 | Z86: 0.02 | AA86: 0.64 | AB86: 3.40 | AD86: 0.77 | AK86: 0.01 | AL86: 0.16 | AM86: 0.84 | AP86: 730 | AQ86: 6 | AR86: 752 | AS86: 4.1 | AU86: 752 | AW86: 692 | AY86: 4.7 | AZ86: 0.5 | BA86: 0.0 | BB86: 0.0 | BC86: 21100.0 | BD86: 1400.0 | BE86: 47.3 | BF86: 4.1 | BG86: 175000.0 | BH86: 11000.0 | BI86: 801.0 | BJ86: 38.0 | BK86: 124700.0 | BL86: 9800.0 | BM86: 1620.0 | BN86: 220.0 | BO86: 0.0 | BP86: 0.0 | BQ86: 24.2 | BR86: 3.2 | BS86: 0.0 | BT86: 0.0 | BU86: 0.0 | BV86: 0.0 | BW86: 5.6 | BX86: 0.6 | BY86: 128.0 | BZ86: 11.0 | CA86: 0.0 | CB86: 0.0 | CC86: 0.0 | CD86: 0.0 | CE86: 0.0 | CF86: 0.0 | CG86: 1.1 | CH86: 0.3 | CI86: 8.7 | CJ86: 0.8 | CK86: 1.1 | CL86: 0.3 | CM86: 245.0 | CN86: 20.0 | CO86: 471.0 | CP86: 33.0 | CQ86: 0.0 | CR86: 0.0 | CS86: 0.0 | CT86: 0.0 | CU86: 0.0 | CV86: 0.0 | CW86: 0.0 | CX86: 0.0 | CY86: 0.0 | CZ86: 0.0 | DA86: 0.0 | DB86: 0.0 | DC86: 7.9 | DD86: 0.7 | DE86: 0.0 | DF86: 0.0 | DG86: 2.6 | DH86: 0.2 | DI86: 4450.0 | DJ86: 320.0 | DK86: 0.5 | DL86: 0.1 | DM86: 0.5 | DN86: 0.1 | DO86: 0.0 | DP86: 0.0 | DQ86: 0.0 | DR86: 0.0 | DS86: 0.0 | DT86: 0.0 | DU86: 3.2 | DV86: 0.2 | DW86: 0.0 | DX86: 0.0 | DY86: 0.0 | DZ86: 0.0 | EA86: 0.0 | EB86: 0.0 | EC86: 0.0 | ED86: 0.0 | EE86: 0.0 | EF86: 0.0 | EG86: 0.0 | EH86: 0.0 | EI86: 0.0 | EJ86: 0.0 | EK86: 0.0 | EL86: 0.0 | EM86: 0.0 | EN86: 0.0 | EO86: 0.0 | EP86: 0.0 | EQ86: 0.0 | ER86: 0.0 | ES86: 1.4 | ET86: 0.2 | EU86: 108.6 | EV86: 6.6 | EW86: 0.0 | EX86: 0.0 | EY86: 0.0 | EZ86: 0.0 | FA86: 0.0 | FB86: 0.0
A87: CZ03 | B87: Kfs | C87: CZ3_28 | E87: 59.45 | F87: 0.02 | G87: 19.35 | I87: 0.26 | K87: 0.10 | L87: 0.10 | M87: 1.35 | N87: 14.84 | O87: 0.04 | Q87: 95.50 | S87: 11.57 | T87: 0.00 | U87: 4.44 | W87: 0.04 | X87: 0.00 | Y87: 0.03 | Z87: 0.02 | AA87: 0.51 | AB87: 3.68 | AD87: 0.40 | AK87: 0.00 | AL87: 0.12 | AM87: 0.87 | AP87: 730 | AQ87: 6 | AR87: 752 | AS87: 4.1 | AU87: 752 | AW87: 692 | AY87: 2.3 | AZ87: 0.3 | BA87: 0.0 | BB87: 0.0 | BC87: 18500.0 | BD87: 1600.0 | BE87: 32.5 | BF87: 3.3 | BG87: 180000.0 | BH87: 14000.0 | BI87: 837.0 | BJ87: 51.0 | BK87: 84300.0 | BL87: 8000.0 | BM87: 1100.0 | BN87: 190.0 | BO87: 0.0 | BP87: 0.0 | BQ87: 55.8 | BR87: 8.3 | BS87: 0.0 | BT87: 0.0 | BU87: 0.0 | BV87: 0.0 | BW87: 2.7 | BX87: 0.4 | BY87: 55.5 | BZ87: 5.9 | CA87: 0.0 | CB87: 0.0 | CC87: 0.0 | CD87: 0.0 | CE87: 0.0 | CF87: 0.0 | CG87: 0.0 | CH87: 0.0 | CI87: 8.4 | CJ87: 0.8 | CK87: 1.3 | CL87: 0.4 | CM87: 220.0 | CN87: 28.0 | CO87: 420.0 | CP87: 40.0 | CQ87: 0.0 | CR87: 0.0 | CS87: 0.0 | CT87: 0.0 | CU87: 0.0 | CV87: 0.0 | CW87: 0.0 | CX87: 0.0 | CY87: 0.0 | CZ87: 0.0 | DA87: 0.0 | DB87: 0.0 | DC87: 4.1 | DD87: 0.6 | DE87: 0.0 | DF87: 0.0 | DG87: 2.7 | DH87: 0.3 | DI87: 3250.0 | DJ87: 310.0 | DK87: 1.0 | DL87: 0.1 | DM87: 0.8 | DN87: 0.1 | DO87: 0.0 | DP87: 0.0 | DQ87: 0.0 | DR87: 0.0 | DS87: 0.0 | DT87: 0.0 | DU87: 2.4 | DV87: 0.3 | DW87: 0.0 | DX87: 0.0 | DY87: 0.0 | DZ87: 0.0 | EA87: 0.0 | EB87: 0.0 | EC87: 0.0 | ED87: 0.0 | EE87: 0.0 | EF87: 0.0 | EG87: 0.0 | EH87: 0.0 | EI87: 0.0 | EJ87: 0.0 | EK87: 0.0 | EL87: 0.0 | EM87: 0.0 | EN87: 0.0 | EO87: 0.0 | EP87: 0.0 | EQ87: 0.0 | ER87: 0.0 | ES87: 1.0 | ET87: 0.1 | EU87: 91.3 | EV87: 9.6 | EW87: 0.0 | EX87: 0.0 | EY87: 0.0 | EZ87: 0.0 | FA87: 0.0 | FB87: 0.0
A88: CZ03 | B88: Kfs | C88: CZ3_29 | E88: 60.65 | F88: 0.03 | G88: 19.47 | I88: 0.02 | K88: 0.01 | L88: 0.04 | M88: 1.07 | N88: 15.25 | O88: 0.09 | P88: 0.01 | Q88: 96.63 | S88: 11.63 | T88: 0.00 | U88: 4.40 | W88: 0.00 | X88: 0.00 | Y88: 0.00 | Z88: 0.01 | AA88: 0.40 | AB88: 3.73 | AD88: 0.52 | AK88: 0.00 | AL88: 0.10 | AM88: 0.90 | AP88: 730 | AQ88: 6 | AR88: 752 | AS88: 4.1 | AU88: 752 | AW88: 692 | AY88: 3.6 | AZ88: 0.7 | BA88: 0.0 | BB88: 0.0 | BC88: 16400.0 | BD88: 2200.0 | BE88: 25.3 | BF88: 3.3 | BG88: 173000.0 | BH88: 15000.0 | BI88: 982.0 | BJ88: 87.0 | BK88: 124000.0 | BL88: 16000.0 | BM88: 740.0 | BN88: 240.0 | BO88: 0.0 | BP88: 0.0 | BQ88: 52.2 | BR88: 7.8 | BS88: 0.0 | BT88: 0.0 | BU88: 0.0 | BV88: 0.0 | BW88: 4.0 | BX88: 0.7 | BY88: 77.0 | BZ88: 12.0 | CA88: 0.0 | CB88: 0.0 | CC88: 0.0 | CD88: 0.0 | CE88: 0.0 | CF88: 0.0 | CG88: 0.0 | CH88: 0.0 | CI88: 12.5 | CJ88: 1.1 | CK88: 1.6 | CL88: 0.5 | CM88: 197.0 | CN88: 21.0 | CO88: 372.0 | CP88: 44.0 | CQ88: 0.0 | CR88: 0.0 | CS88: 0.0 | CT88: 0.0 | CU88: 0.0 | CV88: 0.0 | CW88: 0.0 | CX88: 0.0 | CY88: 0.0 | CZ88: 0.0 | DA88: 0.0 | DB88: 0.0 | DC88: 5.0 | DD88: 0.5 | DE88: 0.0 | DF88: 0.0 | DG88: 3.3 | DH88: 0.5 | DI88: 3240.0 | DJ88: 450.0 | DK88: 0.0 | DL88: 0.0 | DM88: 0.7 | DN88: 0.1 | DO88: 0.0 | DP88: 0.0 | DQ88: 0.0 | DR88: 0.0 | DS88: 0.0 | DT88: 0.0 | DU88: 2.8 | DV88: 0.4 | DW88: 0.0 | DX88: 0.0 | DY88: 0.0 | DZ88: 0.0 | EA88: 0.0 | EB88: 0.0 | EC88: 0.0 | ED88: 0.0 | EE88: 0.0 | EF88: 0.0 | EG88: 0.0 | EH88: 0.0 | EI88: 0.0 | EJ88: 0.0 | EK88: 0.0 | EL88: 0.0 | EM88: 0.0 | EN88: 0.0 | EO88: 0.0 | EP88: 0.0 | EQ88: 0.0 | ER88: 0.0 | ES88: 1.3 | ET88: 0.2 | EU88: 91.0 | EV88: 14.0 | EW88: 0.0 | EX88: 0.0 | EY88: 0.0 | EZ88: 0.0 | FA88: 0.0 | FB88: 0.0
A89: CZ03 | B89: Pl | C89: CZ3_5 | E89: 58.63 | G89: 24.81 | I89: 0.02 | J89: 0.01 | L89: 5.11 | M89: 8.64 | N89: 0.26 | Q89: 97.46 | S89: 10.71 | T89: 0.00 | U89: 5.34 | W89: 0.00 | X89: 0.00 | Y89: 0.00 | Z89: 1.00 | AA89: 3.06 | AB89: 0.06 | AD89: 0.00 | AK89: 0.24 | AL89: 0.74 | AM89: 0.01 | AP89: 730 | AQ89: 6 | AR89: 752 | AS89: 4.1 | AU89: 752 | AW89: 692 | AY89: 0.0 | AZ89: 0.0 | BA89: 0.0 | BB89: 0.0 | BC89: 75800.0 | BD89: 4600.0 | BE89: 2.6 | BF89: 0.6 | BG89: 211500.0 | BH89: 9200.0 | BI89: 785.0 | BJ89: 49.0 | BK89: 2450.0 | BL89: 140.0 | BM89: 41900.0 | BN89: 2800.0 | BO89: 0.0 | BP89: 0.0 | BQ89: 31.3 | BR89: 5.3 | BS89: 0.0 | BT89: 0.0 | BU89: 0.0 | BV89: 0.0 | BW89: 18.6 | BX89: 1.3 | BY89: 46.1 | BZ89: 5.2 | CA89: 0.0 | CB89: 0.0 | CC89: 0.0 | CD89: 0.0 | CE89: 0.0 | CF89: 0.0 | CG89: 0.0 | CH89: 0.0 | CI89: 20.5 | CJ89: 1.6 | CK89: 1.5 | CL89: 0.3 | CM89: 0.7 | CN89: 0.1 | CO89: 439.0 | CP89: 31.0 | CQ89: 0.7 | CR89: 0.1 | CS89: 0.0 | CT89: 0.0 | CU89: 0.0 | CV89: 0.0 | CW89: 0.0 | CX89: 0.0 | CY89: 0.0 | CZ89: 0.0 | DA89: 0.0 | DB89: 0.0 | DC89: 1.4 | DD89: 0.2 | DE89: 0.0 | DF89: 0.0 | DG89: 0.0 | DH89: 0.0 | DI89: 91.5 | DJ89: 7.2 | DK89: 5.1 | DL89: 0.4 | DM89: 8.0 | DN89: 0.4 | DO89: 0.7 | DP89: 0.1 | DQ89: 2.0 | DR89: 0.3 | DS89: 0.4 | DT89: 0.1 | DU89: 2.3 | DV89: 0.2 | DW89: 0.0 | DX89: 0.0 | DY89: 0.0 | DZ89: 0.0 | EA89: 0.0 | EB89: 0.0 | EC89: 0.0 | ED89: 0.0 | EE89: 0.0 | EF89: 0.0 | EG89: 0.0 | EH89: 0.0 | EI89: 0.0 | EJ89: 0.0 | EK89: 0.0 | EL89: 0.0 | EM89: 0.0 | EN89: 0.0 | EO89: 0.0 | EP89: 0.0 | EQ89: 0.0 | ER89: 0.0 | ES89: 0.0 | ET89: 0.0 | EU89: 36.5 | EV89: 2.9 | EW89: 0.0 | EX89: 0.0 | EY89: 0.0 | EZ89: 0.0 | FA89: 0.0 | FB89: 0.0
A90: CZ03 | B90: Pl | C90: CZ3_7 | E90: 61.64 | G90: 23.95 | H90: 0.01 | I90: 0.01 | L90: 4.30 | M90: 8.99 | N90: 0.19 | P90: 0.00 | Q90: 99.07 | S90: 11.02 | T90: 0.00 | U90: 5.04 | W90: 0.00 | X90: 0.00 | Y90: 0.00 | Z90: 0.82 | AA90: 3.11 | AB90: 0.04 | AD90: 0.00 | AK90: 0.21 | AL90: 0.78 | AM90: 0.01 | AP90: 730 | AQ90: 6 | AR90: 752 | AS90: 4.1 | AU90: 752 | AW90: 692 | AY90: 0.0 | AZ90: 0.0 | BA90: 0.0 | BB90: 0.0 | BC90: 90600.0 | BD90: 4800.0 | BE90: 1.4 | BF90: 0.6 | BG90: 212000.0 | BH90: 12000.0 | BI90: 588.0 | BJ90: 29.0 | BK90: 1920.0 | BL90: 100.0 | BM90: 37100.0 | BN90: 2200.0 | BO90: 0.0 | BP90: 0.0 | BQ90: 19.7 | BR90: 2.9 | BS90: 0.0 | BT90: 0.0 | BU90: 0.0 | BV90: 0.0 | BW90: 10.8 | BX90: 0.9 | BY90: 29.1 | BZ90: 3.8 | CA90: 0.0 | CB90: 0.0 | CC90: 0.0 | CD90: 0.0 | CE90: 0.0 | CF90: 0.0 | CG90: 0.0 | CH90: 0.0 | CI90: 13.3 | CJ90: 0.9 | CK90: 1.4 | CL90: 0.4 | CM90: 0.2 | CN90: 0.1 | CO90: 424.0 | CP90: 20.0 | CQ90: 1.3 | CR90: 0.2 | CS90: 0.0 | CT90: 0.0 | CU90: 0.0 | CV90: 0.0 | CW90: 0.0 | CX90: 0.0 | CY90: 0.0 | CZ90: 0.0 | DA90: 0.0 | DB90: 0.0 | DC90: 1.4 | DD90: 0.1 | DE90: 0.0 | DF90: 0.0 | DG90: 0.0 | DH90: 0.0 | DI90: 82.5 | DJ90: 5.5 | DK90: 2.5 | DL90: 0.2 | DM90: 3.7 | DN90: 0.3 | DO90: 0.3 | DP90: 0.1 | DQ90: 1.2 | DR90: 0.2 | DS90: 0.0 | DT90: 0.0 | DU90: 2.1 | DV90: 0.2 | DW90: 0.0 | DX90: 0.0 | DY90: 0.0 | DZ90: 0.0 | EA90: 0.0 | EB90: 0.0 | EC90: 0.0 | ED90: 0.0 | EE90: 0.0 | EF90: 0.0 | EG90: 0.0 | EH90: 0.0 | EI90: 0.0 | EJ90: 0.0 | EK90: 0.0 | EL90: 0.0 | EM90: 0.0 | EN90: 0.0 | EO90: 0.0 | EP90: 0.0 | EQ90: 0.0 | ER90: 0.0 | ES90: 0.0 | ET90: 0.0 | EU90: 33.7 | EV90: 1.5 | EW90: 0.0 | EX90: 0.0 | EY90: 0.0 | EZ90: 0.0 | FA90: 0.0 | FB90: 0.0
A91: CZ03 | B91: Pl | C91: CZ3_8 | E91: 61.13 | F91: 0.00 | G91: 23.84 | H91: 0.01 | I91: 0.01 | L91: 4.29 | M91: 8.69 | N91: 0.40 | P91: 0.01 | Q91: 98.39 | S91: 11.01 | T91: 0.00 | U91: 5.06 | W91: 0.00 | X91: 0.00 | Y91: 0.00 | Z91: 0.83 | AA91: 3.03 | AB91: 0.09 | AD91: 0.00 | AK91: 0.21 | AL91: 0.77 | AM91: 0.02 | AP91: 730 | AQ91: 6 | AR91: 752 | AS91: 4.1 | AU91: 752 | AW91: 692 | AY91: 0.0 | AZ91: 0.0 | BA91: 1.9 | BB91: 0.6 | BC91: 93100.0 | BD91: 4800.0 | BE91: 3.3 | BF91: 0.6 | BG91: 223100.0 | BH91: 8100.0 | BI91: 806.0 | BJ91: 39.0 | BK91: 3310.0 | BL91: 160.0 | BM91: 44400.0 | BN91: 1600.0 | BO91: 0.0 | BP91: 0.0 | BQ91: 20.5 | BR91: 3.1 | BS91: 0.0 | BT91: 0.0 | BU91: 0.0 | BV91: 0.0 | BW91: 17.9 | BX91: 1.0 | BY91: 67.2 | BZ91: 4.8 | CA91: 0.0 | CB91: 0.0 | CC91: 0.0 | CD91: 0.0 | CE91: 0.0 | CF91: 0.0 | CG91: 0.0 | CH91: 0.0 | CI91: 17.4 | CJ91: 1.3 | CK91: 1.5 | CL91: 0.4 | CM91: 1.1 | CN91: 0.2 | CO91: 472.0 | CP91: 21.0 | CQ91: 0.6 | CR91: 0.1 | CS91: 0.0 | CT91: 0.0 | CU91: 0.0 | CV91: 0.0 | CW91: 0.0 | CX91: 0.0 | CY91: 0.0 | CZ91: 0.0 | DA91: 0.0 | DB91: 0.0 | DC91: 2.0 | DD91: 0.3 | DE91: 0.0 | DF91: 0.0 | DG91: 0.0 | DH91: 0.0 | DI91: 130.8 | DJ91: 6.3 | DK91: 4.1 | DL91: 0.3 | DM91: 5.9 | DN91: 0.4 | DO91: 0.6 | DP91: 0.1 | DQ91: 1.9 | DR91: 0.3 | DS91: 0.4 | DT91: 0.1 | DU91: 2.4 | DV91: 0.2 | DW91: 0.0 | DX91: 0.0 | DY91: 0.0 | DZ91: 0.0 | EA91: 0.0 | EB91: 0.0 | EC91: 0.0 | ED91: 0.0 | EE91: 0.0 | EF91: 0.0 | EG91: 0.0 | EH91: 0.0 | EI91: 0.0 | EJ91: 0.0 | EK91: 0.0 | EL91: 0.0 | EM91: 0.0 | EN91: 0.0 | EO91: 0.0 | EP91: 0.0 | EQ91: 0.0 | ER91: 0.0 | ES91: 0.0 | ET91: 0.0 | EU91: 37.7 | EV91: 1.8 | EW91: 0.0 | EX91: 0.0 | EY91: 0.0 | EZ91: 0.0 | FA91: 0.0 | FB91: 0.0
A92: CZ03 | B92: Pl | C92: CZ3_9 | E92: 60.73 | F92: 0.01 | G92: 24.39 | I92: 0.01 | L92: 4.94 | M92: 8.53 | N92: 0.47 | O92: 0.01 | P92: 0.01 | Q92: 99.10 | S92: 10.89 | T92: 0.00 | U92: 5.15 | W92: 0.00 | X92: 0.00 | Y92: 0.00 | Z92: 0.95 | AA92: 2.97 | AB92: 0.11 | AD92: 0.00 | AK92: 0.24 | AL92: 0.74 | AM92: 0.03 | AP92: 730 | AQ92: 6 | AR92: 752 | AS92: 4.1 | AU92: 752 | AW92: 692 | AY92: 0.0 | AZ92: 0.0 | BA92: 0.0 | BB92: 0.0 | BC92: 82100.0 | BD92: 3200.0 | BE92: 3.9 | BF92: 0.6 | BG92: 221000.0 | BH92: 8900.0 | BI92: 698.0 | BJ92: 32.0 | BK92: 3780.0 | BL92: 170.0 | BM92: 45400.0 | BN92: 2300.0 | BO92: 0.0 | BP92: 0.0 | BQ92: 29.4 | BR92: 3.7 | BS92: 0.0 | BT92: 0.0 | BU92: 0.0 | BV92: 0.0 | BW92: 22.5 | BX92: 1.4 | BY92: 66.2 | BZ92: 4.8 | CA92: 0.0 | CB92: 0.0 | CC92: 0.0 | CD92: 0.0 | CE92: 0.0 | CF92: 0.0 | CG92: 0.0 | CH92: 0.0 | CI92: 18.1 | CJ92: 1.2 | CK92: 2.0 | CL92: 0.5 | CM92: 0.8 | CN92: 0.2 | CO92: 464.0 | CP92: 21.0 | CQ92: 0.8 | CR92: 0.1 | CS92: 0.0 | CT92: 0.0 | CU92: 0.0 | CV92: 0.0 | CW92: 0.0 | CX92: 0.0 | CY92: 0.0 | CZ92: 0.0 | DA92: 0.0 | DB92: 0.0 | DC92: 2.0 | DD92: 0.3 | DE92: 0.0 | DF92: 0.0 | DG92: 0.0 | DH92: 0.0 | DI92: 110.3 | DJ92: 5.5 | DK92: 4.4 | DL92: 0.2 | DM92: 7.8 | DN92: 0.3 | DO92: 0.8 | DP92: 0.1 | DQ92: 2.5 | DR92: 0.3 | DS92: 0.0 | DT92: 0.0 | DU92: 2.6 | DV92: 0.2 | DW92: 0.0 | DX92: 0.0 | DY92: 0.0 | DZ92: 0.0 | EA92: 0.0 | EB92: 0.0 | EC92: 0.0 | ED92: 0.0 | EE92: 0.0 | EF92: 0.0 | EG92: 0.0 | EH92: 0.0 | EI92: 0.0 | EJ92: 0.0 | EK92: 0.0 | EL92: 0.0 | EM92: 0.0 | EN92: 0.0 | EO92: 0.0 | EP92: 0.0 | EQ92: 0.0 | ER92: 0.0 | ES92: 0.0 | ET92: 0.0 | EU92: 38.0 | EV92: 1.7 | EW92: 0.0 | EX92: 0.0 | EY92: 0.0 | EZ92: 0.0 | FA92: 0.0 | FB92: 0.0
A93: CZ03 | B93: Pl | C93: CZ3_17 | E93: 61.39 | G93: 23.79 | H93: 0.00 | I93: 0.02 | J93: 0.01 | L93: 4.38 | M93: 8.83 | N93: 0.35 | O93: 0.04 | Q93: 98.81 | S93: 11.01 | T93: 0.00 | U93: 5.03 | W93: 0.00 | X93: 0.00 | Y93: 0.00 | Z93: 0.84 | AA93: 3.07 | AB93: 0.08 | AD93: 0.00 | AK93: 0.21 | AL93: 0.77 | AM93: 0.02 | AP93: 730 | AQ93: 6 | AR93: 752 | AS93: 4.1 | AU93: 752 | AW93: 692 | AY93: 0.0 | AZ93: 0.0 | BA93: 0.0 | BB93: 0.0 | BC93: 87400.0 | BD93: 4400.0 | BE93: 2.7 | BF93: 0.6 | BG93: 220200.0 | BH93: 8800.0 | BI93: 792.0 | BJ93: 42.0 | BK93: 2640.0 | BL93: 140.0 | BM93: 38500.0 | BN93: 2500.0 | BO93: 0.0 | BP93: 0.0 | BQ93: 23.5 | BR93: 2.9 | BS93: 0.0 | BT93: 0.0 | BU93: 0.0 | BV93: 0.0 | BW93: 14.6 | BX93: 1.1 | BY93: 44.4 | BZ93: 3.6 | CA93: 0.0 | CB93: 0.0 | CC93: 0.0 | CD93: 0.0 | CE93: 0.0 | CF93: 0.0 | CG93: 0.0 | CH93: 0.0 | CI93: 16.4 | CJ93: 1.2 | CK93: 1.4 | CL93: 0.4 | CM93: 0.6 | CN93: 0.1 | CO93: 454.0 | CP93: 30.0 | CQ93: 0.5 | CR93: 0.1 | CS93: 0.0 | CT93: 0.0 | CU93: 0.0 | CV93: 0.0 | CW93: 0.0 | CX93: 0.0 | CY93: 0.0 | CZ93: 0.0 | DA93: 0.0 | DB93: 0.0 | DC93: 1.5 | DD93: 0.2 | DE93: 0.0 | DF93: 0.0 | DG93: 0.0 | DH93: 0.0 | DI93: 91.5 | DJ93: 5.5 | DK93: 3.7 | DL93: 0.2 | DM93: 6.2 | DN93: 0.5 | DO93: 0.6 | DP93: 0.1 | DQ93: 1.6 | DR93: 0.2 | DS93: 0.0 | DT93: 0.0 | DU93: 2.3 | DV93: 0.2 | DW93: 0.0 | DX93: 0.0 | DY93: 0.0 | DZ93: 0.0 | EA93: 0.0 | EB93: 0.0 | EC93: 0.0 | ED93: 0.0 | EE93: 0.0 | EF93: 0.0 | EG93: 0.0 | EH93: 0.0 | EI93: 0.0 | EJ93: 0.0 | EK93: 0.0 | EL93: 0.0 | EM93: 0.0 | EN93: 0.0 | EO93: 0.0 | EP93: 0.0 | EQ93: 0.0 | ER93: 0.0 | ES93: 0.0 | ET93: 0.0 | EU93: 35.3 | EV93: 2.1 | EW93: 0.0 | EX93: 0.0 | EY93: 0.0 | EZ93: 0.0 | FA93: 0.0 | FB93: 0.0
A94: CZ03 | B94: Pl | C94: CZ3_21 | E94: 60.69 | F94: 0.02 | G94: 24.51 | I94: 0.01 | J94: 0.00 | L94: 4.94 | M94: 8.62 | N94: 0.31 | O94: 0.02 | P94: 0.00 | Q94: 99.13 | S94: 10.87 | T94: 0.00 | U94: 5.17 | W94: 0.00 | X94: 0.00 | Y94: 0.00 | Z94: 0.95 | AA94: 2.99 | AB94: 0.07 | AD94: 0.00 | AK94: 0.24 | AL94: 0.75 | AM94: 0.02 | AP94: 730 | AQ94: 6 | AR94: 752 | AS94: 4.1 | AU94: 752 | AW94: 692 | AY94: 0.0 | AZ94: 0.0 | BA94: 0.0 | BB94: 0.0 | BC94: 84100.0 | BD94: 5100.0 | BE94: 4.5 | BF94: 0.9 | BG94: 223000.0 | BH94: 11000.0 | BI94: 888.0 | BJ94: 46.0 | BK94: 3040.0 | BL94: 140.0 | BM94: 44900.0 | BN94: 2300.0 | BO94: 0.0 | BP94: 0.0 | BQ94: 33.8 | BR94: 3.2 | BS94: 0.0 | BT94: 0.0 | BU94: 0.0 | BV94: 0.0 | BW94: 23.0 | BX94: 1.9 | BY94: 81.0 | BZ94: 14.0 | CA94: 0.0 | CB94: 0.0 | CC94: 0.0 | CD94: 0.0 | CE94: 0.0 | CF94: 0.0 | CG94: 0.0 | CH94: 0.0 | CI94: 24.1 | CJ94: 1.6 | CK94: 1.8 | CL94: 0.5 | CM94: 0.9 | CN94: 0.1 | CO94: 459.0 | CP94: 26.0 | CQ94: 0.6 | CR94: 0.1 | CS94: 0.0 | CT94: 0.0 | CU94: 0.0 | CV94: 0.0 | CW94: 0.0 | CX94: 0.0 | CY94: 0.0 | CZ94: 0.0 | DA94: 0.0 | DB94: 0.0 | DC94: 2.0 | DD94: 0.3 | DE94: 0.0 | DF94: 0.0 | DG94: 0.0 | DH94: 0.0 | DI94: 98.7 | DJ94: 6.2 | DK94: 5.2 | DL94: 0.3 | DM94: 8.9 | DN94: 0.5 | DO94: 0.9 | DP94: 0.1 | DQ94: 2.3 | DR94: 0.4 | DS94: 0.6 | DT94: 0.2 | DU94: 2.4 | DV94: 0.3 | DW94: 0.0 | DX94: 0.0 | DY94: 0.0 | DZ94: 0.0 | EA94: 0.0 | EB94: 0.0 | EC94: 0.0 | ED94: 0.0 | EE94: 0.0 | EF94: 0.0 | EG94: 0.0 | EH94: 0.0 | EI94: 0.0 | EJ94: 0.0 | EK94: 0.0 | EL94: 0.0 | EM94: 0.0 | EN94: 0.0 | EO94: 0.0 | EP94: 0.0 | EQ94: 0.0 | ER94: 0.0 | ES94: 0.0 | ET94: 0.0 | EU94: 36.6 | EV94: 2.6 | EW94: 0.0 | EX94: 0.0 | EY94: 0.0 | EZ94: 0.0 | FA94: 0.0 | FB94: 0.0
A95: CZ03 | B95: Pl | C95: CZ3_26 | E95: 57.49 | F95: 0.01 | G95: 24.94 | I95: 0.01 | J95: 0.01 | L95: 5.00 | M95: 8.72 | N95: 0.39 | Q95: 96.57 | S95: 10.62 | T95: 0.00 | U95: 5.43 | W95: 0.00 | X95: 0.00 | Y95: 0.00 | Z95: 0.99 | AA95: 3.12 | AB95: 0.09 | AD95: 0.00 | AK95: 0.24 | AL95: 0.74 | AM95: 0.02 | AP95: 730 | AQ95: 6 | AR95: 752 | AS95: 4.1 | AU95: 752 | AW95: 692 | AY95: 0.0 | AZ95: 0.0 | BA95: 0.0 | BB95: 0.0 | BC95: 95600.0 | BD95: 4500.0 | BE95: 4.0 | BF95: 0.6 | BG95: 234000.0 | BH95: 10000.0 | BI95: 773.0 | BJ95: 46.0 | BK95: 3030.0 | BL95: 300.0 | BM95: 54400.0 | BN95: 5500.0 | BO95: 0.3 | BP95: 0.1 | BQ95: 27.7 | BR95: 4.2 | BS95: 0.0 | BT95: 0.0 | BU95: 0.0 | BV95: 0.0 | BW95: 20.5 | BX95: 1.5 | BY95: 63.6 | BZ95: 5.6 | CA95: 0.0 | CB95: 0.0 | CC95: 0.0 | CD95: 0.0 | CE95: 0.0 | CF95: 0.0 | CG95: 0.0 | CH95: 0.0 | CI95: 18.4 | CJ95: 1.8 | CK95: 1.4 | CL95: 0.5 | CM95: 1.2 | CN95: 0.2 | CO95: 575.0 | CP95: 55.0 | CQ95: 0.7 | CR95: 0.1 | CS95: 0.0 | CT95: 0.0 | CU95: 0.0 | CV95: 0.0 | CW95: 0.0 | CX95: 0.0 | CY95: 0.0 | CZ95: 0.0 | DA95: 0.0 | DB95: 0.0 | DC95: 1.8 | DD95: 0.3 | DE95: 0.0 | DF95: 0.0 | DG95: 0.0 | DH95: 0.0 | DI95: 123.3 | DJ95: 7.7 | DK95: 5.4 | DL95: 0.2 | DM95: 7.6 | DN95: 0.5 | DO95: 0.7 | DP95: 0.1 | DQ95: 2.4 | DR95: 0.4 | DS95: 0.6 | DT95: 0.2 | DU95: 2.5 | DV95: 0.2 | DW95: 0.0 | DX95: 0.0 | DY95: 0.0 | DZ95: 0.0 | EA95: 0.0 | EB95: 0.0 | EC95: 0.0 | ED95: 0.0 | EE95: 0.0 | EF95: 0.0 | EG95: 0.0 | EH95: 0.0 | EI95: 0.0 | EJ95: 0.0 | EK95: 0.0 | EL95: 0.0 | EM95: 0.0 | EN95: 0.0 | EO95: 0.0 | EP95: 0.0 | EQ95: 0.0 | ER95: 0.0 | ES95: 0.0 | ET95: 0.0 | EU95: 38.7 | EV95: 2.9 | EW95: 0.0 | EX95: 0.0 | EY95: 0.0 | EZ95: 0.0 | FA95: 0.0 | FB95: 0.0
A96: CZ03 | B96: Pl | C96: CZ3_27 | E96: 61.78 | F96: 0.02 | G96: 23.85 | H96: 0.00 | J96: 0.02 | L96: 4.43 | M96: 8.69 | N96: 0.44 | P96: 0.00 | Q96: 99.22 | S96: 11.03 | T96: 0.00 | U96: 5.02 | W96: 0.00 | X96: 0.00 | Y96: 0.00 | Z96: 0.85 | AA96: 3.01 | AB96: 0.10 | AK96: 0.21 | AL96: 0.76 | AM96: 0.03 | AP96: 730 | AQ96: 6 | AR96: 752 | AS96: 4.1 | AU96: 752 | AW96: 692 | AY96: 0.0 | AZ96: 0.0 | BA96: 1.6 | BB96: 0.5 | BC96: 77700.0 | BD96: 7900.0 | BE96: 3.4 | BF96: 0.8 | BG96: 212000.0 | BH96: 17000.0 | BI96: 902.0 | BJ96: 69.0 | BK96: 3600.0 | BL96: 350.0 | BM96: 38900.0 | BN96: 3900.0 | BO96: 0.0 | BP96: 0.0 | BQ96: 23.3 | BR96: 3.1 | BS96: 0.0 | BT96: 0.0 | BU96: 0.0 | BV96: 0.0 | BW96: 16.7 | BX96: 1.8 | BY96: 62.9 | BZ96: 8.5 | CA96: 0.0 | CB96: 0.0 | CC96: 0.0 | CD96: 0.0 | CE96: 0.0 | CF96: 0.0 | CG96: 0.0 | CH96: 0.0 | CI96: 18.8 | CJ96: 1.8 | CK96: 1.5 | CL96: 0.4 | CM96: 1.2 | CN96: 0.2 | CO96: 435.0 | CP96: 33.0 | CQ96: 0.5 | CR96: 0.1 | CS96: 0.0 | CT96: 0.0 | CU96: 0.0 | CV96: 0.0 | CW96: 0.0 | CX96: 0.0 | CY96: 0.0 | CZ96: 0.0 | DA96: 0.0 | DB96: 0.0 | DC96: 1.9 | DD96: 0.3 | DE96: 0.0 | DF96: 0.0 | DG96: 0.0 | DH96: 0.0 | DI96: 107.3 | DJ96: 9.5 | DK96: 4.0 | DL96: 0.3 | DM96: 6.5 | DN96: 0.6 | DO96: 0.7 | DP96: 0.1 | DQ96: 2.0 | DR96: 0.4 | DS96: 0.0 | DT96: 0.0 | DU96: 2.4 | DV96: 0.4 | DW96: 0.0 | DX96: 0.0 | DY96: 0.0 | DZ96: 0.0 | EA96: 0.0 | EB96: 0.0 | EC96: 0.0 | ED96: 0.0 | EE96: 0.0 | EF96: 0.0 | EG96: 0.0 | EH96: 0.0 | EI96: 0.0 | EJ96: 0.0 | EK96: 0.0 | EL96: 0.0 | EM96: 0.0 | EN96: 0.0 | EO96: 0.0 | EP96: 0.0 | EQ96: 0.0 | ER96: 0.0 | ES96: 0.0 | ET96: 0.0 | EU96: 35.2 | EV96: 3.5 | EW96: 0.0 | EX96: 0.0 | EY96: 0.0 | EZ96: 0.0 | FA96: 0.0 | FB96: 0.0
A97: CZ03 | B97: Pl | C97: CZ3_35 | E97: 61.87 | F97: 0.01 | G97: 24.20 | I97: 0.01 | L97: 4.84 | M97: 8.65 | N97: 0.32 | O97: 0.04 | Q97: 99.94 | S97: 10.97 | T97: 0.00 | U97: 5.06 | W97: 0.00 | X97: 0.00 | Y97: 0.00 | Z97: 0.92 | AA97: 2.98 | AB97: 0.07 | AD97: 0.00 | AK97: 0.23 | AL97: 0.75 | AM97: 0.02 | AP97: 730 | AQ97: 6 | AR97: 752 | AS97: 4.1 | AU97: 752 | AW97: 692 | AY97: 0.0 | AZ97: 0.0 | BA97: 0.0 | BB97: 0.0 | BC97: 103800.0 | BD97: 8900.0 | BE97: 3.0 | BF97: 0.8 | BG97: 274000.0 | BH97: 17000.0 | BI97: 756.0 | BJ97: 66.0 | BK97: 2370.0 | BL97: 260.0 | BM97: 59700.0 | BN97: 6300.0 | BO97: 0.0 | BP97: 0.0 | BQ97: 44.4 | BR97: 6.0 | BS97: 0.0 | BT97: 0.0 | BU97: 0.0 | BV97: 0.0 | BW97: 19.8 | BX97: 1.9 | BY97: 37.4 | BZ97: 5.5 | CA97: 0.0 | CB97: 0.0 | CC97: 0.0 | CD97: 0.0 | CE97: 0.0 | CF97: 0.0 | CG97: 0.0 | CH97: 0.0 | CI97: 21.5 | CJ97: 2.4 | CK97: 2.0 | CL97: 0.4 | CM97: 0.4 | CN97: 0.1 | CO97: 595.0 | CP97: 62.0 | CQ97: 0.8 | CR97: 0.2 | CS97: 0.0 | CT97: 0.0 | CU97: 0.0 | CV97: 0.0 | CW97: 0.0 | CX97: 0.0 | CY97: 0.0 | CZ97: 0.0 | DA97: 0.0 | DB97: 0.0 | DC97: 1.5 | DD97: 0.3 | DE97: 0.0 | DF97: 0.0 | DG97: 0.0 | DH97: 0.0 | DI97: 91.9 | DJ97: 6.1 | DK97: 7.3 | DL97: 0.6 | DM97: 9.7 | DN97: 0.7 | DO97: 0.8 | DP97: 0.1 | DQ97: 3.2 | DR97: 0.5 | DS97: 0.0 | DT97: 0.0 | DU97: 2.7 | DV97: 0.3 | DW97: 0.0 | DX97: 0.0 | DY97: 0.0 | DZ97: 0.0 | EA97: 0.0 | EB97: 0.0 | EC97: 0.0 | ED97: 0.0 | EE97: 0.0 | EF97: 0.0 | EG97: 0.0 | EH97: 0.0 | EI97: 0.0 | EJ97: 0.0 | EK97: 0.0 | EL97: 0.0 | EM97: 0.0 | EN97: 0.0 | EO97: 0.0 | EP97: 0.0 | EQ97: 0.0 | ER97: 0.0 | ES97: 0.0 | ET97: 0.0 | EU97: 40.0 | EV97: 3.6 | EW97: 0.0 | EX97: 0.0 | EY97: 0.0 | EZ97: 0.0 | FA97: 0.0 | FB97: 0.0
A98: L14C | B98: Grt | C98: L14c_Gt1 | E98: 37.41 | G98: 21.38 | I98: 34.22 | J98: 1.83 | K98: 3.45 | L98: 1.88 | Q98: 100.17 | S98: 6.02 | T98: 0.00 | U98: 4.06 | W98: 4.33 | X98: 0.21 | Y98: 1.06 | Z98: 0.28 | AA98: 0.00 | AB98: 0.00 | AD98: 0.20 | AG98: 0.76 | AH98: 0.15 | AI98: 0.03 | AJ98: 0.05 | AP98: 730-790 | AQ98: 5.70 | AR98: 760.00 | AS98: 5.00 | AW98: 640.00 | AY98: 20.0 | AZ98: 1.2 | BA98: 0.0 | BB98: 0.0 | BC98: 61.0 | BD98: 13.0 | BE98: 41900.0 | BF98: 1800.0 | BG98: 196900.0 | BH98: 8200.0 | BI98: 218.0 | BJ98: 12.0 | BK98: 0.0 | BL98: 0.0 | BM98: 14800.0 | BN98: 1000.0 | BO98: 205.0 | BP98: 12.0 | BQ98: 79.1 | BR98: 8.0 | BS98: 50.0 | BT98: 2.8 | BU98: 15.7 | BV98: 2.0 | BW98: 10670.0 | BX98: 560.0 | BY98: 292000.0 | BZ98: 16000.0 | CA98: 17.4 | CB98: 1.0 | CC98: 0.0 | CD98: 0.0 | CE98: 0.0 | CF98: 0.0 | CG98: 77.5 | CH98: 6.0 | CI98: 12.3 | CJ98: 0.8 | CK98: 9.1 | CL98: 0.8 | CM98: 0.0 | CN98: 0.0 | CO98: 0.0 | CP98: 0.0 | CQ98: 313.0 | CR98: 21.0 | CS98: 22.5 | CT98: 1.3 | CU98: 0.0 | CV98: 0.0 | CW98: 0.0 | CX98: 0.0 | CY98: 1.0 | CZ98: 0.3 | DA98: 0.2 | DB98: 0.0 | DC98: 0.0 | DD98: 0.0 | DE98: 0.0 | DF98: 0.0 | DG98: 0.0 | DH98: 0.0 | DI98: 0.0 | DJ98: 0.0 | DK98: 0.0 | DL98: 0.0 | DM98: 0.0 | DN98: 0.0 | DO98: 0.0 | DP98: 0.0 | DQ98: 0.4 | DR98: 0.1 | DS98: 2.0 | DT98: 0.3 | DU98: 0.0 | DV98: 0.0 | DW98: 11.7 | DX98: 0.9 | DY98: 4.8 | DZ98: 0.3 | EA98: 50.8 | EB98: 2.3 | EC98: 11.1 | ED98: 0.6 | EE98: 23.8 | EF98: 1.3 | EG98: 2.3 | EH98: 0.2 | EI98: 11.5 | EJ98: 1.1 | EK98: 1.3 | EL98: 0.1 | EM98: 0.4 | EN98: 0.1 | EO98: 0.0 | EP98: 0.0 | EQ98: 0.0 | ER98: 0.0 | ES98: 0.0 | ET98: 0.0 | EU98: 0.0 | EV98: 0.0 | EW98: 0.0 | EX98: 0.0 | EY98: 0.0 | EZ98: 0.0 | FA98: 0.0 | FB98: 0.0
A99: L14C | B99: Grt | C99: L14c_Gt2 | E99: 37.43 | G99: 21.70 | I99: 31.85 | J99: 1.21 | K99: 4.68 | L99: 1.87 | Q99: 98.74 | S99: 6.01 | T99: 0.00 | U99: 4.05 | W99: 4.28 | X99: 0.17 | Y99: 1.17 | Z99: 0.28 | AA99: 0.00 | AB99: 0.00 | AD99: 0.22 | AG99: 0.73 | AH99: 0.19 | AI99: 0.03 | AJ99: 0.05 | AP99: 730-790 | AQ99: 5.70 | AR99: 760.00 | AS99: 5.00 | AW99: 640.00 | AY99: 22.2 | AZ99: 1.4 | BA99: 0.0 | BB99: 0.0 | BC99: 56.0 | BD99: 12.0 | BE99: 47100.0 | BF99: 2100.0 | BG99: 200100.0 | BH99: 8500.0 | BI99: 221.0 | BJ99: 15.0 | BK99: 0.0 | BL99: 0.0 | BM99: 15300.0 | BN99: 1200.0 | BO99: 177.0 | BP99: 12.0 | BQ99: 78.0 | BR99: 8.5 | BS99: 44.9 | BT99: 3.6 | BU99: 23.9 | BV99: 2.6 | BW99: 8800.0 | BX99: 550.0 | BY99: 290000.0 | BZ99: 13000.0 | CA99: 18.8 | CB99: 0.9 | CC99: 0.0 | CD99: 0.0 | CE99: 0.0 | CF99: 0.0 | CG99: 98.7 | CH99: 4.9 | CI99: 12.9 | CJ99: 1.0 | CK99: 11.3 | CL99: 1.0 | CM99: 0.0 | CN99: 0.0 | CO99: 0.0 | CP99: 0.0 | CQ99: 440.0 | CR99: 30.0 | CS99: 19.7 | CT99: 1.5 | CU99: 0.0 | CV99: 0.0 | CW99: 0.0 | CX99: 0.0 | CY99: 1.4 | CZ99: 0.4 | DA99: 0.3 | DB99: 0.0 | DC99: 0.0 | DD99: 0.0 | DE99: 0.0 | DF99: 0.0 | DG99: 0.0 | DH99: 0.0 | DI99: 0.0 | DJ99: 0.0 | DK99: 0.0 | DL99: 0.0 | DM99: 0.0 | DN99: 0.0 | DO99: 0.0 | DP99: 0.0 | DQ99: 0.5 | DR99: 0.1 | DS99: 1.8 | DT99: 0.3 | DU99: 0.0 | DV99: 0.0 | DW99: 11.1 | DX99: 0.8 | DY99: 4.8 | DZ99: 0.2 | EA99: 61.6 | EB99: 3.4 | EC99: 18.6 | ED99: 0.8 | EE99: 53.7 | EF99: 2.6 | EG99: 6.2 | EH99: 0.4 | EI99: 34.2 | EJ99: 2.6 | EK99: 4.4 | EL99: 0.4 | EM99: 0.4 | EN99: 0.1 | EO99: 0.0 | EP99: 0.0 | EQ99: 0.0 | ER99: 0.0 | ES99: 0.0 | ET99: 0.0 | EU99: 0.0 | EV99: 0.0 | EW99: 0.0 | EX99: 0.0 | EY99: 0.0 | EZ99: 0.0 | FA99: 0.0 | FB99: 0.0
A100: L14C | B100: Grt | C100: L14c_Gt3 | E100: 36.77 | G100: 21.31 | I100: 33.83 | J100: 1.96 | K100: 2.78 | L100: 1.98 | Q100: 98.63 | S100: 5.99 | T100: 0.00 | U100: 4.09 | W100: 4.61 | X100: 0.27 | Y100: 0.67 | Z100: 0.35 | AA100: 0.00 | AB100: 0.00 | AD100: 0.13 | AG100: 0.78 | AH100: 0.11 | AI100: 0.05 | AJ100: 0.06 | AP100: 730-790 | AQ100: 5.70 | AR100: 760.00 | AS100: 5.00 | AW100: 640.00 | AY100: 15.2 | AZ100: 0.9 | BA100: 0.0 | BB100: 0.0 | BC100: 33.0 | BD100: 11.0 | BE100: 27300.0 | BF100: 1000.0 | BG100: 200200.0 | BH100: 6300.0 | BI100: 166.0 | BJ100: 11.0 | BK100: 0.0 | BL100: 0.0 | BM100: 17430.0 | BN100: 890.0 | BO100: 182.7 | BP100: 8.5 | BQ100: 98.0 | BR100: 10.0 | BS100: 51.6 | BT100: 2.5 | BU100: 11.4 | BV100: 1.1 | BW100: 12800.0 | BX100: 620.0 | BY100: 291000.0 | BZ100: 14000.0 | CA100: 11.3 | CB100: 0.5 | CC100: 0.0 | CD100: 0.0 | CE100: 0.0 | CF100: 0.0 | CG100: 32.8 | CH100: 2.6 | CI100: 12.0 | CJ100: 0.8 | CK100: 5.7 | CL100: 0.6 | CM100: 0.0 | CN100: 0.0 | CO100: 0.0 | CP100: 0.0 | CQ100: 127.1 | CR100: 8.7 | CS100: 10.9 | CT100: 0.7 | CU100: 0.0 | CV100: 0.0 | CW100: 0.0 | CX100: 0.0 | CY100: 1.2 | CZ100: 0.3 | DA100: 0.0 | DB100: 0.0 | DC100: 0.0 | DD100: 0.0 | DE100: 0.0 | DF100: 0.0 | DG100: 0.0 | DH100: 0.0 | DI100: 0.0 | DJ100: 0.0 | DK100: 0.0 | DL100: 0.0 | DM100: 0.0 | DN100: 0.0 | DO100: 0.0 | DP100: 0.0 | DQ100: 1.2 | DR100: 0.2 | DS100: 3.8 | DT100: 0.4 | DU100: 0.0 | DV100: 0.0 | DW100: 15.6 | DX100: 1.2 | DY100: 3.9 | DZ100: 0.2 | EA100: 26.6 | EB100: 1.1 | EC100: 4.4 | ED100: 0.2 | EE100: 9.2 | EF100: 0.5 | EG100: 1.1 | EH100: 0.1 | EI100: 7.5 | EJ100: 0.6 | EK100: 1.0 | EL100: 0.1 | EM100: 0.0 | EN100: 0.0 | EO100: 0.0 | EP100: 0.0 | EQ100: 0.0 | ER100: 0.0 | ES100: 0.0 | ET100: 0.0 | EU100: 0.0 | EV100: 0.0 | EW100: 0.0 | EX100: 0.0 | EY100: 0.0 | EZ100: 0.0 | FA100: 0.0 | FB100: 0.0
A101: L14C | B101: Pl | C101: L14c_Pl1 | E101: 56.80 | G101: 26.58 | I101: 0.25 | L101: 8.25 | M101: 6.43 | N101: 0.12 | Q101: 98.43 | S101: 10.33 | T101: 0.00 | U101: 5.70 | W101: 0.04 | X101: 0.00 | Y101: 0.00 | Z101: 1.61 | AA101: 2.27 | AB101: 0.03 | AD101: =Y101/(Y101+W101) -> 0.00 | AK101: 0.41 | AL101: 0.58 | AM101: 0.01 | AP101: 730-790 | AQ101: 5.70 | AR101: 760.00 | AS101: 5.00 | AW101: 640.00 | AY101: 1.3 | AZ101: 0.5 | BA101: 5.0 | BB101: 1.1 | BC101: 67000.0 | BD101: 3500.0 | BE101: 16.4 | BF101: 6.1 | BG101: 248000.0 | BH101: 12000.0 | BI101: 143.0 | BJ101: 11.0 | BK101: 777.0 | BL101: 57.0 | BM101: 70800.0 | BN101: 4900.0 | BO101: 0.0 | BP101: 0.0 | BQ101: 10.4 | BR101: 2.2 | BS101: 0.0 | BT101: 0.0 | BU101: 0.0 | BV101: 0.0 | BW101: 4.8 | BX101: 0.5 | BY101: 175.0 | BZ101: 32.0 | CA101: 0.0 | CB101: 0.0 | CC101: 0.0 | CD101: 0.0 | CE101: 0.0 | CF101: 0.0 | CG101: 0.9 | CH101: 0.4 | CI101: 26.9 | CJ101: 2.0 | CK101: 1.7 | CL101: 0.3 | CM101: 0.0 | CN101: 0.0 | CO101: 308.0 | CP101: 26.0 | CQ101: 1.1 | CR101: 0.1 | CS101: 0.0 | CT101: 0.0 | CU101: 0.0 | CV101: 0.0 | CW101: 0.0 | CX101: 0.0 | CY101: 0.0 | CZ101: 0.0 | DA101: 0.0 | DB101: 0.0 | DC101: 0.0 | DD101: 0.0 | DE101: 0.0 | DF101: 0.0 | DG101: 0.0 | DH101: 0.0 | DI101: 34.1 | DJ101: 3.2 | DK101: 7.6 | DL101: 0.4 | DM101: 13.2 | DN101: 0.6 | DO101: 1.3 | DP101: 0.2 | DQ101: 4.5 | DR101: 0.5 | DS101: 0.9 | DT101: 0.2 | DU101: 2.0 | DV101: 0.2 | DW101: 0.9 | DX101: 0.2 | DY101: 0.0 | DZ101: 0.0 | EA101: 0.0 | EB101: 0.0 | EC101: 0.0 | ED101: 0.0 | EE101: 0.0 | EF101: 0.0 | EG101: 0.0 | EH101: 0.0 | EI101: 0.0 | EJ101: 0.0 | EK101: 0.0 | EL101: 0.0 | EM101: 0.0 | EN101: 0.0 | EO101: 0.0 | EP101: 0.0 | EQ101: 0.0 | ER101: 0.0 | ES101: 0.0 | ET101: 0.0 | EU101: 36.0 | EV101: 2.5 | EW101: 0.0 | EX101: 0.0 | EY101: 0.0 | EZ101: 0.0 | FA101: 0.0 | FB101: 0.0
A102: L14C | B102: Pl | C102: L14c_Pl8 | E102: 57.37 | G102: 26.30 | L102: 7.94 | M102: 6.50 | N102: 0.28 | Q102: 98.39 | S102: 10.42 | T102: 0.00 | U102: 5.63 | W102: 0.00 | X102: 0.00 | Y102: 0.00 | Z102: 1.54 | AA102: 2.29 | AB102: 0.06 | AK102: 0.40 | AL102: 0.59 | AM102: 0.02 | AP102: 730-790 | AQ102: 5.70 | AR102: 760.00 | AS102: 5.00 | AW102: 640.00 | AY102: 0.0 | AZ102: 0.0 | BA102: 3.8 | BB102: 1.0 | BC102: 56900.0 | BD102: 6600.0 | BE102: 0.0 | BF102: 0.0 | BG102: 243000.0 | BH102: 13000.0 | BI102: 149.0 | BJ102: 22.0 | BK102: 1780.0 | BL102: 390.0 | BM102: 82000.0 | BN102: 22000.0 | BO102: 0.0 | BP102: 0.0 | BQ102: 136.0 | BR102: 58.0 | BS102: 1.6 | BT102: 0.8 | BU102: 0.0 | BV102: 0.0 | BW102: 11.8 | BX102: 3.4 | BY102: 450.0 | BZ102: 180.0 | CA102: 0.0 | CB102: 0.0 | CC102: 0.0 | CD102: 0.0 | CE102: 0.0 | CF102: 0.0 | CG102: 2.1 | CH102: 0.5 | CI102: 26.6 | CJ102: 4.8 | CK102: 0.0 | CL102: 0.0 | CM102: 1.6 | CN102: 0.7 | CO102: 570.0 | CP102: 180.0 | CQ102: 0.9 | CR102: 0.3 | CS102: 0.0 | CT102: 0.0 | CU102: 0.0 | CV102: 0.0 | CW102: 0.0 | CX102: 0.0 | CY102: 0.0 | CZ102: 0.0 | DA102: 0.0 | DB102: 0.0 | DC102: 0.0 | DD102: 0.0 | DE102: 0.0 | DF102: 0.0 | DG102: 0.0 | DH102: 0.0 | DI102: 45.9 | DJ102: 7.3 | DK102: 10.8 | DL102: 0.9 | DM102: 20.5 | DN102: 1.5 | DO102: 1.7 | DP102: 0.3 | DQ102: 6.6 | DR102: 1.8 | DS102: 1.1 | DT102: 0.4 | DU102: 4.5 | DV102: 1.5 | DW102: 0.5 | DX102: 0.2 | DY102: 0.0 | DZ102: 0.0 | EA102: 0.0 | EB102: 0.0 | EC102: 0.0 | ED102: 0.0 | EE102: 0.0 | EF102: 0.0 | EG102: 0.0 | EH102: 0.0 | EI102: 0.0 | EJ102: 0.0 | EK102: 0.0 | EL102: 0.0 | EM102: 0.0 | EN102: 0.0 | EO102: 0.0 | EP102: 0.0 | EQ102: 0.0 | ER102: 0.0 | ES102: 0.0 | ET102: 0.0 | EU102: 75.0 | EV102: 25.0 | EW102: 0.0 | EX102: 0.0 | EY102: 0.0 | EZ102: 0.0 | FA102: 0.0 | FB102: 0.0
A103: L14C | B103: Pl | C103: L14c_Pl9 | E103: 57.24 | G103: 26.44 | I103: 0.10 | L103: 8.04 | M103: 6.47 | N103: 0.26 | Q103: 98.55 | S103: 10.4 | T103: 0.0 | U103: 5.7 | W103: 0.0 | X103: 0.0 | Y103: 0.0 | Z103: 1.6 | AA103: 2.3 | AB103: 0.1 | AD103: 0.00 | AK103: 0.40 | AL103: 0.58 | AM103: 0.02 | AP103: 730-790 | AQ103: 5.70 | AR103: 760.00 | AS103: 5.00 | AW103: 640.00 | AY103: 0.0 | AZ103: 0.0 | BA103: 6.2 | BB103: 1.6 | BC103: 125000.0 | BD103: 29000.0 | BE103: 0.0 | BF103: 0.0 | BG103: 276000.0 | BH103: 26000.0 | BI103: 174.0 | BJ103: 17.0 | BK103: 2370.0 | BL103: 390.0 | BM103: 112000.0 | BN103: 22000.0 | BO103: 0.0 | BP103: 0.0 | BQ103: 32.0 | BR103: 14.0 | BS103: 0.0 | BT103: 0.0 | BU103: 0.0 | BV103: 0.0 | BW103: 19.0 | BX103: 4.1 | BY103: 206.0 | BZ103: 63.0 | CA103: 0.0 | CB103: 0.0 | CC103: 0.0 | CD103: 0.0 | CE103: 0.0 | CF103: 0.0 | CG103: 1.2 | CH103: 0.4 | CI103: 36.8 | CJ103: 5.4 | CK103: 1.8 | CL103: 0.5 | CM103: 0.0 | CN103: 0.0 | CO103: 371.0 | CP103: 40.0 | CQ103: 0.4 | CR103: 0.1 | CS103: 0.0 | CT103: 0.0 | CU103: 0.0 | CV103: 0.0 | CW103: 0.0 | CX103: 0.0 | CY103: 0.0 | CZ103: 0.0 | DA103: 0.0 | DB103: 0.0 | DC103: 0.0 | DD103: 0.0 | DE103: 0.0 | DF103: 0.0 | DG103: 0.0 | DH103: 0.0 | DI103: 77.0 | DJ103: 18.0 | DK103: 10.7 | DL103: 1.4 | DM103: 17.2 | DN103: 1.4 | DO103: 1.9 | DP103: 0.3 | DQ103: 7.8 | DR103: 1.5 | DS103: 1.0 | DT103: 0.3 | DU103: 2.3 | DV103: 0.3 | DW103: 0.7 | DX103: 0.2 | DY103: 0.0 | DZ103: 0.0 | EA103: 0.0 | EB103: 0.0 | EC103: 0.0 | ED103: 0.0 | EE103: 0.0 | EF103: 0.0 | EG103: 0.0 | EH103: 0.0 | EI103: 0.0 | EJ103: 0.0 | EK103: 0.0 | EL103: 0.0 | EM103: 0.0 | EN103: 0.0 | EO103: 0.0 | EP103: 0.0 | EQ103: 0.0 | ER103: 0.0 | ES103: 0.0 | ET103: 0.0 | EU103: 42.3 | EV103: 4.0 | EW103: 0.0 | EX103: 0.0 | EY103: 0.0 | EZ103: 0.0 | FA103: 0.0 | FB103: 0.0
A104: L14C | B104: Pl | C104: L14c_Pl10 | E104: 58.15 | G104: 26.75 | L104: 7.98 | M104: 6.66 | N104: 0.25 | Q104: 99.79 | S104: 10.41 | T104: 0.00 | U104: 5.64 | W104: 0.00 | X104: 0.00 | Y104: 0.00 | Z104: 1.53 | AA104: 2.31 | AB104: 0.06 | AK104: 0.39 | AL104: 0.59 | AM104: 0.01 | AP104: 730-790 | AQ104: 5.70 | AR104: 760.00 | AS104: 5.00 | AW104: 640.00 | AY104: 0.0 | AZ104: 0.0 | BA104: 3.6 | BB104: 0.8 | BC104: 66200.0 | BD104: 6700.0 | BE104: 0.0 | BF104: 0.0 | BG104: 265000.0 | BH104: 16000.0 | BI104: 54.0 | BJ104: 10.0 | BK104: 1790.0 | BL104: 330.0 | BM104: 87000.0 | BN104: 22000.0 | BO104: 0.0 | BP104: 0.0 | BQ104: 92.0 | BR104: 37.0 | BS104: 0.0 | BT104: 0.0 | BU104: 0.0 | BV104: 0.0 | BW104: 13.5 | BX104: 3.2 | BY104: 460.0 | BZ104: 200.0 | CA104: 0.0 | CB104: 0.0 | CC104: 0.0 | CD104: 0.0 | CE104: 0.0 | CF104: 0.0 | CG104: 1.9 | CH104: 0.7 | CI104: 23.4 | CJ104: 3.4 | CK104: 1.5 | CL104: 0.5 | CM104: 2.3 | CN104: 1.0 | CO104: 500.0 | CP104: 140.0 | CQ104: 0.7 | CR104: 0.2 | CS104: 0.0 | CT104: 0.0 | CU104: 0.0 | CV104: 0.0 | CW104: 0.0 | CX104: 0.0 | CY104: 0.0 | CZ104: 0.0 | DA104: 0.0 | DB104: 0.0 | DC104: 0.0 | DD104: 0.0 | DE104: 0.0 | DF104: 0.0 | DG104: 0.0 | DH104: 0.0 | DI104: 43.3 | DJ104: 5.2 | DK104: 14.6 | DL104: 0.9 | DM104: 24.7 | DN104: 1.2 | DO104: 2.0 | DP104: 0.3 | DQ104: 8.2 | DR104: 2.1 | DS104: 1.6 | DT104: 0.6 | DU104: 3.6 | DV104: 1.1 | DW104: 0.7 | DX104: 0.3 | DY104: 0.0 | DZ104: 0.0 | EA104: 0.0 | EB104: 0.0 | EC104: 0.0 | ED104: 0.0 | EE104: 0.0 | EF104: 0.0 | EG104: 0.0 | EH104: 0.0 | EI104: 0.0 | EJ104: 0.0 | EK104: 0.0 | EL104: 0.0 | EM104: 0.0 | EN104: 0.0 | EO104: 0.0 | EP104: 0.0 | EQ104: 0.0 | ER104: 0.0 | ES104: 0.0 | ET104: 0.0 | EU104: 61.0 | EV104: 17.0 | EW104: 0.0 | EX104: 0.0 | EY104: 0.0 | EZ104: 0.0 | FA104: 0.0 | FB104: 0.0
A105: L14C | B105: Bt | C105: L14c_Bt17 | E105: 34.82 | F105: 4.29 | G105: 17.12 | I105: 18.77 | K105: 8.95 | N105: 9.50 | Q105: 93.45 | S105: 5.42 | T105: 0.50 | U105: 2.35 | W105: 1.22 | X105: 0.00 | Y105: 1.04 | Z105: 0.00 | AA105: 0.00 | AB105: 0.47 | AD105: 0.46 | AN105: =W105/(W105+Y105) -> 0.54 | AP105: 730-790 | AQ105: 5.70 | AR105: 760.00 | AS105: 5.00 | AV105: 700.93 | AW105: 640.00 | AY105: 92.4 | AZ105: 7.6 | BA105: 0.7 | BB105: 0.2 | BC105: 10700.0 | BD105: 2000.0 | BE105: 85000.0 | BF105: 12000.0 | BG105: 191000.0 | BH105: 12000.0 | BI105: 73.0 | BJ105: 12.0 | BK105: 62200.0 | BL105: 9100.0 | BM105: 9900.0 | BN105: 2200.0 | BO105: 40.9 | BP105: 9.9 | BQ105: 26000.0 | BR105: 5100.0 | BS105: 470.0 | BT105: 58.0 | BU105: 150.0 | BV105: 11.0 | BW105: 636.0 | BX105: 76.0 | BY105: 141000.0 | BZ105: 12000.0 | CA105: 44.4 | CB105: 6.3 | CC105: 35.3 | CD105: 4.9 | CE105: 16.3 | CF105: 1.5 | CG105: 308.0 | CH105: 49.0 | CI105: 41.2 | CJ105: 5.4 | CK105: 1.5 | CL105: 0.5 | CM105: 510.0 | CN105: 100.0 | CO105: 45.3 | CP105: 9.9 | CQ105: 0.3 | CR105: 0.1 | CS105: 0.4 | CT105: 0.1 | CU105: 75.7 | CV105: 5.2 | CW105: 0.0 | CX105: 0.0 | CY105: 0.0 | CZ105: 0.0 | DA105: 0.2 | DB105: 0.0 | DC105: 4.4 | DD105: 0.7 | DE105: 0.0 | DF105: 0.0 | DG105: 21.9 | DH105: 1.9 | DI105: 636.0 | DJ105: 64.0 | DK105: 0.9 | DL105: 0.3 | DM105: 1.7 | DN105: 0.5 | DO105: 0.0 | DP105: 0.0 | DQ105: 0.0 | DR105: 0.0 | DS105: 0.0 | DT105: 0.0 | DU105: 0.3 | DV105: 0.1 | DW105: 0.0 | DX105: 0.0 | DY105: 0.0 | DZ105: 0.0 | EA105: 0.0 | EB105: 0.0 | EC105: 0.0 | ED105: 0.0 | EE105: 0.0 | EF105: 0.0 | EG105: 0.0 | EH105: 0.0 | EI105: 0.0 | EJ105: 0.0 | EK105: 0.0 | EL105: 0.0 | EM105: 0.0 | EN105: 0.0 | EO105: 4.9 | EP105: 0.6 | EQ105: 1.8 | ER105: 0.2 | ES105: 3.0 | ET105: 0.6 | EU105: 8.9 | EV105: 1.2 | EW105: 0.0 | EX105: 0.0 | EY105: 0.0 | EZ105: 0.0 | FA105: 0.0 | FB105: 0.0
A106: L14C | B106: Bt | C106: L14c_Bt21 | E106: 34.29 | F106: 3.37 | G106: 17.44 | I106: 18.40 | J106: 0.10 | K106: 9.23 | N106: 9.40 | Q106: 92.23 | S106: 5.40 | T106: 0.40 | U106: 2.43 | W106: 1.21 | X106: 0.01 | Y106: 1.08 | Z106: 0.00 | AA106: 0.00 | AB106: 0.47 | AD106: 0.47 | AN106: 0.53 | AP106: 730-790 | AQ106: 5.70 | AR106: 760.00 | AS106: 5.00 | AV106: 657.73 | AW106: 640.00 | AY106: 113.0 | AZ106: 17.0 | BA106: 0.0 | BB106: 0.0 | BC106: 669.0 | BD106: 60.0 | BE106: 90400.0 | BF106: 6700.0 | BG106: 174000.0 | BH106: 11000.0 | BI106: 36.0 | BJ106: 5.0 | BK106: 76000.0 | BL106: 11000.0 | BM106: 0.0 | BN106: 0.0 | BO106: 41.2 | BP106: 8.1 | BQ106: 26100.0 | BR106: 6200.0 | BS106: 660.0 | BT106: 180.0 | BU106: 121.0 | BV106: 25.0 | BW106: 457.0 | BX106: 50.0 | BY106: 155000.0 | BZ106: 14000.0 | CA106: 43.6 | CB106: 3.6 | CC106: 39.1 | CD106: 3.5 | CE106: 9.3 | CF106: 2.5 | CG106: 470.0 | CH106: 41.0 | CI106: 46.4 | CJ106: 5.1 | CK106: 1.3 | CL106: 0.2 | CM106: 620.0 | CN106: 110.0 | CO106: 2.5 | CP106: 0.5 | CQ106: 0.0 | CR106: 0.0 | CS106: 0.0 | CT106: 0.0 | CU106: 67.0 | CV106: 11.0 | CW106: 0.0 | CX106: 0.0 | CY106: 0.0 | CZ106: 0.0 | DA106: 0.3 | DB106: 0.0 | DC106: 6.6 | DD106: 1.0 | DE106: 0.0 | DF106: 0.0 | DG106: 34.4 | DH106: 7.1 | DI106: 703.0 | DJ106: 63.0 | DK106: 0.0 | DL106: 0.0 | DM106: 0.0 | DN106: 0.0 | DO106: 0.0 | DP106: 0.0 | DQ106: 0.0 | DR106: 0.0 | DS106: 0.0 | DT106: 0.0 | DU106: 0.0 | DV106: 0.0 | DW106: 0.0 | DX106: 0.0 | DY106: 0.0 | DZ106: 0.0 | EA106: 0.0 | EB106: 0.0 | EC106: 0.0 | ED106: 0.0 | EE106: 0.0 | EF106: 0.0 | EG106: 0.0 | EH106: 0.0 | EI106: 0.0 | EJ106: 0.0 | EK106: 0.0 | EL106: 0.0 | EM106: 0.0 | EN106: 0.0 | EO106: 3.7 | EP106: 0.3 | EQ106: 1.9 | ER106: 0.2 | ES106: 3.9 | ET106: 0.7 | EU106: 3.3 | EV106: 0.8 | EW106: 0.0 | EX106: 0.0 | EY106: 0.0 | EZ106: 0.0 | FA106: 0.0 | FB106: 0.0
A107: L14C | B107: Bt | C107: L14c_Bt23 | E107: 34.69 | F107: 3.51 | G107: 16.96 | I107: 19.05 | K107: 9.23 | N107: 9.49 | Q107: 92.93 | S107: 5.44 | T107: 0.41 | U107: 2.35 | W107: 1.25 | X107: 0.00 | Y107: 1.08 | Z107: 0.00 | AA107: 0.00 | AB107: 0.47 | AD107: 0.46 | AN107: 0.54 | AP107: 730-790 | AQ107: 5.70 | AR107: 760.00 | AS107: 5.00 | AV107: 659.38 | AW107: 640.00 | AY107: 149.0 | AZ107: 26.0 | BA107: 0.0 | BB107: 0.0 | BC107: 810.0 | BD107: 130.0 | BE107: 97700.0 | BF107: 6400.0 | BG107: 176200.0 | BH107: 7200.0 | BI107: 49.5 | BJ107: 4.7 | BK107: 97100.0 | BL107: 8600.0 | BM107: 0.0 | BN107: 0.0 | BO107: 42.9 | BP107: 3.3 | BQ107: 22600.0 | BR107: 2500.0 | BS107: 554.0 | BT107: 80.0 | BU107: 159.0 | BV107: 26.0 | BW107: 680.0 | BX107: 130.0 | BY107: 203000.0 | BZ107: 34000.0 | CA107: 48.8 | CB107: 6.2 | CC107: 37.5 | CD107: 2.9 | CE107: 2.2 | CF107: 0.5 | CG107: 504.0 | CH107: 33.0 | CI107: 58.3 | CJ107: 4.4 | CK107: 2.0 | CL107: 0.4 | CM107: 705.0 | CN107: 85.0 | CO107: 1.1 | CP107: 0.2 | CQ107: 0.3 | CR107: 0.1 | CS107: 0.0 | CT107: 0.0 | CU107: 89.0 | CV107: 16.0 | CW107: 0.0 | CX107: 0.0 | CY107: 0.0 | CZ107: 0.0 | DA107: 0.3 | DB107: 0.1 | DC107: 6.4 | DD107: 0.7 | DE107: 0.0 | DF107: 0.0 | DG107: 30.7 | DH107: 4.8 | DI107: 910.0 | DJ107: 140.0 | DK107: 0.0 | DL107: 0.0 | DM107: 0.0 | DN107: 0.0 | DO107: 0.0 | DP107: 0.0 | DQ107: 0.0 | DR107: 0.0 | DS107: 0.0 | DT107: 0.0 | DU107: 0.0 | DV107: 0.0 | DW107: 0.0 | DX107: 0.0 | DY107: 0.0 | DZ107: 0.0 | EA107: 0.0 | EB107: 0.0 | EC107: 0.0 | ED107: 0.0 | EE107: 0.0 | EF107: 0.0 | EG107: 0.0 | EH107: 0.0 | EI107: 0.0 | EJ107: 0.0 | EK107: 0.0 | EL107: 0.0 | EM107: 0.0 | EN107: 0.0 | EO107: 4.5 | EP107: 0.5 | EQ107: 1.7 | ER107: 0.1 | ES107: 4.7 | ET107: 0.5 | EU107: 3.3 | EV107: 0.4 | EW107: 0.0 | EX107: 0.0 | EY107: 0.0 | EZ107: 0.0 | FA107: 0.0 | FB107: 0.0
A108: L14C | B108: Bt | C108: L14c_Bt26 | E108: 35.47 | F108: 3.61 | G108: 17.17 | I108: 19.48 | K108: 9.66 | N108: 9.69 | Q108: 95.08 | S108: 5.43 | T108: 0.42 | U108: 2.33 | W108: 1.25 | X108: 0.00 | Y108: 1.10 | Z108: 0.00 | AA108: 0.00 | AB108: 0.47 | AD108: 0.47 | AN108: 0.53 | AP108: 730-790 | AQ108: 5.70 | AR108: 760.00 | AS108: 5.00 | AV108: 654.52 | AW108: 640.00 | AY108: 169.0 | AZ108: 36.0 | BA108: 0.0 | BB108: 0.0 | BC108: 856.0 | BD108: 90.0 | BE108: 107600.0 | BF108: 8400.0 | BG108: 191000.0 | BH108: 12000.0 | BI108: 35.3 | BJ108: 5.4 | BK108: 99100.0 | BL108: 7600.0 | BM108: 0.0 | BN108: 0.0 | BO108: 48.6 | BP108: 6.1 | BQ108: 25900.0 | BR108: 3300.0 | BS108: 554.0 | BT108: 94.0 | BU108: 179.0 | BV108: 30.0 | BW108: 750.0 | BX108: 140.0 | BY108: 228000.0 | BZ108: 35000.0 | CA108: 53.1 | CB108: 4.4 | CC108: 42.2 | CD108: 3.1 | CE108: 8.6 | CF108: 1.5 | CG108: 522.0 | CH108: 30.0 | CI108: 59.9 | CJ108: 3.3 | CK108: 1.9 | CL108: 0.3 | CM108: 706.0 | CN108: 55.0 | CO108: 2.2 | CP108: 0.3 | CQ108: 0.0 | CR108: 0.0 | CS108: 0.2 | CT108: 0.1 | CU108: 107.0 | CV108: 19.0 | CW108: 0.0 | CX108: 0.0 | CY108: 0.0 | CZ108: 0.0 | DA108: 0.3 | DB108: 0.0 | DC108: 7.3 | DD108: 0.5 | DE108: 0.0 | DF108: 0.0 | DG108: 34.5 | DH108: 6.0 | DI108: 980.0 | DJ108: 130.0 | DK108: 0.0 | DL108: 0.0 | DM108: 0.0 | DN108: 0.0 | DO108: 0.0 | DP108: 0.0 | DQ108: 0.0 | DR108: 0.0 | DS108: 0.0 | DT108: 0.0 | DU108: 0.0 | DV108: 0.0 | DW108: 0.0 | DX108: 0.0 | DY108: 0.0 | DZ108: 0.0 | EA108: 0.0 | EB108: 0.0 | EC108: 0.0 | ED108: 0.0 | EE108: 0.0 | EF108: 0.0 | EG108: 0.0 | EH108: 0.0 | EI108: 0.0 | EJ108: 0.0 | EK108: 0.0 | EL108: 0.0 | EM108: 0.0 | EN108: 0.0 | EO108: 5.8 | EP108: 0.6 | EQ108: 2.1 | ER108: 0.2 | ES108: 4.7 | ET108: 0.3 | EU108: 3.7 | EV108: 0.6 | EW108: 0.0 | EX108: 0.0 | EY108: 0.0 | EZ108: 0.0 | FA108: 0.0 | FB108: 0.0
A109: L14C | B109: Bt | C109: L14c_Bt25 | E109: 34.98 | F109: 3.51 | G109: 17.27 | I109: 19.40 | J109: 0.10 | K109: 9.17 | N109: 9.52 | Q109: 93.95 | S109: 5.43 | T109: 0.41 | U109: 2.37 | W109: 1.26 | X109: 0.01 | Y109: 1.06 | Z109: 0.00 | AA109: 0.00 | AB109: 0.47 | AD109: 0.46 | AN109: 0.54 | AP109: 730-790 | AQ109: 5.70 | AR109: 760.00 | AS109: 5.00 | AV109: 661.01 | AW109: 640.00 | AY109: 147.0 | AZ109: 18.0 | BA109: 0.0 | BB109: 0.0 | BC109: 753.0 | BD109: 83.0 | BE109: 104000.0 | BF109: 11000.0 | BG109: 189000.0 | BH109: 13000.0 | BI109: 51.4 | BJ109: 5.0 | BK109: 90000.0 | BL109: 10000.0 | BM109: 0.0 | BN109: 0.0 | BO109: 43.9 | BP109: 6.3 | BQ109: 23700.0 | BR109: 2800.0 | BS109: 484.0 | BT109: 53.0 | BU109: 158.0 | BV109: 21.0 | BW109: 672.0 | BX109: 96.0 | BY109: 207000.0 | BZ109: 26000.0 | CA109: 50.0 | CB109: 5.5 | CC109: 39.3 | CD109: 4.5 | CE109: 1.1 | CF109: 0.3 | CG109: 500.0 | CH109: 34.0 | CI109: 52.9 | CJ109: 5.4 | CK109: 1.7 | CL109: 0.3 | CM109: 712.0 | CN109: 82.0 | CO109: 0.8 | CP109: 0.1 | CQ109: 0.0 | CR109: 0.0 | CS109: 0.5 | CT109: 0.1 | CU109: 90.0 | CV109: 10.0 | CW109: 0.0 | CX109: 0.0 | CY109: 0.0 | CZ109: 0.0 | DA109: 0.3 | DB109: 0.0 | DC109: 7.3 | DD109: 0.8 | DE109: 0.0 | DF109: 0.0 | DG109: 29.5 | DH109: 3.4 | DI109: 940.0 | DJ109: 110.0 | DK109: 0.0 | DL109: 0.0 | DM109: 0.0 | DN109: 0.0 | DO109: 0.0 | DP109: 0.0 | DQ109: 0.0 | DR109: 0.0 | DS109: 0.0 | DT109: 0.0 | DU109: 0.0 | DV109: 0.0 | DW109: 0.0 | DX109: 0.0 | DY109: 0.0 | DZ109: 0.0 | EA109: 0.0 | EB109: 0.0 | EC109: 0.0 | ED109: 0.0 | EE109: 0.0 | EF109: 0.0 | EG109: 0.0 | EH109: 0.0 | EI109: 0.0 | EJ109: 0.0 | EK109: 0.0 | EL109: 0.0 | EM109: 0.0 | EN109: 0.0 | EO109: 5.9 | EP109: 0.5 | EQ109: 2.1 | ER109: 0.2 | ES109: 4.2 | ET109: 0.5 | EU109: 3.2 | EV109: 0.4 | EW109: 0.0 | EX109: 0.0 | EY109: 0.0 | EZ109: 0.0 | FA109: 0.0 | FB109: 0.0
A110: L14C | B110: Bt | C110: L14c_Bt27 | E110: 35.20 | F110: 3.61 | G110: 17.79 | I110: 19.00 | K110: 8.99 | N110: 9.51 | Q110: 94.10 | S110: 5.43 | T110: 0.42 | U110: 2.43 | W110: 1.23 | X110: 0.00 | Y110: 1.03 | Z110: 0.00 | AA110: 0.00 | AB110: 0.47 | AD110: 0.46 | AN110: 0.54 | AP110: 730-790 | AQ110: 5.70 | AR110: 760.00 | AS110: 5.00 | AV110: 675.25 | AW110: 640.00 | AY110: 139.0 | AZ110: 23.0 | BA110: 0.0 | BB110: 0.0 | BC110: 774.0 | BD110: 96.0 | BE110: 100300.0 | BF110: 8600.0 | BG110: 191000.0 | BH110: 13000.0 | BI110: 44.5 | BJ110: 5.0 | BK110: 89200.0 | BL110: 5600.0 | BM110: 0.0 | BN110: 0.0 | BO110: 47.3 | BP110: 6.2 | BQ110: 26900.0 | BR110: 4000.0 | BS110: 830.0 | BT110: 150.0 | BU110: 239.0 | BV110: 41.0 | BW110: 640.0 | BX110: 100.0 | BY110: 202000.0 | BZ110: 30000.0 | CA110: 49.9 | CB110: 5.3 | CC110: 39.6 | CD110: 2.8 | CE110: 0.7 | CF110: 0.3 | CG110: 491.0 | CH110: 28.0 | CI110: 55.4 | CJ110: 3.5 | CK110: 1.9 | CL110: 0.3 | CM110: 721.0 | CN110: 75.0 | CO110: 0.9 | CP110: 0.2 | CQ110: 0.0 | CR110: 0.0 | CS110: 0.0 | CT110: 0.0 | CU110: 92.0 | CV110: 15.0 | CW110: 0.0 | CX110: 0.0 | CY110: 0.0 | CZ110: 0.0 | DA110: 0.3 | DB110: 0.0 | DC110: 6.1 | DD110: 0.4 | DE110: 0.0 | DF110: 0.0 | DG110: 31.3 | DH110: 5.1 | DI110: 980.0 | DJ110: 140.0 | DK110: 0.0 | DL110: 0.0 | DM110: 0.0 | DN110: 0.0 | DO110: 0.0 | DP110: 0.0 | DQ110: 0.0 | DR110: 0.0 | DS110: 0.0 | DT110: 0.0 | DU110: 0.0 | DV110: 0.0 | DW110: 0.0 | DX110: 0.0 | DY110: 0.0 | DZ110: 0.0 | EA110: 0.0 | EB110: 0.0 | EC110: 0.0 | ED110: 0.0 | EE110: 0.0 | EF110: 0.0 | EG110: 0.0 | EH110: 0.0 | EI110: 0.0 | EJ110: 0.0 | EK110: 0.0 | EL110: 0.0 | EM110: 0.0 | EN110: 0.0 | EO110: 4.9 | EP110: 0.5 | EQ110: 2.1 | ER110: 0.1 | ES110: 4.3 | ET110: 0.3 | EU110: 3.3 | EV110: 0.5 | EW110: 0.0 | EX110: 0.0 | EY110: 0.0 | EZ110: 0.0 | FA110: 0.0 | FB110: 0.0
A111: L14C | B111: Bt | C111: L14c.1 | E111: 30.01 | F111: 3.98 | G111: 18.52 | H111: 0.02 | I111: 20.31 | J111: 0.08 | K111: 8.90 | L111: 0.03 | M111: 0.11 | N111: 9.84 | O111: 0.23 | P111: 0.03 | Q111: 92.05 | S111: 4.84 | T111: 0.41 | U111: 2.69 | W111: 1.38 | X111: 0.01 | Y111: 1.15 | Z111: 0.00 | AA111: 0.01 | AB111: 0.51 | AD111: 0.46 | AN111: 0.54 | AP111: 730-790 | AQ111: 5.70 | AR111: 760.00 | AS111: 5.00 | AW111: 640.00 | AY111: 174.0 | AZ111: 19.0 | BA111: 0.0 | BB111: 0.0 | BC111: 1060.0 | BD111: 110.0 | BE111: 104300.0 | BF111: 8600.0 | BG111: 180000.0 | BH111: 10000.0 | BI111: 57.3 | BJ111: 5.5 | BK111: 91900.0 | BL111: 6900.0 | BM111: 0.0 | BN111: 0.0 | BO111: 57.8 | BP111: 3.4 | BQ111: 22000.0 | BR111: 1100.0 | BS111: 504.0 | BT111: 34.0 | BU111: 150.0 | BV111: 15.0 | BW111: 499.0 | BX111: 51.0 | BY111: 173000.0 | BZ111: 16000.0 | CA111: 45.3 | CB111: 3.4 | CC111: 38.0 | CD111: 2.6 | CE111: 2.7 | CF111: 0.5 | CG111: 472.0 | CH111: 30.0 | CI111: 50.8 | CJ111: 4.4 | CK111: 2.1 | CL111: 0.5 | CM111: 696.0 | CN111: 45.0 | CO111: 1.3 | CP111: 0.2 | CQ111: 0.0 | CR111: 0.0 | CS111: 0.2 | CT111: 0.1 | CU111: 100.0 | CV111: 10.0 | CW111: 0.0 | CX111: 0.0 | CY111: 0.0 | CZ111: 0.0 | DA111: 0.3 | DB111: 0.0 | DC111: 8.2 | DD111: 0.8 | DE111: 0.0 | DF111: 0.0 | DG111: 31.6 | DH111: 2.8 | DI111: 788.0 | DJ111: 65.0 | DK111: 0.0 | DL111: 0.0 | DM111: 0.0 | DN111: 0.0 | DO111: 0.0 | DP111: 0.0 | DQ111: 0.0 | DR111: 0.0 | DS111: 0.0 | DT111: 0.0 | DU111: 0.0 | DV111: 0.0 | DW111: 0.0 | DX111: 0.0 | DY111: 0.0 | DZ111: 0.0 | EA111: 0.0 | EB111: 0.0 | EC111: 0.0 | ED111: 0.0 | EE111: 0.0 | EF111: 0.0 | EG111: 0.0 | EH111: 0.0 | EI111: 0.0 | EJ111: 0.0 | EK111: 0.0 | EL111: 0.0 | EM111: 0.0 | EN111: 0.0 | EO111: 8.2 | EP111: 0.6 | EQ111: 2.3 | ER111: 0.2 | ES111: 4.4 | ET111: 0.4 | EU111: 3.4 | EV111: 0.2 | EW111: 0.0 | EX111: 0.0 | EY111: 0.0 | EZ111: 0.0 | FA111: 0.0 | FB111: 0.0
A112: L14C | B112: Bt | C112: L14c.2 | E112: 29.98 | F112: 3.41 | G112: 18.87 | H112: 0.02 | I112: 20.41 | J112: 0.08 | K112: 9.57 | L112: 0.01 | M112: 0.08 | N112: 9.91 | O112: 0.17 | P112: 0.02 | Q112: 92.54 | S112: 4.82 | T112: 0.46 | U112: 2.68 | W112: 1.39 | X112: 0.00 | Y112: 1.11 | Z112: 0.00 | AA112: 0.01 | AB112: 0.51 | AD112: 0.44 | AN112: 0.56 | AP112: 730-790 | AQ112: 5.70 | AR112: 760.00 | AS112: 5.00 | AW112: 640.00 | AY112: 140.0 | AZ112: 22.0 | BA112: 0.0 | BB112: 0.0 | BC112: 930.0 | BD112: 100.0 | BE112: 113000.0 | BF112: 10000.0 | BG112: 179900.0 | BH112: 8400.0 | BI112: 43.6 | BJ112: 5.9 | BK112: 86700.0 | BL112: 7500.0 | BM112: 570.0 | BN112: 130.0 | BO112: 64.0 | BP112: 8.3 | BQ112: 20600.0 | BR112: 2900.0 | BS112: 462.0 | BT112: 68.0 | BU112: 122.0 | BV112: 19.0 | BW112: 451.0 | BX112: 59.0 | BY112: 173000.0 | BZ112: 20000.0 | CA112: 50.2 | CB112: 4.5 | CC112: 38.7 | CD112: 2.7 | CE112: 3.3 | CF112: 0.5 | CG112: 473.0 | CH112: 28.0 | CI112: 45.7 | CJ112: 4.1 | CK112: 2.7 | CL112: 0.5 | CM112: 694.0 | CN112: 78.0 | CO112: 2.1 | CP112: 0.3 | CQ112: 0.0 | CR112: 0.0 | CS112: 0.0 | CT112: 0.0 | CU112: 78.0 | CV112: 12.0 | CW112: 0.0 | CX112: 0.0 | CY112: 0.0 | CZ112: 0.0 | DA112: 0.3 | DB112: 0.1 | DC112: 7.2 | DD112: 0.7 | DE112: 0.0 | DF112: 0.0 | DG112: 30.0 | DH112: 4.6 | DI112: 685.0 | DJ112: 77.0 | DK112: 0.0 | DL112: 0.0 | DM112: 0.0 | DN112: 0.0 | DO112: 0.0 | DP112: 0.0 | DQ112: 0.0 | DR112: 0.0 | DS112: 0.0 | DT112: 0.0 | DU112: 0.0 | DV112: 0.0 | DW112: 0.0 | DX112: 0.0 | DY112: 0.0 | DZ112: 0.0 | EA112: 0.0 | EB112: 0.0 | EC112: 0.0 | ED112: 0.0 | EE112: 0.0 | EF112: 0.0 | EG112: 0.0 | EH112: 0.0 | EI112: 0.0 | EJ112: 0.0 | EK112: 0.0 | EL112: 0.0 | EM112: 0.0 | EN112: 0.0 | EO112: 5.9 | EP112: 0.6 | EQ112: 2.1 | ER112: 0.2 | ES112: 4.1 | ET112: 0.4 | EU112: 3.9 | EV112: 0.6 | EW112: 0.0 | EX112: 0.0 | EY112: 0.0 | EZ112: 0.0 | FA112: 0.0 | FB112: 0.0
A113: L14C | B113: Bt | C113: L14c.3 | E113: 29.07 | F113: 3.72 | G113: 18.29 | H113: 0.01 | I113: 20.13 | J113: 0.06 | K113: 9.00 | L113: 0.04 | M113: 0.13 | N113: 9.71 | O113: 0.18 | P113: 0.02 | Q113: 90.39 | S113: 4.73 | T113: 0.51 | U113: 2.69 | W113: 1.42 | X113: 0.01 | Y113: 1.11 | Z113: -0.00 | AA113: 0.01 | AB113: 0.52 | AD113: 0.44 | AN113: 0.56 | AP113: 730-790 | AQ113: 5.70 | AR113: 760.00 | AS113: 5.00 | AW113: 640.00 | AY113: 196.0 | AZ113: 44.0 | BA113: 0.0 | BB113: 0.0 | BC113: 1110.0 | BD113: 120.0 | BE113: 118700.0 | BF113: 9000.0 | BG113: 189000.0 | BH113: 10000.0 | BI113: 46.9 | BJ113: 6.0 | BK113: 91500.0 | BL113: 9500.0 | BM113: 0.0 | BN113: 0.0 | BO113: 79.0 | BP113: 19.0 | BQ113: 27700.0 | BR113: 7200.0 | BS113: 650.0 | BT113: 170.0 | BU113: 165.0 | BV113: 41.0 | BW113: 540.0 | BX113: 100.0 | BY113: 195000.0 | BZ113: 29000.0 | CA113: 49.5 | CB113: 4.6 | CC113: 40.3 | CD113: 3.0 | CE113: 0.0 | CF113: 0.0 | CG113: 473.0 | CH113: 26.0 | CI113: 49.2 | CJ113: 3.5 | CK113: 2.2 | CL113: 0.4 | CM113: 890.0 | CN113: 170.0 | CO113: 0.7 | CP113: 0.2 | CQ113: 0.0 | CR113: 0.0 | CS113: 0.9 | CT113: 0.3 | CU113: 102.0 | CV113: 25.0 | CW113: 0.0 | CX113: 0.0 | CY113: 0.0 | CZ113: 0.0 | DA113: 0.3 | DB113: 0.0 | DC113: 7.5 | DD113: 0.7 | DE113: 0.0 | DF113: 0.0 | DG113: 38.5 | DH113: 9.3 | DI113: 890.0 | DJ113: 100.0 | DK113: 0.0 | DL113: 0.0 | DM113: 0.0 | DN113: 0.0 | DO113: 0.0 | DP113: 0.0 | DQ113: 0.0 | DR113: 0.0 | DS113: 0.0 | DT113: 0.0 | DU113: 0.0 | DV113: 0.0 | DW113: 0.0 | DX113: 0.0 | DY113: 0.0 | DZ113: 0.0 | EA113: 0.0 | EB113: 0.0 | EC113: 0.0 | ED113: 0.0 | EE113: 0.0 | EF113: 0.0 | EG113: 0.0 | EH113: 0.0 | EI113: 0.0 | EJ113: 0.0 | EK113: 0.0 | EL113: 0.0 | EM113: 0.0 | EN113: 0.0 | EO113: 7.3 | EP113: 0.6 | EQ113: 2.1 | ER113: 0.2 | ES113: 4.9 | ET113: 0.7 | EU113: 4.5 | EV113: 1.1 | EW113: 0.0 | EX113: 0.0 | EY113: 0.0 | EZ113: 0.0 | FA113: 0.0 | FB113: 0.0
A114: L14C | B114: Bt | C114: L14c.4 | E114: 28.63 | F114: 4.11 | G114: 18.39 | H114: 0.02 | I114: 20.57 | J114: 0.08 | K114: 9.04 | L114: -0.00 | M114: 0.07 | N114: 9.90 | O114: 0.20 | P114: 0.02 | Q114: 91.04 | S114: 4.92 | T114: 0.49 | U114: 2.65 | W114: 1.37 | X114: 0.01 | Y114: 1.06 | Z114: 0.00 | AA114: 0.01 | AB114: 0.50 | AD114: =Y114/(Y114+W114) -> 0.44 | AN114: 0.56 | AP114: 730-790 | AQ114: 5.70 | AR114: 760.00 | AS114: 5.00 | AW114: 640.00 | AY114: 138.0 | AZ114: 23.0 | BA114: 0.0 | BB114: 0.0 | BC114: 830.0 | BD114: 100.0 | BE114: 96200.0 | BF114: 8500.0 | BG114: 172700.0 | BH114: 8400.0 | BI114: 49.8 | BJ114: 4.9 | BK114: 82500.0 | BL114: 4800.0 | BM114: 0.0 | BN114: 0.0 | BO114: 46.5 | BP114: 5.7 | BQ114: 24200.0 | BR114: 4100.0 | BS114: 640.0 | BT114: 120.0 | BU114: 179.0 | BV114: 32.0 | BW114: 503.0 | BX114: 79.0 | BY114: 172000.0 | BZ114: 24000.0 | CA114: 44.3 | CB114: 3.9 | CC114: 38.7 | CD114: 2.7 | CE114: 0.7 | CF114: 0.2 | CG114: 505.0 | CH114: 23.0 | CI114: 49.0 | CJ114: 3.3 | CK114: 1.7 | CL114: 0.3 | CM114: 656.0 | CN114: 60.0 | CO114: 0.6 | CP114: 0.1 | CQ114: 0.0 | CR114: 0.0 | CS114: 0.3 | CT114: 0.1 | CU114: 115.0 | CV114: 20.0 | CW114: 0.0 | CX114: 0.0 | CY114: 0.0 | CZ114: 0.0 | DA114: 0.3 | DB114: 0.0 | DC114: 7.4 | DD114: 0.7 | DE114: 0.0 | DF114: 0.0 | DG114: 34.4 | DH114: 6.0 | DI114: 785.0 | DJ114: 99.0 | DK114: 0.0 | DL114: 0.0 | DM114: 0.0 | DN114: 0.0 | DO114: 0.0 | DP114: 0.0 | DQ114: 0.0 | DR114: 0.0 | DS114: 0.0 | DT114: 0.0 | DU114: 0.0 | DV114: 0.0 | DW114: 0.0 | DX114: 0.0 | DY114: 0.0 | DZ114: 0.0 | EA114: 0.0 | EB114: 0.0 | EC114: 0.0 | ED114: 0.0 | EE114: 0.0 | EF114: 0.0 | EG114: 0.0 | EH114: 0.0 | EI114: 0.0 | EJ114: 0.0 | EK114: 0.0 | EL114: 0.0 | EM114: 0.0 | EN114: 0.0 | EO114: 7.8 | EP114: 0.8 | EQ114: 2.2 | ER114: 0.2 | ES114: 4.2 | ET114: 0.3 | EU114: 3.2 | EV114: 0.5 | EW114: 0.0 | EX114: 0.0 | EY114: 0.0 | EZ114: 0.0 | FA114: 0.0 | FB114: 0.0
A115: L14C | B115: Bt | C115: L14c.5 | E115: 31.13 | F115: 4.13 | G115: 18.92 | H115: 0.03 | I115: 20.69 | J115: 0.09 | K115: 8.98 | L115: 0.01 | M115: 0.10 | N115: 9.84 | O115: 0.16 | P115: 0.06 | Q115: 94.13 | S115: 4.76 | T115: 0.53 | U115: 2.75 | W115: 1.40 | X115: 0.01 | Y115: 1.03 | Z115: 0.00 | AA115: 0.01 | AB115: 0.51 | AD115: 0.42 | AN115: 0.58 | AP115: 730-790 | AQ115: 5.70 | AR115: 760.00 | AS115: 5.00 | AW115: 640.00 | AY115: 131.0 | AZ115: 16.0 | BA115: 0.0 | BB115: 0.0 | BC115: 765.0 | BD115: 74.0 | BE115: 95900.0 | BF115: 7200.0 | BG115: 170500.0 | BH115: 7300.0 | BI115: 46.4 | BJ115: 5.8 | BK115: 92600.0 | BL115: 6800.0 | BM115: 0.0 | BN115: 0.0 | BO115: 54.1 | BP115: 5.5 | BQ115: 27000.0 | BR115: 3600.0 | BS115: 629.0 | BT115: 87.0 | BU115: 203.0 | BV115: 27.0 | BW115: 589.0 | BX115: 65.0 | BY115: 195000.0 | BZ115: 18000.0 | CA115: 41.3 | CB115: 3.0 | CC115: 34.0 | CD115: 2.3 | CE115: 0.7 | CF115: 0.2 | CG115: 503.0 | CH115: 27.0 | CI115: 53.0 | CJ115: 3.3 | CK115: 2.1 | CL115: 0.4 | CM115: 774.0 | CN115: 75.0 | CO115: 1.0 | CP115: 0.2 | CQ115: 0.0 | CR115: 0.0 | CS115: 0.0 | CT115: 0.0 | CU115: 133.0 | CV115: 16.0 | CW115: 0.0 | CX115: 0.0 | CY115: 0.0 | CZ115: 0.0 | DA115: 0.3 | DB115: 0.0 | DC115: 6.1 | DD115: 0.6 | DE115: 0.0 | DF115: 0.0 | DG115: 31.6 | DH115: 4.2 | DI115: 891.0 | DJ115: 84.0 | DK115: 0.0 | DL115: 0.0 | DM115: 0.0 | DN115: 0.0 | DO115: 0.0 | DP115: 0.0 | DQ115: 0.0 | DR115: 0.0 | DS115: 0.0 | DT115: 0.0 | DU115: 0.0 | DV115: 0.0 | DW115: 0.0 | DX115: 0.0 | DY115: 0.0 | DZ115: 0.0 | EA115: 0.0 | EB115: 0.0 | EC115: 0.0 | ED115: 0.0 | EE115: 0.0 | EF115: 0.0 | EG115: 0.0 | EH115: 0.0 | EI115: 0.0 | EJ115: 0.0 | EK115: 0.0 | EL115: 0.0 | EM115: 0.0 | EN115: 0.0 | EO115: 9.7 | EP115: 0.8 | EQ115: 2.3 | ER115: 0.2 | ES115: 4.5 | ET115: 0.4 | EU115: 3.8 | EV115: 0.5 | EW115: 0.0 | EX115: 0.0 | EY115: 0.0 | EZ115: 0.0 | FA115: 0.0 | FB115: 0.0
A116: L14C | B116: Bt | C116: L14c.6 | E116: 29.23 | F116: 4.36 | G116: 19.08 | H116: 0.02 | I116: 20.55 | J116: 0.08 | K116: 8.52 | L116: 0.03 | M116: 0.07 | N116: 9.87 | O116: 0.11 | P116: 0.03 | Q116: 91.93 | S116: 4.61 | T116: 0.51 | U116: 2.77 | W116: 1.44 | X116: 0.00 | Y116: 1.13 | Z116: -0.00 | AA116: 0.01 | AB116: 0.53 | AD116: 0.44 | AN116: 0.56 | AP116: 730-790 | AQ116: 5.70 | AR116: 760.00 | AS116: 5.00 | AW116: 640.00 | AY116: 128.7 | AZ116: 5.8 | BA116: 0.0 | BB116: 0.0 | BC116: 677.0 | BD116: 25.0 | BE116: 89900.0 | BF116: 3200.0 | BG116: 179600.0 | BH116: 5900.0 | BI116: 44.9 | BJ116: 7.0 | BK116: 84500.0 | BL116: 3500.0 | BM116: 0.0 | BN116: 0.0 | BO116: 50.7 | BP116: 1.9 | BQ116: 24610.0 | BR116: 940.0 | BS116: 598.0 | BT116: 23.0 | BU116: 208.0 | BV116: 11.0 | BW116: 487.0 | BX116: 22.0 | BY116: 169300.0 | BZ116: 8300.0 | CA116: 47.5 | CB116: 1.9 | CC116: 42.0 | CD116: 2.2 | CE116: 8.6 | CF116: 1.1 | CG116: 481.0 | CH116: 19.0 | CI116: 44.0 | CJ116: 2.0 | CK116: 2.2 | CL116: 0.3 | CM116: 652.0 | CN116: 32.0 | CO116: 2.0 | CP116: 0.2 | CQ116: 0.0 | CR116: 0.0 | CS116: 0.0 | CT116: 0.0 | CU116: 81.7 | CV116: 2.7 | CW116: 0.0 | CX116: 0.0 | CY116: 0.0 | CZ116: 0.0 | DA116: 0.3 | DB116: 0.0 | DC116: 7.6 | DD116: 0.4 | DE116: 0.0 | DF116: 0.0 | DG116: 28.3 | DH116: 1.1 | DI116: 744.0 | DJ116: 30.0 | DK116: 0.0 | DL116: 0.0 | DM116: 0.0 | DN116: 0.0 | DO116: 0.0 | DP116: 0.0 | DQ116: 0.0 | DR116: 0.0 | DS116: 0.0 | DT116: 0.0 | DU116: 0.0 | DV116: 0.0 | DW116: 0.0 | DX116: 0.0 | DY116: 0.0 | DZ116: 0.0 | EA116: 0.0 | EB116: 0.0 | EC116: 0.0 | ED116: 0.0 | EE116: 0.0 | EF116: 0.0 | EG116: 0.0 | EH116: 0.0 | EI116: 0.0 | EJ116: 0.0 | EK116: 0.0 | EL116: 0.0 | EM116: 0.0 | EN116: 0.0 | EO116: 4.2 | EP116: 0.2 | EQ116: 2.0 | ER116: 0.2 | ES116: 4.3 | ET116: 0.2 | EU116: 3.2 | EV116: 0.2 | EW116: 0.0 | EX116: 0.0 | EY116: 0.0 | EZ116: 0.0 | FA116: 0.0 | FB116: 0.0
A117: L14C | B117: Bt | C117: L14c.7 | E117: 27.51 | F117: 4.06 | G117: 18.67 | H117: 0.02 | I117: 20.59 | J117: 0.06 | K117: 9.01 | L117: -0.00 | M117: 0.08 | N117: 9.89 | O117: 0.16 | P117: 0.03 | Q117: 90.07 | S117: 4.60 | T117: 0.48 | U117: 2.80 | W117: 1.48 | X117: 0.01 | Y117: 1.09 | Z117: 0.00 | AA117: 0.00 | AB117: 0.53 | AD117: 0.42 | AN117: 0.58 | AP117: 730-790 | AQ117: 5.70 | AR117: 760.00 | AS117: 5.00 | AW117: 640.00 | AY117: 123.9 | AZ117: 5.7 | BA117: 0.0 | BB117: 0.0 | BC117: 860.0 | BD117: 41.0 | BE117: 101200.0 | BF117: 4100.0 | BG117: 176000.0 | BH117: 6600.0 | BI117: 51.6 | BJ117: 4.9 | BK117: 82400.0 | BL117: 3400.0 | BM117: 0.0 | BN117: 0.0 | BO117: 50.0 | BP117: 3.4 | BQ117: 23900.0 | BR117: 1700.0 | BS117: 597.0 | BT117: 39.0 | BU117: 175.0 | BV117: 10.0 | BW117: 472.0 | BX117: 21.0 | BY117: 173700.0 | BZ117: 7500.0 | CA117: 48.9 | CB117: 1.8 | CC117: 44.3 | CD117: 2.4 | CE117: 0.0 | CF117: 0.0 | CG117: 463.0 | CH117: 22.0 | CI117: 44.5 | CJ117: 2.0 | CK117: 2.4 | CL117: 0.5 | CM117: 679.0 | CN117: 43.0 | CO117: 0.7 | CP117: 0.1 | CQ117: 0.0 | CR117: 0.0 | CS117: 0.0 | CT117: 0.0 | CU117: 80.2 | CV117: 3.9 | CW117: 0.0 | CX117: 0.0 | CY117: 0.0 | CZ117: 0.0 | DA117: 0.3 | DB117: 0.0 | DC117: 6.5 | DD117: 0.5 | DE117: 0.0 | DF117: 0.0 | DG117: 28.0 | DH117: 1.6 | DI117: 848.0 | DJ117: 31.0 | DK117: 0.0 | DL117: 0.0 | DM117: 0.0 | DN117: 0.0 | DO117: 0.0 | DP117: 0.0 | DQ117: 0.0 | DR117: 0.0 | DS117: 0.0 | DT117: 0.0 | DU117: 0.0 | DV117: 0.0 | DW117: 0.0 | DX117: 0.0 | DY117: 0.0 | DZ117: 0.0 | EA117: 0.0 | EB117: 0.0 | EC117: 0.0 | ED117: 0.0 | EE117: 0.0 | EF117: 0.0 | EG117: 0.0 | EH117: 0.0 | EI117: 0.0 | EJ117: 0.0 | EK117: 0.0 | EL117: 0.0 | EM117: 0.0 | EN117: 0.0 | EO117: 4.7 | EP117: 0.2 | EQ117: 2.1 | ER117: 0.2 | ES117: 3.9 | ET117: 0.2 | EU117: 3.2 | EV117: 0.2 | EW117: 0.0 | EX117: 0.0 | EY117: 0.0 | EZ117: 0.0 | FA117: 0.0 | FB117: 0.0
A118: L14G | B118: Bt | C118: L14G_Bt2_l2 | E118: 35.99 | F118: 4.14 | G118: 19.01 | I118: 18.18 | K118: 10.47 | N118: 9.90 | Q118: 97.69 | S118: 2.64 | T118: 0.23 | U118: 1.63 | V118: 0.00 | W118: 1.14 | X118: 0.00 | Y118: 1.22 | Z118: 0.00 | AA118: 0.00 | AB118: 0.92 | AD118: 0.52 | AN118: 0.48 | AP118: 730-790 | AQ118: 5.70 | AR118: 791.00 | AS118: 4.90 | AU118: 791.00 | AV118: 650.01 | AW118: 627.00 | AY118: 102.5 | AZ118: 4.6 | BA118: 0.0 | BB118: 0.0 | BC118: 1150.0 | BD118: 50.0 | BE118: 103800.0 | BF118: 3100.0 | BG118: 182600.0 | BH118: 5100.0 | BI118: 83.6 | BJ118: 7.3 | BK118: 82600.0 | BL118: 4600.0 | BM118: 0.0 | BN118: 0.0 | BO118: 18.7 | BP118: 0.9 | BQ118: 24700.0 | BR118: 1000.0 | BS118: 451.0 | BT118: 19.0 | BU118: 201.0 | BV118: 12.0 | BW118: 27.8 | BX118: 1.4 | BY118: 169400.0 | BZ118: 6600.0 | CA118: 106.5 | CB118: 4.2 | CC118: 142.2 | CD118: 5.3 | CE118: 3.1 | CF118: 0.5 | CG118: 52.2 | CH118: 3.4 | CI118: 29.8 | CJ118: 1.9 | CK118: 1.9 | CL118: 0.3 | CM118: 601.0 | CN118: 23.0 | CO118: 1.3 | CP118: 0.1 | CQ118: 0.0 | CR118: 0.0 | CS118: 0.0 | CT118: 0.0 | CU118: 79.8 | CV118: 3.5 | CW118: 0.0 | CX118: 0.0 | CY118: 0.0 | CZ118: 0.0 | DA118: 0.5 | DB118: 0.0 | DC118: 8.1 | DD118: 0.7 | DE118: 0.0 | DF118: 0.0 | DG118: 19.3 | DH118: 0.8 | DI118: 669.0 | DJ118: 28.0 | DK118: 0.0 | DL118: 0.0 | DM118: 0.0 | DN118: 0.0 | DO118: 0.0 | DP118: 0.0 | DQ118: 0.0 | DR118: 0.0 | DS118: 0.0 | DT118: 0.0 | DU118: 0.0 | DV118: 0.0 | DW118: 0.0 | DX118: 0.0 | DY118: 0.0 | DZ118: 0.0 | EA118: 0.0 | EB118: 0.0 | EC118: 0.0 | ED118: 0.0 | EE118: 0.0 | EF118: 0.0 | EG118: 0.0 | EH118: 0.0 | EI118: 0.0 | EJ118: 0.0 | EK118: 0.0 | EL118: 0.0 | EM118: 0.0 | EN118: 0.0 | EO118: 4.6 | EP118: 0.2 | EQ118: 0.2 | ER118: 0.0 | ES118: 4.5 | ET118: 0.3 | EU118: 3.4 | EV118: 0.2 | EW118: 0.0 | EX118: 0.0 | EY118: 0.0 | EZ118: 0.0 | FA118: 0.0 | FB118: 0.0
A119: L14G | B119: Bt | C119: L14G_Bt3_incl | E119: 35.37 | F119: 4.02 | G119: 18.46 | I119: 18.19 | K119: 10.95 | N119: 9.70 | Q119: 96.69 | S119: 2.64 | T119: 0.23 | U119: 1.63 | V119: 0.00 | W119: 1.14 | X119: 0.00 | Y119: 1.22 | Z119: 0.00 | AA119: 0.00 | AB119: 0.92 | AD119: 0.52 | AN119: 0.48 | AP119: 730-790 | AQ119: 5.70 | AR119: 791.00 | AS119: 4.90 | AU119: 791.00 | AV119: 650.01 | AW119: 627.00 | AY119: 97.7 | AZ119: 4.7 | BA119: 0.0 | BB119: 0.0 | BC119: 1116.0 | BD119: 47.0 | BE119: 105100.0 | BF119: 3100.0 | BG119: 173900.0 | BH119: 5600.0 | BI119: 86.1 | BJ119: 6.2 | BK119: 83600.0 | BL119: 3400.0 | BM119: 0.0 | BN119: 0.0 | BO119: 16.9 | BP119: 1.2 | BQ119: 24300.0 | BR119: 1400.0 | BS119: 572.0 | BT119: 31.0 | BU119: 173.0 | BV119: 11.0 | BW119: 19.4 | BX119: 1.1 | BY119: 178100.0 | BZ119: 6900.0 | CA119: 98.7 | CB119: 3.8 | CC119: 132.9 | CD119: 5.7 | CE119: 4.2 | CF119: 1.2 | CG119: 24.7 | CH119: 2.0 | CI119: 28.6 | CJ119: 1.4 | CK119: 1.6 | CL119: 0.3 | CM119: 635.0 | CN119: 42.0 | CO119: 0.7 | CP119: 0.1 | CQ119: 0.0 | CR119: 0.0 | CS119: 0.3 | CT119: 0.1 | CU119: 86.9 | CV119: 3.8 | CW119: 0.0 | CX119: 0.0 | CY119: 0.0 | CZ119: 0.0 | DA119: 0.5 | DB119: 0.1 | DC119: 4.5 | DD119: 0.2 | DE119: 0.0 | DF119: 0.0 | DG119: 20.7 | DH119: 1.0 | DI119: 655.0 | DJ119: 21.0 | DK119: 0.0 | DL119: 0.0 | DM119: 0.0 | DN119: 0.0 | DO119: 0.0 | DP119: 0.0 | DQ119: 0.0 | DR119: 0.0 | DS119: 0.0 | DT119: 0.0 | DU119: 0.0 | DV119: 0.0 | DW119: 0.0 | DX119: 0.0 | DY119: 0.0 | DZ119: 0.0 | EA119: 0.0 | EB119: 0.0 | EC119: 0.0 | ED119: 0.0 | EE119: 0.0 | EF119: 0.0 | EG119: 0.0 | EH119: 0.0 | EI119: 0.0 | EJ119: 0.0 | EK119: 0.0 | EL119: 0.0 | EM119: 0.0 | EN119: 0.0 | EO119: 4.8 | EP119: 0.2 | EQ119: 0.2 | ER119: 0.1 | ES119: 4.4 | ET119: 0.2 | EU119: 3.7 | EV119: 0.2 | EW119: 0.0 | EX119: 0.0 | EY119: 0.0 | EZ119: 0.0 | FA119: 0.0 | FB119: 0.0
A120: L14G | B120: Bt | C120: L14G_Bt4_3 | E120: 34.58 | F120: 4.34 | G120: 18.21 | I120: 18.36 | K120: 9.90 | N120: 9.51 | Q120: 94.90 | S120: 2.64 | T120: 0.25 | U120: 1.64 | V120: 0.00 | W120: 1.17 | X120: 0.00 | Y120: 1.13 | Z120: 0.00 | AA120: 0.00 | AB120: 0.93 | AD120: 0.49 | AN120: 0.51 | AP120: 730-790 | AQ120: 5.70 | AR120: 791.00 | AS120: 4.90 | AU120: 791.00 | AV120: 679.33 | AW120: 627.00 | AY120: 112.4 | AZ120: 5.2 | BA120: 0.0 | BB120: 0.0 | BC120: 1302.0 | BD120: 54.0 | BE120: 88200.0 | BF120: 2300.0 | BG120: 175000.0 | BH120: 3400.0 | BI120: 98.1 | BJ120: 7.5 | BK120: 79400.0 | BL120: 4300.0 | BM120: 0.0 | BN120: 0.0 | BO120: 19.4 | BP120: 1.1 | BQ120: 28800.0 | BR120: 1500.0 | BS120: 509.0 | BT120: 25.0 | BU120: 211.4 | BV120: 9.8 | BW120: 25.9 | BX120: 1.0 | BY120: 174000.0 | BZ120: 6400.0 | CA120: 89.7 | CB120: 3.3 | CC120: 118.7 | CD120: 4.0 | CE120: 10.6 | CF120: 1.0 | CG120: 42.3 | CH120: 4.3 | CI120: 18.1 | CJ120: 1.3 | CK120: 3.1 | CL120: 0.5 | CM120: 560.0 | CN120: 38.0 | CO120: 1.6 | CP120: 0.2 | CQ120: 0.0 | CR120: 0.0 | CS120: 0.0 | CT120: 0.0 | CU120: 99.4 | CV120: 4.2 | CW120: 0.0 | CX120: 0.0 | CY120: 0.0 | CZ120: 0.0 | DA120: 0.4 | DB120: 0.1 | DC120: 5.8 | DD120: 0.5 | DE120: 0.0 | DF120: 0.0 | DG120: 18.8 | DH120: 0.8 | DI120: 703.0 | DJ120: 20.0 | DK120: 0.0 | DL120: 0.0 | DM120: 0.0 | DN120: 0.0 | DO120: 0.0 | DP120: 0.0 | DQ120: 0.0 | DR120: 0.0 | DS120: 0.0 | DT120: 0.0 | DU120: 0.0 | DV120: 0.0 | DW120: 0.0 | DX120: 0.0 | DY120: 0.0 | DZ120: 0.0 | EA120: 0.0 | EB120: 0.0 | EC120: 0.0 | ED120: 0.0 | EE120: 0.0 | EF120: 0.0 | EG120: 0.0 | EH120: 0.0 | EI120: 0.0 | EJ120: 0.0 | EK120: 0.0 | EL120: 0.0 | EM120: 0.0 | EN120: 0.0 | EO120: 4.0 | EP120: 0.2 | EQ120: 0.2 | ER120: 0.0 | ES120: 4.7 | ET120: 0.3 | EU120: 4.3 | EV120: 0.3 | EW120: 0.0 | EX120: 0.0 | EY120: 0.0 | EZ120: 0.0 | FA120: 0.0 | FB120: 0.0
A121: L14G | B121: Bt | C121: L14G_Bt4_1 | E121: 35.87 | F121: 4.34 | G121: 19.16 | I121: 18.99 | K121: 10.14 | N121: 9.60 | Q121: 98.10 | S121: 2.68 | T121: 0.25 | U121: 1.60 | V121: 0.00 | W121: 1.16 | X121: 0.00 | Y121: 1.14 | Z121: 0.00 | AA121: 0.02 | AB121: 0.89 | AD121: 0.50 | AN121: 0.50 | AP121: 730-790 | AQ121: 5.70 | AR121: 791.00 | AS121: 4.90 | AU121: 791.00 | AV121: 678.38 | AW121: 627.00 | AY121: 119.6 | AZ121: 6.9 | BA121: 0.0 | BB121: 0.0 | BC121: 1572.0 | BD121: 78.0 | BE121: 100500.0 | BF121: 4800.0 | BG121: 183400.0 | BH121: 6500.0 | BI121: 94.6 | BJ121: 7.3 | BK121: 79500.0 | BL121: 3200.0 | BM121: 0.0 | BN121: 0.0 | BO121: 20.0 | BP121: 1.0 | BQ121: 26800.0 | BR121: 1100.0 | BS121: 451.0 | BT121: 26.0 | BU121: 164.0 | BV121: 11.0 | BW121: 31.1 | BX121: 2.1 | BY121: 176100.0 | BZ121: 8800.0 | CA121: 94.8 | CB121: 5.4 | CC121: 133.5 | CD121: 7.8 | CE121: 2.4 | CF121: 0.6 | CG121: 18.1 | CH121: 1.8 | CI121: 19.5 | CJ121: 1.2 | CK121: 2.7 | CL121: 0.4 | CM121: 592.0 | CN121: 26.0 | CO121: 0.7 | CP121: 0.1 | CQ121: 0.0 | CR121: 0.0 | CS121: 0.0 | CT121: 0.0 | CU121: 91.4 | CV121: 5.0 | CW121: 0.0 | CX121: 0.0 | CY121: 0.0 | CZ121: 0.0 | DA121: 0.4 | DB121: 0.0 | DC121: 7.7 | DD121: 0.6 | DE121: 0.0 | DF121: 0.0 | DG121: 20.7 | DH121: 1.3 | DI121: 721.0 | DJ121: 35.0 | DK121: 0.0 | DL121: 0.0 | DM121: 0.0 | DN121: 0.0 | DO121: 0.0 | DP121: 0.0 | DQ121: 0.0 | DR121: 0.0 | DS121: 0.0 | DT121: 0.0 | DU121: 0.0 | DV121: 0.0 | DW121: 0.0 | DX121: 0.0 | DY121: 0.0 | DZ121: 0.0 | EA121: 0.0 | EB121: 0.0 | EC121: 0.0 | ED121: 0.0 | EE121: 0.0 | EF121: 0.0 | EG121: 0.0 | EH121: 0.0 | EI121: 0.0 | EJ121: 0.0 | EK121: 0.0 | EL121: 0.0 | EM121: 0.0 | EN121: 0.0 | EO121: 4.7 | EP121: 0.3 | EQ121: 0.3 | ER121: 0.0 | ES121: 4.6 | ET121: 0.2 | EU121: 3.9 | EV121: 0.2 | EW121: 0.0 | EX121: 0.0 | EY121: 0.0 | EZ121: 0.0 | FA121: 0.0 | FB121: 0.0
A122: L14G | B122: Bt | C122: L14G_Bt5_1 | E122: 35.03 | F122: 4.36 | G122: 18.02 | I122: 19.64 | K122: 9.52 | N122: 9.67 | Q122: 96.24 | S122: 2.68 | T122: 0.24 | U122: 1.60 | V122: 0.00 | W122: 1.21 | X122: 0.00 | Y122: 1.07 | Z122: 0.00 | AA122: 0.02 | AB122: 0.91 | AD122: 0.47 | AN122: 0.53 | AP122: 730-790 | AQ122: 5.70 | AR122: 791.00 | AS122: 4.90 | AU122: 791.00 | AV122: 681.68 | AW122: 627.00 | AY122: 115.3 | AZ122: 4.0 | BA122: 0.0 | BB122: 0.0 | BC122: 917.0 | BD122: 32.0 | BE122: 93100.0 | BF122: 2700.0 | BG122: 178900.0 | BH122: 4500.0 | BI122: 89.9 | BJ122: 5.2 | BK122: 81300.0 | BL122: 2000.0 | BM122: 0.0 | BN122: 0.0 | BO122: 17.6 | BP122: 0.8 | BQ122: 24590.0 | BR122: 600.0 | BS122: 850.0 | BT122: 24.0 | BU122: 272.0 | BV122: 11.0 | BW122: 92.3 | BX122: 3.0 | BY122: 185000.0 | BZ122: 5600.0 | CA122: 74.9 | CB122: 2.4 | CC122: 134.1 | CD122: 4.8 | CE122: 35.7 | CF122: 4.3 | CG122: 68.5 | CH122: 4.0 | CI122: 28.9 | CJ122: 1.1 | CK122: 1.7 | CL122: 0.3 | CM122: 570.0 | CN122: 19.0 | CO122: 1.7 | CP122: 0.3 | CQ122: 0.5 | CR122: 0.1 | CS122: 0.0 | CT122: 0.0 | CU122: 98.0 | CV122: 3.4 | CW122: 0.0 | CX122: 0.0 | CY122: 0.0 | CZ122: 0.0 | DA122: 0.3 | DB122: 0.0 | DC122: 5.7 | DD122: 0.4 | DE122: 0.0 | DF122: 0.0 | DG122: 19.9 | DH122: 0.6 | DI122: 694.0 | DJ122: 27.0 | DK122: 0.0 | DL122: 0.0 | DM122: 0.0 | DN122: 0.0 | DO122: 0.0 | DP122: 0.0 | DQ122: 0.0 | DR122: 0.0 | DS122: 0.0 | DT122: 0.0 | DU122: 0.0 | DV122: 0.0 | DW122: 0.0 | DX122: 0.0 | DY122: 0.0 | DZ122: 0.0 | EA122: 0.0 | EB122: 0.0 | EC122: 0.0 | ED122: 0.0 | EE122: 0.0 | EF122: 0.0 | EG122: 0.0 | EH122: 0.0 | EI122: 0.0 | EJ122: 0.0 | EK122: 0.0 | EL122: 0.0 | EM122: 0.0 | EN122: 0.0 | EO122: 3.9 | EP122: 0.2 | EQ122: 0.3 | ER122: 0.0 | ES122: 4.7 | ET122: 0.2 | EU122: 5.3 | EV122: 0.5 | EW122: 0.0 | EX122: 0.0 | EY122: 0.0 | EZ122: 0.0 | FA122: 0.0 | FB122: 0.0
A123: L14G | B123: Bt | C123: L14G_Bt6 | E123: 35.19 | F123: 2.35 | G123: 21.10 | I123: 17.94 | K123: 9.11 | N123: 9.62 | Q123: 95.31 | S123: 2.68 | T123: 0.18 | U123: 1.65 | V123: 0.00 | W123: 1.25 | X123: 0.00 | Y123: 1.09 | Z123: 0.00 | AA123: 0.00 | AB123: 0.92 | AD123: 0.47 | AN123: 0.53 | AP123: 730-790 | AQ123: 5.70 | AR123: 791.00 | AS123: 4.90 | AU123: 791.00 | AV123: 621.38 | AW123: 627.00 | AY123: 156.0 | AZ123: 5.3 | BA123: 0.9 | BB123: 0.4 | BC123: 801.0 | BD123: 25.0 | BE123: 89100.0 | BF123: 2500.0 | BG123: 190300.0 | BH123: 5100.0 | BI123: 96.4 | BJ123: 5.8 | BK123: 79400.0 | BL123: 2800.0 | BM123: 0.0 | BN123: 0.0 | BO123: 11.2 | BP123: 0.7 | BQ123: 19980.0 | BR123: 890.0 | BS123: 548.0 | BT123: 14.0 | BU123: 187.3 | BV123: 7.0 | BW123: 101.3 | BX123: 3.6 | BY123: 181600.0 | BZ123: 6100.0 | CA123: 73.9 | CB123: 2.2 | CC123: 149.9 | CD123: 6.3 | CE123: 44.6 | CF123: 4.0 | CG123: 82.5 | CH123: 4.4 | CI123: 41.1 | CJ123: 1.5 | CK123: 1.6 | CL123: 0.3 | CM123: 508.0 | CN123: 21.0 | CO123: 1.0 | CP123: 0.1 | CQ123: 0.0 | CR123: 0.0 | CS123: 0.0 | CT123: 0.0 | CU123: 58.6 | CV123: 1.8 | CW123: 0.0 | CX123: 0.0 | CY123: 0.0 | CZ123: 0.0 | DA123: 0.3 | DB123: 0.0 | DC123: 7.2 | DD123: 0.4 | DE123: 0.0 | DF123: 0.0 | DG123: 19.7 | DH123: 0.5 | DI123: 501.0 | DJ123: 20.0 | DK123: 0.0 | DL123: 0.0 | DM123: 0.0 | DN123: 0.0 | DO123: 0.0 | DP123: 0.0 | DQ123: 0.0 | DR123: 0.0 | DS123: 0.0 | DT123: 0.0 | DU123: 0.0 | DV123: 0.0 | DW123: 0.0 | DX123: 0.0 | DY123: 0.0 | DZ123: 0.0 | EA123: 0.0 | EB123: 0.0 | EC123: 0.0 | ED123: 0.0 | EE123: 0.0 | EF123: 0.0 | EG123: 0.0 | EH123: 0.0 | EI123: 0.0 | EJ123: 0.0 | EK123: 0.0 | EL123: 0.0 | EM123: 0.0 | EN123: 0.0 | EO123: 2.0 | EP123: 0.1 | EQ123: 0.0 | ER123: 0.0 | ES123: 3.7 | ET123: 0.2 | EU123: 12.2 | EV123: 0.7 | EW123: 0.0 | EX123: 0.0 | EY123: 0.0 | EZ123: 0.0 | FA123: 0.0 | FB123: 0.0
A124: L14G | B124: Bt | C124: L14G_Bt9 | E124: 34.24 | F124: 1.22 | G124: 20.53 | I124: 19.23 | K124: 10.89 | N124: 9.71 | Q124: 95.82 | S124: 2.60 | T124: 0.07 | U124: 1.83 | V124: 0.00 | W124: 1.22 | X124: 0.00 | Y124: 1.23 | Z124: 0.00 | AA124: 0.00 | AB124: 0.94 | AD124: 0.50 | AN124: 0.50 | AP124: 730-790 | AQ124: 5.70 | AR124: 791.00 | AS124: 4.90 | AU124: 791.00 | AV124: 495.68 | AW124: 627.00 | AY124: 173.5 | AZ124: 5.6 | BA124: 0.0 | BB124: 0.0 | BC124: 1440.0 | BD124: 48.0 | BE124: 105900.0 | BF124: 2200.0 | BG124: 219400.0 | BH124: 5400.0 | BI124: 37.0 | BJ124: 5.7 | BK124: 83700.0 | BL124: 2200.0 | BM124: 0.0 | BN124: 0.0 | BO124: 7.9 | BP124: 0.5 | BQ124: 6280.0 | BR124: 190.0 | BS124: 262.8 | BT124: 7.5 | BU124: 30.8 | BV124: 3.0 | BW124: 46.8 | BX124: 1.9 | BY124: 190000.0 | BZ124: 5400.0 | CA124: 106.9 | CB124: 3.2 | CC124: 194.2 | CD124: 6.8 | CE124: 218.2 | CF124: 9.6 | CG124: 187.0 | CH124: 42.0 | CI124: 53.3 | CJ124: 2.2 | CK124: 0.8 | CL124: 0.3 | CM124: 299.0 | CN124: 12.0 | CO124: 1.6 | CP124: 0.1 | CQ124: 0.9 | CR124: 0.1 | CS124: 0.0 | CT124: 0.0 | CU124: 2.4 | CV124: 0.2 | CW124: 0.0 | CX124: 0.0 | CY124: 0.0 | CZ124: 0.0 | DA124: 0.4 | DB124: 0.1 | DC124: 9.7 | DD124: 0.4 | DE124: 0.0 | DF124: 0.0 | DG124: 3.0 | DH124: 0.1 | DI124: 12.4 | DJ124: 2.0 | DK124: 0.0 | DL124: 0.0 | DM124: 0.0 | DN124: 0.0 | DO124: 0.0 | DP124: 0.0 | DQ124: 0.0 | DR124: 0.0 | DS124: 0.0 | DT124: 0.0 | DU124: 0.0 | DV124: 0.0 | DW124: 0.0 | DX124: 0.0 | DY124: 0.0 | DZ124: 0.0 | EA124: 0.0 | EB124: 0.0 | EC124: 0.0 | ED124: 0.0 | EE124: 0.0 | EF124: 0.0 | EG124: 0.0 | EH124: 0.0 | EI124: 0.0 | EJ124: 0.0 | EK124: 0.0 | EL124: 0.0 | EM124: 0.0 | EN124: 0.0 | EO124: 0.0 | EP124: 0.0 | EQ124: 0.0 | ER124: 0.0 | ES124: 4.3 | ET124: 0.2 | EU124: 4.5 | EV124: 0.4 | EW124: 0.0 | EX124: 0.0 | EY124: 0.0 | EZ124: 0.0 | FA124: 0.0 | FB124: 0.0
A125: L14G | B125: Bt | C125: L14G_Bt14 | E125: 32.96 | F125: 3.90 | G125: 17.13 | I125: 18.71 | K125: 8.67 | N125: 8.25 | Q125: 89.62 | S125: 2.67 | T125: 0.24 | U125: 1.63 | V125: 0.00 | W125: 1.27 | X125: 0.00 | Y125: 1.05 | Z125: 0.00 | AA125: 0.00 | AB125: 0.85 | AD125: 0.45 | AN125: 0.55 | AP125: 730-790 | AQ125: 5.70 | AR125: 791.00 | AS125: 4.90 | AU125: 791.00 | AV125: 682.48 | AW125: 627.00 | AY125: 126.0 | AZ125: 4.4 | BA125: 0.0 | BB125: 0.0 | BC125: 1041.0 | BD125: 33.0 | BE125: 87300.0 | BF125: 2300.0 | BG125: 165800.0 | BH125: 3800.0 | BI125: 82.4 | BJ125: 5.6 | BK125: 81000.0 | BL125: 2700.0 | BM125: 500.0 | BN125: 120.0 | BO125: 9.8 | BP125: 0.5 | BQ125: 22580.0 | BR125: 880.0 | BS125: 591.0 | BT125: 22.0 | BU125: 224.0 | BV125: 12.0 | BW125: 45.1 | BX125: 2.2 | BY125: 179000.0 | BZ125: 6500.0 | CA125: 86.0 | CB125: 2.8 | CC125: 137.2 | CD125: 6.2 | CE125: 62.4 | CF125: 2.7 | CG125: 68.3 | CH125: 4.5 | CI125: 28.8 | CJ125: 1.2 | CK125: 1.6 | CL125: 0.4 | CM125: 632.0 | CN125: 24.0 | CO125: 3.7 | CP125: 0.3 | CQ125: 1.4 | CR125: 0.2 | CS125: 0.3 | CT125: 0.1 | CU125: 79.0 | CV125: 3.1 | CW125: 0.0 | CX125: 0.0 | CY125: 0.0 | CZ125: 0.0 | DA125: 0.4 | DB125: 0.1 | DC125: 9.2 | DD125: 0.6 | DE125: 0.0 | DF125: 0.0 | DG125: 18.8 | DH125: 0.7 | DI125: 726.0 | DJ125: 27.0 | DK125: 0.3 | DL125: 0.0 | DM125: 0.2 | DN125: 0.0 | DO125: 0.0 | DP125: 0.0 | DQ125: 0.3 | DR125: 0.1 | DS125: 0.0 | DT125: 0.0 | DU125: 0.0 | DV125: 0.0 | DW125: 0.0 | DX125: 0.0 | DY125: 0.0 | DZ125: 0.0 | EA125: 0.0 | EB125: 0.0 | EC125: 0.0 | ED125: 0.0 | EE125: 0.0 | EF125: 0.0 | EG125: 0.0 | EH125: 0.0 | EI125: 0.0 | EJ125: 0.0 | EK125: 0.0 | EL125: 0.0 | EM125: 0.0 | EN125: 0.0 | EO125: 3.5 | EP125: 0.2 | EQ125: 0.0 | ER125: 0.0 | ES125: 4.7 | ET125: 0.3 | EU125: 4.8 | EV125: 0.3 | EW125: 0.0 | EX125: 0.0 | EY125: 0.0 | EZ125: 0.0 | FA125: 0.0 | FB125: 0.0
A126: L14G | B126: Crd | C126: L14G_Crd1 | E126: 49.71 | F126: -0.02 | G126: 33.76 | H126: 0.01 | I126: 7.95 | J126: 0.02 | K126: 8.57 | L126: -0.00 | M126: 0.11 | N126: 0.00 | O126: -0.02 | P126: -0.02 | Q126: 100.07 | S126: 5.01 | T126: 0.00 | U126: 4.01 | W126: 0.67 | X126: 0.00 | Y126: 1.29 | Z126: -0.00 | AA126: 0.02 | AB126: 0.00 | AD126: 0.66 | AN126: 0.34 | AP126: 730-790 | AQ126: 5.70 | AR126: 791.00 | AS126: 4.90 | AT126: 789.78 | AU126: 791.00 | AW126: 627.00 | AY126: 136.1 | AZ126: 5.6 | BA126: 43.4 | BB126: 4.1 | BC126: 1175 | BD126: 67 | BE126: 7.48E+04 | BF126: 2.60E+03 | BG126: 2.91E+05 | BH126: 9.30E+03 | BO126: 0 | BP126: 0 | BQ126: 0 | BR126: 0 | BS126: 0 | BT126: 0 | BU126: 0 | BV126: 0 | BW126: 151.8 | BX126: 6.8 | CA126: 19.6 | CB126: 1.7 | CC126: 55 | CD126: 11 | CE126: 64 | CF126: 16 | CG126: 44 | CH126: 5.1 | CI126: 46.1 | CJ126: 2.3 | CK126: 0 | CL126: 0 | CM126: 0 | CN126: 0 | CO126: 1.17 | CP126: 0.32 | CQ126: 0 | CR126: 0 | CU126: 0 | CV126: 0 | DC126: 0 | DD126: 0 | DE126: 0 | DF126: 0 | DG126: 3.64 | DH126: 0.21 | DI126: 1.69 | DJ126: 0.48 | EO126: 0 | EP126: 0 | EQ126: 0 | ER126: 0 | EU126: 12.2 | EV126: 2.8 | FA126: 0 | FB126: 0
A127: L14G | B127: Crd | C127: L14G_fresh_3 | E127: 49.28 | F127: -0.02 | G127: 33.42 | H127: -0.00 | I127: 8.60 | J127: 0.02 | K127: 8.31 | L127: 0.01 | M127: 0.09 | N127: 0.01 | O127: 0.01 | P127: 0.01 | Q127: 99.73 | S127: 5.00 | T127: 0.00 | U127: 4.00 | W127: 0.73 | X127: 0.00 | Y127: 1.26 | Z127: 0.00 | AA127: 0.02 | AB127: 0.00 | AD127: 0.63 | AN127: 0.37 | AP127: 730-790 | AQ127: 5.70 | AR127: 791.00 | AS127: 4.90 | AT127: 794.05 | AU127: 791.00 | AW127: 627.00 | AY127: 108.3 | AZ127: 7.6 | BA127: 40.1 | BB127: 4.2 | BC127: 896 | BD127: 52 | BE127: 7.43E+04 | BF127: 3.70E+03 | BG127: 2.89E+05 | BH127: 1.40E+04 | BI127: 32.2 | BJ127: 8.6 | BK127: 0 | BL127: 0 | BM127: 0 | BN127: 0 | BO127: 0 | BP127: 0 | BQ127: 0 | BR127: 0 | BS127: 0 | BT127: 0 | BU127: 0 | BV127: 0 | BW127: 163 | BX127: 11 | BY127: 8.48E+04 | BZ127: 5.70E+03 | CA127: 17.7 | CB127: 1.3 | CC127: 5.4 | CD127: 1.1 | CE127: 0 | CF127: 0 | CG127: 118.2 | CH127: 9.1 | CI127: 49.7 | CJ127: 3.6 | CK127: 0 | CL127: 0 | CM127: 0 | CN127: 0 | CO127: 0 | CP127: 0 | CQ127: 0 | CR127: 0 | CS127: 0 | CT127: 0 | CU127: 0 | CV127: 0 | CW127: 0 | CX127: 0 | CY127: 0 | CZ127: 0 | DA127: 0 | DB127: 0 | DC127: 0 | DD127: 0 | DE127: 0 | DF127: 0 | DG127: 2.99 | DH127: 0.24 | DI127: 0 | DJ127: 0 | DK127: 0 | DL127: 0 | DM127: 0 | DN127: 0 | DO127: 0 | DP127: 0 | DQ127: 0 | DR127: 0 | DS127: 0 | DT127: 0 | DU127: 0 | DV127: 0 | DW127: 0 | DX127: 0 | DY127: 0 | DZ127: 0 | EA127: 0 | EB127: 0 | EC127: 0 | ED127: 0 | EE127: 0 | EF127: 0 | EG127: 0 | EH127: 0 | EI127: 0 | EJ127: 0 | EK127: 0 | EL127: 0 | EM127: 0 | EN127: 0 | EO127: 0 | EP127: 0 | EQ127: 0 | ER127: 0 | ES127: 0 | ET127: 0 | EU127: 0 | EV127: 0 | EW127: 0 | EX127: 0 | EY127: 0 | EZ127: 0 | FA127: 0 | FB127: 0
A128: L14G | B128: Crd | C128: L14G_fresh4 | E128: 49.24 | F128: -0.00 | G128: 33.35 | H128: 0.00 | I128: 8.44 | J128: 0.02 | K128: 8.28 | L128: 0.01 | M128: 0.07 | N128: 0.00 | O128: 0.06 | P128: 0.06 | Q128: 99.54 | S128: 5.01 | T128: -0.00 | U128: 4.00 | W128: 0.72 | X128: 0.00 | Y128: 1.26 | Z128: 0.00 | AA128: 0.01 | AB128: 0.00 | AD128: 0.64 | AN128: 0.36 | AP128: 730-790 | AQ128: 5.70 | AR128: 791.00 | AS128: 4.90 | AT128: 802.18 | AU128: 791.00 | AW128: 627.00 | AY128: 96.6 | AZ128: 7.1 | BA128: 42.3 | BB128: 3.4 | BC128: 976 | BD128: 82 | BE128: 7.81E+04 | BF128: 4.70E+03 | BG128: 3.00E+05 | BH128: 1.70E+04 | BI128: 39.9 | BJ128: 7.9 | BK128: 0 | BL128: 0 | BM128: 0 | BN128: 0 | BO128: 0 | BP128: 0 | BQ128: 0 | BR128: 0 | BS128: 0 | BT128: 0 | BU128: 0 | BV128: 0 | BW128: 172 | BX128: 10 | BY128: 8.82E+04 | BZ128: 5.60E+03 | CA128: 17.6 | CB128: 1.3 | CC128: 4.72 | CD128: 0.97 | CE128: 0 | CF128: 0 | CG128: 129 | CH128: 10 | CI128: 49.5 | CJ128: 2.4 | CK128: 0 | CL128: 0 | CM128: 0.53 | CN128: 0.11 | CO128: 0 | CP128: 0 | CQ128: 0 | CR128: 0 | CS128: 0 | CT128: 0 | CU128: 0 | CV128: 0 | CW128: 0 | CX128: 0 | CY128: 0 | CZ128: 0 | DA128: 0 | DB128: 0 | DC128: 0 | DD128: 0 | DE128: 0 | DF128: 0 | DG128: 2.61 | DH128: 0.26 | DI128: 0 | DJ128: 0 | DK128: 0 | DL128: 0 | DM128: 0 | DN128: 0 | DO128: 0 | DP128: 0 | DQ128: 0 | DR128: 0 | DS128: 0 | DT128: 0 | DU128: 0 | DV128: 0 | DW128: 0 | DX128: 0 | DY128: 0 | DZ128: 0 | EA128: 0 | EB128: 0 | EC128: 0 | ED128: 0 | EE128: 0 | EF128: 0 | EG128: 0 | EH128: 0 | EI128: 0 | EJ128: 0 | EK128: 0 | EL128: 0 | EM128: 0 | EN128: 0 | EO128: 0 | EP128: 0 | EQ128: 0 | ER128: 0 | ES128: 0 | ET128: 0 | EU128: 0 | EV128: 0 | EW128: 0 | EX128: 0 | EY128: 0 | EZ128: 0 | FA128: 0 | FB128: 0
A129: L14G | B129: Crd | C129: L14G_freshCrd7 | E129: 49.25 | F129: -0.01 | G129: 33.37 | H129: 0.00 | I129: 8.43 | J129: 0.02 | K129: 8.25 | L129: 0.01 | M129: 0.07 | N129: 0.00 | O129: 0.00 | P129: 0.00 | Q129: 99.41 | S129: 5.01 | T129: 0.00 | U129: 4.00 | W129: 0.72 | X129: 0.00 | Y129: 1.25 | Z129: 0.00 | AA129: 0.01 | AB129: 0.00 | AD129: 0.64 | AN129: 0.36 | AP129: 730-790 | AQ129: 5.70 | AR129: 791.00 | AS129: 4.90 | AT129: 803.28 | AU129: 791.00 | AW129: 627.00 | AY129: 100.3 | AZ129: 7.2 | BA129: 42.7 | BB129: 4 | BC129: 1065 | BD129: 88 | BE129: 7.41E+04 | BF129: 4.10E+03 | BG129: 2.98E+05 | BH129: 1.70E+04 | BI129: 37.3 | BJ129: 6.5 | BK129: 0 | BL129: 0 | BM129: 0 | BN129: 0 | BO129: 0 | BP129: 0 | BQ129: 3.9 | BR129: 1.3 | BS129: 0.34 | BT129: 0.14 | BU129: 0 | BV129: 0 | BW129: 180 | BX129: 15 | BY129: 8.65E+04 | BZ129: 4.80E+03 | CA129: 16.52 | CB129: 0.97 | CC129: 5.3 | CD129: 1 | CE129: 0 | CF129: 0 | CG129: 90.6 | CH129: 6.8 | CI129: 52.8 | CJ129: 3.2 | CK129: 0 | CL129: 0 | CM129: 0.68 | CN129: 0.14 | CO129: 0 | CP129: 0 | CQ129: 0 | CR129: 0 | CS129: 0 | CT129: 0 | CU129: 0 | CV129: 0 | CW129: 0 | CX129: 0 | CY129: 0 | CZ129: 0 | DA129: 0 | DB129: 0 | DC129: 0 | DD129: 0 | DE129: 0 | DF129: 0 | DG129: 4.34 | DH129: 0.3 | DI129: 0 | DJ129: 0 | DK129: 0 | DL129: 0 | DM129: 0 | DN129: 0 | DO129: 0 | DP129: 0 | DQ129: 0 | DR129: 0 | DS129: 0 | DT129: 0 | DU129: 0 | DV129: 0 | DW129: 0 | DX129: 0 | DY129: 0 | DZ129: 0 | EA129: 0 | EB129: 0 | EC129: 0 | ED129: 0 | EE129: 0 | EF129: 0 | EG129: 0 | EH129: 0 | EI129: 0 | EJ129: 0 | EK129: 0 | EL129: 0 | EM129: 0 | EN129: 0 | EO129: 0 | EP129: 0 | EQ129: 0 | ER129: 0 | ES129: 0 | ET129: 0 | EU129: 0 | EV129: 0 | EW129: 0 | EX129: 0 | EY129: 0 | EZ129: 0 | FA129: 0 | FB129: 0
A130: L14G | B130: Crd | C130: L14G_Crd8 | E130: 48.84 | F130: 0.01 | G130: 33.22 | H130: 0.00 | I130: 9.03 | J130: 0.03 | K130: 7.61 | L130: 0.01 | M130: 0.10 | N130: -0.00 | O130: 0.01 | P130: 0.01 | Q130: 98.86 | S130: 5.01 | T130: 0.00 | U130: 4.02 | W130: 0.77 | X130: 0.00 | Y130: 1.16 | Z130: 0.00 | AA130: 0.02 | AB130: -0.00 | AD130: 0.60 | AN130: 0.40 | AP130: 730-790 | AQ130: 5.70 | AR130: 791.00 | AS130: 4.90 | AT130: 790.99 | AU130: 791.00 | AW130: 627.00 | AY130: 125 | AZ130: 6.2 | BA130: 32.9 | BB130: 3.1 | BC130: 1056 | BD130: 81 | BE130: 7.53E+04 | BF130: 3.40E+03 | BG130: 3.10E+05 | BH130: 1.20E+04 | BO130: 0 | BP130: 0 | BQ130: 4.6 | BR130: 2.1 | BS130: 0 | BT130: 0 | BU130: 0 | BV130: 0 | BW130: 186.2 | BX130: 9.3 | CA130: 22.9 | CB130: 1.6 | CC130: 17.2 | CD130: 4.8 | CE130: 0 | CF130: 0 | CG130: 144 | CH130: 10 | CI130: 44 | CJ130: 2.5 | CK130: 0 | CL130: 0 | CM130: 0 | CN130: 0 | CO130: 0 | CP130: 0 | CQ130: 0 | CR130: 0 | CU130: 0 | CV130: 0 | DC130: 0 | DD130: 0 | DE130: 0 | DF130: 0 | DG130: 3.99 | DH130: 0.24 | DI130: 2.41 | DJ130: 0.85 | EO130: 0 | EP130: 0 | EQ130: 0 | ER130: 0 | EU130: 2 | EV130: 1.1 | FA130: 0 | FB130: 0
A131: L14G | B131: Crd | C131: L14G_freshCrd9 | E131: 48.97 | F131: 0.01 | G131: 33.79 | H131: -0.00 | I131: 9.18 | J131: 0.03 | K131: 7.89 | L131: 0.01 | M131: 0.10 | N131: 0.00 | O131: -0.01 | P131: -0.01 | Q131: 99.97 | S131: 4.97 | T131: 0.00 | U131: 4.04 | W131: 0.78 | X131: 0.00 | Y131: 1.19 | Z131: 0.00 | AA131: 0.02 | AB131: 0.00 | AD131: 0.61 | AN131: 0.39 | AP131: 730-790 | AQ131: 5.70 | AR131: 791.00 | AS131: 4.90 | AT131: 792.29 | AU131: 791.00 | AW131: 627.00 | AY131: 156 | AZ131: 10 | BA131: 31.5 | BB131: 3.7 | BC131: 1133 | BD131: 77 | BE131: 7.38E+04 | BF131: 3.80E+03 | BG131: 2.81E+05 | BH131: 1.30E+04 | BI131: 34.4 | BJ131: 7.7 | BK131: 11.6 | BL131: 4.9 | BM131: 0 | BN131: 0 | BO131: 0 | BP131: 0 | BQ131: 3.6 | BR131: 1.1 | BS131: 0 | BT131: 0 | BU131: 0 | BV131: 0 | BW131: 154.7 | BX131: 8.9 | BY131: 8.76E+04 | BZ131: 4.90E+03 | CA131: 19.8 | CB131: 1 | CC131: 8 | CD131: 1.3 | CE131: 0 | CF131: 0 | CG131: 117 | CH131: 7.4 | CI131: 50.3 | CJ131: 3.3 | CK131: 0 | CL131: 0 | CM131: 0 | CN131: 0 | CO131: 0.62 | CP131: 0.21 | CQ131: 0 | CR131: 0 | CS131: 0 | CT131: 0 | CU131: 0 | CV131: 0 | CW131: 0 | CX131: 0 | CY131: 0 | CZ131: 0 | DA131: 0 | DB131: 0 | DC131: 0 | DD131: 0 | DE131: 0 | DF131: 0 | DG131: 3.21 | DH131: 0.21 | DI131: 2.02 | DJ131: 0.71 | DK131: 0 | DL131: 0 | DM131: 0 | DN131: 0 | DO131: 0 | DP131: 0 | DQ131: 0 | DR131: 0 | DS131: 0 | DT131: 0 | DU131: 0 | DV131: 0 | DW131: 0 | DX131: 0 | DY131: 0 | DZ131: 0 | EA131: 0 | EB131: 0 | EC131: 0 | ED131: 0 | EE131: 0 | EF131: 0 | EG131: 0 | EH131: 0 | EI131: 0 | EJ131: 0 | EK131: 0 | EL131: 0 | EM131: 0 | EN131: 0 | EO131: 0 | EP131: 0 | EQ131: 0 | ER131: 0 | ES131: 0 | ET131: 0 | EU131: 0.318 | EV131: 0.085 | EW131: 0 | EX131: 0 | EY131: 0 | EZ131: 0 | FA131: 0 | FB131: 0
A132: L14G | B132: Crd | C132: L14G_freshCrd_10 | E132: 48.99 | F132: 0.01 | G132: 33.76 | H132: -0.00 | I132: 9.88 | J132: 0.01 | K132: 7.61 | L132: 0.02 | M132: 0.07 | N132: -0.00 | O132: 0.02 | P132: 0.02 | Q132: 100.38 | S132: 4.97 | T132: 0.00 | U132: 4.04 | W132: 0.84 | X132: 0.00 | Y132: 1.15 | Z132: 0.00 | AA132: 0.01 | AB132: -0.00 | AD132: 0.58 | AN132: 0.42 | AP132: 730-790 | AQ132: 5.70 | AR132: 791.00 | AS132: 4.90 | AT132: 803.11 | AU132: 791.00 | AW132: 627.00 | AY132: 89.1 | AZ132: 6 | BA132: 30.2 | BB132: 2.8 | BC132: 769 | BD132: 56 | BE132: 6.60E+04 | BF132: 4.50E+03 | BG132: 2.89E+05 | BH132: 1.90E+04 | BI132: 26.3 | BJ132: 7.9 | BK132: 20.1 | BL132: 4.7 | BM132: 0 | BN132: 0 | BO132: 0 | BP132: 0 | BQ132: 4.8 | BR132: 1.7 | BS132: 0 | BT132: 0 | BU132: 0 | BV132: 0 | BW132: 135.3 | BX132: 8.4 | BY132: 8.99E+04 | BZ132: 5.30E+03 | CA132: 24.9 | CB132: 1.6 | CC132: 13.1 | CD132: 1.9 | CE132: 0 | CF132: 0 | CG132: 260 | CH132: 16 | CI132: 49.5 | CJ132: 3.9 | CK132: 0 | CL132: 0 | CM132: 1.14 | CN132: 0.16 | CO132: 2.53 | CP132: 0.55 | CQ132: 0 | CR132: 0 | CS132: 0 | CT132: 0 | CU132: 0 | CV132: 0 | CW132: 0 | CX132: 0 | CY132: 0 | CZ132: 0 | DA132: 0 | DB132: 0 | DC132: 0 | DD132: 0 | DE132: 0 | DF132: 0 | DG132: 3.92 | DH132: 0.23 | DI132: 8.6 | DJ132: 2.2 | DK132: 0 | DL132: 0 | DM132: 0 | DN132: 0 | DO132: 0 | DP132: 0 | DQ132: 0 | DR132: 0 | DS132: 0 | DT132: 0 | DU132: 0 | DV132: 0 | DW132: 0 | DX132: 0 | DY132: 0 | DZ132: 0 | EA132: 0 | EB132: 0 | EC132: 0 | ED132: 0 | EE132: 0 | EF132: 0 | EG132: 0 | EH132: 0 | EI132: 0 | EJ132: 0 | EK132: 0 | EL132: 0 | EM132: 0 | EN132: 0 | EO132: 0 | EP132: 0 | EQ132: 0 | ER132: 0 | ES132: 0 | ET132: 0 | EU132: 0 | EV132: 0 | EW132: 0 | EX132: 0 | EY132: 0 | EZ132: 0 | FA132: 0 | FB132: 0
A133: L14G | B133: Crd | C133: L14G_Crd11 | E133: 48.88 | F133: 0.00 | G133: 33.62 | H133: 0.02 | I133: 8.66 | J133: 0.01 | K133: 8.08 | L133: 0.02 | M133: 0.10 | N133: 0.01 | O133: -0.03 | P133: -0.03 | Q133: 99.34 | S133: 4.98 | T133: 0.00 | U133: 4.04 | W133: 0.74 | X133: 0.00 | Y133: 1.23 | Z133: 0.00 | AA133: 0.02 | AB133: 0.00 | AD133: 0.62 | AN133: 0.38 | AP133: 730-790 | AQ133: 5.70 | AR133: 791.00 | AS133: 4.90 | AT133: 791.21 | AU133: 791.00 | AW133: 627.00 | AY133: 125.2 | AZ133: 7.6 | BA133: 35.8 | BB133: 3 | BC133: 1077 | BD133: 80 | BE133: 7.57E+04 | BF133: 3.90E+03 | BG133: 3.09E+05 | BH133: 1.20E+04 | BO133: 0 | BP133: 0 | BQ133: 4.6 | BR133: 1.7 | BS133: 0 | BT133: 0 | BU133: 0 | BV133: 0 | BW133: 122.5 | BX133: 7.3 | CA133: 26.9 | CB133: 2.7 | CC133: 17.3 | CD133: 7.5 | CE133: 0 | CF133: 0 | CG133: 152 | CH133: 13 | CI133: 50.9 | CJ133: 2.9 | CK133: 0 | CL133: 0 | CM133: 0.63 | CN133: 0.14 | CO133: 0 | CP133: 0 | CQ133: 0 | CR133: 0 | CU133: 0 | CV133: 0 | DC133: 0 | DD133: 0 | DE133: 0 | DF133: 0 | DG133: 4.74 | DH133: 0.29 | DI133: 6.2 | DJ133: 3 | EO133: 0 | EP133: 0 | EQ133: 0 | ER133: 0 | EU133: 0 | EV133: 0 | FA133: 0 | FB133: 0
A134: L14G | B134: Crd | C134: L14G_freshCrd12 | E134: 49.01 | F134: 0.02 | G134: 33.71 | H134: 0.00 | I134: 9.54 | J134: 0.03 | K134: 7.59 | L134: 0.01 | M134: 0.10 | N134: -0.01 | O134: -0.00 | P134: -0.00 | Q134: 99.98 | S134: 4.98 | T134: 0.00 | U134: 4.04 | W134: 0.81 | X134: 0.00 | Y134: 1.15 | Z134: 0.00 | AA134: 0.02 | AB134: 0.00 | AD134: 0.59 | AN134: 0.41 | AP134: 730-790 | AQ134: 5.70 | AR134: 791.00 | AS134: 4.90 | AT134: 791.92 | AU134: 791.00 | AW134: 627.00 | AY134: 91.6 | AZ134: 6.1 | BA134: 28.5 | BB134: 3.5 | BC134: 1147 | BD134: 92 | BE134: 7.24E+04 | BF134: 3.40E+03 | BG134: 2.94E+05 | BH134: 1.00E+04 | BI134: 29.3 | BJ134: 6.7 | BK134: 15.7 | BL134: 3.8 | BM134: 0 | BN134: 0 | BO134: 0 | BP134: 0 | BQ134: 12.4 | BR134: 2.7 | BS134: 0.58 | BT134: 0.13 | BU134: 0 | BV134: 0 | BW134: 141.1 | BX134: 9.8 | BY134: 9.44E+04 | BZ134: 5.50E+03 | CA134: 25.1 | CB134: 1.7 | CC134: 10.8 | CD134: 1.9 | CE134: 0 | CF134: 0 | CG134: 286 | CH134: 17 | CI134: 38.3 | CJ134: 2.4 | CK134: 0 | CL134: 0 | CM134: 4.31 | CN134: 0.44 | CO134: 0 | CP134: 0 | CQ134: 0 | CR134: 0 | CS134: 0 | CT134: 0 | CU134: 0 | CV134: 0 | CW134: 0 | CX134: 0 | CY134: 0 | CZ134: 0 | DA134: 0 | DB134: 0 | DC134: 0 | DD134: 0 | DE134: 0 | DF134: 0 | DG134: 4.75 | DH134: 0.34 | DI134: 0 | DJ134: 0 | DK134: 0 | DL134: 0 | DM134: 0 | DN134: 0 | DO134: 0 | DP134: 0 | DQ134: 0 | DR134: 0 | DS134: 0 | DT134: 0 | DU134: 0 | DV134: 0 | DW134: 0 | DX134: 0 | DY134: 0 | DZ134: 0 | EA134: 0 | EB134: 0 | EC134: 0 | ED134: 0 | EE134: 0 | EF134: 0 | EG134: 0 | EH134: 0 | EI134: 0 | EJ134: 0 | EK134: 0 | EL134: 0 | EM134: 0 | EN134: 0 | EO134: 0 | EP134: 0 | EQ134: 0 | ER134: 0 | ES134: 0 | ET134: 0 | EU134: 0 | EV134: 0 | EW134: 0 | EX134: 0 | EY134: 0 | EZ134: 0 | FA134: 0 | FB134: 0
A135: L14G | B135: Crd | C135: L14G_freshCrd13 | E135: 49.27 | F135: -0.01 | G135: 33.64 | H135: -0.00 | I135: 8.71 | J135: 0.03 | K135: 8.14 | L135: 0.01 | M135: 0.08 | N135: -0.00 | O135: 0.01 | P135: 0.01 | Q135: 99.88 | S135: 5.00 | T135: 0.00 | U135: 4.02 | W135: 0.74 | X135: 0.00 | Y135: 1.23 | Z135: 0.00 | AA135: 0.02 | AB135: -0.00 | AD135: 0.62 | AN135: 0.38 | AP135: 730-790 | AQ135: 5.70 | AR135: 791.00 | AS135: 4.90 | AT135: 799.54 | AU135: 791.00 | AW135: 627.00 | AY135: 76.9 | AZ135: 5.6 | BA135: 29.5 | BB135: 2.7 | BC135: 751 | BD135: 53 | BE135: 7.61E+04 | BF135: 3.60E+03 | BG135: 2.93E+05 | BH135: 1.20E+04 | BI135: 32 | BJ135: 7.5 | BK135: 0 | BL135: 0 | BM135: 0 | BN135: 0 | BO135: 0 | BP135: 0 | BQ135: 3.1 | BR135: 1.2 | BS135: 0 | BT135: 0 | BU135: 0 | BV135: 0 | BW135: 131.3 | BX135: 7 | BY135: 8.28E+04 | BZ135: 3.80E+03 | CA135: 18.2 | CB135: 1.1 | CC135: 9.2 | CD135: 1.4 | CE135: 2.6 | CF135: 0.8 | CG135: 59.5 | CH135: 5.3 | CI135: 52.9 | CJ135: 3.1 | CK135: 0 | CL135: 0 | CM135: 0.81 | CN135: 0.16 | CO135: 0 | CP135: 0 | CQ135: 0 | CR135: 0 | CS135: 0 | CT135: 0 | CU135: 0 | CV135: 0 | CW135: 0 | CX135: 0 | CY135: 0 | CZ135: 0 | DA135: 0 | DB135: 0 | DC135: 0 | DD135: 0 | DE135: 0 | DF135: 0 | DG135: 7.63 | DH135: 0.51 | DI135: 0 | DJ135: 0 | DK135: 0 | DL135: 0 | DM135: 0 | DN135: 0 | DO135: 0 | DP135: 0 | DQ135: 0 | DR135: 0 | DS135: 0 | DT135: 0 | DU135: 0 | DV135: 0 | DW135: 0 | DX135: 0 | DY135: 0 | DZ135: 0 | EA135: 0 | EB135: 0 | EC135: 0 | ED135: 0 | EE135: 0 | EF135: 0 | EG135: 0 | EH135: 0 | EI135: 0 | EJ135: 0 | EK135: 0 | EL135: 0 | EM135: 0 | EN135: 0 | EO135: 0 | EP135: 0 | EQ135: 0 | ER135: 0 | ES135: 0 | ET135: 0 | EU135: 0 | EV135: 0 | EW135: 0 | EX135: 0 | EY135: 0 | EZ135: 0 | FA135: 0 | FB135: 0
A136: L14G | B136: Crd | C136: L14G_Crd14 | E136: 49.39 | F136: -0.02 | G136: 34.16 | H136: 0.00 | I136: 8.05 | J136: -0.00 | K136: 8.67 | L136: 0.02 | M136: 0.09 | N136: 0.00 | O136: -0.01 | P136: -0.01 | Q136: 100.33 | S136: 4.97 | T136: 0.00 | U136: 4.05 | W136: 0.68 | X136: -0.00 | Y136: 1.30 | Z136: 0.00 | AA136: 0.02 | AB136: 0.00 | AD136: 0.66 | AN136: 0.34 | AP136: 730-790 | AQ136: 5.70 | AR136: 791.00 | AS136: 4.90 | AT136: 797.82 | AU136: 791.00 | AW136: 627.00 | AY136: 129.1 | AZ136: 7.3 | BA136: 36.5 | BB136: 3.6 | BC136: 1051 | BD136: 79 | BE136: 8.03E+04 | BF136: 4.60E+03 | BG136: 3.02E+05 | BH136: 1.30E+04 | BI136: 36.5 | BJ136: 8.5 | BK136: 40 | BL136: 11 | BM136: 0 | BN136: 0 | BO136: 0 | BP136: 0 | BQ136: 0 | BR136: 0 | BS136: 0 | BT136: 0 | BU136: 0 | BV136: 0 | BW136: 109.2 | BX136: 6.5 | BY136: 7.59E+04 | BZ136: 4.20E+03 | CA136: 22.4 | CB136: 1.4 | CC136: 12.3 | CD136: 2.5 | CE136: 0 | CF136: 0 | CG136: 79.8 | CH136: 5.1 | CI136: 49.2 | CJ136: 3.3 | CK136: 0 | CL136: 0 | CM136: 0.325 | CN136: 0.091 | CO136: 1.23 | CP136: 0.37 | CQ136: 0 | CR136: 0 | CS136: 0 | CT136: 0 | CU136: 0 | CV136: 0 | CW136: 0 | CX136: 0 | CY136: 0 | CZ136: 0 | DA136: 0 | DB136: 0 | DC136: 0 | DD136: 0 | DE136: 0 | DF136: 0 | DG136: 4.72 | DH136: 0.29 | DI136: 8.8 | DJ136: 2.2 | DK136: 0 | DL136: 0 | DM136: 0 | DN136: 0 | DO136: 0 | DP136: 0 | DQ136: 0 | DR136: 0 | DS136: 0 | DT136: 0 | DU136: 0 | DV136: 0 | DW136: 0 | DX136: 0 | DY136: 0 | DZ136: 0 | EA136: 0 | EB136: 0 | EC136: 0 | ED136: 0 | EE136: 0 | EF136: 0 | EG136: 0 | EH136: 0 | EI136: 0 | EJ136: 0 | EK136: 0 | EL136: 0 | EM136: 0 | EN136: 0 | EO136: 0 | EP136: 0 | EQ136: 0 | ER136: 0 | ES136: 0 | ET136: 0 | EU136: 0 | EV136: 0 | EW136: 0 | EX136: 0 | EY136: 0 | EZ136: 0 | FA136: 0 | FB136: 0
A137: L14G | B137: Crd | C137: L14G_Crd15 | E137: 49.27 | F137: -0.01 | G137: 33.76 | H137: 0.01 | I137: 7.95 | J137: 0.02 | K137: 8.57 | L137: 0.00 | M137: 0.09 | N137: -0.01 | O137: -0.02 | P137: -0.02 | Q137: 99.62 | S137: 4.99 | T137: 0.00 | U137: 4.03 | W137: 0.67 | X137: 0.00 | Y137: 1.29 | Z137: 0.00 | AA137: 0.02 | AB137: 0.00 | AD137: 0.66 | AN137: 0.34 | AP137: 730-790 | AQ137: 5.70 | AR137: 791.00 | AS137: 4.90 | AT137: 796.14 | AU137: 791.00 | AW137: 627.00 | AY137: 149.8 | AZ137: 7.7 | BA137: 42.2 | BB137: 3.7 | BC137: 1061 | BD137: 77 | BE137: 7.89E+04 | BF137: 3.60E+03 | BG137: 3.03E+05 | BH137: 1.40E+04 | BO137: 0 | BP137: 0 | BQ137: 0 | BR137: 0 | BS137: 0 | BT137: 0 | BU137: 0 | BV137: 0 | BW137: 144.4 | BX137: 7.1 | CA137: 18.1 | CB137: 2.2 | CC137: 13.9 | CD137: 5.1 | CE137: 0 | CF137: 0 | CG137: 66.9 | CH137: 5.2 | CI137: 43.2 | CJ137: 3 | CK137: 0 | CL137: 0 | CM137: 0 | CN137: 0 | CO137: 0 | CP137: 0 | CQ137: 0 | CR137: 0 | CU137: 0 | CV137: 0 | DC137: 0 | DD137: 0 | DE137: 0 | DF137: 0 | DG137: 4.02 | DH137: 0.23 | DI137: 12.2 | DJ137: 6.4 | EO137: 0 | EP137: 0 | EQ137: 0 | ER137: 0 | EU137: 1.86 | EV137: 0.85 | FA137: 0 | FB137: 0
A138: L14G | B138: Crd | C138: L14G_Crd16 | E138: 48.90 | F138: -0.00 | G138: 34.14 | H138: -0.01 | I138: 8.30 | J138: 0.02 | K138: 8.30 | L138: 0.01 | M138: 0.11 | N138: -0.00 | O138: -0.00 | P138: -0.00 | Q138: 99.78 | S138: 4.96 | T138: -0.00 | U138: 4.08 | W138: 0.70 | X138: 0.00 | Y138: 1.25 | Z138: 0.00 | AA138: 0.02 | AB138: -0.00 | AD138: 0.64 | AN138: 0.36 | AP138: 730-790 | AQ138: 5.70 | AR138: 791.00 | AS138: 4.90 | AT138: 786.43 | AU138: 791.00 | AW138: 627.00 | AY138: 127.9 | AZ138: 6.9 | BA138: 43.3 | BB138: 4.3 | BC138: 1030 | BD138: 76 | BE138: 7.84E+04 | BF138: 4.50E+03 | BG138: 2.95E+05 | BH138: 1.30E+04 | BI138: 45.2 | BJ138: 9.6 | BK138: 0 | BL138: 0 | BM138: 0 | BN138: 0 | BO138: 0 | BP138: 0 | BQ138: 0 | BR138: 0 | BS138: 0 | BT138: 0 | BU138: 0 | BV138: 0 | BW138: 152.1 | BX138: 7.6 | BY138: 7.80E+04 | BZ138: 3.70E+03 | CA138: 14.38 | CB138: 0.78 | CC138: 4.33 | CD138: 0.99 | CE138: 0 | CF138: 0 | CG138: 49.6 | CH138: 5 | CI138: 47.7 | CJ138: 3 | CK138: 0 | CL138: 0 | CM138: 0.236 | CN138: 0.083 | CO138: 0 | CP138: 0 | CQ138: 0 | CR138: 0 | CS138: 0 | CT138: 0 | CU138: 0 | CV138: 0 | CW138: 0 | CX138: 0 | CY138: 0 | CZ138: 0 | DA138: 0 | DB138: 0 | DC138: 0 | DD138: 0 | DE138: 0 | DF138: 0 | DG138: 4.11 | DH138: 0.22 | DI138: 0 | DJ138: 0 | DK138: 0 | DL138: 0 | DM138: 0 | DN138: 0 | DO138: 0 | DP138: 0 | DQ138: 0 | DR138: 0 | DS138: 0 | DT138: 0 | DU138: 0 | DV138: 0 | DW138: 0 | DX138: 0 | DY138: 0 | DZ138: 0 | EA138: 0 | EB138: 0 | EC138: 0 | ED138: 0 | EE138: 0 | EF138: 0 | EG138: 0 | EH138: 0 | EI138: 0 | EJ138: 0 | EK138: 0 | EL138: 0 | EM138: 0 | EN138: 0 | EO138: 0 | EP138: 0 | EQ138: 0 | ER138: 0 | ES138: 0 | ET138: 0 | EU138: 0 | EV138: 0 | EW138: 0 | EX138: 0 | EY138: 0 | EZ138: 0 | FA138: 0 | FB138: 0
A139: L14G | B139: Crd | C139: L14G_Crd19 | E139: 48.88 | F139: -0.01 | G139: 34.01 | H139: -0.01 | I139: 8.60 | J139: 0.04 | K139: 8.41 | L139: 0.00 | M139: 0.10 | N139: 0.00 | O139: -0.04 | P139: -0.04 | Q139: 99.96 | S139: 4.95 | T139: 0.00 | U139: 4.06 | W139: 0.73 | X139: 0.00 | Y139: 1.27 | Z139: 0.00 | AA139: 0.02 | AB139: 0.00 | AD139: 0.64 | AN139: 0.36 | AP139: 730-790 | AQ139: 5.70 | AR139: 791.00 | AS139: 4.90 | AT139: 791.92 | AU139: 791.00 | AW139: 627.00 | AY139: 95.3 | AZ139: 4.6 | BA139: 32.7 | BB139: 3.2 | BC139: 813 | BD139: 62 | BE139: 7.39E+04 | BF139: 2.70E+03 | BG139: 2.85E+05 | BH139: 1.00E+04 | BO139: 0 | BP139: 0 | BQ139: 0 | BR139: 0 | BS139: 0 | BT139: 0 | BU139: 0 | BV139: 0 | BW139: 159.2 | BX139: 8 | CA139: 16.6 | CB139: 1.1 | CC139: 4.8 | CD139: 1.3 | CE139: 0 | CF139: 0 | CG139: 82.4 | CH139: 6.2 | CI139: 45.5 | CJ139: 2.7 | CK139: 0 | CL139: 0 | CM139: 0 | CN139: 0 | CO139: 0 | CP139: 0 | CQ139: 0 | CR139: 0 | CU139: 0 | CV139: 0 | DC139: 0 | DD139: 0 | DE139: 0 | DF139: 0 | DG139: 2.96 | DH139: 0.2 | DI139: 0 | DJ139: 0 | EO139: 0 | EP139: 0 | EQ139: 0 | ER139: 0 | EU139: 0 | EV139: 0 | FA139: 0 | FB139: 0
A140: L14G | B140: Crd | C140: L14G_freshCrd21 | E140: 49.29 | F140: -0.01 | G140: 33.73 | H140: 0.01 | I140: 8.45 | J140: 0.03 | K140: 8.32 | L140: -0.00 | M140: 0.11 | N140: 0.00 | O140: -0.01 | P140: -0.01 | Q140: 99.91 | S140: 4.99 | T140: 0.00 | U140: 4.02 | W140: 0.72 | X140: 0.00 | Y140: 1.25 | Z140: -0.00 | AA140: 0.02 | AB140: 0.00 | AD140: 0.64 | AN140: 0.36 | AP140: 730-790 | AQ140: 5.70 | AR140: 791.00 | AS140: 4.90 | AT140: 786.00 | AU140: 791.00 | AW140: 627.00 | AY140: 152 | AZ140: 10 | BA140: 28 | BB140: 3 | BC140: 1028 | BD140: 80 | BE140: 7.36E+04 | BF140: 3.70E+03 | BG140: 2.92E+05 | BH140: 1.40E+04 | BI140: 40.1 | BJ140: 7.1 | BK140: 0 | BL140: 0 | BM140: 0 | BN140: 0 | BO140: 0 | BP140: 0 | BQ140: 0 | BR140: 0 | BS140: 0 | BT140: 0 | BU140: 0 | BV140: 0 | BW140: 152.8 | BX140: 8.3 | BY140: 8.53E+04 | BZ140: 4.50E+03 | CA140: 16.2 | CB140: 1.1 | CC140: 3.71 | CD140: 0.72 | CE140: 0 | CF140: 0 | CG140: 29.9 | CH140: 2.9 | CI140: 51.4 | CJ140: 3.5 | CK140: 0 | CL140: 0 | CM140: 0 | CN140: 0 | CO140: 0 | CP140: 0 | CQ140: 0 | CR140: 0 | CS140: 0 | CT140: 0 | CU140: 0 | CV140: 0 | CW140: 0 | CX140: 0 | CY140: 0 | CZ140: 0 | DA140: 0 | DB140: 0 | DC140: 0 | DD140: 0 | DE140: 0 | DF140: 0 | DG140: 3.84 | DH140: 0.26 | DI140: 0 | DJ140: 0 | DK140: 0 | DL140: 0 | DM140: 0 | DN140: 0 | DO140: 0 | DP140: 0 | DQ140: 0 | DR140: 0 | DS140: 0 | DT140: 0 | DU140: 0 | DV140: 0 | DW140: 0 | DX140: 0 | DY140: 0 | DZ140: 0 | EA140: 0 | EB140: 0 | EC140: 0 | ED140: 0 | EE140: 0 | EF140: 0 | EG140: 0 | EH140: 0 | EI140: 0 | EJ140: 0 | EK140: 0 | EL140: 0 | EM140: 0 | EN140: 0 | EO140: 0 | EP140: 0 | EQ140: 0 | ER140: 0 | ES140: 0 | ET140: 0 | EU140: 0 | EV140: 0 | EW140: 0 | EX140: 0 | EY140: 0 | EZ140: 0 | FA140: 0 | FB140: 0
A141: L14G | B141: Crd | C141: L14G_Crd22 | E141: 43.96 | F141: 0.02 | G141: 38.96 | H141: 0.00 | I141: 1.46 | J141: 0.00 | K141: 0.31 | L141: 0.36 | M141: 0.10 | N141: 0.32 | O141: 0.06 | P141: 0.06 | Q141: 85.61 | S141: 4.95 | T141: 0.00 | U141: 4.07 | W141: 0.72 | X141: 0.00 | Y141: 1.26 | Z141: 0.00 | AA141: 0.02 | AB141: 0.00 | AD141: 0.64 | AN141: 0.36 | AP141: 730-790 | AQ141: 5.70 | AR141: 791.00 | AS141: 4.90 | AT141: 791.83 | AU141: 791.00 | AW141: 627.00 | AY141: 121.4 | AZ141: 5 | BA141: 69.6 | BB141: 5.5 | BC141: 1168 | BD141: 87 | BE141: 7.98E+04 | BF141: 3.50E+03 | BG141: 3.06E+05 | BH141: 1.10E+04 | BO141: 0 | BP141: 0 | BQ141: 0 | BR141: 0 | BS141: 0 | BT141: 0 | BU141: 0 | BV141: 0 | BW141: 188.3 | BX141: 9.8 | CA141: 15.9 | CB141: 1 | CC141: 6.1 | CD141: 1.3 | CE141: 0 | CF141: 0 | CG141: 175 | CH141: 14 | CI141: 46.7 | CJ141: 3.5 | CK141: 0 | CL141: 0 | CM141: 0.45 | CN141: 0.15 | CO141: 0 | CP141: 0 | CQ141: 0 | CR141: 0 | CU141: 0 | CV141: 0 | DC141: 0 | DD141: 0 | DE141: 0 | DF141: 0 | DG141: 3.76 | DH141: 0.24 | DI141: 0.3 | DJ141: 0.2 | EO141: 0 | EP141: 0 | EQ141: 0 | ER141: 0 | EU141: 1 | EV141: 0.34 | FA141: 0 | FB141: 0
A142: L14G | B142: Crd | C142: L14G_Crd23 | E142: 49.58 | F142: 0.01 | G142: 34.06 | H142: 0.00 | I142: 9.18 | J142: 0.03 | K142: 7.96 | L142: -0.01 | M142: 0.12 | N142: 0.00 | O142: -0.01 | P142: -0.01 | Q142: 100.90 | S142: 4.98 | T142: 0.00 | U142: 4.04 | W142: 0.77 | X142: 0.00 | Y142: 1.19 | Z142: 0.00 | AA142: 0.02 | AB142: 0.00 | AD142: 0.61 | AN142: 0.39 | AP142: 730-790 | AQ142: 5.70 | AR142: 791.00 | AS142: 4.90 | AT142: 784.20 | AU142: 791.00 | AW142: 627.00 | AY142: 143.5 | AZ142: 7.2 | BA142: 29.8 | BB142: 3 | BC142: 1127 | BD142: 79 | BE142: 7.01E+04 | BF142: 5.50E+03 | BG142: 3.15E+05 | BH142: 1.10E+04 | BO142: 0 | BP142: 0 | BQ142: 0 | BR142: 0 | BS142: 0 | BT142: 0 | BU142: 0 | BV142: 0 | BW142: 176 | BX142: 13 | CA142: 23.2 | CB142: 2.1 | CC142: 0 | CD142: 0 | CE142: 480 | CF142: 350 | CG142: 117 | CH142: 11 | CI142: 49.6 | CJ142: 2.7 | CK142: 0 | CL142: 0 | CM142: 0 | CN142: 0 | CO142: 0 | CP142: 0 | CQ142: 0 | CR142: 0 | CU142: 0 | CV142: 0 | DC142: 0 | DD142: 0 | DE142: 0 | DF142: 0 | DG142: 4.08 | DH142: 0.31 | DI142: 2.30E+03 | DJ142: 1.50E+03 | EO142: 0 | EP142: 0 | EQ142: 0 | ER142: 0 | EU142: 140 | EV142: 97 | FA142: 0 | FB142: 0
A143: L14G | B143: Crd | C143: L14G_freshCrd27 | E143: 48.78 | F143: -0.01 | G143: 33.57 | H143: -0.01 | I143: 9.16 | J143: 0.02 | K143: 7.92 | L143: -0.00 | M143: 0.11 | N143: 0.00 | O143: -0.02 | P143: -0.02 | Q143: 99.50 | S143: 4.97 | T143: 0.00 | U143: 4.03 | W143: 0.78 | X143: 0.00 | Y143: 1.20 | Z143: -0.00 | AA143: 0.02 | AB143: 0.00 | AD143: 0.61 | AN143: 0.39 | AP143: 730-790 | AQ143: 5.70 | AR143: 791.00 | AS143: 4.90 | AT143: 787.26 | AU143: 791.00 | AW143: 627.00 | AY143: 130 | AZ143: 10 | BA143: 29.6 | BB143: 2.7 | BC143: 941 | BD143: 88 | BE143: 7.26E+04 | BF143: 4.70E+03 | BG143: 2.89E+05 | BH143: 1.50E+04 | BI143: 34.6 | BJ143: 7.1 | BK143: 0 | BL143: 0 | BM143: 0 | BN143: 0 | BO143: 0 | BP143: 0 | BQ143: 0 | BR143: 0 | BS143: 0 | BT143: 0 | BU143: 0 | BV143: 0 | BW143: 150 | BX143: 11 | BY143: 8.82E+04 | BZ143: 5.50E+03 | CA143: 18.6 | CB143: 1.2 | CC143: 3.61 | CD143: 0.8 | CE143: 0 | CF143: 0 | CG143: 59.4 | CH143: 5.5 | CI143: 49.4 | CJ143: 4 | CK143: 0 | CL143: 0 | CM143: 0 | CN143: 0 | CO143: 0 | CP143: 0 | CQ143: 0 | CR143: 0 | CS143: 0 | CT143: 0 | CU143: 0 | CV143: 0 | CW143: 0 | CX143: 0 | CY143: 0 | CZ143: 0 | DA143: 0 | DB143: 0 | DC143: 0 | DD143: 0 | DE143: 0 | DF143: 0 | DG143: 5.06 | DH143: 0.35 | DI143: 0 | DJ143: 0 | DK143: 0 | DL143: 0 | DM143: 0 | DN143: 0 | DO143: 0 | DP143: 0 | DQ143: 0 | DR143: 0 | DS143: 0 | DT143: 0 | DU143: 0 | DV143: 0 | DW143: 0 | DX143: 0 | DY143: 0 | DZ143: 0 | EA143: 0 | EB143: 0 | EC143: 0 | ED143: 0 | EE143: 0 | EF143: 0 | EG143: 0 | EH143: 0 | EI143: 0 | EJ143: 0 | EK143: 0 | EL143: 0 | EM143: 0 | EN143: 0 | EO143: 0 | EP143: 0 | EQ143: 0 | ER143: 0 | ES143: 0 | ET143: 0 | EU143: 0 | EV143: 0 | EW143: 0 | EX143: 0 | EY143: 0 | EZ143: 0 | FA143: 0 | FB143: 0
A144: L14G | B144: Crd | C144: L14G_Cd4 | E144: 48.31 | G144: 33.52 | I144: 9.07 | K144: 8.11 | Q144: 99.01 | S144: 4.95 | T144: 0.00 | U144: 4.05 | W144: 0.78 | X144: 0.00 | Y144: 1.24 | Z144: 0.00 | AA144: 0.00 | AB144: 0.00 | AD144: 0.61 | AN144: 0.39 | AP144: 730-790 | AQ144: 5.70 | AR144: 791.00 | AS144: 4.90 | AU144: 791.00 | AW144: 627.00 | AY144: 97.8 | AZ144: 4.2 | BA144: 33.8 | BB144: 3.0 | BC144: 987.0 | BD144: 46.0 | BE144: 76600.0 | BF144: 2500.0 | BG144: 294700.0 | BH144: 8300.0 | BI144: 62.8 | BJ144: 7.8 | BK144: 0.0 | BL144: 0.0 | BM144: 0.0 | BN144: 0.0 | BO144: 0.0 | BP144: 0.0 | BQ144: 5.1 | BR144: 2.0 | BS144: 0.0 | BT144: 0.0 | BU144: 0.0 | BV144: 0.0 | BW144: 163.2 | BX144: 7.0 | BY144: 79300.0 | BZ144: 3100.0 | CA144: 17.8 | CB144: 0.9 | CC144: 5.6 | CD144: 0.9 | CE144: 0.0 | CF144: 0.0 | CG144: 99.8 | CH144: 7.1 | CI144: 50.3 | CJ144: 2.7 | CK144: 0.9 | CL144: 0.3 | CM144: 0.4 | CN144: 0.1 | CO144: 0.0 | CP144: 0.0 | CQ144: 0.0 | CR144: 0.0 | CS144: 0.0 | CT144: 0.0 | CU144: 0.0 | CV144: 0.0 | CW144: 0.0 | CX144: 0.0 | CY144: 0.0 | CZ144: 0.0 | DA144: 0.0 | DB144: 0.0 | DC144: 0.0 | DD144: 0.0 | DE144: 0.0 | DF144: 0.0 | DG144: 4.3 | DH144: 0.2 | DI144: 0.0 | DJ144: 0.0 | DK144: 0.0 | DL144: 0.0 | DM144: 0.0 | DN144: 0.0 | DO144: 0.0 | DP144: 0.0 | DQ144: 0.0 | DR144: 0.0 | DS144: 0.0 | DT144: 0.0 | DU144: 0.0 | DV144: 0.0 | DW144: 0.0 | DX144: 0.0 | DY144: 0.0 | DZ144: 0.0 | EA144: 0.0 | EB144: 0.0 | EC144: 0.0 | ED144: 0.0 | EE144: 0.0 | EF144: 0.0 | EG144: 0.0 | EH144: 0.0 | EI144: 0.0 | EJ144: 0.0 | EK144: 0.0 | EL144: 0.0 | EM144: 0.0 | EN144: 0.0 | EO144: 0.0 | EP144: 0.0 | EQ144: 0.0 | ER144: 0.0 | ES144: 0.0 | ET144: 0.0 | EU144: 0.0 | EV144: 0.0 | EW144: 0.0 | EX144: 0.0 | EY144: 0.0 | EZ144: 0.0 | FA144: 0.0 | FB144: 0.0
A145: L14G | B145: Crd | C145: L14G_Cd5 | E145: 48.38 | G145: 33.31 | I145: 9.17 | K145: 8.09 | Q145: 98.95 | S145: 4.98 | T145: 0.00 | U145: 3.99 | W145: 0.83 | X145: 0.00 | Y145: 1.21 | Z145: 0.00 | AA145: 0.02 | AB145: 0.00 | AD145: 0.59 | AN145: 0.41 | AP145: 730-790 | AQ145: 5.70 | AR145: 791.00 | AS145: 4.90 | AU145: 791.00 | AW145: 627.00 | AY145: 97.6 | AZ145: 3.5 | BA145: 27.3 | BB145: 2.7 | BC145: 905.0 | BD145: 38.0 | BE145: 67100.0 | BF145: 2200.0 | BG145: 279400.0 | BH145: 7800.0 | BI145: 45.9 | BJ145: 8.6 | BK145: 0.0 | BL145: 0.0 | BM145: 0.0 | BN145: 0.0 | BO145: 0.0 | BP145: 0.0 | BQ145: 3.3 | BR145: 1.2 | BS145: 0.0 | BT145: 0.0 | BU145: 0.0 | BV145: 0.0 | BW145: 153.1 | BX145: 5.9 | BY145: 78800.0 | BZ145: 3200.0 | CA145: 19.6 | CB145: 1.3 | CC145: 7.0 | CD145: 1.2 | CE145: 0.0 | CF145: 0.0 | CG145: 194.6 | CH145: 9.7 | CI145: 44.6 | CJ145: 3.2 | CK145: 0.7 | CL145: 0.3 | CM145: 0.4 | CN145: 0.2 | CO145: 0.0 | CP145: 0.0 | CQ145: 0.0 | CR145: 0.0 | CS145: 0.0 | CT145: 0.0 | CU145: 0.0 | CV145: 0.0 | CW145: 0.0 | CX145: 0.0 | CY145: 0.0 | CZ145: 0.0 | DA145: 0.0 | DB145: 0.0 | DC145: 0.0 | DD145: 0.0 | DE145: 0.0 | DF145: 0.0 | DG145: 2.6 | DH145: 0.1 | DI145: 0.0 | DJ145: 0.0 | DK145: 0.0 | DL145: 0.0 | DM145: 0.0 | DN145: 0.0 | DO145: 0.0 | DP145: 0.0 | DQ145: 0.0 | DR145: 0.0 | DS145: 0.0 | DT145: 0.0 | DU145: 0.0 | DV145: 0.0 | DW145: 0.0 | DX145: 0.0 | DY145: 0.0 | DZ145: 0.0 | EA145: 0.0 | EB145: 0.0 | EC145: 0.0 | ED145: 0.0 | EE145: 0.0 | EF145: 0.0 | EG145: 0.0 | EH145: 0.0 | EI145: 0.0 | EJ145: 0.0 | EK145: 0.0 | EL145: 0.0 | EM145: 0.0 | EN145: 0.0 | EO145: 0.0 | EP145: 0.0 | EQ145: 0.0 | ER145: 0.0 | ES145: 0.0 | ET145: 0.0 | EU145: 0.0 | EV145: 0.0 | EW145: 0.0 | EX145: 0.0 | EY145: 0.0 | EZ145: 0.0 | FA145: 0.0 | FB145: 0.0
A146: L14G | B146: Crd | C146: L14G_Cd7 | E146: 48.58 | G146: 33.39 | I146: 9.40 | K146: 7.82 | Q146: 99.19 | S146: 4.98 | T146: 0.00 | U146: 4.03 | W146: 0.81 | X146: 0.00 | Y146: 1.19 | Z146: 0.00 | AA146: 0.00 | AB146: 0.00 | AD146: 0.60 | AN146: 0.40 | AP146: 730-790 | AQ146: 5.70 | AR146: 791.00 | AS146: 4.90 | AT146: 799.1 | AU146: 791.00 | AW146: 627.00 | AY146: 98.9 | AZ146: 3.5 | BA146: 28.7 | BB146: 2.4 | BC146: 808.0 | BD146: 31.0 | BE146: 69700.0 | BF146: 2200.0 | BG146: 292500.0 | BH146: 8000.0 | BI146: 53.8 | BJ146: 6.9 | BK146: 0.0 | BL146: 0.0 | BM146: 0.0 | BN146: 0.0 | BO146: 0.0 | BP146: 0.0 | BQ146: 0.0 | BR146: 0.0 | BS146: 0.0 | BT146: 0.0 | BU146: 0.0 | BV146: 0.0 | BW146: 148.2 | BX146: 6.0 | BY146: 82200.0 | BZ146: 3100.0 | CA146: 20.2 | CB146: 1.0 | CC146: 8.2 | CD146: 0.9 | CE146: 0.0 | CF146: 0.0 | CG146: 265.0 | CH146: 14.0 | CI146: 49.0 | CJ146: 2.3 | CK146: 1.1 | CL146: 0.4 | CM146: 0.7 | CN146: 0.1 | CO146: 0.0 | CP146: 0.0 | CQ146: 0.0 | CR146: 0.0 | CS146: 0.0 | CT146: 0.0 | CU146: 0.0 | CV146: 0.0 | CW146: 0.0 | CX146: 0.0 | CY146: 0.0 | CZ146: 0.0 | DA146: 0.0 | DB146: 0.0 | DC146: 0.0 | DD146: 0.0 | DE146: 0.0 | DF146: 0.0 | DG146: 4.3 | DH146: 0.2 | DI146: 0.0 | DJ146: 0.0 | DK146: 0.0 | DL146: 0.0 | DM146: 0.0 | DN146: 0.0 | DO146: 0.0 | DP146: 0.0 | DQ146: 0.0 | DR146: 0.0 | DS146: 0.0 | DT146: 0.0 | DU146: 0.0 | DV146: 0.0 | DW146: 0.0 | DX146: 0.0 | DY146: 0.0 | DZ146: 0.0 | EA146: 0.0 | EB146: 0.0 | EC146: 0.0 | ED146: 0.0 | EE146: 0.0 | EF146: 0.0 | EG146: 0.0 | EH146: 0.0 | EI146: 0.0 | EJ146: 0.0 | EK146: 0.0 | EL146: 0.0 | EM146: 0.0 | EN146: 0.0 | EO146: 0.0 | EP146: 0.0 | EQ146: 0.0 | ER146: 0.0 | ES146: 0.0 | ET146: 0.0 | EU146: 0.0 | EV146: 0.0 | EW146: 0.0 | EX146: 0.0 | EY146: 0.0 | EZ146: 0.0 | FA146: 0.0 | FB146: 0.0
A147: L14G | B147: Crd | C147: L14G_Cd8 | E147: 48.39 | G147: 33.46 | I147: 9.31 | K147: 7.83 | Q147: 98.99 | S147: 4.96 | T147: 0.00 | U147: 4.05 | W147: 0.80 | X147: 0.00 | Y147: 1.20 | Z147: 0.00 | AA147: 0.00 | AB147: 0.00 | AD147: 0.60 | AN147: 0.40 | AP147: 730-790 | AQ147: 5.70 | AR147: 791.00 | AS147: 4.90 | AT147: 769.4 | AU147: 791.00 | AW147: 627.00 | AY147: 192.0 | AZ147: 12.0 | BA147: 25.7 | BB147: 2.9 | BC147: 1535.0 | BD147: 67.0 | BE147: 54000.0 | BF147: 6100.0 | BG147: 308000.0 | BH147: 12000.0 | BI147: 67.0 | BJ147: 10.0 | BK147: 630.0 | BL147: 210.0 | BM147: 650.0 | BN147: 240.0 | BO147: 0.0 | BP147: 0.0 | BQ147: 0.0 | BR147: 0.0 | BS147: 0.7 | BT147: 0.2 | BU147: 0.0 | BV147: 0.0 | BW147: 124.0 | BX147: 16.0 | BY147: 98000.0 | BZ147: 6000.0 | CA147: 30.4 | CB147: 3.8 | CC147: 640.0 | CD147: 220.0 | CE147: 1220.0 | CF147: 410.0 | CG147: 178.0 | CH147: 17.0 | CI147: 57.2 | CJ147: 3.3 | CK147: 1.1 | CL147: 0.4 | CM147: 0.9 | CN147: 0.2 | CO147: 25.3 | CP147: 8.7 | CQ147: 1.3 | CR147: 0.5 | CS147: 0.0 | CT147: 0.0 | CU147: 0.0 | CV147: 0.0 | CW147: 0.0 | CX147: 0.0 | CY147: 0.0 | CZ147: 0.0 | DA147: 0.0 | DB147: 0.0 | DC147: 0.0 | DD147: 0.0 | DE147: 0.0 | DF147: 0.0 | DG147: 4.3 | DH147: 0.6 | DI147: 7.0 | DJ147: 2.6 | DK147: 0.0 | DL147: 0.0 | DM147: 0.0 | DN147: 0.0 | DO147: 0.0 | DP147: 0.0 | DQ147: 0.0 | DR147: 0.0 | DS147: 0.0 | DT147: 0.0 | DU147: 0.0 | DV147: 0.0 | DW147: 0.0 | DX147: 0.0 | DY147: 0.0 | DZ147: 0.0 | EA147: 0.0 | EB147: 0.0 | EC147: 0.0 | ED147: 0.0 | EE147: 0.0 | EF147: 0.0 | EG147: 0.0 | EH147: 0.0 | EI147: 0.0 | EJ147: 0.0 | EK147: 0.0 | EL147: 0.0 | EM147: 0.0 | EN147: 0.0 | EO147: 0.0 | EP147: 0.0 | EQ147: 0.0 | ER147: 0.0 | ES147: 0.0 | ET147: 0.0 | EU147: 205.0 | EV147: 67.0 | EW147: 0.3 | EX147: 0.1 | EY147: 0.0 | EZ147: 0.0 | FA147: 0.0 | FB147: 0.0
A148: L14G | B148: Crd | C148: L14G_Cd12 | E148: 48.49 | G148: 33.35 | I148: 9.55 | K148: 7.71 | Q148: 99.10 | S148: 4.97 | T148: 0.00 | U148: 4.04 | W148: 0.82 | X148: 0.00 | Y148: 1.18 | Z148: 0.00 | AA148: 0.00 | AB148: 0.00 | AD148: 0.59 | AN148: 0.41 | AP148: 730-790 | AQ148: 5.70 | AR148: 791.00 | AS148: 4.90 | AU148: 791.00 | AW148: 627.00 | AY148: 100.4 | AZ148: 4.6 | BA148: 28.6 | BB148: 2.9 | BC148: 870.0 | BD148: 33.0 | BE148: 64300.0 | BF148: 2100.0 | BG148: 281700.0 | BH148: 9600.0 | BI148: 53.4 | BJ148: 9.2 | BK148: 0.0 | BL148: 0.0 | BM148: 0.0 | BN148: 0.0 | BO148: 0.0 | BP148: 0.0 | BQ148: 4.0 | BR148: 1.4 | BS148: 0.0 | BT148: 0.0 | BU148: 0.0 | BV148: 0.0 | BW148: 132.5 | BX148: 4.8 | BY148: 77500.0 | BZ148: 2500.0 | CA148: 20.1 | CB148: 1.0 | CC148: 5.8 | CD148: 1.0 | CE148: 0.0 | CF148: 0.0 | CG148: 268.0 | CH148: 12.0 | CI148: 49.0 | CJ148: 2.3 | CK148: 1.0 | CL148: 0.3 | CM148: 1.0 | CN148: 0.1 | CO148: 0.0 | CP148: 0.0 | CQ148: 0.0 | CR148: 0.0 | CS148: 0.0 | CT148: 0.0 | CU148: 0.0 | CV148: 0.0 | CW148: 0.0 | CX148: 0.0 | CY148: 0.0 | CZ148: 0.0 | DA148: 0.0 | DB148: 0.0 | DC148: 0.0 | DD148: 0.0 | DE148: 0.0 | DF148: 0.0 | DG148: 4.2 | DH148: 0.2 | DI148: 0.0 | DJ148: 0.0 | DK148: 0.0 | DL148: 0.0 | DM148: 0.0 | DN148: 0.0 | DO148: 0.0 | DP148: 0.0 | DQ148: 0.0 | DR148: 0.0 | DS148: 0.0 | DT148: 0.0 | DU148: 0.0 | DV148: 0.0 | DW148: 0.0 | DX148: 0.0 | DY148: 0.0 | DZ148: 0.0 | EA148: 0.0 | EB148: 0.0 | EC148: 0.0 | ED148: 0.0 | EE148: 0.0 | EF148: 0.0 | EG148: 0.0 | EH148: 0.0 | EI148: 0.0 | EJ148: 0.0 | EK148: 0.0 | EL148: 0.0 | EM148: 0.0 | EN148: 0.0 | EO148: 0.0 | EP148: 0.0 | EQ148: 0.0 | ER148: 0.0 | ES148: 0.0 | ET148: 0.0 | EU148: 0.0 | EV148: 0.0 | EW148: 0.0 | EX148: 0.0 | EY148: 0.0 | EZ148: 0.0 | FA148: 0.0 | FB148: 0.0
A149: L14G | B149: Grt | C149: L14G_Gt1_1 | E149: 37.38 | G149: 21.77 | I149: 36.39 | J149: 0.30 | K149: 4.47 | L149: 0.93 | Q149: 101.24 | S149: 5.92 | T149: 0.00 | U149: 4.07 | V149: 0.00 | W149: 4.82 | X149: 0.04 | Y149: 1.05 | Z149: 0.15 | AA149: 0.00 | AB149: 0.00 | AG149: 0.79 | AH149: 0.17 | AI149: 0.01 | AJ149: 0.03 | AP149: 730-790 | AQ149: 5.70 | AR149: 791.00 | AS149: 4.90 | AU149: 791.00 | AW149: 627.00 | AY149: 16.6 | AZ149: 0.7 | BA149: 0.0 | BB149: 0.0 | BC149: 33.7 | BD149: 3.5 | BE149: 37500.0 | BF149: 1600.0 | BG149: 179600.0 | BH149: 5000.0 | BI149: 397.0 | BJ149: 14.0 | BK149: 0.0 | BL149: 0.0 | BM149: 7040.0 | BN149: 440.0 | BO149: 56.0 | BP149: 2.4 | BQ149: 60.3 | BR149: 4.8 | BS149: 126.0 | BT149: 4.3 | BU149: 144.7 | BV149: 5.4 | BW149: 1539.0 | BX149: 51.0 | BY149: 275800.0 | BZ149: 8300.0 | CA149: 40.4 | CB149: 1.7 | CC149: 0.0 | CD149: 0.0 | CE149: 0.9 | CF149: 0.2 | CG149: 40.8 | CH149: 2.8 | CI149: 11.5 | CJ149: 0.5 | CK149: 6.2 | CL149: 0.5 | CM149: 0.0 | CN149: 0.0 | CO149: 0.0 | CP149: 0.0 | CQ149: 158.3 | CR149: 5.8 | CS149: 21.4 | CT149: 0.9 | CU149: 0.0 | CV149: 0.0 | CW149: 0.0 | CX149: 0.0 | CY149: 0.0 | CZ149: 0.0 | DA149: 0.0 | DB149: 0.0 | DC149: 0.0 | DD149: 0.0 | DE149: 0.0 | DF149: 0.0 | DG149: 0.0 | DH149: 0.0 | DI149: 0.0 | DJ149: 0.0 | DK149: 0.0 | DL149: 0.0 | DM149: 0.0 | DN149: 0.0 | DO149: 0.0 | DP149: 0.0 | DQ149: 0.0 | DR149: 0.0 | DS149: 1.0 | DT149: 0.2 | DU149: 0.0 | DV149: 0.0 | DW149: 11.3 | DX149: 0.7 | DY149: 3.3 | DZ149: 0.2 | EA149: 26.7 | EB149: 1.1 | EC149: 7.2 | ED149: 0.3 | EE149: 20.5 | EF149: 0.9 | EG149: 3.0 | EH149: 0.2 | EI149: 22.6 | EJ149: 1.0 | EK149: 3.2 | EL149: 0.2 | EM149: 0.4 | EN149: 0.1 | EO149: 0.0 | EP149: 0.0 | EQ149: 0.0 | ER149: 0.0 | ES149: 0.0 | ET149: 0.0 | EU149: 0.0 | EV149: 0.0 | EW149: 0.0 | EX149: 0.0 | EY149: 0.0 | EZ149: 0.0 | FA149: 0.0 | FB149: 0.0
A150: L14G | B150: Grt | C150: L14G_Gt1_2 | E150: 37.10 | G150: 21.75 | I150: 36.04 | J150: 0.30 | K150: 4.41 | L150: 0.98 | Q150: 100.58 | S150: 5.91 | T150: 0.00 | U150: 4.09 | V150: 0.00 | W150: 4.79 | X150: 0.04 | Y150: 1.05 | Z150: 0.17 | AA150: 0.00 | AB150: 0.00 | AG150: 0.79 | AH150: 0.17 | AI150: 0.01 | AJ150: 0.03 | AP150: 730-790 | AQ150: 5.70 | AR150: 791.00 | AS150: 4.90 | AU150: 791.00 | AW150: 627.00 | AY150: 16.6 | AZ150: 0.7 | BA150: 0.0 | BB150: 0.0 | BC150: 55.4 | BD150: 4.6 | BE150: 38800.0 | BF150: 1300.0 | BG150: 190300.0 | BH150: 6000.0 | BI150: 304.0 | BJ150: 14.0 | BK150: 5.5 | BL150: 1.7 | BM150: 7490.0 | BN150: 480.0 | BO150: 59.9 | BP150: 3.1 | BQ150: 51.2 | BR150: 4.5 | BS150: 116.7 | BT150: 4.3 | BU150: 121.9 | BV150: 7.4 | BW150: 1590.0 | BX150: 51.0 | BY150: 295100.0 | BZ150: 9700.0 | CA150: 44.8 | CB150: 1.9 | CC150: 0.0 | CD150: 0.0 | CE150: 0.0 | CF150: 0.0 | CG150: 296.0 | CH150: 46.0 | CI150: 12.4 | CJ150: 0.7 | CK150: 6.7 | CL150: 0.5 | CM150: 0.0 | CN150: 0.0 | CO150: 0.0 | CP150: 0.0 | CQ150: 180.8 | CR150: 8.0 | CS150: 19.1 | CT150: 1.0 | CU150: 0.0 | CV150: 0.0 | CW150: 0.0 | CX150: 0.0 | CY150: 0.0 | CZ150: 0.0 | DA150: 0.0 | DB150: 0.0 | DC150: 0.0 | DD150: 0.0 | DE150: 0.0 | DF150: 0.0 | DG150: 0.0 | DH150: 0.0 | DI150: 0.0 | DJ150: 0.0 | DK150: 0.0 | DL150: 0.0 | DM150: 0.0 | DN150: 0.0 | DO150: 0.0 | DP150: 0.0 | DQ150: 0.0 | DR150: 0.0 | DS150: 0.9 | DT150: 0.2 | DU150: 0.0 | DV150: 0.0 | DW150: 11.9 | DX150: 0.8 | DY150: 3.3 | DZ150: 0.2 | EA150: 28.5 | EB150: 1.2 | EC150: 7.7 | ED150: 0.3 | EE150: 22.1 | EF150: 1.0 | EG150: 3.5 | EH150: 0.2 | EI150: 24.6 | EJ150: 1.1 | EK150: 3.4 | EL150: 0.2 | EM150: 0.4 | EN150: 0.1 | EO150: 0.0 | EP150: 0.0 | EQ150: 0.0 | ER150: 0.0 | ES150: 0.0 | ET150: 0.0 | EU150: 0.0 | EV150: 0.0 | EW150: 0.0 | EX150: 0.0 | EY150: 0.0 | EZ150: 0.0 | FA150: 0.0 | FB150: 0.0
A151: L14G | B151: Grt | C151: L14G_Gt1_6 | E151: 37.59 | G151: 21.85 | I151: 36.70 | J151: 0.29 | K151: 4.31 | L151: 0.94 | Q151: 101.68 | S151: 5.93 | T151: 0.00 | U151: 4.07 | V151: 0.00 | W151: 4.84 | X151: 0.04 | Y151: 1.01 | Z151: 0.15 | AA151: 0.00 | AB151: 0.00 | AG151: 0.80 | AH151: 0.17 | AI151: 0.01 | AJ151: 0.03 | AP151: 730-790 | AQ151: 5.70 | AR151: 791.00 | AS151: 4.90 | AU151: 791.00 | AW151: 627.00 | AY151: 13.0 | AZ151: 0.8 | BA151: 0.0 | BB151: 0.0 | BC151: 40.6 | BD151: 5.2 | BE151: 40400.0 | BF151: 1900.0 | BG151: 218700.0 | BH151: 7300.0 | BI151: 211.0 | BJ151: 17.0 | BK151: 0.0 | BL151: 0.0 | BM151: 8320.0 | BN151: 580.0 | BO151: 74.8 | BP151: 3.2 | BQ151: 44.4 | BR151: 4.6 | BS151: 115.4 | BT151: 7.8 | BU151: 113.5 | BV151: 7.7 | BW151: 1677.0 | BX151: 86.0 | BY151: 313000.0 | BZ151: 14000.0 | CA151: 44.3 | CB151: 2.0 | CC151: 0.0 | CD151: 0.0 | CE151: 0.0 | CF151: 0.0 | CG151: 92.4 | CH151: 6.3 | CI151: 18.9 | CJ151: 2.4 | CK151: 6.6 | CL151: 0.8 | CM151: 0.0 | CN151: 0.0 | CO151: 0.0 | CP151: 0.0 | CQ151: 164.9 | CR151: 7.1 | CS151: 12.6 | CT151: 0.9 | CU151: 0.0 | CV151: 0.0 | CW151: 0.0 | CX151: 0.0 | CY151: 0.0 | CZ151: 0.0 | DA151: 0.0 | DB151: 0.0 | DC151: 0.0 | DD151: 0.0 | DE151: 0.0 | DF151: 0.0 | DG151: 0.0 | DH151: 0.0 | DI151: 0.0 | DJ151: 0.0 | DK151: 0.0 | DL151: 0.0 | DM151: 0.0 | DN151: 0.0 | DO151: 0.0 | DP151: 0.0 | DQ151: 0.0 | DR151: 0.0 | DS151: 0.0 | DT151: 0.0 | DU151: 0.0 | DV151: 0.0 | DW151: 13.7 | DX151: 1.0 | DY151: 4.3 | DZ151: 0.3 | EA151: 31.4 | EB151: 1.5 | EC151: 6.3 | ED151: 0.3 | EE151: 15.7 | EF151: 0.9 | EG151: 2.1 | EH151: 0.1 | EI151: 13.1 | EJ151: 1.0 | EK151: 1.8 | EL151: 0.2 | EM151: 0.3 | EN151: 0.1 | EO151: 0.0 | EP151: 0.0 | EQ151: 0.0 | ER151: 0.0 | ES151: 0.0 | ET151: 0.0 | EU151: 0.0 | EV151: 0.0 | EW151: 0.0 | EX151: 0.0 | EY151: 0.0 | EZ151: 0.0 | FA151: 0.0 | FB151: 0.0
A152: L14G | B152: Grt | C152: L14G_Gt1_7 | E152: 37.50 | G152: 21.58 | I152: 38.17 | J152: 0.30 | K152: 3.49 | L152: 0.98 | Q152: 102.02 | S152: 5.98 | T152: 0.01 | U152: 3.97 | V152: 0.00 | W152: 5.09 | X152: 0.04 | Y152: 0.79 | Z152: 0.16 | AA152: 0.00 | AB152: 0.00 | AG152: 0.83 | AH152: 0.14 | AI152: 0.01 | AJ152: 0.03 | AP152: 730-790 | AQ152: 5.70 | AR152: 791.00 | AS152: 4.90 | AU152: 791.00 | AW152: 627.00 | AY152: 17.6 | AZ152: 1.5 | BA152: 0.0 | BB152: 0.0 | BC152: 30.2 | BD152: 7.1 | BE152: 31400.0 | BF152: 2200.0 | BG152: 192700.0 | BH152: 8100.0 | BI152: 200.0 | BJ152: 23.0 | BK152: 0.0 | BL152: 0.0 | BM152: 8050.0 | BN152: 710.0 | BO152: 74.8 | BP152: 5.0 | BQ152: 32.0 | BR152: 3.9 | BS152: 79.5 | BT152: 6.5 | BU152: 104.9 | BV152: 9.2 | BW152: 1980.0 | BX152: 150.0 | BY152: 318000.0 | BZ152: 25000.0 | CA152: 36.0 | CB152: 2.4 | CC152: 0.0 | CD152: 0.0 | CE152: 0.0 | CF152: 0.0 | CG152: 25.8 | CH152: 3.8 | CI152: 8.4 | CJ152: 0.9 | CK152: 8.7 | CL152: 0.9 | CM152: 0.0 | CN152: 0.0 | CO152: 0.0 | CP152: 0.0 | CQ152: 190.0 | CR152: 18.0 | CS152: 9.5 | CT152: 1.2 | CU152: 0.0 | CV152: 0.0 | CW152: 0.0 | CX152: 0.0 | CY152: 0.0 | CZ152: 0.0 | DA152: 0.0 | DB152: 0.0 | DC152: 0.0 | DD152: 0.0 | DE152: 0.0 | DF152: 0.0 | DG152: 0.0 | DH152: 0.0 | DI152: 0.0 | DJ152: 0.0 | DK152: 0.0 | DL152: 0.0 | DM152: 0.0 | DN152: 0.0 | DO152: 0.0 | DP152: 0.0 | DQ152: 0.0 | DR152: 0.0 | DS152: 0.6 | DT152: 0.2 | DU152: 0.0 | DV152: 0.0 | DW152: 11.7 | DX152: 1.3 | DY152: 4.1 | DZ152: 0.4 | EA152: 31.6 | EB152: 2.4 | EC152: 7.6 | ED152: 0.6 | EE152: 17.0 | EF152: 1.2 | EG152: 2.4 | EH152: 0.3 | EI152: 17.4 | EJ152: 1.9 | EK152: 2.3 | EL152: 0.2 | EM152: 0.3 | EN152: 0.1 | EO152: 0.0 | EP152: 0.0 | EQ152: 0.0 | ER152: 0.0 | ES152: 0.0 | ET152: 0.0 | EU152: 0.0 | EV152: 0.0 | EW152: 0.0 | EX152: 0.0 | EY152: 0.0 | EZ152: 0.0 | FA152: 0.0 | FB152: 0.0
A153: L14G | B153: Grt | C153: L14G_Gt1_5 | E153: 38.10 | G153: 22.09 | I153: 38.06 | J153: 0.28 | K153: 3.76 | L153: 0.99 | Q153: 103.28 | S153: 5.94 | T153: 0.00 | U153: 4.06 | V153: 0.00 | W153: 4.96 | X153: 0.04 | Y153: 0.87 | Z153: 0.17 | AA153: 0.00 | AB153: 0.00 | AG153: 0.82 | AH153: 0.14 | AI153: 0.01 | AJ153: 0.03 | AP153: 730-790 | AQ153: 5.70 | AR153: 791.00 | AS153: 4.90 | AU153: 791.00 | AW153: 627.00 | AY153: 10.8 | AZ153: 0.6 | BA153: 0.0 | BB153: 0.0 | BC153: 32.8 | BD153: 7.5 | BE153: 38100.0 | BF153: 1700.0 | BG153: 203400.0 | BH153: 7300.0 | BI153: 165.0 | BJ153: 11.0 | BK153: 0.0 | BL153: 0.0 | BM153: 9170.0 | BN153: 450.0 | BO153: 84.2 | BP153: 3.8 | BQ153: 68.9 | BR153: 6.8 | BS153: 89.4 | BT153: 5.5 | BU153: 122.4 | BV153: 8.4 | BW153: 1941.0 | BX153: 94.0 | BY153: 360000.0 | BZ153: 15000.0 | CA153: 42.8 | CB153: 1.7 | CC153: 0.0 | CD153: 0.0 | CE153: 0.0 | CF153: 0.0 | CG153: 71.6 | CH153: 3.5 | CI153: 9.9 | CJ153: 0.5 | CK153: 8.7 | CL153: 0.7 | CM153: 0.0 | CN153: 0.0 | CO153: 0.0 | CP153: 0.0 | CQ153: 214.0 | CR153: 12.0 | CS153: 11.4 | CT153: 1.0 | CU153: 0.0 | CV153: 0.0 | CW153: 0.0 | CX153: 0.0 | CY153: 0.0 | CZ153: 0.0 | DA153: 0.0 | DB153: 0.0 | DC153: 0.0 | DD153: 0.0 | DE153: 0.0 | DF153: 0.0 | DG153: 0.0 | DH153: 0.0 | DI153: 0.0 | DJ153: 0.0 | DK153: 0.0 | DL153: 0.0 | DM153: 0.0 | DN153: 0.0 | DO153: 0.0 | DP153: 0.0 | DQ153: 0.3 | DR153: 0.1 | DS153: 2.0 | DT153: 0.4 | DU153: 0.2 | DV153: 0.1 | DW153: 18.4 | DX153: 1.2 | DY153: 5.5 | DZ153: 0.3 | EA153: 39.0 | EB153: 1.9 | EC153: 8.4 | ED153: 0.4 | EE153: 20.0 | EF153: 0.9 | EG153: 2.7 | EH153: 0.2 | EI153: 17.2 | EJ153: 1.1 | EK153: 2.2 | EL153: 0.2 | EM153: 0.3 | EN153: 0.1 | EO153: 0.0 | EP153: 0.0 | EQ153: 0.0 | ER153: 0.0 | ES153: 0.0 | ET153: 0.0 | EU153: 0.0 | EV153: 0.0 | EW153: 0.0 | EX153: 0.0 | EY153: 0.0 | EZ153: 0.0 | FA153: 0.0 | FB153: 0.0
A154: L14G | B154: Grt | C154: L14G_tGt1 | E154: 37.21 | G154: 21.59 | I154: 36.95 | J154: 0.27 | K154: 3.99 | L154: 0.95 | Q154: 100.96 | S154: 5.95 | T154: 0.00 | U154: 4.05 | V154: 0.00 | W154: 5.01 | X154: 0.03 | Y154: 0.83 | Z154: 0.16 | AA154: 0.00 | AB154: 0.00 | AG154: 0.81 | AH154: 0.16 | AI154: 0.01 | AJ154: 0.03 | AP154: 730-790 | AQ154: 5.70 | AR154: 791.00 | AS154: 4.90 | AU154: 791.00 | AW154: 627.00 | AY154: 8.4 | AZ154: 0.6 | BA154: 0.0 | BB154: 0.0 | BC154: 27.6 | BD154: 7.7 | BE154: 36000.0 | BF154: 1600.0 | BG154: 186600.0 | BH154: 6800.0 | BI154: 155.7 | BJ154: 9.6 | BK154: 0.0 | BL154: 0.0 | BM154: 7730.0 | BN154: 510.0 | BO154: 93.1 | BP154: 4.3 | BQ154: 79.0 | BR154: 7.6 | BS154: 78.6 | BT154: 3.8 | BU154: 146.2 | BV154: 8.6 | BW154: 1611.0 | BX154: 67.0 | BY154: 298000.0 | BZ154: 14000.0 | CA154: 39.5 | CB154: 1.7 | CC154: 0.0 | CD154: 0.0 | CE154: 0.0 | CF154: 0.0 | CG154: 109.2 | CH154: 7.2 | CI154: 8.8 | CJ154: 0.7 | CK154: 6.9 | CL154: 0.7 | CM154: 0.0 | CN154: 0.0 | CO154: 0.0 | CP154: 0.0 | CQ154: 223.6 | CR154: 7.1 | CS154: 10.9 | CT154: 0.7 | CU154: 0.0 | CV154: 0.0 | CW154: 0.0 | CX154: 0.0 | CY154: 0.0 | CZ154: 0.0 | DA154: 0.0 | DB154: 0.0 | DC154: 0.0 | DD154: 0.0 | DE154: 0.0 | DF154: 0.0 | DG154: 0.0 | DH154: 0.0 | DI154: 0.0 | DJ154: 0.0 | DK154: 0.0 | DL154: 0.0 | DM154: 0.0 | DN154: 0.0 | DO154: 0.0 | DP154: 0.0 | DQ154: 0.4 | DR154: 0.1 | DS154: 2.5 | DT154: 0.3 | DU154: 0.0 | DV154: 0.0 | DW154: 17.7 | DX154: 1.0 | DY154: 5.1 | DZ154: 0.3 | EA154: 39.6 | EB154: 1.5 | EC154: 8.2 | ED154: 0.4 | EE154: 19.0 | EF154: 1.1 | EG154: 2.7 | EH154: 0.2 | EI154: 16.6 | EJ154: 1.0 | EK154: 2.1 | EL154: 0.1 | EM154: 0.3 | EN154: 0.1 | EO154: 0.0 | EP154: 0.0 | EQ154: 0.0 | ER154: 0.0 | ES154: 0.0 | ET154: 0.0 | EU154: 0.0 | EV154: 0.0 | EW154: 0.0 | EX154: 0.0 | EY154: 0.0 | EZ154: 0.0 | FA154: 0.0 | FB154: 0.0
A155: L14G | B155: Kfs | C155: L14G_Kfs | E155: 63.63 | G155: 18.85 | I155: 0.22 | M155: 0.98 | N155: 15.10 | Q155: 98.78 | S155: 11.88 | T155: 0.00 | U155: 4.16 | W155: 0.03 | X155: 0.00 | Y155: 0.00 | Z155: 0.00 | AA155: 0.36 | AB155: 3.60 | AP155: 730-790 | AQ155: 5.70 | AR155: 791.00 | AS155: 4.90 | AU155: 791.00 | AW155: 627.00 | AY155: 3.1 | AZ155: 0.5 | BA155: 0.0 | BB155: 0.0 | BC155: 13500.0 | BD155: 1800.0 | BE155: 15.2 | BF155: 2.3 | BG155: 184000.0 | BH155: 18000.0 | BI155: 422.0 | BJ155: 41.0 | BK155: 113300.0 | BL155: 9700.0 | BM155: 1010.0 | BN155: 220.0 | BO155: 0.0 | BP155: 0.0 | BQ155: 53.4 | BR155: 9.6 | BS155: 0.0 | BT155: 0.0 | BU155: 0.0 | BV155: 0.0 | BW155: 0.0 | BX155: 0.0 | BY155: 43.0 | BZ155: 5.8 | CA155: 0.0 | CB155: 0.0 | CC155: 0.0 | CD155: 0.0 | CE155: 0.0 | CF155: 0.0 | CG155: 0.0 | CH155: 0.0 | CI155: 11.8 | CJ155: 1.4 | CK155: 1.5 | CL155: 0.7 | CM155: 339.0 | CN155: 38.0 | CO155: 624.0 | CP155: 80.0 | CQ155: 0.0 | CR155: 0.0 | CS155: 0.0 | CT155: 0.0 | CU155: 0.0 | CV155: 0.0 | CW155: 0.0 | CX155: 0.0 | CY155: 0.0 | CZ155: 0.0 | DA155: 0.0 | DB155: 0.0 | DC155: 1.0 | DD155: 0.2 | DE155: 0.0 | DF155: 0.0 | DG155: 1.3 | DH155: 0.2 | DI155: 3900.0 | DJ155: 320.0 | DK155: 0.0 | DL155: 0.0 | DM155: 0.2 | DN155: 0.0 | DO155: 0.0 | DP155: 0.0 | DQ155: 0.0 | DR155: 0.0 | DS155: 0.0 | DT155: 0.0 | DU155: 10.4 | DV155: 1.3 | DW155: 0.0 | DX155: 0.0 | DY155: 0.0 | DZ155: 0.0 | EA155: 0.0 | EB155: 0.0 | EC155: 0.0 | ED155: 0.0 | EE155: 0.0 | EF155: 0.0 | EG155: 0.0 | EH155: 0.0 | EI155: 0.0 | EJ155: 0.0 | EK155: 0.0 | EL155: 0.0 | EM155: 0.0 | EN155: 0.0 | EO155: 0.0 | EP155: 0.0 | EQ155: 0.0 | ER155: 0.0 | ES155: 1.4 | ET155: 0.2 | EU155: 232.0 | EV155: 30.0 | EW155: 0.0 | EX155: 0.0 | EY155: 0.0 | EZ155: 0.0 | FA155: 0.0 | FB155: 0.0
A156: L44 | B156: Crd | C156: L44_Crd1 | E156: 49.54 | F156: -0.00 | G156: 34.29 | H156: -0.00 | I156: 5.96 | J156: 0.03 | K156: 10.00 | L156: -0.01 | M156: 0.00 | N156: 0.00 | O156: 0.01 | P156: 0.00 | Q156: 99.84 | S156: 4.96 | T156: -0.00 | U156: 4.05 | V156: -0.00 | W156: 0.50 | X156: 0.00 | Y156: 1.49 | Z156: -0.00 | AA156: 0.00 | AB156: 0.00 | AD156: =Y156/(Y156+W156) -> 0.75 | AN156: =W156/(W156+Y156) -> 0.25 | AP156: 730-790 | AQ156: 5.70 | AR156: 826.00 | AS156: 5.10 | AT156: 831.87 | AU156: 826.00 | AY156: 12.18 | AZ156: 0.71 | BA156: 5.02 | BB156: 0.87 | BC156: 157 | BD156: 14 | BE156: 8.87E+04 | BF156: 3.90E+03 | BG156: 2.83E+05 | BH156: 1.30E+04 | BI156: 37.2 | BJ156: 7.4 | BK156: 0 | BL156: 0 | BM156: 600 | BN156: 300 | BO156: 0 | BP156: 0 | BQ156: 0 | BR156: 0 | BS156: 0 | BT156: 0 | BU156: 0 | BV156: 0 | BW156: 148.8 | BX156: 9 | BY156: 5.25E+04 | BZ156: 2.80E+03 | CA156: 14.26 | CB156: 0.86 | CC156: 3.62 | CD156: 0.82 | CE156: 0 | CF156: 0 | CG156: 36.1 | CH156: 3.5 | CI156: 64.7 | CJ156: 4.5 | CK156: 0 | CL156: 0 | CM156: 1.11 | CN156: 0.14 | CO156: 0 | CP156: 0 | CQ156: 0 | CR156: 0 | CS156: 0 | CT156: 0 | CU156: 0 | CV156: 0 | CW156: 0 | CX156: 0 | CY156: 0 | CZ156: 0 | DA156: 0 | DB156: 0 | DC156: 0 | DD156: 0 | DE156: 0 | DF156: 0 | DG156: 4.24 | DH156: 0.26 | DI156: 0 | DJ156: 0 | DK156: 0 | DL156: 0 | DM156: 0 | DN156: 0 | DO156: 0 | DP156: 0 | DQ156: 0 | DR156: 0 | DS156: 0 | DT156: 0 | DU156: 0 | DV156: 0 | DW156: 0 | DX156: 0 | DY156: 0 | DZ156: 0 | EA156: 0 | EB156: 0 | EC156: 0 | ED156: 0 | EE156: 0 | EF156: 0 | EG156: 0 | EH156: 0 | EI156: 0 | EJ156: 0 | EK156: 0 | EL156: 0 | EM156: 0 | EN156: 0 | EO156: 0 | EP156: 0 | EQ156: 0 | ER156: 0 | ES156: 0 | ET156: 0 | EU156: 0 | EV156: 0 | EW156: 0 | EX156: 0 | EY156: 0 | EZ156: 0 | FA156: 0 | FB156: 0
A157: L44 | B157: Crd | C157: L44_Crd2 | E157: 49.71 | F157: 0.00 | G157: 34.03 | H157: -0.01 | I157: 6.19 | J157: 0.01 | K157: 9.73 | L157: 0.01 | M157: 0.01 | N157: 0.01 | O157: 0.00 | P157: 0.00 | Q157: 99.69 | S157: 4.99 | T157: 0.00 | U157: 4.03 | V157: -0.00 | W157: 0.52 | X157: 0.00 | Y157: 1.46 | Z157: 0.00 | AA157: 0.00 | AB157: 0.00 | AD157: 0.74 | AN157: 0.26 | AP157: 730-790 | AQ157: 5.70 | AR157: 826.00 | AS157: 5.10 | AT157: 827.72 | AU157: 826.00 | AY157: 13.9 | AZ157: 1.2 | BA157: 5.1 | BB157: 1 | BC157: 145 | BD157: 15 | BE157: 8.78E+04 | BF157: 3.90E+03 | BG157: 2.85E+05 | BH157: 1.10E+04 | BI157: 29.9 | BJ157: 6.7 | BK157: 8 | BL157: 1.7 | BM157: 0 | BN157: 0 | BO157: 0 | BP157: 0 | BQ157: 1.5 | BR157: 0.72 | BS157: 0 | BT157: 0 | BU157: 0 | BV157: 0 | BW157: 159 | BX157: 11 | BY157: 5.58E+04 | BZ157: 3.10E+03 | CA157: 12.9 | CB157: 0.84 | CC157: 7.6 | CD157: 1 | CE157: 0 | CF157: 0 | CG157: 76 | CH157: 28 | CI157: 68.7 | CJ157: 3.8 | CK157: 0 | CL157: 0 | CM157: 1.52 | CN157: 0.12 | CO157: 0 | CP157: 0 | CQ157: 0 | CR157: 0 | CS157: 0 | CT157: 0 | CU157: 0 | CV157: 0 | CW157: 0 | CX157: 0 | CY157: 0 | CZ157: 0 | DA157: 0 | DB157: 0 | DC157: 0 | DD157: 0 | DE157: 0 | DF157: 0 | DG157: 4.17 | DH157: 0.29 | DI157: 0 | DJ157: 0 | DK157: 0 | DL157: 0 | DM157: 0 | DN157: 0 | DO157: 0 | DP157: 0 | DQ157: 0 | DR157: 0 | DS157: 0 | DT157: 0 | DU157: 0 | DV157: 0 | DW157: 0 | DX157: 0 | DY157: 0 | DZ157: 0 | EA157: 0 | EB157: 0 | EC157: 0 | ED157: 0 | EE157: 0 | EF157: 0 | EG157: 0 | EH157: 0 | EI157: 0 | EJ157: 0 | EK157: 0 | EL157: 0 | EM157: 0 | EN157: 0 | EO157: 0 | EP157: 0 | EQ157: 0 | ER157: 0 | ES157: 0 | ET157: 0 | EU157: 0 | EV157: 0 | EW157: 0 | EX157: 0 | EY157: 0 | EZ157: 0 | FA157: 0 | FB157: 0
A158: L44 | B158: Crd | C158: L44_Crd6 | E158: 49.58 | F158: -0.02 | G158: 33.86 | H158: -0.01 | I158: 6.02 | J158: 0.03 | K158: 9.78 | L158: -0.01 | M158: 0.01 | N158: 0.00 | O158: -0.08 | P158: 0.01 | Q158: 99.29 | S158: 5.00 | T158: -0.00 | U158: 4.02 | V158: -0.00 | W158: 0.51 | X158: 0.00 | Y158: 1.47 | Z158: -0.00 | AA158: 0.00 | AB158: 0.00 | AD158: 0.74 | AN158: 0.26 | AP158: 730-790 | AQ158: 5.70 | AR158: 826.00 | AS158: 5.10 | AT158: 827.41 | AU158: 826.00 | AY158: 12.82 | AZ158: 0.68 | BA158: 5.3 | BB158: 1.1 | BC158: 156 | BD158: 14 | BE158: 8.95E+04 | BF158: 4.50E+03 | BG158: 2.79E+05 | BH158: 1.10E+04 | BI158: 24.5 | BJ158: 6.9 | BK158: 12.4 | BL158: 3.6 | BM158: 0 | BN158: 0 | BO158: 0 | BP158: 0 | BQ158: 1.65 | BR158: 0.78 | BS158: 0 | BT158: 0 | BU158: 0 | BV158: 0 | BW158: 149.4 | BX158: 9 | BY158: 5.14E+04 | BZ158: 3.00E+03 | CA158: 12.22 | CB158: 0.82 | CC158: 6.39 | CD158: 0.98 | CE158: 0 | CF158: 0 | CG158: 30.5 | CH158: 3.3 | CI158: 64.3 | CJ158: 4.4 | CK158: 0 | CL158: 0 | CM158: 1.47 | CN158: 0.18 | CO158: 0 | CP158: 0 | CQ158: 0 | CR158: 0 | CS158: 0 | CT158: 0 | CU158: 0 | CV158: 0 | CW158: 0 | CX158: 0 | CY158: 0 | CZ158: 0 | DA158: 0 | DB158: 0 | DC158: 0 | DD158: 0 | DE158: 0 | DF158: 0 | DG158: 4.18 | DH158: 0.23 | DI158: 0 | DJ158: 0 | DK158: 0 | DL158: 0 | DM158: 0 | DN158: 0 | DO158: 0 | DP158: 0 | DQ158: 0 | DR158: 0 | DS158: 0 | DT158: 0 | DU158: 0 | DV158: 0 | DW158: 0 | DX158: 0 | DY158: 0 | DZ158: 0 | EA158: 0 | EB158: 0 | EC158: 0 | ED158: 0 | EE158: 0 | EF158: 0 | EG158: 0 | EH158: 0 | EI158: 0 | EJ158: 0 | EK158: 0 | EL158: 0 | EM158: 0 | EN158: 0 | EO158: 0 | EP158: 0 | EQ158: 0 | ER158: 0 | ES158: 0 | ET158: 0 | EU158: 0 | EV158: 0 | EW158: 0 | EX158: 0 | EY158: 0 | EZ158: 0 | FA158: 0 | FB158: 0
A159: L44 | B159: Crd | C159: L44_Crd8 | E159: 49.50 | F159: -0.01 | G159: 34.10 | H159: 0.00 | I159: 6.00 | J159: 0.01 | K159: 9.83 | L159: -0.00 | M159: 0.01 | N159: 0.00 | O159: 0.01 | P159: 0.00 | Q159: 99.46 | S159: 4.98 | T159: -0.00 | U159: 4.04 | V159: 0.00 | W159: 0.50 | X159: 0.00 | Y159: 1.47 | Z159: -0.00 | AA159: 0.00 | AB159: 0.00 | AD159: 0.75 | AN159: 0.25 | AP159: 730-790 | AQ159: 5.70 | AR159: 826.00 | AS159: 5.10 | AT159: 829.43 | AU159: 826.00 | AY159: 18.41 | AZ159: 0.87 | BA159: 6.5 | BB159: 1 | BC159: 215 | BD159: 18 | BE159: 8.53E+04 | BF159: 4.50E+03 | BG159: 2.77E+05 | BH159: 1.30E+04 | BI159: 24.8 | BJ159: 6 | BK159: 125 | BL159: 13 | BM159: 0 | BN159: 0 | BO159: 0 | BP159: 0 | BQ159: 4.2 | BR159: 1.7 | BS159: 0.162 | BT159: 0.091 | BU159: 0 | BV159: 0 | BW159: 140.5 | BX159: 6.7 | BY159: 5.41E+04 | BZ159: 2.70E+03 | CA159: 17.1 | CB159: 1.2 | CC159: 7.9 | CD159: 1.4 | CE159: 0.75 | CF159: 0.48 | CG159: 95 | CH159: 6.9 | CI159: 62 | CJ159: 4.4 | CK159: 0 | CL159: 0 | CM159: 1.64 | CN159: 0.2 | CO159: 2.38 | CP159: 0.36 | CQ159: 0 | CR159: 0 | CS159: 0 | CT159: 0 | CU159: 0 | CV159: 0 | CW159: 0 | CX159: 0 | CY159: 0 | CZ159: 0 | DA159: 0 | DB159: 0 | DC159: 0 | DD159: 0 | DE159: 0 | DF159: 0 | DG159: 4.22 | DH159: 0.29 | DI159: 3.62 | DJ159: 0.59 | DK159: 0 | DL159: 0 | DM159: 0 | DN159: 0 | DO159: 0 | DP159: 0 | DQ159: 0 | DR159: 0 | DS159: 0 | DT159: 0 | DU159: 0 | DV159: 0 | DW159: 0 | DX159: 0 | DY159: 0 | DZ159: 0 | EA159: 0 | EB159: 0 | EC159: 0 | ED159: 0 | EE159: 0 | EF159: 0 | EG159: 0 | EH159: 0 | EI159: 0 | EJ159: 0 | EK159: 0 | EL159: 0 | EM159: 0 | EN159: 0 | EO159: 0 | EP159: 0 | EQ159: 0 | ER159: 0 | ES159: 0 | ET159: 0 | EU159: 0.465 | EV159: 0.078 | EW159: 0 | EX159: 0 | EY159: 0 | EZ159: 0 | FA159: 0 | FB159: 0
A160: L44 | B160: Crd | C160: L44_Crd11 | E160: 49.29 | F160: 0.02 | G160: 33.88 | H160: -0.01 | I160: 5.96 | J160: 0.04 | K160: 9.82 | L160: 0.00 | M160: 0.00 | N160: 0.00 | O160: -0.01 | P160: 0.01 | Q160: 99.02 | S160: 4.98 | T160: 0.00 | U160: 4.03 | V160: -0.00 | W160: 0.50 | X160: 0.00 | Y160: 1.48 | Z160: 0.00 | AA160: 0.00 | AB160: 0.00 | AD160: 0.75 | AN160: 0.25 | AP160: 730-790 | AQ160: 5.70 | AR160: 826.00 | AS160: 5.10 | AT160: 832.03 | AU160: 826.00 | AY160: 11.16 | AZ160: 0.71 | BA160: 7.8 | BB160: 1.3 | BC160: 160 | BD160: 17 | BE160: 9.01E+04 | BF160: 3.20E+03 | BG160: 2.87E+05 | BH160: 1.40E+04 | BI160: 24.2 | BJ160: 7.6 | BK160: 5.3 | BL160: 1.6 | BM160: 0 | BN160: 0 | BO160: 0 | BP160: 0 | BQ160: 1.71 | BR160: 0.69 | BS160: 0.125 | BT160: 0.096 | BU160: 0 | BV160: 0 | BW160: 152 | BX160: 8.9 | BY160: 5.04E+04 | BZ160: 2.20E+03 | CA160: 14.1 | CB160: 0.88 | CC160: 7.5 | CD160: 1 | CE160: 0 | CF160: 0 | CG160: 52.8 | CH160: 4.8 | CI160: 60.3 | CJ160: 2.9 | CK160: 0 | CL160: 0 | CM160: 1.24 | CN160: 0.14 | CO160: 0 | CP160: 0 | CQ160: 0 | CR160: 0 | CS160: 0 | CT160: 0 | CU160: 0 | CV160: 0 | CW160: 0 | CX160: 0 | CY160: 0 | CZ160: 0 | DA160: 0 | DB160: 0 | DC160: 0 | DD160: 0 | DE160: 0 | DF160: 0 | DG160: 4.12 | DH160: 0.31 | DI160: 0 | DJ160: 0 | DK160: 0 | DL160: 0 | DM160: 0 | DN160: 0 | DO160: 0 | DP160: 0 | DQ160: 0 | DR160: 0 | DS160: 0 | DT160: 0 | DU160: 0 | DV160: 0 | DW160: 0 | DX160: 0 | DY160: 0 | DZ160: 0 | EA160: 0 | EB160: 0 | EC160: 0 | ED160: 0 | EE160: 0 | EF160: 0 | EG160: 0 | EH160: 0 | EI160: 0 | EJ160: 0 | EK160: 0 | EL160: 0 | EM160: 0 | EN160: 0 | EO160: 0 | EP160: 0 | EQ160: 0 | ER160: 0 | ES160: 0 | ET160: 0 | EU160: 0 | EV160: 0 | EW160: 0 | EX160: 0 | EY160: 0 | EZ160: 0 | FA160: 0 | FB160: 0
A161: L44 | B161: Crd | C161: L44_Crd16 | E161: 50.01 | F161: -0.00 | G161: 34.36 | H161: -0.00 | I161: 5.76 | J161: 0.04 | K161: 9.93 | L161: 0.00 | M161: 0.02 | N161: 0.01 | O161: 0.00 | P161: 0.02 | Q161: 100.13 | S161: 4.99 | T161: -0.00 | U161: 4.04 | V161: -0.00 | W161: 0.48 | X161: 0.00 | Y161: 1.48 | Z161: 0.00 | AA161: 0.00 | AB161: 0.00 | AD161: 0.75 | AN161: 0.25 | AP161: 730-790 | AQ161: 5.70 | AR161: 826.00 | AS161: 5.10 | AT161: 824.73 | AU161: 826.00 | AY161: 12.63 | AZ161: 0.97 | BA161: 15.2 | BB161: 1.8 | BC161: 179 | BD161: 20 | BE161: 9.41E+04 | BF161: 4.60E+03 | BG161: 2.94E+05 | BH161: 1.30E+04 | BI161: 36.7 | BJ161: 7.3 | BK161: 9.3 | BL161: 1.4 | BM161: 680 | BN161: 280 | BO161: 0 | BP161: 0 | BQ161: 0 | BR161: 0 | BS161: 0 | BT161: 0 | BU161: 0 | BV161: 0 | BW161: 151.7 | BX161: 9.8 | BY161: 5.44E+04 | BZ161: 2.70E+03 | CA161: 17 | CB161: 1.1 | CC161: 7.8 | CD161: 1.1 | CE161: 0 | CF161: 0 | CG161: 57.9 | CH161: 5.2 | CI161: 63.2 | CJ161: 3.6 | CK161: 0 | CL161: 0 | CM161: 3.18 | CN161: 0.42 | CO161: 0 | CP161: 0 | CQ161: 0 | CR161: 0 | CS161: 0 | CT161: 0 | CU161: 0 | CV161: 0 | CW161: 0 | CX161: 0 | CY161: 0 | CZ161: 0 | DA161: 0 | DB161: 0 | DC161: 0 | DD161: 0 | DE161: 0 | DF161: 0 | DG161: 5.43 | DH161: 0.41 | DI161: 0 | DJ161: 0 | DK161: 0 | DL161: 0 | DM161: 0 | DN161: 0 | DO161: 0 | DP161: 0 | DQ161: 0 | DR161: 0 | DS161: 0 | DT161: 0 | DU161: 0 | DV161: 0 | DW161: 0 | DX161: 0 | DY161: 0 | DZ161: 0 | EA161: 0 | EB161: 0 | EC161: 0 | ED161: 0 | EE161: 0 | EF161: 0 | EG161: 0 | EH161: 0 | EI161: 0 | EJ161: 0 | EK161: 0 | EL161: 0 | EM161: 0 | EN161: 0 | EO161: 0 | EP161: 0 | EQ161: 0 | ER161: 0 | ES161: 0 | ET161: 0 | EU161: 0 | EV161: 0 | EW161: 0 | EX161: 0 | EY161: 0 | EZ161: 0 | FA161: 0 | FB161: 0
A162: L44 | B162: Crd | C162: L44_Crd18 | E162: 49.63 | F162: 0.01 | G162: 34.12 | H162: -0.00 | I162: 5.89 | J162: 0.01 | K162: 9.86 | L162: 0.01 | M162: 0.01 | N162: 0.01 | O162: -0.02 | P162: 0.00 | Q162: 99.57 | S162: 4.98 | T162: 0.00 | U162: 4.04 | V162: -0.00 | W162: 0.50 | X162: 0.00 | Y162: 1.48 | Z162: 0.00 | AA162: 0.00 | AB162: 0.00 | AD162: 0.75 | AN162: 0.25 | AP162: 730-790 | AQ162: 5.70 | AR162: 826.00 | AS162: 5.10 | AT162: 826.27 | AU162: 826.00 | AY162: 12.7 | AZ162: 1 | BA162: 13.6 | BB162: 2.3 | BC162: 208 | BD162: 22 | BE162: 9.11E+04 | BF162: 5.30E+03 | BG162: 2.92E+05 | BH162: 1.60E+04 | BI162: 31.6 | BJ162: 7.2 | BK162: 0 | BL162: 0 | BM162: 690 | BN162: 300 | BO162: 0 | BP162: 0 | BQ162: 0 | BR162: 0 | BS162: 0 | BT162: 0 | BU162: 0 | BV162: 0 | BW162: 144 | BX162: 9.9 | BY162: 5.25E+04 | BZ162: 3.80E+03 | CA162: 14 | CB162: 1.1 | CC162: 5.9 | CD162: 1.3 | CE162: 0 | CF162: 0 | CG162: 64.7 | CH162: 5 | CI162: 59.7 | CJ162: 4.7 | CK162: 0 | CL162: 0 | CM162: 2.91 | CN162: 0.29 | CO162: 0 | CP162: 0 | CQ162: 0 | CR162: 0 | CS162: 0 | CT162: 0 | CU162: 0 | CV162: 0 | CW162: 0 | CX162: 0 | CY162: 0 | CZ162: 0 | DA162: 0 | DB162: 0 | DC162: 0 | DD162: 0 | DE162: 0 | DF162: 0 | DG162: 3.96 | DH162: 0.3 | DI162: 0 | DJ162: 0 | DK162: 0 | DL162: 0 | DM162: 0 | DN162: 0 | DO162: 0 | DP162: 0 | DQ162: 0 | DR162: 0 | DS162: 0 | DT162: 0 | DU162: 0 | DV162: 0 | DW162: 0 | DX162: 0 | DY162: 0 | DZ162: 0 | EA162: 0 | EB162: 0 | EC162: 0 | ED162: 0 | EE162: 0 | EF162: 0 | EG162: 0 | EH162: 0 | EI162: 0 | EJ162: 0 | EK162: 0 | EL162: 0 | EM162: 0 | EN162: 0 | EO162: 0 | EP162: 0 | EQ162: 0 | ER162: 0 | ES162: 0 | ET162: 0 | EU162: 0 | EV162: 0 | EW162: 0 | EX162: 0 | EY162: 0 | EZ162: 0 | FA162: 0 | FB162: 0
A163: L44 | B163: Crd | C163: L44_Crd19 | E163: 49.56 | F163: 0.01 | G163: 34.05 | H163: 0.01 | I163: 6.23 | J163: 0.03 | K163: 9.82 | L163: 0.00 | M163: 0.00 | N163: 0.01 | O163: 0.02 | P163: -0.00 | Q163: 99.73 | S163: 4.98 | T163: 0.00 | U163: 4.03 | V163: 0.00 | W163: 0.52 | X163: 0.00 | Y163: 1.47 | Z163: 0.00 | AA163: 0.00 | AB163: 0.00 | AD163: 0.74 | AN163: 0.26 | AP163: 730-790 | AQ163: 5.70 | AR163: 826.00 | AS163: 5.10 | AT163: 830.23 | AU163: 826.00 | AY163: 11.89 | AZ163: 0.77 | BA163: 15.7 | BB163: 2.2 | BC163: 185 | BD163: 15 | BE163: 8.91E+04 | BF163: 4.10E+03 | BG163: 2.81E+05 | BH163: 9.10E+03 | BI163: 32.4 | BJ163: 8.1 | BK163: 8.4 | BL163: 1.3 | BM163: 670 | BN163: 320 | BO163: 0 | BP163: 0 | BQ163: 0 | BR163: 0 | BS163: 0 | BT163: 0 | BU163: 0 | BV163: 0 | BW163: 156.9 | BX163: 8 | BY163: 5.39E+04 | BZ163: 2.20E+03 | CA163: 13.15 | CB163: 0.72 | CC163: 5.4 | CD163: 1.1 | CE163: 0 | CF163: 0 | CG163: 29.4 | CH163: 2.6 | CI163: 61 | CJ163: 4 | CK163: 0 | CL163: 0 | CM163: 2.54 | CN163: 0.36 | CO163: 0 | CP163: 0 | CQ163: 0 | CR163: 0 | CS163: 0 | CT163: 0 | CU163: 0 | CV163: 0 | CW163: 0 | CX163: 0 | CY163: 0 | CZ163: 0 | DA163: 0 | DB163: 0 | DC163: 0 | DD163: 0 | DE163: 0 | DF163: 0 | DG163: 4.72 | DH163: 0.32 | DI163: 0 | DJ163: 0 | DK163: 0 | DL163: 0 | DM163: 0 | DN163: 0 | DO163: 0 | DP163: 0 | DQ163: 0 | DR163: 0 | DS163: 0 | DT163: 0 | DU163: 0 | DV163: 0 | DW163: 0 | DX163: 0 | DY163: 0 | DZ163: 0 | EA163: 0 | EB163: 0 | EC163: 0 | ED163: 0 | EE163: 0 | EF163: 0 | EG163: 0 | EH163: 0 | EI163: 0 | EJ163: 0 | EK163: 0 | EL163: 0 | EM163: 0 | EN163: 0 | EO163: 0 | EP163: 0 | EQ163: 0 | ER163: 0 | ES163: 0 | ET163: 0 | EU163: 0 | EV163: 0 | EW163: 0 | EX163: 0 | EY163: 0 | EZ163: 0 | FA163: 0 | FB163: 0
A164: L44 | B164: Crd | C164: L44_Crd20 | E164: 49.08 | F164: -0.01 | G164: 33.72 | H164: -0.01 | I164: 6.90 | J164: 0.03 | K164: 9.30 | L164: -0.00 | M164: 0.04 | N164: -0.00 | O164: -0.02 | P164: -0.00 | Q164: 99.07 | S164: 4.98 | T164: -0.00 | U164: 4.03 | V164: -0.00 | W164: 0.59 | X164: 0.00 | Y164: 1.41 | Z164: -0.00 | AA164: 0.01 | AB164: -0.00 | AD164: 0.71 | AN164: 0.29 | AP164: 730-790 | AQ164: 5.70 | AR164: 826.00 | AS164: 5.10 | AT164: 817.41 | AU164: 826.00 | AY164: 18.7 | AZ164: 1.4 | BA164: 15.1 | BB164: 2.2 | BC164: 260 | BD164: 19 | BE164: 8.39E+04 | BF164: 3.40E+03 | BG164: 2.82E+05 | BH164: 1.20E+04 | BI164: 31.9 | BJ164: 4.7 | BK164: 6 | BL164: 1.4 | BM164: 700 | BN164: 380 | BO164: 0 | BP164: 0 | BQ164: 2.4 | BR164: 1.1 | BS164: 0 | BT164: 0 | BU164: 0 | BV164: 0 | BW164: 175 | BX164: 12 | BY164: 6.07E+04 | BZ164: 3.30E+03 | CA164: 17.9 | CB164: 1.1 | CC164: 7.1 | CD164: 1.4 | CE164: 0 | CF164: 0 | CG164: 108.9 | CH164: 9.9 | CI164: 62 | CJ164: 3.8 | CK164: 0 | CL164: 0 | CM164: 3.01 | CN164: 0.31 | CO164: 0 | CP164: 0 | CQ164: 0 | CR164: 0 | CS164: 0 | CT164: 0 | CU164: 0 | CV164: 0 | CW164: 0 | CX164: 0 | CY164: 0 | CZ164: 0 | DA164: 0 | DB164: 0 | DC164: 0 | DD164: 0 | DE164: 0 | DF164: 0 | DG164: 5.66 | DH164: 0.41 | DI164: 0 | DJ164: 0 | DK164: 0 | DL164: 0 | DM164: 0 | DN164: 0 | DO164: 0 | DP164: 0 | DQ164: 0 | DR164: 0 | DS164: 0 | DT164: 0 | DU164: 0 | DV164: 0 | DW164: 0 | DX164: 0 | DY164: 0 | DZ164: 0 | EA164: 0 | EB164: 0 | EC164: 0 | ED164: 0 | EE164: 0 | EF164: 0 | EG164: 0 | EH164: 0 | EI164: 0 | EJ164: 0 | EK164: 0 | EL164: 0 | EM164: 0 | EN164: 0 | EO164: 0 | EP164: 0 | EQ164: 0 | ER164: 0 | ES164: 0 | ET164: 0 | EU164: 0 | EV164: 0 | EW164: 0 | EX164: 0 | EY164: 0 | EZ164: 0 | FA164: 0 | FB164: 0
A165: L44 | B165: Crd | C165: L44_Crd25 | E165: 49.45 | F165: -0.02 | G165: 34.20 | H165: -0.00 | I165: 5.89 | J165: 0.02 | K165: 9.83 | L165: 0.02 | M165: 0.02 | N165: 0.01 | O165: -0.00 | P165: -0.01 | Q165: 99.44 | S165: 4.97 | T165: -0.00 | U165: 4.05 | V165: -0.00 | W165: 0.50 | X165: 0.00 | Y165: 1.47 | Z165: 0.00 | AA165: 0.00 | AB165: 0.00 | AD165: 0.75 | AN165: 0.25 | AP165: 730-790 | AQ165: 5.70 | AR165: 826.00 | AS165: 5.10 | AT165: 824.74 | AU165: 826.00 | AY165: 20 | AZ165: 1.3 | BA165: 17.2 | BB165: 2 | BC165: 261 | BD165: 19 | BE165: 8.86E+04 | BF165: 4.10E+03 | BG165: 2.92E+05 | BH165: 1.20E+04 | BI165: 23.6 | BJ165: 6.2 | BK165: 210 | BL165: 13 | BM165: 0 | BN165: 0 | BO165: 0 | BP165: 0 | BQ165: 0 | BR165: 0 | BS165: 0 | BT165: 0 | BU165: 0 | BV165: 0 | BW165: 135.8 | BX165: 8.6 | BY165: 5.25E+04 | BZ165: 3.40E+03 | CA165: 15.48 | CB165: 0.85 | CC165: 7.8 | CD165: 1.1 | CE165: 0 | CF165: 0 | CG165: 55.8 | CH165: 4.2 | CI165: 61.8 | CJ165: 3.7 | CK165: 0 | CL165: 0 | CM165: 3.37 | CN165: 0.31 | CO165: 2.61 | CP165: 0.41 | CQ165: 0 | CR165: 0 | CS165: 0 | CT165: 0 | CU165: 0 | CV165: 0 | CW165: 0 | CX165: 0 | CY165: 0 | CZ165: 0 | DA165: 0 | DB165: 0 | DC165: 0 | DD165: 0 | DE165: 0 | DF165: 0 | DG165: 5.04 | DH165: 0.36 | DI165: 2.82 | DJ165: 0.43 | DK165: 0 | DL165: 0 | DM165: 0 | DN165: 0 | DO165: 0 | DP165: 0 | DQ165: 0 | DR165: 0 | DS165: 0 | DT165: 0 | DU165: 0 | DV165: 0 | DW165: 0 | DX165: 0 | DY165: 0 | DZ165: 0 | EA165: 0 | EB165: 0 | EC165: 0 | ED165: 0 | EE165: 0 | EF165: 0 | EG165: 0 | EH165: 0 | EI165: 0 | EJ165: 0 | EK165: 0 | EL165: 0 | EM165: 0 | EN165: 0 | EO165: 0 | EP165: 0 | EQ165: 0 | ER165: 0 | ES165: 0 | ET165: 0 | EU165: 0 | EV165: 0 | EW165: 0 | EX165: 0 | EY165: 0 | EZ165: 0 | FA165: 0 | FB165: 0
A166: L44 | B166: Crd | C166: L44_Crd32 | E166: 51.09 | F166: 0.00 | G166: 35.81 | H166: 0.01 | I166: 4.58 | J166: 0.02 | K166: 8.10 | L166: 0.00 | M166: 0.02 | N166: 0.01 | O166: -0.05 | P166: -0.00 | Q166: 99.65 | S166: 5.07 | T166: 0.00 | U166: 4.19 | V166: 0.00 | W166: 0.38 | X166: 0.00 | Y166: 1.20 | Z166: 0.00 | AA166: 0.00 | AB166: 0.00 | AD166: 0.76 | AN166: 0.24 | AP166: 730-790 | AQ166: 5.70 | AR166: 826.00 | AS166: 5.10 | AT166: 822.39 | AU166: 826.00 | AY166: 10.23 | AZ166: 0.69 | BA166: 12.5 | BB166: 1.6 | BC166: 144 | BD166: 13 | BE166: 9.21E+04 | BF166: 5.20E+03 | BG166: 3.04E+05 | BH166: 1.60E+04 | BI166: 40 | BJ166: 10 | BK166: 15.9 | BL166: 1.7 | BM166: 0 | BN166: 0 | BO166: 0 | BP166: 0 | BQ166: 4.8 | BR166: 1.6 | BS166: 1.04 | BT166: 0.18 | BU166: 0 | BV166: 0 | BW166: 142.4 | BX166: 9.8 | BY166: 5.21E+04 | BZ166: 3.50E+03 | CA166: 12.1 | CB166: 1.1 | CC166: 5 | CD166: 1.4 | CE166: 0 | CF166: 0 | CG166: 54 | CH166: 9.3 | CI166: 62.6 | CJ166: 4.8 | CK166: 0 | CL166: 0 | CM166: 1.81 | CN166: 0.19 | CO166: 0 | CP166: 0 | CQ166: 0 | CR166: 0 | CS166: 0 | CT166: 0 | CU166: 0 | CV166: 0 | CW166: 0 | CX166: 0 | CY166: 0 | CZ166: 0 | DA166: 0 | DB166: 0 | DC166: 0 | DD166: 0 | DE166: 0 | DF166: 0 | DG166: 3.48 | DH166: 0.26 | DI166: 0 | DJ166: 0 | DK166: 0 | DL166: 0 | DM166: 0 | DN166: 0 | DO166: 0 | DP166: 0 | DQ166: 0 | DR166: 0 | DS166: 0 | DT166: 0 | DU166: 0 | DV166: 0 | DW166: 0 | DX166: 0 | DY166: 0 | DZ166: 0 | EA166: 0 | EB166: 0 | EC166: 0 | ED166: 0 | EE166: 0 | EF166: 0 | EG166: 0 | EH166: 0 | EI166: 0 | EJ166: 0 | EK166: 0 | EL166: 0 | EM166: 0 | EN166: 0 | EO166: 0 | EP166: 0 | EQ166: 0 | ER166: 0 | ES166: 0 | ET166: 0 | EU166: 0 | EV166: 0 | EW166: 0 | EX166: 0 | EY166: 0 | EZ166: 0 | FA166: 0 | FB166: 0
A167: L44 | B167: Crd | C167: L44_Crd36 | E167: 49.01 | F167: 0.00 | G167: 33.93 | H167: -0.01 | I167: 6.32 | J167: 0.01 | K167: 9.65 | L167: 0.01 | M167: 0.02 | N167: 0.01 | O167: -0.05 | P167: 0.01 | Q167: 98.97 | S167: 4.97 | T167: 0.00 | U167: 4.05 | V167: -0.00 | W167: 0.54 | X167: 0.00 | Y167: 1.46 | Z167: 0.00 | AA167: 0.00 | AB167: 0.00 | AD167: 0.73 | AN167: 0.27 | AP167: 730-790 | AQ167: 5.70 | AR167: 826.00 | AS167: 5.10 | AT167: 825.45 | AU167: 826.00 | AY167: 16.3 | AZ167: 1.5 | BA167: 23.6 | BB167: 2.4 | BC167: 299 | BD167: 27 | BE167: 8.66E+04 | BF167: 3.60E+03 | BG167: 2.87E+05 | BH167: 1.30E+04 | BI167: 29.6 | BJ167: 8.7 | BK167: 174 | BL167: 63 | BM167: 0 | BN167: 0 | BO167: 0 | BP167: 0 | BQ167: 2 | BR167: 1.1 | BS167: 0.63 | BT167: 0.15 | BU167: 0 | BV167: 0 | BW167: 216 | BX167: 12 | BY167: 5.97E+04 | BZ167: 3.50E+03 | CA167: 10.1 | CB167: 0.74 | CC167: 3.25 | CD167: 0.83 | CE167: 0 | CF167: 0 | CG167: 76.8 | CH167: 6.2 | CI167: 70.4 | CJ167: 4.4 | CK167: 0 | CL167: 0 | CM167: 3.81 | CN167: 0.69 | CO167: 2.08 | CP167: 0.7 | CQ167: 0 | CR167: 0 | CS167: 0 | CT167: 0 | CU167: 0 | CV167: 0 | CW167: 0 | CX167: 0 | CY167: 0 | CZ167: 0 | DA167: 0 | DB167: 0 | DC167: 0 | DD167: 0 | DE167: 0 | DF167: 0 | DG167: 3.45 | DH167: 0.24 | DI167: 1.17 | DJ167: 0.45 | DK167: 0 | DL167: 0 | DM167: 0 | DN167: 0 | DO167: 0 | DP167: 0 | DQ167: 0 | DR167: 0 | DS167: 0 | DT167: 0 | DU167: 0 | DV167: 0 | DW167: 0 | DX167: 0 | DY167: 0 | DZ167: 0 | EA167: 0 | EB167: 0 | EC167: 0 | ED167: 0 | EE167: 0 | EF167: 0 | EG167: 0 | EH167: 0 | EI167: 0 | EJ167: 0 | EK167: 0 | EL167: 0 | EM167: 0 | EN167: 0 | EO167: 0 | EP167: 0 | EQ167: 0 | ER167: 0 | ES167: 0 | ET167: 0 | EU167: 0 | EV167: 0 | EW167: 0 | EX167: 0 | EY167: 0 | EZ167: 0 | FA167: 0 | FB167: 0
A168: L44 | B168: Crd | C168: L44_Crd39 | E168: 44.35 | F168: -0.00 | G168: 31.45 | H168: -0.01 | I168: 6.27 | J168: 0.02 | K168: 8.10 | L168: 0.09 | M168: 0.03 | N168: 0.38 | O168: 0.04 | P168: 0.04 | Q168: 90.76 | AP168: 730-790 | AQ168: 5.70 | AR168: 826.00 | AS168: 5.10 | AU168: 826.00 | AY168: 12.31 | AZ168: 0.83 | BA168: 18.4 | BB168: 2.3 | BC168: 226 | BD168: 14 | BE168: 8.07E+04 | BF168: 3.20E+03 | BG168: 2.51E+05 | BH168: 9.20E+03 | BI168: 29.1 | BJ168: 6.2 | BK168: 201 | BL168: 20 | BM168: 600 | BN168: 330 | BO168: 0 | BP168: 0 | BQ168: 0 | BR168: 0 | BS168: 0 | BT168: 0 | BU168: 0 | BV168: 0 | BW168: 169.2 | BX168: 8.3 | BY168: 4.86E+04 | BZ168: 1.90E+03 | CA168: 8.35 | CB168: 0.56 | CC168: 6.4 | CD168: 1.6 | CE168: 0 | CF168: 0 | CG168: 62.3 | CH168: 4.2 | CI168: 60.2 | CJ168: 2.8 | CK168: 0 | CL168: 0 | CM168: 3.45 | CN168: 0.27 | CO168: 1.02 | CP168: 0.12 | CQ168: 0 | CR168: 0 | CS168: 0 | CT168: 0 | CU168: 0 | CV168: 0 | CW168: 0 | CX168: 0 | CY168: 0 | CZ168: 0 | DA168: 0 | DB168: 0 | DC168: 0 | DD168: 0 | DE168: 0 | DF168: 0 | DG168: 3.3 | DH168: 0.15 | DI168: 1.8 | DJ168: 0.38 | DK168: 0 | DL168: 0 | DM168: 0 | DN168: 0 | DO168: 0 | DP168: 0 | DQ168: 0 | DR168: 0 | DS168: 0 | DT168: 0 | DU168: 0 | DV168: 0 | DW168: 0 | DX168: 0 | DY168: 0 | DZ168: 0 | EA168: 0 | EB168: 0 | EC168: 0 | ED168: 0 | EE168: 0 | EF168: 0 | EG168: 0 | EH168: 0 | EI168: 0 | EJ168: 0 | EK168: 0 | EL168: 0 | EM168: 0 | EN168: 0 | EO168: 0 | EP168: 0 | EQ168: 0 | ER168: 0 | ES168: 0 | ET168: 0 | EU168: 0 | EV168: 0 | EW168: 0 | EX168: 0 | EY168: 0 | EZ168: 0 | FA168: 0 | FB168: 0
A169: L44 | B169: Crd | C169: L44_Crd40 | E169: 49.21 | F169: 0.00 | G169: 34.37 | H169: -0.01 | I169: 5.99 | J169: 0.03 | K169: 10.00 | L169: -0.00 | M169: 0.02 | N169: 0.00 | O169: -0.02 | P169: 0.00 | Q169: 99.62 | S169: 4.95 | T169: 0.00 | U169: 4.07 | V169: -0.00 | W169: 0.50 | X169: 0.00 | Y169: 1.50 | Z169: -0.00 | AA169: 0.00 | AB169: 0.00 | AD169: 0.75 | AN169: =W169/(W169+Y169) -> 0.25 | AP169: 730-790 | AQ169: 5.70 | AR169: 826.00 | AS169: 5.10 | AT169: 824.55 | AU169: 826.00 | AY169: 18 | AZ169: 1.6 | BA169: 19.6 | BB169: 2.8 | BC169: 282 | BD169: 20 | BE169: 9.12E+04 | BF169: 3.80E+03 | BG169: 2.86E+05 | BH169: 1.40E+04 | BI169: 30 | BJ169: 10 | BK169: 12.3 | BL169: 2.3 | BM169: 0 | BN169: 0 | BO169: 0 | BP169: 0 | BQ169: 4.5 | BR169: 1.7 | BS169: 0.7 | BT169: 0.18 | BU169: 0 | BV169: 0 | BW169: 174.5 | BX169: 9.7 | BY169: 5.61E+04 | BZ169: 3.20E+03 | CA169: 12.15 | CB169: 0.82 | CC169: 5.6 | CD169: 1.3 | CE169: 0 | CF169: 0 | CG169: 106.1 | CH169: 7.2 | CI169: 69.7 | CJ169: 5.3 | CK169: 0 | CL169: 0 | CM169: 3.85 | CN169: 0.4 | CO169: 0 | CP169: 0 | CQ169: 0 | CR169: 0 | CS169: 0 | CT169: 0 | CU169: 0 | CV169: 0 | CW169: 0 | CX169: 0 | CY169: 0 | CZ169: 0 | DA169: 0 | DB169: 0 | DC169: 0 | DD169: 0 | DE169: 0 | DF169: 0 | DG169: 4.32 | DH169: 0.27 | DI169: 0 | DJ169: 0 | DK169: 0 | DL169: 0 | DM169: 0 | DN169: 0 | DO169: 0 | DP169: 0 | DQ169: 0 | DR169: 0 | DS169: 0 | DT169: 0 | DU169: 0 | DV169: 0 | DW169: 0 | DX169: 0 | DY169: 0 | DZ169: 0 | EA169: 0 | EB169: 0 | EC169: 0 | ED169: 0 | EE169: 0 | EF169: 0 | EG169: 0 | EH169: 0 | EI169: 0 | EJ169: 0 | EK169: 0 | EL169: 0 | EM169: 0 | EN169: 0 | EO169: 0 | EP169: 0 | EQ169: 0 | ER169: 0 | ES169: 0 | ET169: 0 | EU169: 0 | EV169: 0 | EW169: 0 | EX169: 0 | EY169: 0 | EZ169: 0 | FA169: 0 | FB169: 0
A170: L44 | B170: Grt | C170: L44_Grt2 | E170: 38.26 | F170: 0.01 | G170: 21.41 | H170: 0.05 | I170: 34.12 | J170: 0.49 | K170: 5.94 | L170: 0.90 | M170: -0.01 | N170: 0.00 | O170: -0.04 | P170: -0.00 | Q170: 101.17 | S170: 6.00 | T170: 0.00 | U170: 3.95 | V170: 0.01 | W170: 4.47 | X170: 0.06 | Y170: 1.39 | Z170: 0.15 | AA170: -0.00 | AB170: 0.00 | AG170: 0.74 | AH170: 0.23 | AI170: 0.01 | AJ170: 0.02 | AP170: 730-790 | AQ170: 5.70 | AR170: 826.00 | AS170: 5.10 | AU170: 826.00 | AY170: 5.01 | AZ170: 0.43 | BA170: 0 | BB170: 0 | BC170: 22.2 | BD170: 7.7 | BE170: 5.64E+04 | BF170: 2.60E+03 | BG170: 2.01E+05 | BH170: 7.70E+03 | BI170: 122.7 | BJ170: 9.4 | BK170: 0 | BL170: 0 | BM170: 8150 | BN170: 550 | BO170: 108.5 | BP170: 7.6 | BQ170: 93.1 | BR170: 7.6 | BS170: 215 | BT170: 17 | BU170: 321 | BV170: 20 | BW170: 3330 | BX170: 170 | BY170: 2.99E+05 | BZ170: 1.50E+04 | CA170: 42.1 | CB170: 1.9 | CC170: 0 | CD170: 0 | CE170: 0 | CF170: 0 | CG170: 71.9 | CH170: 4.9 | CI170: 10.42 | CJ170: 0.78 | CK170: 5.22 | CL170: 0.89 | CM170: 0 | CN170: 0 | CO170: 0 | CP170: 0 | CQ170: 148.2 | CR170: 9.6 | CS170: 24.1 | CT170: 1.6 | CU170: 0 | CV170: 0 | CW170: 0 | CX170: 0 | CY170: 0.79 | CZ170: 0.3 | DA170: 0.472 | DB170: 0.066 | DC170: 0 | DD170: 0 | DE170: 0 | DF170: 0 | DG170: 0 | DH170: 0 | DI170: 0 | DJ170: 0 | DK170: 0 | DL170: 0 | DM170: 0 | DN170: 0 | DO170: 0 | DP170: 0 | DQ170: 0.41 | DR170: 0.11 | DS170: 3.67 | DT170: 0.47 | DU170: 0 | DV170: 0 | DW170: 18.6 | DX170: 1.2 | DY170: 3.6 | DZ170: 0.25 | EA170: 24.7 | EB170: 1.4 | EC170: 5.87 | ED170: 0.37 | EE170: 18.9 | EF170: 1 | EG170: 2.57 | EH170: 0.19 | EI170: 17.5 | EJ170: 1.6 | EK170: 2.55 | EL170: 0.21 | EM170: 0.42 | EN170: 0.11 | EO170: 0 | EP170: 0 | EQ170: 0 | ER170: 0 | ES170: 0 | ET170: 0 | EU170: 0 | EV170: 0 | EW170: 0 | EX170: 0 | EY170: 0 | EZ170: 0 | FA170: 0 | FB170: 0
A171: L44 | B171: Grt | C171: L44_Grt7 | E171: 37.96 | F171: 0.01 | G171: 21.53 | H171: 0.03 | I171: 34.52 | J171: 0.48 | K171: 5.48 | L171: 0.90 | M171: -0.02 | N171: 0.00 | O171: -0.02 | P171: 0.01 | Q171: 100.94 | S171: 5.98 | T171: 0.00 | U171: 4.00 | V171: 0.00 | W171: 4.55 | X171: 0.06 | Y171: 1.28 | Z171: 0.15 | AA171: -0.01 | AB171: 0.00 | AG171: 0.75 | AH171: 0.21 | AI171: 0.01 | AJ171: 0.03 | AP171: 730-790 | AQ171: 5.70 | AR171: 826.00 | AS171: 5.10 | AU171: 826.00 | AY171: 5.55 | AZ171: 0.32 | BA171: 0 | BB171: 0 | BC171: 23.9 | BD171: 8.3 | BE171: 5.20E+04 | BF171: 1.40E+03 | BG171: 1.93E+05 | BH171: 5.40E+03 | BI171: 140 | BJ171: 10 | BK171: 5.9 | BL171: 1.3 | BM171: 8320 | BN171: 560 | BO171: 94.4 | BP171: 4 | BQ171: 81.9 | BR171: 6.7 | BS171: 167.2 | BT171: 9.1 | BU171: 266 | BV171: 14 | BW171: 3420 | BX171: 170 | BY171: 3.04E+05 | BZ171: 1.40E+04 | CA171: 37.5 | CB171: 1.6 | CC171: 0 | CD171: 0 | CE171: 0 | CF171: 0 | CG171: 49 | CH171: 3.4 | CI171: 10.18 | CJ171: 0.73 | CK171: 6.16 | CL171: 0.86 | CM171: 0 | CN171: 0 | CO171: 0 | CP171: 0 | CQ171: 152.5 | CR171: 6.9 | CS171: 21.4 | CT171: 1.2 | CU171: 0 | CV171: 0 | CW171: 0 | CX171: 0 | CY171: 0.66 | CZ171: 0.22 | DA171: 0.473 | DB171: 0.055 | DC171: 0 | DD171: 0 | DE171: 0 | DF171: 0 | DG171: 0.0194 | DH171: 0.0099 | DI171: 0 | DJ171: 0 | DK171: 0 | DL171: 0 | DM171: 0 | DN171: 0 | DO171: 0 | DP171: 0 | DQ171: 0.44 | DR171: 0.1 | DS171: 3.13 | DT171: 0.34 | DU171: 0 | DV171: 0 | DW171: 16.92 | DX171: 0.93 | DY171: 3.66 | DZ171: 0.22 | EA171: 26.3 | EB171: 1.1 | EC171: 6.34 | ED171: 0.29 | EE171: 19.68 | EF171: 0.91 | EG171: 2.45 | EH171: 0.15 | EI171: 17.5 | EJ171: 1.3 | EK171: 2.49 | EL171: 0.16 | EM171: 0.49 | EN171: 0.13 | EO171: 0 | EP171: 0 | EQ171: 0 | ER171: 0 | ES171: 0 | ET171: 0 | EU171: 0 | EV171: 0 | EW171: 0 | EX171: 0 | EY171: 0 | EZ171: 0 | FA171: 0 | FB171: 0
A172: L44 | B172: Grt | C172: L44_Grt10 | E172: 38.03 | F172: 0.02 | G172: 21.69 | H172: 0.04 | I172: 34.23 | J172: 0.51 | K172: 5.85 | L172: 0.91 | M172: 0.00 | N172: -0.01 | O172: -0.00 | P172: -0.01 | Q172: 101.29 | S172: 5.96 | T172: 0.00 | U172: 4.00 | V172: 0.00 | W172: 4.48 | X172: 0.07 | Y172: 1.37 | Z172: 0.15 | AA172: 0.00 | AB172: -0.00 | AG172: 0.74 | AH172: 0.23 | AI172: 0.01 | AJ172: 0.03 | AP172: 730-790 | AQ172: 5.70 | AR172: 826.00 | AS172: 5.10 | AU172: 826.00 | AY172: 5.72 | AZ172: 0.41 | BA172: 0 | BB172: 0 | BC172: 28 | BD172: 11 | BE172: 5.64E+04 | BF172: 3.00E+03 | BG172: 1.98E+05 | BH172: 8.40E+03 | BI172: 165 | BJ172: 9 | BK172: 0 | BL172: 0 | BM172: 7800 | BN172: 510 | BO172: 144 | BP172: 6.7 | BQ172: 114.6 | BR172: 8.5 | BS172: 188 | BT172: 11 | BU172: 193 | BV172: 12 | BW172: 3610 | BX172: 190 | BY172: 3.09E+05 | BZ172: 1.90E+04 | CA172: 37.1 | CB172: 2.2 | CC172: 0 | CD172: 0 | CE172: 0 | CF172: 0 | CG172: 46.6 | CH172: 2.5 | CI172: 11.26 | CJ172: 0.74 | CK172: 10.4 | CL172: 1.2 | CM172: 0 | CN172: 0 | CO172: 0 | CP172: 0 | CQ172: 169.8 | CR172: 8.3 | CS172: 13.58 | CT172: 0.98 | CU172: 0 | CV172: 0 | CW172: 0 | CX172: 0 | CY172: 0.92 | CZ172: 0.31 | DA172: 0.576 | DB172: 0.055 | DC172: 0 | DD172: 0 | DE172: 0 | DF172: 0 | DG172: 0 | DH172: 0 | DI172: 0 | DJ172: 0 | DK172: 0 | DL172: 0 | DM172: 0 | DN172: 0 | DO172: 0 | DP172: 0 | DQ172: 0.99 | DR172: 0.18 | DS172: 5.04 | DT172: 0.44 | DU172: 0 | DV172: 0 | DW172: 18.6 | DX172: 1.2 | DY172: 3.87 | DZ172: 0.16 | EA172: 29.1 | EB172: 1.5 | EC172: 7.16 | ED172: 0.29 | EE172: 23.5 | EF172: 1.1 | EG172: 2.98 | EH172: 0.18 | EI172: 21.2 | EJ172: 1.3 | EK172: 3 | EL172: 0.25 | EM172: 0 | EN172: 0 | EO172: 0 | EP172: 0 | EQ172: 0 | ER172: 0 | ES172: 0 | ET172: 0 | EU172: 0 | EV172: 0 | EW172: 0 | EX172: 0 | EY172: 0 | EZ172: 0 | FA172: 0 | FB172: 0
A173: L44 | B173: Grt | C173: L44_Grt15 | E173: 38.21 | F173: 0.04 | G173: 21.49 | H173: 0.02 | I173: 34.23 | J173: 0.49 | K173: 5.74 | L173: 0.88 | M173: -0.00 | N173: 0.00 | O173: -0.02 | P173: 0.00 | Q173: 101.10 | S173: 5.99 | T173: 0.00 | U173: 3.97 | V173: 0.00 | W173: 4.49 | X173: 0.07 | Y173: 1.34 | Z173: 0.15 | AA173: -0.00 | AB173: 0.00 | AG173: 0.74 | AH173: 0.22 | AI173: 0.01 | AJ173: 0.02 | AP173: 730-790 | AQ173: 5.70 | AR173: 826.00 | AS173: 5.10 | AU173: 826.00 | AY173: 8.98 | AZ173: 0.54 | BA173: 0 | BB173: 0 | BC173: 36.4 | BD173: 7.8 | BE173: 5.62E+04 | BF173: 2.10E+03 | BG173: 2.03E+05 | BH173: 8.10E+03 | BI173: 333 | BJ173: 15 | BK173: 0 | BL173: 0 | BM173: 8610 | BN173: 660 | BO173: 109.6 | BP173: 4.8 | BQ173: 104.5 | BR173: 7.5 | BS173: 151.6 | BT173: 7.3 | BU173: 195.1 | BV173: 9.3 | BW173: 3640 | BX173: 190 | BY173: 3.15E+05 | BZ173: 1.60E+04 | CA173: 41 | CB173: 1.7 | CC173: 0 | CD173: 0 | CE173: 0 | CF173: 0 | CG173: 58.9 | CH173: 3.8 | CI173: 10.31 | CJ173: 0.64 | CK173: 10.5 | CL173: 1.1 | CM173: 0 | CN173: 0 | CO173: 0 | CP173: 0 | CQ173: 147 | CR173: 6.5 | CS173: 18.1 | CT173: 1 | CU173: 0 | CV173: 0 | CW173: 0 | CX173: 0 | CY173: 0.87 | CZ173: 0.24 | DA173: 0.468 | DB173: 0.068 | DC173: 0 | DD173: 0 | DE173: 0 | DF173: 0 | DG173: 0 | DH173: 0 | DI173: 0 | DJ173: 0 | DK173: 0 | DL173: 0 | DM173: 0 | DN173: 0 | DO173: 0 | DP173: 0 | DQ173: 0.39 | DR173: 0.098 | DS173: 3.5 | DT173: 0.47 | DU173: 0 | DV173: 0 | DW173: 16.9 | DX173: 1.1 | DY173: 3.59 | DZ173: 0.18 | EA173: 25.9 | EB173: 1.3 | EC173: 5.99 | ED173: 0.26 | EE173: 18.12 | EF173: 0.93 | EG173: 2.32 | EH173: 0.16 | EI173: 15.44 | EJ173: 0.92 | EK173: 2.25 | EL173: 0.19 | EM173: 0 | EN173: 0 | EO173: 0 | EP173: 0 | EQ173: 0 | ER173: 0 | ES173: 0 | ET173: 0 | EU173: 0 | EV173: 0 | EW173: 0 | EX173: 0 | EY173: 0 | EZ173: 0 | FA173: 0 | FB173: 0
A174: L44 | B174: Grt | C174: L44_Grt17 | E174: 37.90 | F174: 0.03 | G174: 21.63 | H174: 0.05 | I174: 33.95 | J174: 0.48 | K174: 5.91 | L174: 0.89 | M174: -0.00 | N174: -0.01 | O174: -0.01 | P174: 0.00 | Q174: 100.85 | S174: 5.96 | T174: 0.00 | U174: 4.01 | V174: 0.01 | W174: 4.46 | X174: 0.06 | Y174: 1.38 | Z174: 0.15 | AA174: -0.00 | AB174: -0.00 | AG174: 0.74 | AH174: 0.23 | AI174: 0.01 | AJ174: 0.02 | AP174: 730-790 | AQ174: 5.70 | AR174: 826.00 | AS174: 5.10 | AU174: 826.00 | AY174: 6.67 | AZ174: 0.54 | BA174: 0 | BB174: 0 | BC174: 33.3 | BD174: 8.2 | BE174: 5.67E+04 | BF174: 2.60E+03 | BG174: 2.06E+05 | BH174: 6.90E+03 | BI174: 221 | BJ174: 12 | BK174: 0 | BL174: 0 | BM174: 8010 | BN174: 560 | BO174: 85.8 | BP174: 5.4 | BQ174: 107 | BR174: 9.2 | BS174: 174 | BT174: 11 | BU174: 295 | BV174: 20 | BW174: 3430 | BX174: 210 | BY174: 3.07E+05 | BZ174: 1.80E+04 | CA174: 44.3 | CB174: 2.5 | CC174: 0 | CD174: 0 | CE174: 0 | CF174: 0 | CG174: 147.7 | CH174: 9 | CI174: 9.98 | CJ174: 0.68 | CK174: 8.3 | CL174: 1.1 | CM174: 0 | CN174: 0 | CO174: 0 | CP174: 0 | CQ174: 144 | CR174: 9.2 | CS174: 19.2 | CT174: 1.3 | CU174: 0 | CV174: 0 | CW174: 0 | CX174: 0 | CY174: 0.78 | CZ174: 0.27 | DA174: 0.349 | DB174: 0.059 | DC174: 0 | DD174: 0 | DE174: 0 | DF174: 0 | DG174: 0 | DH174: 0 | DI174: 0 | DJ174: 0 | DK174: 0 | DL174: 0 | DM174: 0 | DN174: 0 | DO174: 0 | DP174: 0 | DQ174: 0.239 | DR174: 0.077 | DS174: 3.2 | DT174: 0.31 | DU174: 0 | DV174: 0 | DW174: 15.8 | DX174: 1 | DY174: 3.78 | DZ174: 0.28 | EA174: 26.5 | EB174: 1.8 | EC174: 5.73 | ED174: 0.37 | EE174: 16.9 | EF174: 1 | EG174: 2.23 | EH174: 0.16 | EI174: 15.5 | EJ174: 1.1 | EK174: 2.32 | EL174: 0.17 | EM174: 0 | EN174: 0 | EO174: 0 | EP174: 0 | EQ174: 0 | ER174: 0 | ES174: 0 | ET174: 0 | EU174: 0 | EV174: 0 | EW174: 0 | EX174: 0 | EY174: 0 | EZ174: 0 | FA174: 0 | FB174: 0
A175: L44 | B175: Grt | C175: L44_Grt33 | E175: 37.42 | F175: 0.02 | G175: 21.75 | H175: 0.06 | I175: 34.06 | J175: 0.65 | K175: 5.72 | L175: 1.00 | M175: -0.01 | N175: 0.00 | O175: -0.01 | P175: 0.01 | Q175: 100.69 | S175: 5.91 | T175: 0.00 | U175: 4.05 | V175: 0.01 | W175: 4.50 | X175: 0.09 | Y175: 1.35 | Z175: 0.17 | AA175: -0.00 | AB175: 0.00 | AG175: 0.74 | AH175: 0.22 | AI175: 0.01 | AJ175: 0.03 | AP175: 730-790 | AQ175: 5.70 | AR175: 826.00 | AS175: 5.10 | AU175: 826.00 | AY175: 6.42 | AZ175: 0.52 | BA175: 0 | BB175: 0 | BC175: 0 | BD175: 0 | BE175: 5.31E+04 | BF175: 2.00E+03 | BG175: 1.93E+05 | BH175: 5.70E+03 | BI175: 147.2 | BJ175: 6.1 | BK175: 7.9 | BL175: 5 | BM175: 8350 | BN175: 580 | BO175: 63.4 | BP175: 3.6 | BQ175: 123.5 | BR175: 9.4 | BS175: 310 | BT175: 14 | BU175: 333 | BV175: 17 | BW175: 4560 | BX175: 190 | BY175: 3.00E+05 | BZ175: 1.30E+04 | CA175: 21.4 | CB175: 1.1 | CC175: 0 | CD175: 0 | CE175: 0 | CF175: 0 | CG175: 45.2 | CH175: 2.4 | CI175: 11.73 | CJ175: 0.76 | CK175: 3.96 | CL175: 0.66 | CM175: 0 | CN175: 0 | CO175: 0 | CP175: 0 | CQ175: 99.6 | CR175: 4 | CS175: 24.5 | CT175: 1 | CU175: 0 | CV175: 0 | CW175: 0 | CX175: 0 | CY175: 0.57 | CZ175: 0.2 | DA175: 0.339 | DB175: 0.051 | DC175: 0 | DD175: 0 | DE175: 0 | DF175: 0 | DG175: 0.017 | DH175: 0.011 | DI175: 0 | DJ175: 0 | DK175: 0 | DL175: 0 | DM175: 0 | DN175: 0 | DO175: 0 | DP175: 0 | DQ175: 0.57 | DR175: 0.15 | DS175: 3.09 | DT175: 0.3 | DU175: 0 | DV175: 0 | DW175: 16.4 | DX175: 1 | DY175: 3.83 | DZ175: 0.17 | EA175: 22.5 | EB175: 1.1 | EC175: 3.3 | ED175: 0.2 | EE175: 8.08 | EF175: 0.51 | EG175: 1.204 | EH175: 0.094 | EI175: 7.99 | EJ175: 0.58 | EK175: 0.994 | EL175: 0.083 | EM175: 0.49 | EN175: 0.12 | EO175: 0 | EP175: 0 | EQ175: 0 | ER175: 0 | ES175: 0 | ET175: 0 | EU175: 0 | EV175: 0 | EW175: 0 | EX175: 0 | EY175: 0 | EZ175: 0 | FA175: 0 | FB175: 0
